Workbook

Sheet Eurostat
B1: http://appsso.eurostat.ec.europa.eu/nui/show.do?query=BOOKMARK_DS-055786_QID_6CDF9737_UID_-3F171EB0&layout=GEO,L,X,0;TIME,C,Y,0;S_ADJ,L,Z,0;UNIT,L,Z,1;INDIC_NA,L,Z,2;INDICATORS,C,Z,3;&zSelection=DS-055786S_ADJ,SWDA;DS-055786INDICATORS,OBS_FLAG;DS-055786UNIT,MIO_NAC;DS-055786INDIC_NA,B1GM;&rankName1=UNIT_1_2_-1_2&rankName2=INDICATORS_1_2_-1_2&rankName3=INDIC-NA_1_2_-1_2&rankName4=S-ADJ_1_2_-1_2&rankName5=GEO_1_2_0_0&rankName6=TIME_1_0_0_1&sortR=ASC_-1_FIRST&rStp=&cStp=&rDCh=&cDCh=&rDM=true&cDM=true&footnes=false&empty=false&wai=false&time_mode=ROLLING&time_most_recent=false&lang=EN&cfo=%23%23%23%2C%23%23%23.%23%23%23 | D1: http://appsso.eurostat.ec.europa.eu/nui/show.do?query=BOOKMARK_DS-055780_QID_6C0B384A_UID_-3F171EB0&layout=TIME,C,X,0;GEO,L,Y,0;S_ADJ,L,Z,0;UNIT,L,Z,1;INDIC_NA,L,Z,2;INDICATORS,C,Z,3;&zSelection=DS-055780S_ADJ,SWDA;DS-055780INDIC_NA,B1GM;DS-055780INDICATORS,OBS_FLAG;DS-055780UNIT,PCH_PRE;&rankName1=INDIC-NA_1_2_-1_2&rankName2=S-ADJ_1_2_-1_2&rankName3=INDICATORS_1_2_-1_2&rankName4=UNIT_1_2_-1_2&rankName5=TIME_1_0_0_0&rankName6=GEO_1_2_0_1&sortC=ASC_-1_FIRST&rStp=&cStp=&rDCh=&cDCh=&rDM=true&cDM=true&footnes=false&empty=false&wai=false&time_mode=ROLLING&time_most_recent=true&lang=EN&cfo=%23%23%23%2C%23%23%23.%23%23%23 | F1: http://appsso.eurostat.ec.europa.eu/nui/show.do?query=BOOKMARK_DS-055786_QID_-2D752CE9_UID_-3F171EB0&layout=TIME,C,X,0;GEO,L,Y,0;S_ADJ,L,Z,0;UNIT,L,Z,1;INDIC_NA,L,Z,2;INDICATORS,C,Z,3;&zSelection=DS-055786S_ADJ,SWDA;DS-055786INDICATORS,OBS_FLAG;DS-055786UNIT,MIO_EUR;DS-055786INDIC_NA,B1GM;&rankName1=INDIC-NA_1_2_-1_2&rankName2=S-ADJ_1_2_-1_2&rankName3=INDICATORS_1_2_-1_2&rankName4=UNIT_1_2_-1_2&rankName5=TIME_1_0_0_0&rankName6=GEO_1_2_0_1&sortC=ASC_-1_FIRST&rStp=&cStp=&rDCh=&cDCh=&rDM=true&cDM=true&footnes=false&empty=false&wai=false&time_mode=ROLLING&time_most_recent=false&lang=EN&cfo=%23%23%23%2C%23%23%23.%23%23%23 | H1: http://appsso.eurostat.ec.europa.eu/nui/show.do?query=BOOKMARK_DS-209529_QID_-221099C4_UID_-3F171EB0&layout=TIME,C,X,0;GEO,L,Y,0;UNIT,L,Z,0;NACE_R2,L,Z,1;S_ADJ,L,Z,2;INDIC_NA,L,Z,3;INDICATORS,C,Z,4;&zSelection=DS-209529UNIT,PCH_PRE_CPI05_EUR;DS-209529NACE_R2,TOTAL;DS-209529S_ADJ,SWDA;DS-209529INDIC_NA,B1G;DS-209529INDICATORS,OBS_FLAG;&rankName1=INDIC-NA_1_2_-1_2&rankName2=S-ADJ_1_2_-1_2&rankName3=NACE-R2_1_2_-1_2&rankName4=INDICATORS_1_2_-1_2&rankName5=UNIT_1_2_-1_2&rankName6=TIME_1_0_0_0&rankName7=GEO_1_2_0_1&sortC=ASC_-1_FIRST&rStp=&cStp=&rDCh=&cDCh=&rDM=true&cDM=true&footnes=false&empty=false&wai=false&time_mode=ROLLING&time_most_recent=true&lang=EN&cfo=%23%23%23%2C%23%23%23.%23%23%23 | AF1: http://appsso.eurostat.ec.europa.eu/nui/show.do?query=BOOKMARK_DS-209523_QID_4068214F_UID_-3F171EB0&layout=TIME,C,X,0;GEO,L,Y,0;UNIT,L,Z,0;NACE_R2,L,Z,1;S_ADJ,L,Z,2;INDIC_NA,L,Z,3;INDICATORS,C,Z,4;&zSelection=DS-209523INDICATORS,OBS_FLAG;DS-209523NACE_R2,TOTAL;DS-209523UNIT,MIO_EUR;DS-209523INDIC_NA,B1G;DS-209523S_ADJ,SWDA;&rankName1=INDIC-NA_1_2_-1_2&rankName2=S-ADJ_1_2_-1_2&rankName3=NACE-R2_1_2_-1_2&rankName4=INDICATORS_1_2_-1_2&rankName5=UNIT_1_2_-1_2&rankName6=TIME_1_0_0_0&rankName7=GEO_1_2_0_1&sortC=ASC_-1_FIRST&rStp=&cStp=&rDCh=&cDCh=&rDM=true&cDM=true&footnes=false&empty=false&wai=false&time_mode=ROLLING&time_most_recent=true&lang=EN&cfo=%23%23%23%2C%23%23%23.%23%23%23 | BD1: http://appsso.eurostat.ec.europa.eu/nui/show.do?query=BOOKMARK_DS-209527_QID_-324026DE_UID_-3F171EB0&layout=TIME,C,X,0;GEO,L,Y,0;UNIT,L,Z,0;NACE_R2,L,Z,1;S_ADJ,L,Z,2;INDIC_NA,L,Z,3;INDICATORS,C,Z,4;&zSelection=DS-209527UNIT,PCH_PRE;DS-209527NACE_R2,TOTAL;DS-209527INDICATORS,OBS_FLAG;DS-209527INDIC_NA,B1G;DS-209527S_ADJ,SWDA;&rankName1=INDIC-NA_1_2_-1_2&rankName2=S-ADJ_1_2_-1_2&rankName3=NACE-R2_1_2_-1_2&rankName4=INDICATORS_1_2_-1_2&rankName5=UNIT_1_2_-1_2&rankName6=TIME_1_0_0_0&rankName7=GEO_1_2_0_1&sortC=ASC_-1_FIRST&rStp=&cStp=&rDCh=&cDCh=&rDM=true&cDM=true&footnes=false&empty=false&wai=false&time_mode=ROLLING&time_most_recent=true&lang=EN&cfo=%23%23%23%2C%23%23%23.%23%23%23 | CB1: http://appsso.eurostat.ec.europa.eu/nui/show.do?query=BOOKMARK_DS-054888_QID_2C6A03A2_UID_-3F171EB0&layout=TIME,C,X,0;GEO,L,Y,0;INTRT,L,Z,0;INDICATORS,C,Z,1;&zSelection=DS-054888INDICATORS,OBS_FLAG;DS-054888INTRT,MAT_M03;&rankName1=INTRT_1_2_-1_2&rankName2=INDICATORS_1_2_-1_2&rankName3=TIME_1_0_0_0&rankName4=GEO_1_2_0_1&sortC=ASC_-1_FIRST&rStp=&cStp=&rDCh=&cDCh=&rDM=true&cDM=true&footnes=false&empty=false&wai=false&time_mode=ROLLING&time_most_recent=false&lang=EN&cfo=%23%23%23%2C%23%23%23.%23%23%23 | CD1: http://appsso.eurostat.ec.europa.eu/nui/show.do?query=BOOKMARK_DS-054876_QID_121B6565_UID_-3F171EB0&layout=TIME,C,X,0;CURRENCY,L,Y,0;UNIT,L,Z,0;STATINFO,L,Z,1;INDICATORS,C,Z,2;&zSelection=DS-054876INDICATORS,OBS_FLAG;DS-054876STATINFO,AVG;DS-054876UNIT,NAC;&rankName1=STATINFO_1_2_-1_2&rankName2=INDICATORS_1_2_-1_2&rankName3=UNIT_1_2_-1_2&rankName4=TIME_1_0_0_0&rankName5=CURRENCY_1_2_0_1&sortC=ASC_-1_FIRST&rStp=&cStp=&rDCh=&cDCh=&rDM=true&cDM=true&footnes=false&empty=false&wai=false&time_mode=ROLLING&time_most_recent=true&lang=EN&cfo=%23%23%23%2C%23%23%23.%23%23%23
B2: GDP, Mio EUR, SWDA, value | D2: Cons, 2005=100, SWDA | F2: Cons, Mio NC, SWDA, value | H2: GVA, 2005=100 (NC), SWDA, price index, TOTAL | J2: -- AGRICULTURE, FORESTRY AND FISHING | L2: -- INDUSTRY EXCEPT CONSTRUCTION | N2: -- MANUFACTURING | P2: -- CONSTRUCTION | R2: -- WHOLESALE AND RETAIL TRADE, TRANSPORT, ACCOMODATION AND FOOD SERVICE ACTIVITIES | T2: -- INFORMATION AND COMMUNICATION | V2: -- FINANCIAL AND INSURANCE ACTIVITIES | X2: -- REAL ESTATE ACTIVITIES | Z2: -- Professional, scientific and technical activities; administrative and support service activities | AB2: -- Public administration, defence, education, human health and social work activities | AD2: -- Arts, entertainment and recreation; other service activities; activities of household and extra-territorial organizations and bodies | AF2: GVA, value (NC), SWDA, TOTAL | AH2: -- AGRICULTURE, FORESTRY AND FISHING | AJ2: -- INDUSTRY EXCEPT CONSTRUCTION | AL2: -- MANUFACTURING | AN2: -- CONSTRUCTION | AP2: -- WHOLESALE AND RETAIL TRADE, TRANSPORT, ACCOMODATION AND FOOD SERVICE ACTIVITIES | AR2: -- INFORMATION AND COMMUNICATION | AT2: -- FINANCIAL AND INSURANCE ACTIVITIES | AV2: -- REAL ESTATE ACTIVITIES | AX2: -- Professional, scientific and technical activities; administrative and support service activities | AZ2: -- Public administration, defence, education, human health and social work activities | BB2: -- Arts, entertainment and recreation; other service activities; activities of household and extra-territorial organizations and bodies | BD2: GVA, volume (2005=100), SWDA, TOTAL | BF2: -- AGRICULTURE, FORESTRY AND FISHING | BH2: -- INDUSTRY EXCEPT CONSTRUCTION | BJ2: -- MANUFACTURING | BL2: -- CONSTRUCTION | BN2: -- WHOLESALE AND RETAIL TRADE, TRANSPORT, ACCOMODATION AND FOOD SERVICE ACTIVITIES | BP2: -- INFORMATION AND COMMUNICATION | BR2: -- FINANCIAL AND INSURANCE ACTIVITIES | BT2: -- REAL ESTATE ACTIVITIES | BV2: -- Professional, scientific and technical activities; administrative and support service activities | BX2: -- Public administration, defence, education, human health and social work activities | BZ2: -- Arts, entertainment and recreation; other service activities; activities of household and extra-territorial organizations and bodies | CB2: 3M MM rates | CD2: EURPLN
A3: GEO/TIME | B3: Euro area (17 countries) | C3: Poland | D3: Euro area (17 countries) | E3: Poland | F3: Euro area (17 countries) | G3: Poland | H3: Euro area (17 countries) | I3: Poland | J3: Euro area (17 countries) | K3: Poland | L3: Euro area (17 countries) | M3: Poland | N3: Euro area (17 countries) | O3: Poland | P3: Euro area (17 countries) | Q3: Poland | R3: Euro area (17 countries) | S3: Poland | T3: Euro area (17 countries) | U3: Poland | V3: Euro area (17 countries) | W3: Poland | X3: Euro area (17 countries) | Y3: Poland | Z3: Euro area (17 countries) | AA3: Poland | AB3: Euro area (17 countries) | AC3: Poland | AD3: Euro area (17 countries) | AE3: Poland | AF3: Euro area (17 countries) | AG3: Poland | AH3: Euro area (17 countries) | AI3: Poland | AJ3: Euro area (17 countries) | AK3: Poland | AL3: Euro area (17 countries) | AM3: Poland | AN3: Euro area (17 countries) | AO3: Poland | AP3: Euro area (17 countries) | AQ3: Poland | AR3: Euro area (17 countries) | AS3: Poland | AT3: Euro area (17 countries) | AU3: Poland | AV3: Euro area (17 countries) | AW3: Poland | AX3: Euro area (17 countries) | AY3: Poland | AZ3: Euro area (17 countries) | BA3: Poland | BB3: Euro area (17 countries) | BC3: Poland | BD3: Euro area (17 countries) | BE3: Poland | BF3: Euro area (17 countries) | BG3: Poland | BH3: Euro area (17 countries) | BI3: Poland | BJ3: Euro area (17 countries) | BK3: Poland | BL3: Euro area (17 countries) | BM3: Poland | BN3: Euro area (17 countries) | BO3: Poland | BP3: Euro area (17 countries) | BQ3: Poland | BR3: Euro area (17 countries) | BS3: Poland | BT3: Euro area (17 countries) | BU3: Poland | BV3: Euro area (17 countries) | BW3: Poland | BX3: Euro area (17 countries) | BY3: Poland | BZ3: Euro area (17 countries) | CA3: Poland | CB3: Euro area (EA11-2000, EA12-2006, EA13-2007, EA15-2008, EA16-2010, EA17-2013, EA18) | CC3: Poland | CD3: Polish zloty
A4: 1995Q1 | B4: 1366927.2 | C4: 25721.4 | D4: 81.8 | E4: 61.7 | F4: 1059037.2 | G4: 60070.3 | H4: : | I4: 48.8 | J4: : | K4: 75.9 | L4: : | M4: 60.4 | N4: : | O4: 72 | P4: : | Q4: 46.6 | R4: : | S4: 49.8 | T4: : | U4: 38.8 | V4: : | W4: 57 | X4: : | Y4: 34.4 | Z4: : | AA4: 22.1 | AB4: : | AC4: 42.6 | AD4: : | AE4: 34.2 | AF4: : | AG4: 69800 | AH4: : | AI4: 5476.2 | AJ4: : | AK4: 19581.9 | AL4: : | AM4: 14173.2 | AN4: : | AO4: 5432.8 | AP4: : | AQ4: 16510.5 | AR4: : | AS4: 1752.5 | AT4: : | AU4: 2112.1 | AV4: : | AW4: 3950.1 | AX4: : | AY4: 2420.8 | AZ4: : | BA4: 10143.6 | BB4: : | BC4: 2491.2 | BD4: : | BE4: 65.9 | BF4: : | BG4: 71.4 | BH4: : | BI4: 61 | BJ4: : | BK4: 51 | BL4: : | BM4: 85.6 | BN4: : | BO4: 60 | BP4: : | BQ4: 48.4 | BR4: : | BS4: 38.8 | BT4: : | BU4: 82.1 | BV4: : | BW4: 80.3 | BX4: : | BY4: 77.9 | BZ4: : | CA4: 95.7 | CB4: 6.96 | CC4: 29.44 | CD4: 3.07554
A5: 1995Q2 | B5: 1385317 | C5: 26252.7 | D5: 82.6 | E5: 68 | F5: 1076259.3 | G5: 64598.4 | H5: : | I5: 50.5 | J5: : | K5: 81.8 | L5: : | M5: 60.7 | N5: : | O5: 72.7 | P5: : | Q5: 48 | R5: : | S5: 51 | T5: : | U5: 40 | V5: : | W5: 63.4 | X5: : | Y5: 40.9 | Z5: : | AA5: 20.1 | AB5: : | AC5: 45 | AD5: : | AE5: 36 | AF5: : | AG5: 73480.8 | AH5: : | AI5: 5966.9 | AJ5: : | AK5: 20218.9 | AL5: : | AM5: 14795.7 | AN5: : | AO5: 5507.2 | AP5: : | AQ5: 17422.9 | AR5: : | AS5: 1841.3 | AT5: : | AU5: 1879.1 | AV5: : | AW5: 4228.6 | AX5: : | AY5: 2181.2 | AZ5: : | BA5: 10796.8 | BB5: : | BC5: 2671.8 | BD5: : | BE5: 67 | BF5: : | BG5: 72.1 | BH5: : | BI5: 62.7 | BJ5: : | BK5: 52.8 | BL5: : | BM5: 84.3 | BN5: : | BO5: 61.8 | BP5: : | BQ5: 49.3 | BR5: : | BS5: 31.1 | BT5: : | BU5: 74.1 | BV5: : | BW5: 79.3 | BX5: : | BY5: 78.4 | BZ5: : | CA5: 97.4 | CB5: 7.14 | CC5: 28.46 | CD5: 3.16639
A6: 1995Q3 | B6: 1407589.6 | C6: 27555 | D6: 82.8 | E6: 68.7 | F6: 1091805.3 | G6: 68889.1 | H6: : | I6: 52.1 | J6: : | K6: 82.5 | L6: : | M6: 62.3 | N6: : | O6: 74.6 | P6: : | Q6: 49.4 | R6: : | S6: 52 | T6: : | U6: 42.9 | V6: : | W6: 59 | X6: : | Y6: 39.3 | Z6: : | AA6: 21 | AB6: : | AC6: 47.1 | AD6: : | AE6: 38.8 | AF6: : | AG6: 77393.4 | AH6: : | AI6: 6078.5 | AJ6: : | AK6: 21173.7 | AL6: : | AM6: 15357.9 | AN6: : | AO6: 5732 | AP6: : | AQ6: 18338.8 | AR6: : | AS6: 1986.1 | AT6: : | AU6: 1848.3 | AV6: : | AW6: 4592.4 | AX6: : | AY6: 2374 | AZ6: : | BA6: 11377.3 | BB6: : | BC6: 2906.3 | BD6: : | BE6: 68.5 | BF6: : | BG6: 72.9 | BH6: : | BI6: 63.9 | BJ6: : | BK6: 53.4 | BL6: : | BM6: 85.1 | BN6: : | BO6: 63.8 | BP6: : | BQ6: 49.6 | BR6: : | BS6: 32.9 | BT6: : | BU6: 83.7 | BV6: : | BW6: 82.6 | BX6: : | BY6: 79 | BZ6: : | CA6: 98.4 | CB6: 6.7 | CC6: 26.84 | CD6: 3.17948
A7: 1995Q4 | B7: 1418890 | C7: 26794.3 | D7: 83.2 | E7: 69.7 | F7: 1104482.5 | G7: 73793.5 | H7: : | I7: 51 | J7: : | K7: 80.7 | L7: : | M7: 63.1 | N7: : | O7: 75.3 | P7: : | Q7: 52.1 | R7: : | S7: 54.4 | T7: : | U7: 43.1 | V7: : | W7: 62.4 | X7: : | Y7: 41.8 | Z7: : | AA7: 26.6 | AB7: : | AC7: 40.5 | AD7: : | AE7: 34.3 | AF7: : | AG7: 76558.7 | AH7: : | AI7: 5973.7 | AJ7: : | AK7: 22002.4 | AL7: : | AM7: 15946.4 | AN7: : | AO7: 6120.8 | AP7: : | AQ7: 19375.9 | AR7: : | AS7: 2184.9 | AT7: : | AU7: 2028.8 | AV7: : | AW7: 4970.5 | AX7: : | AY7: 3012.2 | AZ7: : | BA7: 9910.7 | BB7: : | BC7: 3113.3 | BD7: : | BE7: 69.2 | BF7: : | BG7: 73.2 | BH7: : | BI7: 65.5 | BJ7: : | BK7: 54.9 | BL7: : | BM7: 86.3 | BN7: : | BO7: 64.4 | BP7: : | BQ7: 54.3 | BR7: : | BS7: 34.1 | BT7: : | BU7: 85.1 | BV7: : | BW7: 83 | BX7: : | BY7: 80 | BZ7: : | CA7: 119.1 | CB7: 6.51 | CC7: 25.65 | CD7: 3.26054
A8: 1996Q1 | B8: 1432460.3 | C8: 29727 | D8: 83.4 | E8: 70.3 | F8: 1118848.8 | G8: 78442.4 | H8: : | I8: 56 | J8: : | K8: 88.7 | L8: : | M8: 65 | N8: : | O8: 77.1 | P8: : | Q8: 56.6 | R8: : | S8: 57.9 | T8: : | U8: 49.2 | V8: : | W8: 62.1 | X8: : | Y8: 46.2 | Z8: : | AA8: 23.5 | AB8: : | AC8: 50.8 | AD8: : | AE8: 37.1 | AF8: : | AG8: 85710.3 | AH8: : | AI8: 6635.3 | AJ8: : | AK8: 23082 | AL8: : | AM8: 16668.9 | AN8: : | AO8: 6561.7 | AP8: : | AQ8: 21112.4 | AR8: : | AS8: 2375 | AT8: : | AU8: 2067.2 | AV8: : | AW8: 5431.3 | AX8: : | AY8: 2658.6 | AZ8: : | BA8: 12320.5 | BB8: : | BC8: 3334 | BD8: : | BE8: 70.5 | BF8: : | BG8: 74 | BH8: : | BI8: 66.8 | BJ8: : | BK8: 56.1 | BL8: : | BM8: 85.1 | BN8: : | BO8: 65.9 | BP8: : | BQ8: 51.7 | BR8: : | BS8: 34.9 | BT8: : | BU8: 84.2 | BV8: : | BW8: 82.9 | BX8: : | BY8: 79.3 | BZ8: : | CA8: 118.1 | CB8: 5.63 | CC8: 23.08 | CD8: 3.27417
A9: 1996Q2 | B9: 1449132 | C9: 30644.7 | D9: 83.8 | E9: 71.3 | F9: 1130147.3 | G9: 83223.3 | H9: : | I9: 57.7 | J9: : | K9: 88.5 | L9: : | M9: 66.6 | N9: : | O9: 79.2 | P9: : | Q9: 59.7 | R9: : | S9: 60.5 | T9: : | U9: 51.1 | V9: : | W9: 61.6 | X9: : | Y9: 48.7 | Z9: : | AA9: 24.6 | AB9: : | AC9: 51.2 | AD9: : | AE9: 40.4 | AF9: : | AG9: 90249.3 | AH9: : | AI9: 6745.5 | AJ9: : | AK9: 23984 | AL9: : | AM9: 17377.8 | AN9: : | AO9: 7121.5 | AP9: : | AQ9: 22229.9 | AR9: : | AS9: 2445.3 | AT9: : | AU9: 2310.5 | AV9: : | AW9: 5781.5 | AX9: : | AY9: 2848.4 | AZ9: : | BA9: 12780.2 | BB9: : | BC9: 3515.3 | BD9: : | BE9: 72 | BF9: : | BG9: 75.4 | BH9: : | BI9: 67.7 | BJ9: : | BK9: 56.9 | BL9: : | BM9: 87.7 | BN9: : | BO9: 66.4 | BP9: : | BQ9: 51.2 | BR9: : | BS9: 39.3 | BT9: : | BU9: 85 | BV9: : | BW9: 84.6 | BX9: : | BY9: 81.5 | BZ9: : | CA9: 114.3 | CB9: 5.14 | CC9: 22.08 | CD9: 3.35066
A10: 1996Q3 | B10: 1462740.5 | C10: 31006.3 | D10: 84.3 | E10: 72.6 | F10: 1140653.9 | G10: 87484.8 | H10: : | I10: 60 | J10: : | K10: 88.9 | L10: : | M10: 68 | N10: : | O10: 80.2 | P10: : | Q10: 62.7 | R10: : | S10: 64.7 | T10: : | U10: 53.7 | V10: : | W10: 65.7 | X10: : | Y10: 51.1 | Z10: : | AA10: 27.7 | AB10: : | AC10: 53 | AD10: : | AE10: 42.5 | AF10: : | AG10: 94995 | AH10: : | AI10: 6891.7 | AJ10: : | AK10: 24853.6 | AL10: : | AM10: 18083.7 | AN10: : | AO10: 7623.2 | AP10: : | AQ10: 23582.5 | AR10: : | AS10: 2770.9 | AT10: : | AU10: 2624.8 | AV10: : | AW10: 6157.3 | AX10: : | AY10: 3155.1 | AZ10: : | BA10: 13200 | BB10: : | BC10: 3682.3 | BD10: : | BE10: 73 | BF10: : | BG10: 76.7 | BH10: : | BI10: 68.7 | BJ10: : | BK10: 58.4 | BL10: : | BM10: 89.3 | BN10: : | BO10: 65.8 | BP10: : | BQ10: 55.3 | BR10: : | BS10: 41.9 | BT10: : | BU10: 86.2 | BV10: : | BW10: 83.4 | BX10: : | BY10: 81.4 | BZ10: : | CA10: 113.7 | CB10: 5 | CC10: 19.99 | CD10: 3.4912
A11: 1996Q4 | B11: 1463882.4 | C11: 31724.6 | D11: 84.5 | E11: 74.1 | F11: 1142012.6 | G11: 91476.6 | H11: : | I11: 65.3 | J11: : | K11: 97.4 | L11: : | M11: 70 | N11: : | O11: 82.8 | P11: : | Q11: 65.7 | R11: : | S11: 67 | T11: : | U11: 57.8 | V11: : | W11: 124.4 | X11: : | Y11: 52.7 | Z11: : | AA11: 28.9 | AB11: : | AC11: 57.3 | AD11: : | AE11: 49.7 | AF11: : | AG11: 100072.2 | AH11: : | AI11: 7518.3 | AJ11: : | AK11: 25811 | AL11: : | AM11: 19044.8 | AN11: : | AO11: 7998 | AP11: : | AQ11: 25210.3 | AR11: : | AS11: 2771.8 | AT11: : | AU11: 4231.5 | AV11: : | AW11: 6393.9 | AX11: : | AY11: 3408.8 | AZ11: : | BA11: 13905.9 | BB11: : | BC11: 3885.4 | BD11: : | BE11: 70.6 | BF11: : | BG11: 76.4 | BH11: : | BI11: 69.3 | BJ11: : | BK11: 59.6 | BL11: : | BM11: 89.4 | BN11: : | BO11: 68 | BP11: : | BQ11: 51.3 | BR11: : | BS11: 35.6 | BT11: : | BU11: 86.8 | BV11: : | BW11: 86.5 | BX11: : | BY11: 79.3 | BZ11: : | CA11: 102.6 | CB11: 4.59 | CC11: 20.53 | CD11: 3.57323
A12: 1997Q1 | B12: 1462504.7 | C12: 33711.4 | D12: 84.5 | E12: 75 | F12: 1139027.1 | G12: 96612 | H12: : | I12: 65.1 | J12: : | K12: 95.9 | L12: : | M12: 72.4 | N12: : | O12: 85.6 | P12: : | Q12: 65.9 | R12: : | S12: 68.4 | T12: : | U12: 56.5 | V12: : | W12: 136.6 | X12: : | Y12: 53.9 | Z12: : | AA12: 32.8 | AB12: : | AC12: 58.2 | AD12: : | AE12: 44.8 | AF12: : | AG12: 105579.8 | AH12: : | AI12: 7436.4 | AJ12: : | AK12: 27221.8 | AL12: : | AM12: 20110.6 | AN12: : | AO12: 8452.9 | AP12: : | AQ12: 26005.6 | AR12: : | AS12: 2988.3 | AT12: : | AU12: 4576.6 | AV12: : | AW12: 6723.7 | AX12: : | AY12: 3836.9 | AZ12: : | BA12: 14661.1 | BB12: : | BC12: 4051.7 | BD12: : | BE12: 74.7 | BF12: : | BG12: 76.8 | BH12: : | BI12: 70.7 | BJ12: : | BK12: 60.9 | BL12: : | BM12: 94.1 | BN12: : | BO12: 68.8 | BP12: : | BQ12: 56.7 | BR12: : | BS12: 35.1 | BT12: : | BU12: 89.4 | BV12: : | BW12: 85.5 | BX12: : | BY12: 82.3 | BZ12: : | CA12: 118.8 | CB12: 4.44 | CC12: 22.15 | CD12: 3.54923
A13: 1997Q2 | B13: 1479166.7 | C13: 34620.5 | D13: 85.3 | E13: 76.2 | F13: 1147388.2 | G13: 101377.6 | H13: : | I13: 68 | J13: : | K13: 96.7 | L13: : | M13: 74.8 | N13: : | O13: 87.4 | P13: : | Q13: 68.1 | R13: : | S13: 70.6 | T13: : | U13: 62.3 | V13: : | W13: 111.3 | X13: : | Y13: 57.6 | Z13: : | AA13: 36.4 | AB13: : | AC13: 62.2 | AD13: : | AE13: 41.9 | AF13: : | AG13: 110929.1 | AH13: : | AI13: 7433.1 | AJ13: : | AK13: 28610.9 | AL13: : | AM13: 21177.4 | AN13: : | AO13: 8999.2 | AP13: : | AQ13: 27314.3 | AR13: : | AS13: 3209.7 | AT13: : | AU13: 4709.8 | AV13: : | AW13: 7166.3 | AX13: : | AY13: 4354.9 | AZ13: : | BA13: 15313.9 | BB13: : | BC13: 3871.5 | BD13: : | BE13: 75.2 | BF13: : | BG13: 76 | BH13: : | BI13: 71.9 | BJ13: : | BK13: 62.8 | BL13: : | BM13: 97.1 | BN13: : | BO13: 69.9 | BP13: : | BQ13: 55.2 | BR13: : | BS13: 44.4 | BT13: : | BU13: 89.1 | BV13: : | BW13: 87.5 | BX13: : | BY13: 80.4 | BZ13: : | CA13: 121.4 | CB13: 4.33 | CC13: 22.5 | CD13: 3.63224
A14: 1997Q3 | B14: 1488268.5 | C14: 34795.1 | D14: 85.5 | E14: 77.2 | F14: 1151107.1 | G14: 105862.9 | H14: : | I14: 70.3 | J14: : | K14: 99.2 | L14: : | M14: 76.8 | N14: : | O14: 90.4 | P14: : | Q14: 72.6 | R14: : | S14: 72.9 | T14: : | U14: 61.8 | V14: : | W14: 109.3 | X14: : | Y14: 61.2 | Z14: : | AA14: 40.5 | AB14: : | AC14: 63.3 | AD14: : | AE14: 43.2 | AF14: : | AG14: 115963.6 | AH14: : | AI14: 7494.5 | AJ14: : | AK14: 29964.8 | AL14: : | AM14: 22567.1 | AN14: : | AO14: 9611 | AP14: : | AQ14: 28588.1 | AR14: : | AS14: 3353.2 | AT14: : | AU14: 4388.3 | AV14: : | AW14: 7526.8 | AX14: : | AY14: 4715 | AZ14: : | BA14: 15988.2 | BB14: : | BC14: 4068.3 | BD14: : | BE14: 76 | BF14: : | BG14: 74.7 | BH14: : | BI14: 73.4 | BJ14: : | BK14: 64.7 | BL14: : | BM14: 97.3 | BN14: : | BO14: 70.9 | BP14: : | BQ14: 58.1 | BR14: : | BS14: 42.1 | BT14: : | BU14: 88 | BV14: : | BW14: 85.1 | BX14: : | BY14: 82.5 | BZ14: : | CA14: 123.5 | CB14: 4.32 | CC14: 25.01 | CD14: 3.76598
A15: 1997Q4 | B15: 1511164.1 | C15: 35079.7 | D15: 86.2 | E15: 78.1 | F15: 1165761.4 | G15: 111223.4 | H15: : | I15: 71.7 | J15: : | K15: 89.6 | L15: : | M15: 79.5 | N15: : | O15: 93 | P15: : | Q15: 73.8 | R15: : | S15: 74 | T15: : | U15: 71 | V15: : | W15: 74.4 | X15: : | Y15: 66.4 | Z15: : | AA15: 47.4 | AB15: : | AC15: 63.6 | AD15: : | AE15: 49.7 | AF15: : | AG15: 121116 | AH15: : | AI15: 6994.3 | AJ15: : | AK15: 31563.9 | AL15: : | AM15: 23595.2 | AN15: : | AO15: 10291.2 | AP15: : | AQ15: 30558 | AR15: : | AS15: 3669.5 | AT15: : | AU15: 4170.1 | AV15: : | AW15: 8035.9 | AX15: : | AY15: 5346.8 | AZ15: : | BA15: 16414.8 | BB15: : | BC15: 4306.1 | BD15: : | BE15: 77.8 | BF15: : | BG15: 77.3 | BH15: : | BI15: 74.6 | BJ15: : | BK15: 65.8 | BL15: : | BM15: 102.4 | BN15: : | BO15: 74.7 | BP15: : | BQ15: 55.3 | BR15: : | BS15: 58.7 | BT15: : | BU15: 86.6 | BV15: : | BW15: 82.5 | BX15: : | BY15: 84.3 | BZ15: : | CA15: 113.7 | CB15: 4.43 | CC15: 24.99 | CD15: 3.91436
A16: 1998Q1 | B16: 1516448.9 | C16: 37396.4 | D16: 86.6 | E16: 79.2 | F16: 1166720.5 | G16: 115256.6 | H16: : | I16: 73.3 | J16: : | K16: 100.6 | L16: : | M16: 80.2 | N16: : | O16: 93.6 | P16: : | Q16: 79.9 | R16: : | S16: 75.9 | T16: : | U16: 72.9 | V16: : | W16: 78.3 | X16: : | Y16: 67.4 | Z16: : | AA16: 52.9 | AB16: : | AC16: 66.2 | AD16: : | AE16: 51.7 | AF16: : | AG16: 126120.5 | AH16: : | AI16: 7979.9 | AJ16: : | AK16: 32298.8 | AL16: : | AM16: 24699.7 | AN16: : | AO16: 11171.3 | AP16: : | AQ16: 30973.9 | AR16: : | AS16: 3924.4 | AT16: : | AU16: 4256.3 | AV16: : | AW16: 8246 | AX16: : | AY16: 6157.4 | AZ16: : | BA16: 17106.8 | BB16: : | BC16: 4591.4 | BD16: : | BE16: 79.3 | BF16: : | BG16: 78.5 | BH16: : | BI16: 75.7 | BJ16: : | BK16: 68.4 | BL16: : | BM16: 102.6 | BN16: : | BO16: 73.8 | BP16: : | BQ16: 57.7 | BR16: : | BS16: 57 | BT16: : | BU16: 87.6 | BV16: : | BW16: 85.1 | BX16: : | BY16: 84.5 | BZ16: : | CA16: 116.7 | CB16: 4.2 | CC16: 24.9 | CD16: 3.81254
A17: 1998Q2 | B17: 1533252.1 | C17: 38906.5 | D17: 87.2 | E17: 80.1 | F17: 1179255.7 | G17: 117582.9 | H17: : | I17: 75.8 | J17: : | K17: 92.1 | L17: : | M17: 82.9 | N17: : | O17: 96.9 | P17: : | Q17: 83.4 | R17: : | S17: 77.8 | T17: : | U17: 75.9 | V17: : | W17: 84.7 | X17: : | Y17: 69.6 | Z17: : | AA17: 56.7 | AB17: : | AC17: 66.7 | AD17: : | AE17: 54.8 | AF17: : | AG17: 130840.9 | AH17: : | AI17: 7424.3 | AJ17: : | AK17: 32815 | AL17: : | AM17: 25014.9 | AN17: : | AO17: 11785.3 | AP17: : | AQ17: 32462.1 | AR17: : | AS17: 4232.6 | AT17: : | AU17: 4309 | AV17: : | AW17: 8709.7 | AX17: : | AY17: 6631.5 | AZ17: : | BA17: 17444.3 | BB17: : | BC17: 4857.2 | BD17: : | BE17: 79.6 | BF17: : | BG17: 79.7 | BH17: : | BI17: 74.5 | BJ17: : | BK17: 67 | BL17: : | BM17: 103.7 | BN17: : | BO17: 75.4 | BP17: : | BQ17: 59.7 | BR17: : | BS17: 53.3 | BT17: : | BU17: 89.6 | BV17: : | BW17: 85.6 | BX17: : | BY17: 85.5 | BZ17: : | CA17: 116.3 | CB17: 4.06 | CC17: 22.3 | CD17: 3.78395
A18: 1998Q3 | B18: 1549103.3 | C18: 38512.5 | D18: 87.9 | E18: 81.3 | F18: 1194537.4 | G18: 123094.8 | H18: : | I18: 78.3 | J18: : | K18: 91.9 | L18: : | M18: 84.5 | N18: : | O18: 97.5 | P18: : | Q18: 84 | R18: : | S18: 78.3 | T18: : | U18: 80 | V18: : | W18: 90.5 | X18: : | Y18: 70.8 | Z18: : | AA18: 59 | AB18: : | AC18: 69.6 | AD18: : | AE18: 63.3 | AF18: : | AG18: 135459 | AH18: : | AI18: 7483.4 | AJ18: : | AK18: 33113.1 | AL18: : | AM18: 25041.5 | AN18: : | AO18: 12275.4 | AP18: : | AQ18: 33698.6 | AR18: : | AS18: 4361.9 | AT18: : | AU18: 4829.9 | AV18: : | AW18: 9138.8 | AX18: : | AY18: 7149.5 | AZ18: : | BA18: 18069.8 | BB18: : | BC18: 5017.7 | BD18: : | BE18: 79.7 | BF18: : | BG18: 80.5 | BH18: : | BI18: 73.7 | BJ18: : | BK18: 66.6 | BL18: : | BM18: 107.3 | BN18: : | BO18: 77.8 | BP18: : | BQ18: 58.4 | BR18: : | BS18: 56 | BT18: : | BU18: 92.4 | BV18: : | BW18: 88.7 | BX18: : | BY18: 84.9 | BZ18: : | CA18: 104.1 | CB18: 3.94 | CC18: 18.94 | CD18: 3.96183
A19: 1998Q4 | B19: 1567454.4 | C19: 38196.3 | D19: 88.7 | E19: 78.9 | F19: 1213848.7 | G19: 123742.8 | H19: : | I19: 80.9 | J19: : | K19: 100.3 | L19: : | M19: 86.1 | N19: : | O19: 99 | P19: : | Q19: 84.7 | R19: : | S19: 80.1 | T19: : | U19: 77.7 | V19: : | W19: 119.6 | X19: : | Y19: 71.4 | Z19: : | AA19: 59 | AB19: : | AC19: 71.5 | AD19: : | AE19: 65.2 | AF19: : | AG19: 139447.6 | AH19: : | AI19: 8092.8 | AJ19: : | AK19: 33354.2 | AL19: : | AM19: 25177.1 | AN19: : | AO19: 12106.7 | AP19: : | AQ19: 34601.1 | AR19: : | AS19: 4514.5 | AT19: : | AU19: 5276.8 | AV19: : | AW19: 9434.1 | AX19: : | AY19: 7253.1 | AZ19: : | BA19: 18813.1 | BB19: : | BC19: 5105 | BD19: : | BE19: 79.4 | BF19: : | BG19: 79.8 | BH19: : | BI19: 72.8 | BJ19: : | BK19: 65.9 | BL19: : | BM19: 104.9 | BN19: : | BO19: 78.1 | BP19: : | BQ19: 62.2 | BR19: : | BS19: 46.2 | BT19: : | BU19: 94.6 | BV19: : | BW19: 89.9 | BX19: : | BY19: 86 | BZ19: : | CA19: 102.8 | CB19: 3.62 | CC19: 15.74 | CD19: 4.09348
A20: 1999Q1 | B20: 1581929.8 | C20: 36982.7 | D20: 89.1 | E20: 82.9 | F20: 1222189 | G20: 128010.7 | H20: : | I20: 78.6 | J20: : | K20: 90.2 | L20: : | M20: 86.6 | N20: : | O20: 100 | P20: : | Q20: 84.4 | R20: : | S20: 80.9 | T20: : | U20: 76.1 | V20: : | W20: 85.3 | X20: : | Y20: 73.5 | Z20: : | AA20: 59 | AB20: : | AC20: 72.7 | AD20: : | AE20: 67.9 | AF20: : | AG20: 136969.2 | AH20: : | AI20: 7319.3 | AJ20: : | AK20: 33479.7 | AL20: : | AM20: 25330.4 | AN20: : | AO20: 12718.8 | AP20: : | AQ20: 35102.2 | AR20: : | AS20: 4413.2 | AT20: : | AU20: 5246.2 | AV20: : | AW20: 9789.5 | AX20: : | AY20: 7248.9 | AZ20: : | BA20: 18933.9 | BB20: : | BC20: 5190.6 | BD20: : | BE20: 80.3 | BF20: : | BG20: 80.3 | BH20: : | BI20: 72.7 | BJ20: : | BK20: 65.7 | BL20: : | BM20: 110.7 | BN20: : | BO20: 78.4 | BP20: : | BQ20: 62.1 | BR20: : | BS20: 64.5 | BT20: : | BU20: 95.4 | BV20: : | BW20: 89.9 | BX20: : | BY20: 85.1 | BZ20: : | CA20: 100.4 | CB20: 3.09 | CC20: 13.77 | CD20: 4.2202
A21: 1999Q2 | B21: 1597384.5 | C21: 38840.1 | D21: 89.6 | E21: 83.9 | F21: 1235959.6 | G21: 132864.2 | H21: : | I21: 80.6 | J21: : | K21: 93.6 | L21: : | M21: 87.3 | N21: : | O21: 99.2 | P21: : | Q21: 84.1 | R21: : | S21: 80.8 | T21: : | U21: 78.4 | V21: : | W21: 98.6 | X21: : | Y21: 74.4 | Z21: : | AA21: 60.9 | AB21: : | AC21: 73.9 | AD21: : | AE21: 69.7 | AF21: : | AG21: 143256 | AH21: : | AI21: 7569.8 | AJ21: : | AK21: 34477.1 | AL21: : | AM21: 25900.7 | AN21: : | AO21: 12461.4 | AP21: : | AQ21: 36696.2 | AR21: : | AS21: 4701.7 | AT21: : | AU21: 6048.6 | AV21: : | AW21: 9857.8 | AX21: : | AY21: 7328.5 | AZ21: : | BA21: 19498.3 | BB21: : | BC21: 5278.2 | BD21: : | BE21: 81.9 | BF21: : | BG21: 80 | BH21: : | BI21: 74.3 | BJ21: : | BK21: 67.7 | BL21: : | BM21: 108.8 | BN21: : | BO21: 82.1 | BP21: : | BQ21: 64.2 | BR21: : | BS21: 64.3 | BT21: : | BU21: 94.8 | BV21: : | BW21: 88.1 | BX21: : | BY21: 86.3 | BZ21: : | CA21: 99.4 | CB21: 2.63 | CC21: 13.26 | CD21: 4.1847
A22: 1999Q3 | B22: 1618763.3 | C22: 40459.6 | D22: 90.4 | E22: 84.1 | F22: 1251877 | G22: 136093.8 | H22: : | I22: 82.1 | J22: : | K22: 89.5 | L22: : | M22: 88 | N22: : | O22: 99.8 | P22: : | Q22: 84.7 | R22: : | S22: 82.6 | T22: : | U22: 81.2 | V22: : | W22: 87.2 | X22: : | Y22: 74.1 | Z22: : | AA22: 63.3 | AB22: : | AC22: 75.4 | AD22: : | AE22: 72 | AF22: : | AG22: 148902.6 | AH22: : | AI22: 7391.1 | AJ22: : | AK22: 35818.9 | AL22: : | AM22: 26809.6 | AN22: : | AO22: 12308.7 | AP22: : | AQ22: 38086.2 | AR22: : | AS22: 4945.8 | AT22: : | AU22: 6259.1 | AV22: : | AW22: 9864 | AX22: : | AY22: 7649.6 | AZ22: : | BA22: 19919.4 | BB22: : | BC22: 5387.2 | BD22: : | BE22: 83.6 | BF22: : | BG22: 81.7 | BH22: : | BI22: 76.5 | BJ22: : | BK22: 69.6 | BL22: : | BM22: 106.8 | BN22: : | BO22: 83.4 | BP22: : | BQ22: 65.2 | BR22: : | BS22: 75.2 | BT22: : | BU22: 95.4 | BV22: : | BW22: 88.4 | BX22: : | BY22: 86.3 | BZ22: : | CA22: 98.3 | CB22: 2.7 | CC22: 13.78 | CD22: 4.1682
A23: 1999Q4 | B23: 1641677.5 | C23: 40508.2 | D23: 91.1 | E23: 84.4 | F23: 1268287.7 | G23: 140890.9 | H23: : | I23: 83.8 | J23: : | K23: 90.1 | L23: : | M23: 88.2 | N23: : | O23: 99.5 | P23: : | Q23: 88.5 | R23: : | S23: 83.1 | T23: : | U23: 82.6 | V23: : | W23: 95.9 | X23: : | Y23: 82.2 | Z23: : | AA23: 69.5 | AB23: : | AC23: 76.1 | AD23: : | AE23: 81.6 | AF23: : | AG23: 154518.2 | AH23: : | AI23: 7524.9 | AJ23: : | AK23: 36926.8 | AL23: : | AM23: 27718 | AN23: : | AO23: 12655.9 | AP23: : | AQ23: 39620.1 | AR23: : | AS23: 5268.6 | AT23: : | AU23: 6502.3 | AV23: : | AW23: 10945 | AX23: : | AY23: 8255.2 | AZ23: : | BA23: 20554.9 | BB23: : | BC23: 6120.9 | BD23: : | BE23: 85 | BF23: : | BG23: 82.6 | BH23: : | BI23: 78.7 | BJ23: : | BK23: 72.2 | BL23: : | BM23: 105 | BN23: : | BO23: 86.2 | BP23: : | BQ23: 68.3 | BR23: : | BS23: 71.1 | BT23: : | BU23: 95.4 | BV23: : | BW23: 87 | BX23: : | BY23: 88.2 | BZ23: : | CA23: 98.5 | CB23: 3.43 | CC23: 18.07 | CD23: 4.3372
A24: 2000Q1 | B24: 1668006.1 | C24: 44245 | D24: 91.9 | E24: 85.7 | F24: 1289442.9 | G24: 147068.9 | H24: 89.2 | I24: 86 | J24: 104.1 | K24: 92 | L24: 92.8 | M24: 88.7 | N24: 96.9 | O24: 99.6 | P24: 80.2 | Q24: 87 | R24: 89.8 | S24: 84.6 | T24: 102.9 | U24: 91.8 | V24: 85.3 | W24: 122.7 | X24: 86.1 | Y24: 80.8 | Z24: 87.3 | AA24: 83.5 | AB24: 85.1 | AC24: 79 | AD24: 86.6 | AE24: 76.9 | AF24: 1490692.4 | AG24: 159097.4 | AH24: 36070.9 | AI24: 7715.1 | AJ24: 324716.6 | AK24: 37574.6 | AL24: 281159.7 | AM24: 27939.3 | AN24: 89153 | AO24: 12239.6 | AP24: 286670.5 | AQ24: 41473 | AR24: 67179.5 | AS24: 5371.4 | AT24: 75014.5 | AU24: 8023.8 | AV24: 150872.5 | AW24: 10783.3 | AX24: 142516.8 | AY24: 9987.7 | AZ24: 266283.1 | BA24: 21182.6 | BB24: 52215.1 | BC24: 5701 | BD24: 91.6 | BE24: 85.3 | BF24: 102.4 | BG24: 83 | BH24: 94.8 | BI24: 79.6 | BJ24: 92.7 | BK24: 72.7 | BL24: 95.3 | BM24: 103.3 | BN24: 90.4 | BO24: 88.6 | BP24: 79.2 | BQ24: 62.7 | BR24: 94.3 | BS24: 68.5 | BT24: 89.3 | BU24: 95.6 | BV24: 91.6 | BW24: 87.6 | BX24: 93 | BY24: 87.6 | BZ24: 94.1 | CA24: 97.4 | CB24: 3.54 | CC24: 17.82 | CD24: 4.0579
A25: 2000Q2 | B25: 1687758.4 | C25: 45084.8 | D25: 92.5 | E25: 85.8 | F25: 1302987.7 | G25: 150530.7 | H25: 89.7 | I25: 87.2 | J25: 104.3 | K25: 88.6 | L25: 95.8 | M25: 90.3 | N25: 97.7 | O25: 100.8 | P25: 81 | Q25: 89.2 | R25: 90.3 | S25: 87.1 | T25: 101.7 | U25: 89.9 | V25: 84 | W25: 102.2 | X25: 87 | Y25: 80.5 | Z25: 88 | AA25: 84.4 | AB25: 85.5 | AC25: 80.4 | AD25: 87 | AE25: 74.6 | AF25: 1510832.4 | AG25: 163371.9 | AH25: 35748.5 | AI25: 7492.7 | AJ25: 332448.4 | AK25: 38982.3 | AL25: 288424.8 | AM25: 28809.8 | AN25: 89122.7 | AO25: 12897.1 | AP25: 292551.6 | AQ25: 42343.4 | AR25: 66385.4 | AS25: 5633.2 | AT25: 74055 | AU25: 8137.4 | AV25: 153785.4 | AW25: 10829.5 | AX25: 145294.6 | AY25: 10274.8 | AZ25: 268769.9 | BA25: 21793.8 | BB25: 52670.9 | BC25: 5501.4 | BD25: 92.4 | BE25: 86.3 | BF25: 101.3 | BG25: 83.7 | BH25: 94.1 | BI25: 81.2 | BJ25: 94.3 | BK25: 74.1 | BL25: 94.3 | BM25: 106.2 | BN25: 91.8 | BO25: 87.8 | BP25: 79.2 | BQ25: 67.1 | BR25: 94.5 | BS25: 83.5 | BT25: 90.1 | BU25: 96.4 | BV25: 92.6 | BW25: 89.1 | BX25: 93.4 | BY25: 88.6 | BZ25: 94.4 | CA25: 96.8 | CB25: 4.26 | CC25: 18.49 | CD25: 4.0892
A26: 2000Q3 | B26: 1706020.5 | C26: 47417.5 | D26: 92.8 | E26: 86.3 | F26: 1317076.8 | G26: 153879.1 | H26: 90.2 | I26: 89.3 | J26: 105.4 | K26: 100.9 | L26: 97 | M26: 90.3 | N26: 98.2 | O26: 100.5 | P26: 81.9 | Q26: 90.5 | R26: 90.9 | S26: 88.2 | T26: 101.2 | U26: 90.3 | V26: 82.8 | W26: 114.4 | X26: 87.7 | Y26: 84.3 | Z26: 88.6 | AA26: 87.7 | AB26: 86.3 | AC26: 83.1 | AD26: 87.8 | AE26: 80.2 | AF26: 1529894.5 | AG26: 167625.2 | AH26: 36231.4 | AI26: 8433.1 | AJ26: 337574.1 | AK26: 38797 | AL26: 292870.9 | AM26: 28629.7 | AN26: 90397.8 | AO26: 13212.9 | AP26: 296371.2 | AQ26: 43129.7 | AR26: 67013.5 | AS26: 5823.6 | AT26: 73526.7 | AU26: 8008.9 | AV26: 155970.7 | AW26: 11014.7 | AX26: 147275.1 | AY26: 10704.4 | AZ26: 272388 | BA26: 22414.8 | BB26: 53146 | BC26: 5945.5 | BD26: 93 | BE26: 86.5 | BF26: 101.6 | BG26: 82.7 | BH26: 94.4 | BI26: 80.8 | BJ26: 95.2 | BK26: 73.8 | BL26: 94.6 | BM26: 107.2 | BN26: 92.3 | BO26: 88.4 | BP26: 80.4 | BQ26: 69.1 | BR26: 95.2 | BS26: 73.4 | BT26: 90.6 | BU26: 93.5 | BV26: 93.2 | BW26: 89.3 | BX26: 93.8 | BY26: 88.1 | BZ26: 94.5 | CA26: 97.3 | CB26: 4.74 | CC26: 19.06 | CD26: 3.9708
A27: 2000Q4 | B27: 1724588.2 | C27: 48812.5 | D27: 93.1 | E27: 86.9 | F27: 1330967.5 | G27: 155643.3 | H27: 90.6 | I27: 90 | J27: 107.6 | K27: 109.2 | L27: 98.2 | M27: 90.4 | N27: 98.3 | O27: 100 | P27: 82.9 | Q27: 90.7 | R27: 91.7 | S27: 91 | T27: 100.9 | U27: 93.8 | V27: 81.2 | W27: 105.8 | X27: 88.6 | Y27: 82.5 | Z27: 89.2 | AA27: 90.8 | AB27: 86.7 | AC27: 84.3 | AD27: 87.9 | AE27: 80.2 | AF27: 1547528.3 | AG27: 170648.4 | AH27: 36102.1 | AI27: 9329.3 | AJ27: 341979.7 | AK27: 39104.8 | AL27: 297302.1 | AM27: 28732.5 | AN27: 91524.5 | AO27: 13408.1 | AP27: 301282 | AQ27: 43601.5 | AR27: 68640.3 | AS27: 6160 | AT27: 72400.6 | AU27: 8715.7 | AV27: 158155.5 | AW27: 11030.3 | AX27: 149424 | AY27: 11347.3 | AZ27: 274574.6 | BA27: 22727.4 | BB27: 53445 | BC27: 5969.4 | BD27: 93.6 | BE27: 87.3 | BF27: 99.2 | BG27: 84.5 | BH27: 94.5 | BI27: 81.4 | BJ27: 96.6 | BK27: 74.5 | BL27: 94.6 | BM27: 108.6 | BN27: 93.1 | BO27: 86.6 | BP27: 82.6 | BQ27: 70.3 | BR27: 95.7 | BS27: 86.4 | BT27: 91 | BU27: 95.8 | BV27: 94 | BW27: 91.5 | BX27: 94.2 | BY27: 88.1 | BZ27: 94.9 | CA27: 97.7 | CB27: 5.02 | CC27: 19.7 | CD27: 3.9157
A28: 2001Q1 | B28: 1752119.4 | C28: 50978.5 | D28: 93.9 | E28: 87.2 | F28: 1348677.2 | G28: 157341.2 | H28: 91.3 | I28: 90.9 | J28: 112.7 | K28: 102.2 | L28: 96.9 | M28: 91.1 | N28: 98.5 | O28: 98.8 | P28: 83 | Q28: 91.1 | R28: 92.3 | S28: 90.5 | T28: 101.1 | U28: 91.8 | V28: 82.7 | W28: 101 | X28: 89 | Y28: 84.8 | Z28: 89.6 | AA28: 90.1 | AB28: 87.5 | AC28: 86.1 | AD28: 88.9 | AE28: 89 | AF28: 1572940 | AG28: 172279.4 | AH28: 37352.6 | AI28: 8883.1 | AJ28: 345157.9 | AK28: 39263.6 | AL28: 299825.2 | AM28: 28365.7 | AN28: 92601.1 | AO28: 13251.8 | AP28: 307525.5 | AQ28: 44138.9 | AR28: 71678.6 | AS28: 6423.7 | AT28: 72721.2 | AU28: 8089.2 | AV28: 161376.5 | AW28: 11133.5 | AX28: 152463.8 | AY28: 11285.5 | AZ28: 277922.4 | BA28: 23604.2 | BB28: 54140.3 | BC28: 6125.3 | BD28: 94.5 | BE28: 87.3 | BF28: 98 | BG28: 86 | BH28: 96.5 | BI28: 81 | BJ28: 97.3 | BK28: 74.5 | BL28: 95.5 | BM28: 106.8 | BN28: 94.4 | BO28: 88.2 | BP28: 86 | BQ28: 75 | BR28: 94.3 | BS28: 83.9 | BT28: 92.4 | BU28: 94.1 | BV28: 95.4 | BW28: 91.7 | BX28: 94.4 | BY28: 89.6 | BZ28: 95.1 | CA28: 90.3 | CB28: 4.74 | CC28: 18.52 | CD28: 3.7738
A29: 2001Q2 | B29: 1764661.7 | C29: 55909 | D29: 94.3 | E29: 87.8 | F29: 1364974 | G29: 160619.2 | H29: 91.9 | I29: 91.9 | J29: 113.9 | K29: 109 | L29: 97.1 | M29: 90.3 | N29: 98.8 | O29: 96.4 | P29: 83.9 | Q29: 91.3 | R29: 93.2 | S29: 91.9 | T29: 101.5 | U29: 98 | V29: 84.3 | W29: 102.3 | X29: 89.1 | Y29: 85.8 | Z29: 90.2 | AA29: 95.1 | AB29: 88.1 | AC29: 88.5 | AD29: 89.6 | AE29: 83.1 | AF29: 1583672.9 | AG29: 173721.2 | AH29: 37449.5 | AI29: 9499 | AJ29: 343193.5 | AK29: 38771.5 | AL29: 297453.6 | AM29: 27613.6 | AN29: 93758 | AO29: 12938.9 | AP29: 311128 | AQ29: 44861.8 | AR29: 73146.3 | AS29: 6741.9 | AT29: 74069.2 | AU29: 7739.1 | AV29: 162108.7 | AW29: 11263.6 | AX29: 152957.3 | AY29: 11731.3 | AZ29: 280937 | BA29: 24314.6 | BB29: 54925.6 | BC29: 6011.9 | BD29: 94.5 | BE29: 87.1 | BF29: 97.2 | BG29: 86.2 | BH29: 95.8 | BI29: 80.8 | BJ29: 96.1 | BK29: 74.3 | BL29: 95.7 | BM29: 104.1 | BN29: 94.5 | BO29: 88.2 | BP29: 87.5 | BQ29: 73.6 | BR29: 94.2 | BS29: 79.3 | BT29: 92.6 | BU29: 94 | BV29: 95.2 | BW29: 90.3 | BX29: 94.7 | BY29: 89.8 | BZ29: 95.7 | CA29: 95 | CB29: 4.59 | CC29: 17.09 | CD29: 3.484
A30: 2001Q3 | B30: 1777426.8 | C30: 52139.2 | D30: 94.5 | E30: 88.6 | F30: 1374565.3 | G30: 162851.2 | H30: 92.5 | I30: 91.6 | J30: 113.4 | K30: 98.3 | L30: 97.5 | M30: 89.6 | N30: 99.2 | O30: 96.1 | P30: 85 | Q30: 91.3 | R30: 93.9 | S30: 93 | T30: 101.8 | U30: 96.1 | V30: 82.2 | W30: 109.5 | X30: 90 | Y30: 83.7 | Z30: 91.2 | AA30: 93.3 | AB30: 89.2 | AC30: 89.3 | AD30: 90.5 | AE30: 83.3 | AF30: 1597125.2 | AG30: 174534.2 | AH30: 37720.4 | AI30: 8859 | AJ30: 343439.8 | AK30: 38550.1 | AL30: 297122.5 | AM30: 27483.1 | AN30: 95418.5 | AO30: 12580.1 | AP30: 312963.8 | AQ30: 45946.2 | AR30: 74546.8 | AS30: 6799.3 | AT30: 72006 | AU30: 7887.6 | AV30: 165053.1 | AW30: 11281.1 | AX30: 155478.8 | AY30: 11464 | AZ30: 284742 | BA30: 25106.7 | BB30: 55756.2 | BC30: 6047.9 | BD30: 94.7 | BE30: 87.8 | BF30: 98.4 | BG30: 89.2 | BH30: 95.5 | BI30: 80.9 | BJ30: 95.6 | BK30: 74.2 | BL30: 96.2 | BM30: 101.1 | BN30: 94.3 | BO30: 89.3 | BP30: 88.9 | BQ30: 75.7 | BR30: 94 | BS30: 75.5 | BT30: 93.4 | BU30: 96.5 | BV30: 95.7 | BW30: 89.9 | BX30: 94.9 | BY30: 91.8 | BZ30: 96.1 | CA30: 95.4 | CB30: 4.27 | CC30: 15.36 | CD30: 3.7611
A31: 2001Q4 | B31: 1794030.2 | C31: 53874.3 | D31: 94.8 | E31: 88.8 | F31: 1386939.4 | G31: 165374.6 | H31: 93.3 | I31: 91.8 | J31: 111.7 | K31: 91.7 | L31: 97.7 | M31: 89.4 | N31: 99.1 | O31: 94.5 | P31: 85.9 | Q31: 90.4 | R31: 94.3 | S31: 93.6 | T31: 101.9 | U31: 95.1 | V31: 89.7 | W31: 96.9 | X31: 90.1 | Y31: 90 | Z31: 91.5 | AA31: 91.4 | AB31: 90.2 | AC31: 92.5 | AD31: 91.5 | AE31: 85.9 | AF31: 1613556 | AG31: 175533.4 | AH31: 37764.9 | AI31: 8202.2 | AJ31: 341526.3 | AK31: 38006.2 | AL31: 294059 | AM31: 26809.5 | AN31: 97199.9 | AO31: 12404 | AP31: 314384.4 | AQ31: 46438.8 | AR31: 75913.2 | AS31: 6872.4 | AT31: 79984.8 | AU31: 8149.2 | AV31: 165750.7 | AW31: 11337 | AX31: 155061.2 | AY31: 11262.5 | AZ31: 289634.8 | BA31: 26032.1 | BB31: 56335.9 | BC31: 6238.8 | BD31: 94.8 | BE31: 88.1 | BF31: 99.9 | BG31: 88.5 | BH31: 94.8 | BI31: 79.9 | BJ31: 94.7 | BK31: 73.5 | BL31: 96.9 | BM31: 100.7 | BN31: 94.4 | BO31: 89.7 | BP31: 90.4 | BQ31: 77.4 | BR31: 95.6 | BS31: 88.2 | BT31: 93.8 | BU31: 90.2 | BV31: 95 | BW31: 90.2 | BX31: 95.4 | BY31: 92 | BZ31: 96.1 | CA31: 95.3 | CB31: 3.44 | CC31: 13.38 | CD31: 3.6623
A32: 2002Q1 | B32: 1808634.5 | C32: 55334.3 | D32: 95 | E32: 90 | F32: 1396436.3 | G32: 169877.4 | H32: 93.9 | I32: 92.2 | J32: 110 | K32: 90.3 | L32: 98.2 | M32: 90.8 | N32: 100 | O32: 95.4 | P32: 86.6 | Q32: 93.4 | R32: 95.5 | S32: 93.6 | T32: 101.9 | U32: 98.4 | V32: 86.5 | W32: 84.2 | X32: 91.2 | Y32: 89.2 | Z32: 91.9 | AA32: 95.5 | AB32: 91 | AC32: 92.7 | AD32: 92.5 | AE32: 85.4 | AF32: 1626561.7 | AG32: 176843.7 | AH32: 37161.5 | AI32: 8079.2 | AJ32: 342875.9 | AK32: 38680.9 | AL32: 295658.8 | AM32: 27182 | AN32: 97598.1 | AO32: 12582.6 | AP32: 318911.3 | AQ32: 46950.7 | AR32: 77761.2 | AS32: 7611.9 | AT32: 77427.3 | AU32: 6740 | AV32: 168585.1 | AW32: 12234.1 | AX32: 155662.2 | AY32: 11322.8 | AZ32: 293752.6 | BA32: 26361.1 | BB32: 56826.4 | BC32: 6371.5 | BD32: 95.1 | BE32: 88.4 | BF32: 99.9 | BG32: 88.6 | BH32: 94.7 | BI32: 80.1 | BJ32: 94.4 | BK32: 73.9 | BL32: 96.6 | BM32: 98.9 | BN32: 94.6 | BO32: 90.6 | BP32: 92.6 | BQ32: 82.8 | BR32: 95.9 | BS32: 83.9 | BT32: 94.2 | BU32: 98.2 | BV32: 95 | BW32: 86.8 | BX32: 95.9 | BY32: 93 | BZ32: 95.9 | CA32: 98 | CB32: 3.36 | CC32: 10.64 | CD32: 3.6182
A33: 2002Q2 | B33: 1824144.9 | C33: 54044.9 | D33: 95.3 | E33: 90.3 | F33: 1409032.1 | G33: 169876.4 | H33: 94.2 | I33: 92.4 | J33: 106.7 | K33: 83.6 | L33: 98.5 | M33: 90.8 | N33: 100.1 | O33: 95.6 | P33: 87.1 | Q33: 92.6 | R33: 95.7 | S33: 94.3 | T33: 101.9 | U33: 94.9 | V33: 85.9 | W33: 108 | X33: 92.4 | Y33: 88.4 | Z33: 92.2 | AA33: 90.4 | AB33: 91.7 | AC33: 92.9 | AD33: 93 | AE33: 85.4 | AF33: 1640962.3 | AG33: 177731.1 | AH33: 35977.5 | AI33: 7641.2 | AJ33: 347170.8 | AK33: 38628.1 | AL33: 298325.8 | AM33: 27165.8 | AN33: 97192.2 | AO33: 12018.6 | AP33: 319866.3 | AQ33: 46844.9 | AR33: 78564.6 | AS33: 7694.3 | AT33: 78142.2 | AU33: 7797 | AV33: 172241.2 | AW33: 12312.4 | AX33: 158165.1 | AY33: 11143.7 | AZ33: 296528.9 | BA33: 26662 | BB33: 57113.4 | BC33: 6415.1 | BD33: 95.6 | BE33: 88.6 | BF33: 99.7 | BG33: 90.5 | BH33: 95.5 | BI33: 79.9 | BJ33: 95.1 | BK33: 73.7 | BL33: 95.6 | BM33: 95.4 | BN33: 94.6 | BO33: 89.8 | BP33: 93.6 | BQ33: 86.8 | BR33: 97.6 | BS33: 75.6 | BT33: 95 | BU33: 99.7 | BV33: 96.2 | BW33: 90.2 | BX33: 96.1 | BY33: 93.8 | BZ33: 95.9 | CA33: 98.6 | CB33: 3.45 | CC33: 9.79 | CD33: 3.7169
A34: 2002Q3 | B34: 1844595.3 | C34: 49756 | D34: 95.8 | E34: 90.9 | F34: 1422880.1 | G34: 171670.7 | H34: 94.9 | I34: 93.1 | J34: 107.2 | K34: 96.1 | L34: 99 | M34: 91.6 | N34: 100.4 | O34: 94.3 | P34: 88.2 | Q34: 92.6 | R34: 96.3 | S34: 92.3 | T34: 102.1 | U34: 97.7 | V34: 88.4 | W34: 105.8 | X34: 92.6 | Y34: 89.3 | Z34: 92.9 | AA34: 95.6 | AB34: 92.6 | AC34: 92.7 | AD34: 93.9 | AE34: 86.3 | AF34: 1656580.4 | AG34: 179563 | AH34: 35989.7 | AI34: 8578.4 | AJ34: 350061.8 | AK34: 39524.6 | AL34: 300373 | AM34: 27800.3 | AN34: 99056.6 | AO34: 11964.6 | AP34: 322493.9 | AQ34: 46891.2 | AR34: 78968.3 | AS34: 7874.9 | AT34: 79900.8 | AU34: 7801.8 | AV34: 172741.6 | AW34: 12491.1 | AX34: 159044.8 | AY34: 11473.8 | AZ34: 300644.7 | BA34: 26813.6 | BB34: 57678.2 | BC34: 6443 | BD34: 95.7 | BE34: 88.9 | BF34: 99.2 | BG34: 88.3 | BH34: 95.9 | BI34: 81.1 | BJ34: 95.5 | BK34: 76.4 | BL34: 96.2 | BM34: 94.9 | BN34: 94.8 | BO34: 91.8 | BP34: 93.9 | BQ34: 86.3 | BR34: 97 | BS34: 77.3 | BT34: 95.1 | BU34: 100.1 | BV34: 96 | BW34: 87.8 | BX34: 96.5 | BY34: 94.5 | BZ34: 95.9 | CA34: 98 | CB34: 3.36 | CC34: 8.5 | CD34: 4.081
A35: 2002Q4 | B35: 1857140.3 | C35: 51224 | D35: 96.3 | E35: 91.7 | F35: 1439156.2 | G35: 173930.7 | H35: 95.5 | I35: 93.2 | J35: 109 | K35: 91.5 | L35: 98.9 | M35: 92.6 | N35: 100.1 | O35: 95.9 | P35: 89.2 | Q35: 93.7 | R35: 96.8 | S35: 92.1 | T35: 101.5 | U35: 98.4 | V35: 92.1 | W35: 96.4 | X35: 92.8 | Y35: 91.5 | Z35: 93.4 | AA35: 97 | AB35: 93.7 | AC35: 93.2 | AD35: 94.5 | AE35: 86.8 | AF35: 1669277.3 | AG35: 180975.8 | AH35: 35624.7 | AI35: 8349.2 | AJ35: 349397.1 | AK35: 40582.9 | AL35: 299347.2 | AM35: 28635.7 | AN35: 100154.4 | AO35: 11797.8 | AP35: 326096.9 | AQ35: 46945.4 | AR35: 78817.5 | AS35: 8086.1 | AT35: 81859.2 | AU35: 7745.9 | AV35: 174739.5 | AW35: 12623.9 | AX35: 159824.3 | AY35: 11552.4 | AZ35: 305038.1 | BA35: 27182.7 | BB35: 57725.7 | BC35: 6512 | BD35: 95.8 | BE35: 89.4 | BF35: 96.7 | BG35: 90.3 | BH35: 95.8 | BI35: 82.4 | BJ35: 95.5 | BK35: 77.5 | BL35: 96.2 | BM35: 92.4 | BN35: 95.4 | BO35: 92.1 | BP35: 94.2 | BQ35: 88 | BR35: 95.3 | BS35: 84.2 | BT35: 95.9 | BU35: 98.8 | BV35: 96 | BW35: 87.2 | BX35: 96.8 | BY35: 95.3 | BZ35: 95.4 | CA35: 98.5 | CB35: 3.11 | CC35: 7.03 | CD35: 3.997
A36: 2003Q1 | B36: 1864016.2 | C36: 49263.4 | D36: 96.4 | E36: 91.7 | F36: 1450515.6 | G36: 173380.6 | H36: 95.9 | I36: 93.3 | J36: 111.1 | K36: 86.4 | L36: 98.9 | M36: 93.1 | N36: 100.5 | O36: 95.2 | P36: 90 | Q36: 91.8 | R36: 97.3 | S36: 93.4 | T36: 100.8 | U36: 97.9 | V36: 93.2 | W36: 112.7 | X36: 93.2 | Y36: 90.4 | Z36: 94.2 | AA36: 93.3 | AB36: 93.7 | AC36: 92.9 | AD36: 95.5 | AE36: 87.2 | AF36: 1675024.4 | AG36: 182377 | AH36: 35721.3 | AI36: 7848.7 | AJ36: 350240.2 | AK36: 41450 | AL36: 300906.4 | AM36: 29170.5 | AN36: 100634.8 | AO36: 11505 | AP36: 326768.2 | AQ36: 46689.5 | AR36: 76303.7 | AS36: 8063.6 | AT36: 82771.2 | AU36: 8040 | AV36: 176091.6 | AW36: 12852.2 | AX36: 162189 | AY36: 11563.8 | AZ36: 305965.3 | BA36: 27555.7 | BB36: 58339.2 | BC36: 6501.4 | BD36: 95.8 | BE36: 90.1 | BF36: 95 | BG36: 89.9 | BH36: 96 | BI36: 83.7 | BJ36: 95.6 | BK36: 79.5 | BL36: 95.8 | BM36: 92.1 | BN36: 95.1 | BO36: 90.3 | BP36: 91.8 | BQ36: 88.2 | BR36: 95.2 | BS36: 74.8 | BT36: 96.3 | BU36: 101.8 | BV36: 96.6 | BW36: 90.7 | BX36: 97 | BY36: 96.9 | BZ36: 95.4 | CA36: 97.9 | CB36: 2.68 | CC36: 6.37 | CD36: 4.1892
A37: 2003Q2 | B37: 1873745.8 | C37: 48214.9 | D37: 96.6 | E37: 92.8 | F37: 1459213.3 | G37: 175634.4 | H37: 96.4 | I37: 93.7 | J37: 112.4 | K37: 94 | L37: 98.7 | M37: 93.9 | N37: 99.9 | O37: 96.2 | P37: 91 | Q37: 91.9 | R37: 97.9 | S37: 93.2 | T37: 101.4 | U37: 100.9 | V37: 96.1 | W37: 86.3 | X37: 93.3 | Y37: 91.8 | Z37: 94.8 | AA37: 97.9 | AB37: 94.3 | AC37: 93.4 | AD37: 95.9 | AE37: 86 | AF37: 1683886.5 | AG37: 185248.2 | AH37: 35554.7 | AI37: 8527.8 | AJ37: 346693.8 | AK37: 43009.2 | AL37: 296872 | AM37: 30794.8 | AN37: 102712.6 | AO37: 11583.7 | AP37: 329392.7 | AQ37: 47267.5 | AR37: 77510.8 | AS37: 8129.9 | AT37: 84768.5 | AU37: 7548.4 | AV37: 177177.6 | AW37: 12966.3 | AX37: 162736.3 | AY37: 11702.3 | AZ37: 308776.5 | BA37: 27759 | BB37: 58563.1 | BC37: 6559.3 | BD37: 95.8 | BE37: 91.1 | BF37: 93.5 | BG37: 89.7 | BH37: 95.2 | BI37: 86.1 | BJ37: 94.9 | BK37: 83 | BL37: 96.7 | BM37: 92.6 | BN37: 95.3 | BO37: 91.7 | BP37: 92.8 | BQ37: 86.3 | BR37: 94.6 | BS37: 91.7 | BT37: 96.8 | BU37: 101.1 | BV37: 96.3 | BW37: 87.5 | BX37: 97.3 | BY37: 97.1 | BZ37: 95.3 | CA37: 100.1 | CB37: 2.36 | CC37: 5.55 | CD37: 4.356
A38: 2003Q3 | B38: 1897870.3 | C38: 47854.6 | D38: 97.1 | E38: 93.8 | F38: 1477509 | G38: 177854.9 | H38: 97.2 | I38: 93.3 | J38: 114.7 | K38: 85 | L38: 98.6 | M38: 94.8 | N38: 99.5 | O38: 97.2 | P38: 91.7 | Q38: 91.1 | R38: 98.2 | S38: 93.1 | T38: 101.4 | U38: 95.7 | V38: 98.1 | W38: 85.4 | X38: 93.7 | Y38: 91.7 | Z38: 95.5 | AA38: 92.1 | AB38: 96.4 | AC38: 94.1 | AD38: 96.4 | AE38: 88.2 | AF38: 1705845.4 | AG38: 187611.7 | AH38: 35743.8 | AI38: 8164.9 | AJ38: 348382.8 | AK38: 44726.3 | AL38: 297762.9 | AM38: 32312.8 | AN38: 103871.5 | AO38: 11585.7 | AP38: 332765.9 | AQ38: 47315.3 | AR38: 78363.4 | AS38: 8037 | AT38: 86650.8 | AU38: 7568.3 | AV38: 179334.7 | AW38: 13058.6 | AX38: 164800.5 | AY38: 11673.8 | AZ38: 316523.6 | BA38: 28222.8 | BB38: 59408.3 | BC38: 6676.4 | BD38: 96.3 | BE38: 92.7 | BF38: 92.1 | BG38: 95 | BH38: 95.8 | BI38: 88.7 | BJ38: 95.6 | BK38: 86.2 | BL38: 97.1 | BM38: 93.4 | BN38: 95.9 | BO38: 91.9 | BP38: 93.8 | BQ38: 89.9 | BR38: 94.7 | BS38: 92.9 | BT38: 97.5 | BU38: 102 | BV38: 96.8 | BW38: 92.8 | BX38: 97.6 | BY38: 98.1 | BZ38: 96.2 | CA38: 99.4 | CB38: 2.14 | CC38: 5.2 | CD38: 4.4244
A39: 2003Q4 | B39: 1915846.3 | C39: 46424.8 | D39: 97.4 | E39: 94.8 | F39: 1485900.8 | G39: 180806.9 | H39: 97.4 | I39: 93.5 | J39: 112.3 | K39: 84.4 | L39: 98.9 | M39: 95.8 | N39: 99.7 | O39: 97.4 | P39: 92.7 | Q39: 90.8 | R39: 99 | S39: 93.7 | T39: 101.5 | U39: 95.9 | V39: 97.8 | W39: 101.9 | X39: 94.7 | Y39: 92.5 | Z39: 95.8 | AA39: 95.7 | AB39: 95.6 | AC39: 93.7 | AD39: 96.5 | AE39: 90.2 | AF39: 1721435.7 | AG39: 190565.7 | AH39: 36468.9 | AI39: 8127.3 | AJ39: 352884.6 | AK39: 46726.2 | AL39: 301640.9 | AM39: 33988.1 | AN39: 104570.2 | AO39: 11499.1 | AP39: 337050 | AQ39: 48326.7 | AR39: 79206.5 | AS39: 8212.1 | AT39: 88137.6 | AU39: 8259.2 | AV39: 181548.7 | AW39: 13190.3 | AX39: 166003.2 | AY39: 12038.9 | AZ39: 315626 | BA39: 28031.6 | BB39: 59940.1 | BC39: 6772.8 | BD39: 96.9 | BE39: 93.9 | BF39: 96 | BG39: 95.2 | BH39: 96.8 | BI39: 91.7 | BJ39: 96.6 | BK39: 90.5 | BL39: 96.6 | BM39: 93 | BN39: 96.4 | BO39: 93.2 | BP39: 94.7 | BQ39: 91.7 | BR39: 96.6 | BS39: 85 | BT39: 97.6 | BU39: 102.1 | BV39: 97.2 | BW39: 92.1 | BX39: 98.1 | BY39: 97.8 | BZ39: 96.9 | CA39: 98.6 | CB39: 2.15 | CC39: 5.6 | CD39: 4.6232
A40: 2004Q1 | B40: 1934387.8 | C40: 47240.6 | D40: 97.7 | E40: 96.2 | F40: 1497304.7 | G40: 184694.6 | H40: 97.7 | I40: 94.1 | J40: 105.4 | K40: 91.4 | L40: 98.8 | M40: 98.5 | N40: 99.8 | O40: 99.3 | P40: 93.7 | Q40: 89.2 | R40: 99.1 | S40: 94.9 | T40: 101.1 | U40: 101 | V40: 98.3 | W40: 97.1 | X40: 95.7 | Y40: 93.5 | Z40: 96.4 | AA40: 92.8 | AB40: 96.7 | AC40: 93.2 | AD40: 96.8 | AE40: 87.8 | AF40: 1736527.9 | AG40: 194754 | AH40: 37122 | AI40: 9026.4 | AJ40: 355978.1 | AK40: 49514.4 | AL40: 303288 | AM40: 35984 | AN40: 106661.3 | AO40: 11236.4 | AP40: 338946.3 | AQ40: 49697.7 | AR40: 80592.1 | AS40: 9373.5 | AT40: 89290.3 | AU40: 7861.4 | AV40: 182935.4 | AW40: 13124 | AX40: 165365.1 | AY40: 11910 | AZ40: 318995.4 | BA40: 28103.4 | BB40: 60642 | BC40: 6473.7 | BD40: 97.5 | BE40: 95.4 | BF40: 104.1 | BG40: 97.7 | BH40: 97.7 | BI40: 94.5 | BJ40: 97.1 | BK40: 93.9 | BL40: 97.6 | BM40: 92.5 | BN40: 96.9 | BO40: 94.6 | BP40: 96.8 | BQ40: 99.4 | BR40: 97.4 | BS40: 84.9 | BT40: 97.4 | BU40: 100.5 | BV40: 96.2 | BW40: 93.9 | BX40: 98 | BY40: 98.6 | BZ40: 97.7 | CA40: 96.7 | CB40: 2.06 | CC40: 5.44 | CD40: 4.7763
A41: 2004Q2 | B41: 1955064.1 | C41: 48863 | D41: 98.1 | E41: 96.9 | F41: 1515164.1 | G41: 188668.8 | H41: 98.2 | I41: 99.2 | J41: 104.4 | K41: 105.2 | L41: 98.9 | M41: 100 | N41: 99.8 | O41: 100.1 | P41: 95.3 | Q41: 93.6 | R41: 99.6 | S41: 96.4 | T41: 100.4 | U41: 98.5 | V41: 98 | W41: 107.4 | X41: 96.5 | Y41: 94.5 | Z41: 97.2 | AA41: 95.5 | AB41: 97.7 | AC41: 95.3 | AD41: 97.1 | AE41: 91.3 | AF41: 1758055.6 | AG41: 207326.3 | AH41: 37465.1 | AI41: 10498.9 | AJ41: 359388.6 | AK41: 51413.9 | AL41: 306425.4 | AM41: 37477.5 | AN41: 108543.6 | AO41: 11819.5 | AP41: 342970.5 | AQ41: 51162.2 | AR41: 81208.8 | AS41: 9490.1 | AT41: 90277.2 | AU41: 8575.3 | AV41: 185593.7 | AW41: 13286.7 | AX41: 167402.8 | AY41: 12485.6 | AZ41: 324155.3 | BA41: 28514.4 | BB41: 61050.1 | BC41: 6697.3 | BD41: 98.2 | BE41: 96.3 | BF41: 106 | BG41: 98.7 | BH41: 98.5 | BI41: 96.7 | BJ41: 98.1 | BK41: 97.1 | BL41: 97.6 | BM41: 92.7 | BN41: 97.5 | BO41: 95.9 | BP41: 98.2 | BQ41: 103.2 | BR41: 98.8 | BS41: 83.7 | BT41: 98 | BU41: 100.7 | BV41: 96.6 | BW41: 95.7 | BX41: 98.6 | BY41: 97.8 | BZ41: 98.1 | CA41: 96.3 | CB41: 2.08 | CC41: 5.86 | CD41: 4.6877
A42: 2004Q3 | B42: 1971424.6 | C42: 52641.7 | D42: 98.4 | E42: 97.1 | F42: 1525901.1 | G42: 191750.8 | H42: 98.5 | I42: 99.6 | J42: 101.5 | K42: 109.3 | L42: 99.6 | M42: 101.5 | N42: 100.4 | O42: 101.9 | P42: 96.1 | Q42: 95.3 | R42: 99.5 | S42: 97.9 | T42: 100 | U42: 99.6 | V42: 98.5 | W42: 97.6 | X42: 97.9 | Y42: 96.1 | Z42: 97.5 | AA42: 99.3 | AB42: 97.5 | AC42: 95.4 | AD42: 97.9 | AE42: 93.1 | AF42: 1768921.4 | AG42: 208618.9 | AH42: 36577 | AI42: 10740.9 | AJ42: 361283.8 | AK42: 52280.1 | AL42: 307475.7 | AM42: 38178.7 | AN42: 109484.8 | AO42: 12128.3 | AP42: 343639.5 | AQ42: 51580.2 | AR42: 81396.2 | AS42: 9492.8 | AT42: 91386.6 | AU42: 8743.1 | AV42: 189105.7 | AW42: 13428 | AX42: 169606.3 | AY42: 12862.4 | AZ42: 324396.2 | BA42: 28740.3 | BB42: 62045.4 | BC42: 6848.7 | BD42: 98.5 | BE42: 96.6 | BF42: 106.5 | BG42: 97.2 | BH42: 98.4 | BI42: 96.8 | BJ42: 97.8 | BK42: 97.1 | BL42: 97.6 | BM42: 93.4 | BN42: 97.8 | BO42: 95.2 | BP42: 98.8 | BQ42: 102 | BR42: 99.5 | BS42: 93.9 | BT42: 98.4 | BU42: 100.1 | BV42: 97.6 | BW42: 94.8 | BX42: 98.9 | BY42: 98.5 | BZ42: 99 | CA42: 96.6 | CB42: 2.12 | CC42: 6.68 | CD42: 4.4236
A43: 2004Q4 | B43: 1987286.2 | C43: 55935.9 | D43: 98.9 | E43: 98.2 | F43: 1542561.6 | G43: 195480 | H43: 99 | I43: 99.7 | J43: 101.1 | K43: 110.3 | L43: 100.2 | M43: 101.8 | N43: 101 | O43: 103.3 | P43: 97.1 | Q43: 96.4 | R43: 99.7 | S43: 99.8 | T43: 99.9 | U43: 96.1 | V43: 98.1 | W43: 91.8 | X43: 98.1 | Y43: 96.5 | Z43: 98.3 | AA43: 95.3 | AB43: 98.2 | AC43: 106.2 | AD43: 98.5 | AE43: 96.8 | AF43: 1783210.2 | AG43: 210976.8 | AH43: 36830 | AI43: 10861.8 | AJ43: 362494.9 | AK43: 52441.4 | AL43: 308507 | AM43: 38595 | AN43: 111260.2 | AO43: 12668.2 | AP43: 348208.4 | AQ43: 52480 | AR43: 81724.2 | AS43: 9359.5 | AT43: 92044.1 | AU43: 9557.1 | AV43: 189444.1 | AW43: 13526.1 | AX43: 170634.9 | AY43: 12803.2 | AZ43: 327874.8 | BA43: 32281.4 | BB43: 62694.7 | BC43: 7152.7 | BD43: 98.8 | BE43: 97.5 | BF43: 107.7 | BG43: 97.4 | BH43: 98.1 | BI43: 96.8 | BJ43: 97.6 | BK43: 96.9 | BL43: 98.2 | BM43: 96.5 | BN43: 98.9 | BO43: 95 | BP43: 99.3 | BQ43: 104.3 | BR43: 100.6 | BS43: 109.1 | BT43: 98.4 | BU43: 100.4 | BV43: 97.3 | BW43: 98.3 | BX43: 99.2 | BY43: 99.4 | BZ43: 99.4 | CA43: 97 | CB43: 2.16 | CC43: 6.81 | CD43: 4.2342
A44: 2005Q1 | B44: 2001728.8 | C44: 59888.2 | D44: 99.1 | E44: 98.2 | F44: 1550755.4 | G44: 195604.3 | H44: 99.5 | I44: 100.4 | J44: 102.3 | K44: 106.9 | L44: 99.7 | M44: 104.3 | N44: 100.3 | O44: 106.3 | P44: 98.6 | Q44: 103 | R44: 99.9 | S44: 100.2 | T44: 101.1 | U44: 102.2 | V44: 99.7 | W44: 96.4 | X44: 99.2 | Y44: 98.8 | Z44: 99.4 | AA44: 102 | AB44: 99 | AC44: 99.3 | AD44: 98.9 | AE44: 100.8 | AF44: 1797701.6 | AG44: 213131.3 | AH44: 34600.2 | AI44: 10362.8 | AJ44: 363911.5 | AK44: 54100.9 | AL44: 309650.7 | AM44: 39566.3 | AN44: 112668.1 | AO44: 13397.5 | AP44: 349209.9 | AQ44: 53861.5 | AR44: 81874.4 | AS44: 9425.5 | AT44: 92719.3 | AU44: 9371.7 | AV44: 193620.1 | AW44: 13729.5 | AX44: 174726.3 | AY44: 13559.8 | AZ44: 331350 | BA44: 29931.9 | BB44: 63021.7 | BC44: 7580.8 | BD44: 99.1 | BE44: 97.8 | BF44: 100 | BG44: 95.9 | BH44: 98.9 | BI44: 97.5 | BJ44: 98.6 | BK44: 96.5 | BL44: 97.9 | BM44: 95.5 | BN44: 99 | BO44: 97.2 | BP44: 98.3 | BQ44: 98.8 | BR44: 99.7 | BS44: 101.9 | BT44: 99.5 | BU44: 99.5 | BV44: 98.6 | BW44: 97.3 | BX44: 99.5 | BY44: 98.5 | BZ44: 99.5 | CA44: 98.7 | CB44: 2.14 | CC44: 6.44 | CD44: 4.0267
A45: 2005Q2 | B45: 2023023.1 | C45: 58927.4 | D45: 99.8 | E45: 99.5 | F45: 1571090 | G45: 199295.1 | H45: 99.8 | I45: 99.3 | J45: 99.9 | K45: 94.8 | L45: 99.9 | M45: 95.6 | N45: 100 | O45: 93.7 | P45: 99 | Q45: 97.8 | R45: 99.9 | S45: 98.4 | T45: 100.6 | U45: 97.7 | V45: 101 | W45: 98.1 | X45: 99.6 | Y45: 99.2 | Z45: 99.8 | AA45: 98.5 | AB45: 99.4 | AC45: 98.5 | AD45: 99.8 | AE45: 97.2 | AF45: 1813856.9 | AG45: 214923.2 | AH45: 33582.9 | AI45: 9567.9 | AJ45: 367484.3 | AK45: 50464.8 | AL45: 312163.9 | AM45: 35865.1 | AN45: 115473.5 | AO45: 13402.6 | AP45: 350894.8 | AQ45: 54455.5 | AR45: 82184.6 | AS45: 9143.4 | AT45: 93642.7 | AU45: 9525.5 | AV45: 195218.1 | AW45: 13841.1 | AX45: 177328.2 | AY45: 13444.6 | AZ45: 334371.5 | BA45: 30295.1 | BB45: 63676.3 | BC45: 7396.3 | BD45: 99.7 | BE45: 99.8 | BF45: 99.4 | BG45: 99.9 | BH45: 99.7 | BI45: 99.2 | BJ45: 99.7 | BK45: 99.2 | BL45: 99.9 | BM45: 100.6 | BN45: 99.5 | BO45: 100 | BP45: 99.2 | BQ45: 100.2 | BR45: 99.4 | BS45: 101.8 | BT45: 99.8 | BU45: 99.9 | BV45: 99.7 | BW45: 99.9 | BX45: 99.9 | BY45: 100.5 | BZ45: 99.6 | CA45: 99.9 | CB45: 2.12 | CC45: 5.49 | CD45: 4.1301
A46: 2005Q3 | B46: 2044188.2 | C46: 61539.6 | D46: 100.4 | E46: 100.6 | F46: 1590088.1 | G46: 201994.6 | H46: 100 | I46: 99.6 | J46: 99.2 | K46: 99.5 | L46: 100 | M46: 98.1 | N46: 99.9 | O46: 97.3 | P46: 100.3 | Q46: 99.3 | R46: 100 | S46: 100.5 | T46: 100 | U46: 99.6 | V46: 99.8 | W46: 99.6 | X46: 100.2 | Y46: 100 | Z46: 100.2 | AA46: 98.4 | AB46: 100 | AC46: 99.6 | AD46: 100.4 | AE46: 99 | AF46: 1829187.2 | AG46: 217680.6 | AH46: 33879.6 | AI46: 10165 | AJ46: 369863.9 | AK46: 52437.9 | AL46: 314243.9 | AM46: 37783.2 | AN46: 118020.7 | AO46: 13649.2 | AP46: 354531.4 | AQ46: 56024.7 | AR46: 83298.4 | AS46: 9303.2 | AT46: 92395.2 | AU46: 9612.7 | AV46: 197052.7 | AW46: 14015.3 | AX46: 179010.8 | AY46: 13552.5 | AZ46: 336743.3 | BA46: 30506.8 | BB46: 64391.4 | BC46: 7538 | BD46: 100.3 | BE46: 100.7 | BF46: 100.9 | BG46: 101.1 | BH46: 100.3 | BI46: 100.5 | BJ46: 100.5 | BK46: 100.7 | BL46: 100.8 | BM46: 101 | BN46: 100.4 | BO46: 100.7 | BP46: 101.1 | BQ46: 100 | BR46: 99.3 | BS46: 101.1 | BT46: 100.1 | BU46: 100.3 | BV46: 100.3 | BW46: 100.8 | BX46: 100.1 | BY46: 100.1 | BZ46: 100.1 | CA46: 100 | CB46: 2.13 | CC46: 4.62 | CD46: 4.0186
A47: 2005Q4 | B47: 2071300.3 | C47: 64139.4 | D47: 100.7 | E47: 101.8 | F47: 1606934.9 | G47: 205274 | H47: 100.6 | I47: 100.1 | J47: 98.6 | K47: 96.9 | L47: 100.4 | M47: 100.2 | N47: 99.8 | O47: 99.3 | P47: 102 | Q47: 100.1 | R47: 100.2 | S47: 100.4 | T47: 98.4 | U47: 99.9 | V47: 99.6 | W47: 104.8 | X47: 100.9 | Y47: 101.7 | Z47: 100.7 | AA47: 101.2 | AB47: 101.6 | AC47: 100.2 | AD47: 100.9 | AE47: 101.1 | AF47: 1852140.1 | AG47: 220841 | AH47: 33244.2 | AI47: 10104 | AJ47: 373991.1 | AK47: 54769.8 | AL47: 316441.3 | AM47: 39647.2 | AN47: 120680.2 | AO47: 14021 | AP47: 357818.4 | AQ47: 56713.7 | AR47: 82233.4 | AS47: 9423.3 | AT47: 94289.7 | AU47: 9513.4 | AV47: 199224.7 | AW47: 14244.6 | AX47: 182010.7 | AY47: 14103.3 | AZ47: 343445.6 | BA47: 30915.4 | BB47: 65202.2 | BC47: 7805.8 | BD47: 101 | BE47: 101.7 | BF47: 99.7 | BG47: 103.2 | BH47: 101 | BI47: 102.8 | BJ47: 101.2 | BK47: 103.5 | BL47: 101.4 | BM47: 102.9 | BN47: 101.1 | BO47: 102.1 | BP47: 101.4 | BQ47: 101 | BR47: 101.6 | BS47: 95.1 | BT47: 100.6 | BU47: 100.3 | BV47: 101.4 | BW47: 102 | BX47: 100.4 | BY47: 100.9 | BZ47: 100.8 | CA47: 101.4 | CB47: 2.34 | CC47: 4.6 | CD47: 3.9152
A48: 2006Q1 | B48: 2096417.5 | C48: 66514 | D48: 101.5 | E48: 103.2 | F48: 1624219.7 | G48: 208260.3 | H48: 100.8 | I48: 100.2 | J48: 99 | K48: 100.2 | L48: 100.5 | M48: 97.7 | N48: 99.1 | O48: 94.9 | P48: 103.9 | Q48: 100.3 | R48: 100.2 | S48: 101 | T48: 98.8 | U48: 96.1 | V48: 98.1 | W48: 108.1 | X48: 102.7 | Y48: 100.7 | Z48: 100.7 | AA48: 101.2 | AB48: 100.8 | AC48: 101.4 | AD48: 101 | AE48: 85.6 | AF48: 1871218.2 | AG48: 224854.5 | AH48: 32689.3 | AI48: 10541.2 | AJ48: 381435.1 | AK48: 55264.4 | AL48: 319773.4 | AM48: 40482.1 | AN48: 122403.1 | AO48: 14217.2 | AP48: 359378.2 | AQ48: 57546.3 | AR48: 84539.6 | AS48: 9270.9 | AT48: 94487.6 | AU48: 10256 | AV48: 203323.7 | AW48: 14496.8 | AX48: 184410.6 | AY48: 14303.4 | AZ48: 342911.1 | BA48: 31438.7 | BB48: 65640.1 | BC48: 7401.2 | BD48: 101.8 | BE48: 103.4 | BF48: 97.6 | BG48: 104.1 | BH48: 102.9 | BI48: 106.4 | BJ48: 103.1 | BK48: 110.6 | BL48: 100.9 | BM48: 104.1 | BN48: 101.5 | BO48: 103 | BP48: 103.8 | BQ48: 103.3 | BR48: 103.2 | BS48: 99.4 | BT48: 100.9 | BU48: 103.1 | BV48: 102.7 | BW48: 103.4 | BX48: 101.1 | BY48: 101.3 | BZ48: 101.5 | CA48: 113.5 | CB48: 2.61 | CC48: 4.29 | CD48: 3.8346
A49: 2006Q2 | B49: 2130582.4 | C49: 66263.3 | D49: 102 | E49: 104.6 | F49: 1644308.8 | G49: 212705.5 | H49: 101.3 | I49: 101.4 | J49: 98 | K49: 96.9 | L49: 100.9 | M49: 100.3 | N49: 99.4 | O49: 96.5 | P49: 104.6 | Q49: 101.6 | R49: 100.6 | S49: 102.5 | T49: 97.9 | U49: 99.5 | V49: 97 | W49: 104.7 | X49: 104 | Y49: 102.3 | Z49: 101.6 | AA49: 103 | AB49: 102.2 | AC49: 102.2 | AD49: 101.4 | AE49: 96.3 | AF49: 1903472.4 | AG49: 229865.5 | AH49: 32733.4 | AI49: 10094.7 | AJ49: 387918.5 | AK49: 56975.9 | AL49: 327495.3 | AM49: 41392.1 | AN49: 125985.6 | AO49: 15261.2 | AP49: 364457.8 | AQ49: 59223.1 | AR49: 85230.5 | AS49: 9642.8 | AT49: 96992 | AU49: 10485.9 | AV49: 206562.7 | AW49: 14723 | AX49: 188238.9 | AY49: 14820.7 | AZ49: 348732.9 | BA49: 31769.2 | BB49: 66620.3 | BC49: 7697 | BD49: 103 | BE49: 104.5 | BF49: 98.7 | BG49: 103.1 | BH49: 104.3 | BI49: 106.8 | BJ49: 105.2 | BK49: 111.2 | BL49: 103.2 | BM49: 110.4 | BN49: 102.6 | BO49: 104.5 | BP49: 105.7 | BQ49: 103.8 | BR49: 107.2 | BS49: 104.9 | BT49: 101.2 | BU49: 103.1 | BV49: 104 | BW49: 105.3 | BX49: 101.4 | BY49: 101.6 | BZ49: 102.6 | CA49: 104.9 | CB49: 2.89 | CC49: 4.15 | CD49: 3.9482
A50: 2006Q3 | B50: 2153791.7 | C50: 67678.5 | D50: 102.2 | E50: 106.1 | F50: 1653135.3 | G50: 216524.7 | H50: 101.7 | I50: 101.4 | J50: 99.8 | K50: 108.7 | L50: 101.5 | M50: 97.5 | N50: 99.8 | O50: 93.5 | P50: 105.9 | Q50: 102.3 | R50: 101.1 | S50: 102.2 | T50: 97.3 | U50: 97.4 | V50: 95.6 | W50: 105.6 | X50: 105.2 | Y50: 103.5 | Z50: 101.8 | AA50: 101.9 | AB50: 102.3 | AC50: 103.9 | AD50: 101.8 | AE50: 98.3 | AF50: 1924981.9 | AG50: 235043.9 | AH50: 33294.2 | AI50: 9899.6 | AJ50: 393116 | AK50: 57835.7 | AL50: 331643.1 | AM50: 42378.9 | AN50: 129073.5 | AO50: 16150.1 | AP50: 368642.9 | AQ50: 60381 | AR50: 85632.1 | AS50: 9686.8 | AT50: 97432.8 | AU50: 10993.5 | AV50: 209619.6 | AW50: 14912 | AX50: 190980.9 | AY50: 14992.8 | AZ50: 350135.2 | BA50: 32514.6 | BB50: 67054.5 | BC50: 7880.4 | BD50: 103.8 | BE50: 106.8 | BF50: 98.7 | BG50: 90.1 | BH50: 105 | BI50: 111.5 | BJ50: 106.2 | BK50: 117.5 | BL50: 104.5 | BM50: 115.9 | BN50: 103.3 | BO50: 106.8 | BP50: 106.8 | BQ50: 106.4 | BR50: 109.3 | BS50: 109.2 | BT50: 101.5 | BU50: 103.1 | BV50: 105.2 | BW50: 107.7 | BX50: 101.7 | BY50: 102.3 | BZ50: 102.8 | CA50: 105.2 | CB50: 3.22 | CC50: 4.2 | CD50: 3.9537
A51: 2006Q4 | B51: 2187743.6 | C51: 71480.2 | D51: 103 | E51: 107.2 | F51: 1671391.1 | G51: 219860.3 | H51: 102.1 | I51: 102.3 | J51: 99.9 | K51: 106 | L51: 101.8 | M51: 97.9 | N51: 99.9 | O51: 92.9 | P51: 106.6 | Q51: 105.4 | R51: 101.2 | S51: 102.7 | T51: 96.7 | U51: 99.9 | V51: 95.1 | W51: 104.4 | X51: 106.6 | Y51: 104.6 | Z51: 102.5 | AA51: 101 | AB51: 102.8 | AC51: 105.6 | AD51: 102.5 | AE51: 106.4 | AF51: 1952703.4 | AG51: 241189.6 | AH51: 33876.2 | AI51: 9478 | AJ51: 398176.4 | AK51: 59405.9 | AL51: 337782.9 | AM51: 43718.7 | AN51: 132105.4 | AO51: 17146 | AP51: 374380.3 | AQ51: 61574.3 | AR51: 86782.1 | AS51: 9775.3 | AT51: 97521.8 | AU51: 10677.2 | AV51: 213987.6 | AW51: 15091.1 | AX51: 195458.3 | AY51: 15118.4 | AZ51: 352769.3 | BA51: 33414.3 | BB51: 67646.1 | BC51: 8413.5 | BD51: 104.9 | BE51: 108.7 | BF51: 100.3 | BG51: 88.5 | BH51: 106 | BI51: 114.1 | BJ51: 108 | BK51: 122 | BL51: 106.2 | BM51: 119.5 | BN51: 104.8 | BO51: 108.4 | BP51: 108.9 | BQ51: 104.8 | BR51: 110 | BS51: 107.2 | BT51: 102.2 | BU51: 103.3 | BV51: 107 | BW51: 109.6 | BX51: 102 | BY51: 103.5 | BZ51: 103.1 | CA51: 103.8 | CB51: 3.59 | CC51: 4.2 | CD51: 3.8478
A52: 2007Q1 | B52: 2223059.7 | C52: 72773.6 | D52: 103.2 | E52: 108.7 | F52: 1683029 | G52: 226070.7 | H52: 102.8 | I52: 102.9 | J52: 96.8 | K52: 122.7 | L52: 102.4 | M52: 98 | N52: 100.9 | O52: 93.2 | P52: 108.2 | Q52: 107.1 | R52: 102.4 | S52: 103.6 | T52: 95.7 | U52: 98 | V52: 94.7 | W52: 108 | X52: 107.8 | Y52: 108.2 | Z52: 103.6 | AA52: 103.9 | AB52: 103.1 | AC52: 106.4 | AD52: 103.1 | AE52: 104.8 | AF52: 1983181.2 | AG52: 247683.2 | AH52: 34317 | AI52: 11351 | AJ52: 403875.4 | AK52: 60348.8 | AL52: 343302 | AM52: 44775.4 | AN52: 134181 | AO52: 17930.4 | AP52: 380810.8 | AQ52: 62502.7 | AR52: 87700.7 | AS52: 9985.3 | AT52: 98854.1 | AU52: 13096.8 | AV52: 217622.2 | AW52: 15262.9 | AX52: 200984.1 | AY52: 16185.6 | AZ52: 356015.5 | BA52: 33984.9 | BB52: 68820.3 | BC52: 8157.6 | BD52: 105.8 | BE52: 110.9 | BF52: 104.8 | BG52: 91.6 | BH52: 106.9 | BI52: 115.8 | BJ52: 108.7 | BK52: 124.6 | BL52: 106.2 | BM52: 123 | BN52: 105.3 | BO52: 109.1 | BP52: 111.3 | BQ52: 109.1 | BR52: 112 | BS52: 127.1 | BT52: 102.8 | BU52: 101 | BV52: 108.9 | BW52: 114 | BX52: 102.6 | BY52: 104.4 | BZ52: 104.1 | CA52: 102.2 | CB52: 3.82 | CC52: 4.21 | CD52: 3.8863
A53: 2007Q2 | B53: 2246733.7 | C53: 76277.1 | D53: 103.8 | E53: 109.7 | F53: 1703781 | G53: 229697.1 | H53: 103.5 | I53: 104.4 | J53: 98.5 | K53: 119 | L53: 103.1 | M53: 97.8 | N53: 101.7 | O53: 92.3 | P53: 109.3 | Q53: 113.4 | R53: 102.8 | S53: 104.8 | T53: 95.6 | U53: 98.9 | V53: 94.8 | W53: 99.3 | X53: 109.3 | Y53: 109.4 | Z53: 104.2 | AA53: 104 | AB53: 103.7 | AC53: 109 | AD53: 103.7 | AE53: 106.4 | AF53: 2007404.5 | AG53: 253667.4 | AH53: 34973.1 | AI53: 10882 | AJ53: 410378 | AK53: 62264.1 | AL53: 348490.8 | AM53: 45632.1 | AN53: 134579.1 | AO53: 18504.8 | AP53: 385506.6 | AQ53: 63520.6 | AR53: 89015.3 | AS53: 10247.9 | AT53: 99924.4 | AU53: 13114.8 | AV53: 220908.1 | AW53: 15473.7 | AX53: 203826.4 | AY53: 16463 | AZ53: 359178.4 | BA53: 34778.9 | BB53: 69115.2 | BC53: 8223.2 | BD53: 106.4 | BE53: 112 | BF53: 104.9 | BG53: 90.5 | BH53: 107.9 | BI53: 119.7 | BJ53: 109.5 | BK53: 128.2 | BL53: 105.5 | BM53: 119.8 | BN53: 106.2 | BO53: 109.5 | BP53: 113 | BQ53: 110.9 | BR53: 113 | BS53: 138.4 | BT53: 103 | BU53: 101.3 | BV53: 109.7 | BW53: 115.9 | BX53: 102.9 | BY53: 104.3 | BZ53: 104 | CA53: 101.5 | CB53: 4.06 | CC53: 4.42 | CD53: 3.8005
A54: 2007Q3 | B54: 2271416.7 | C54: 78647.7 | D54: 104.3 | E54: 110.6 | F54: 1720576.7 | G54: 232666.9 | H54: 104 | I54: 106 | J54: 104.2 | K54: 122.5 | L54: 102.9 | M54: 98.6 | N54: 101.5 | O54: 92.7 | P54: 110.5 | Q54: 116.1 | R54: 103.3 | S54: 107.3 | T54: 95.9 | U54: 100.5 | V54: 94.1 | W54: 105.1 | X54: 110.7 | Y54: 111.6 | Z54: 104.6 | AA54: 103.9 | AB54: 104.6 | AC54: 111.2 | AD54: 104.4 | AE54: 109.4 | AF54: 2031201 | AG54: 260389.4 | AH54: 36831.8 | AI54: 10969.7 | AJ54: 413336.4 | AK54: 63908.8 | AL54: 350604.6 | AM54: 47205.7 | AN54: 135797.9 | AO54: 19407.8 | AP54: 389072.7 | AQ54: 65514 | AR54: 89836.9 | AS54: 10485.9 | AT54: 102349.8 | AU54: 13963.2 | AV54: 224485.9 | AW54: 15731.8 | AX54: 206671.6 | AY54: 16922.3 | AZ54: 362994.4 | BA54: 35425.3 | BB54: 69823.8 | BC54: 8449.2 | BD54: 107.1 | BE54: 113.1 | BF54: 104.5 | BG54: 88.6 | BH54: 108.9 | BI54: 121.9 | BJ54: 110.3 | BK54: 132.1 | BL54: 105.3 | BM54: 122.8 | BN54: 106.7 | BO54: 110.3 | BP54: 113.7 | BQ54: 111.7 | BR54: 116.6 | BS54: 139.2 | BT54: 103.3 | BU54: 101 | BV54: 110.8 | BW54: 119.2 | BX54: 103.1 | BY54: 104.1 | BZ54: 104.4 | CA54: 101.4 | CB54: 4.5 | CC54: 4.92 | CD54: 3.79
A55: 2007Q4 | B55: 2293646.5 | C55: 83600.6 | D55: 104.7 | E55: 111.1 | F55: 1746577.9 | G55: 234696.5 | H55: 104.7 | I55: 106.7 | J55: 105.1 | K55: 125.3 | L55: 103.3 | M55: 96.5 | N55: 101.6 | O55: 90.1 | P55: 111.3 | Q55: 118.3 | R55: 103.6 | S55: 108 | T55: 96.5 | U55: 100 | V55: 92.6 | W55: 105.4 | X55: 111.9 | Y55: 113.1 | Z55: 105.3 | AA55: 105.3 | AB55: 106.4 | AC55: 114 | AD55: 104.7 | AE55: 103.7 | AF55: 2054685 | AG55: 266672.7 | AH55: 37249.4 | AI55: 11098.2 | AJ55: 416640.3 | AK55: 64545.5 | AL55: 350914.8 | AM55: 47802 | AN55: 137220.8 | AO55: 20409.5 | AP55: 393527.2 | AQ55: 67550.6 | AR55: 91880.3 | AS55: 10530.3 | AT55: 101251.7 | AU55: 14415.5 | AV55: 227285.6 | AW55: 15994.9 | AX55: 208812.4 | AY55: 17347.4 | AZ55: 370352.7 | BA55: 36170.9 | BB55: 70464.6 | BC55: 8709.3 | BD55: 107.7 | BE55: 115.2 | BF55: 104.8 | BG55: 87.7 | BH55: 109.4 | BI55: 125.7 | BJ55: 110.3 | BK55: 137.6 | BL55: 105.6 | BM55: 126.7 | BN55: 107.6 | BO55: 113.1 | BP55: 115.6 | BQ55: 112.7 | BR55: 117.3 | BS55: 143.4 | BT55: 103.5 | BU55: 101.3 | BV55: 111.3 | BW55: 120.6 | BX55: 103.4 | BY55: 103.7 | BZ55: 105 | CA55: 110.3 | CB55: 4.73 | CC55: 5.39 | CD55: 3.6584
A56: 2008Q1 | B56: 2315099 | C56: 87354.1 | D56: 104.9 | E56: 115.1 | F56: 1759555.5 | G56: 249749.3 | H56: 105.2 | I56: 107 | J56: 102.5 | K56: 115 | L56: 104.3 | M56: 96.8 | N56: 102.1 | O56: 90.2 | P56: 113.1 | Q56: 120.4 | R56: 104.1 | S56: 107.5 | T56: 95 | U56: 102 | V56: 90.8 | W56: 102.7 | X56: 113 | Y56: 116.2 | Z56: 106.8 | AA56: 104.7 | AB56: 106.2 | AC56: 117.1 | AD56: 106.2 | AE56: 105.5 | AF56: 2076577.9 | AG56: 272651.6 | AH56: 36948.6 | AI56: 10132.7 | AJ56: 416718.5 | AK56: 66103 | AL56: 350044.5 | AM56: 48995.1 | AN56: 141735 | AO56: 20613.7 | AP56: 400270.7 | AQ56: 68823.1 | AR56: 91534.7 | AS56: 11211.5 | AT56: 99580.9 | AU56: 14923.2 | AV56: 231065.1 | AW56: 16386.3 | AX56: 213593.2 | AY56: 17852.6 | AZ56: 373192.1 | BA56: 37269.4 | BB56: 71939.1 | BC56: 9064.4 | BD56: 108.3 | BE56: 117.4 | BF56: 106.5 | BG56: 87.2 | BH56: 108.3 | BI56: 128.4 | BJ56: 109.5 | BK56: 140.8 | BL56: 107.4 | BM56: 125.7 | BN56: 108.9 | BO56: 115.8 | BP56: 116.9 | BQ56: 117.7 | BR56: 117.5 | BS56: 152.4 | BT56: 104.2 | BU56: 101 | BV56: 112.2 | BW56: 124.7 | BX56: 104.5 | BY56: 104.1 | BZ56: 105.7 | CA56: 112.8 | CB56: 4.48 | CC56: 5.8 | CD56: 3.5759
A57: 2008Q2 | B57: 2321936 | C57: 93196.3 | D57: 105 | E57: 116.4 | F57: 1779702.1 | G57: 253590.9 | H57: 106 | I57: 108.6 | J57: 99.7 | K57: 120.9 | L57: 105.4 | M57: 99.8 | N57: 103.2 | O57: 92.3 | P57: 115 | Q57: 119.5 | R57: 105 | S57: 108 | T57: 94.7 | U57: 100.4 | V57: 89.3 | W57: 111.9 | X57: 114 | Y57: 119.9 | Z57: 107.3 | AA57: 108.7 | AB57: 107.8 | AC57: 119.1 | AD57: 106.5 | AE57: 107.9 | AF57: 2085774.7 | AG57: 278958.6 | AH57: 36045.8 | AI57: 10542.6 | AJ57: 418412.7 | AK57: 68262.8 | AL57: 350396.1 | AM57: 50651.7 | AN57: 140936.5 | AO57: 21329 | AP57: 399432.3 | AQ57: 69061.4 | AR57: 91553.2 | AS57: 11176.2 | AT57: 97184 | AU57: 15164.8 | AV57: 233647.6 | AW57: 16757.2 | AX57: 215826.5 | AY57: 18737 | AZ57: 380221.3 | BA57: 38475.9 | BB57: 72514.9 | BC57: 9262.4 | BD57: 107.9 | BE57: 118.4 | BF57: 106.9 | BG57: 86.3 | BH57: 107.6 | BI57: 128.6 | BJ57: 108.4 | BK57: 142.3 | BL57: 105 | BM57: 131 | BN57: 107.8 | BO57: 115.5 | BP57: 117.3 | BQ57: 119.1 | BR57: 116.7 | BS57: 142 | BT57: 104.4 | BU57: 100.1 | BV57: 112.8 | BW57: 126.1 | BX57: 104.8 | BY57: 105.6 | BZ57: 106.2 | CA57: 112.7 | CB57: 4.86 | CC57: 6.43 | CD57: 3.407
A58: 2008Q3 | B58: 2314757.6 | C58: 97103.7 | D58: 104.9 | E58: 117 | F58: 1784560 | G58: 256542.6 | H58: 106.2 | I58: 109.9 | J58: 96.6 | K58: 111.7 | L58: 105.9 | M58: 102.6 | N58: 103.1 | O58: 95 | P58: 116.9 | Q58: 121.8 | R58: 105.6 | S58: 110.7 | T58: 94.5 | U58: 102.5 | V58: 90 | W58: 88 | X58: 113.9 | Y58: 122.1 | Z58: 107.6 | AA58: 109.8 | AB58: 107.3 | AC58: 121.2 | AD58: 107 | AE58: 109.4 | AF58: 2077206.3 | AG58: 283695.8 | AH58: 34966.3 | AI58: 9975.5 | AJ58: 412207.6 | AK58: 69431.9 | AL58: 342547.2 | AM58: 51479.9 | AN58: 141198.7 | AO58: 21790.6 | AP58: 397746.8 | AQ58: 70333.7 | AR58: 91892 | AS58: 11641.5 | AT58: 97167.1 | AU58: 14057.9 | AV58: 233863 | AW58: 17079.4 | AX58: 215152.3 | AY58: 19392.5 | AZ58: 380402.6 | BA58: 39544 | BB58: 72609.9 | BC58: 9437.2 | BD58: 107.2 | BE58: 119 | BF58: 107 | BG58: 88.3 | BH58: 105.6 | BI58: 127.2 | BJ58: 106.1 | BK58: 140.6 | BL58: 103.5 | BM58: 131.3 | BN58: 106.7 | BO58: 114.9 | BP58: 118 | BQ58: 121.6 | BR58: 115.8 | BS58: 167.4 | BT58: 104.6 | BU58: 100.2 | BV58: 112.2 | BW58: 129.3 | BX58: 105.3 | BY58: 106.6 | BZ58: 106 | CA58: 113.3 | CB58: 4.98 | CC58: 6.57 | CD58: 3.3081
A59: 2008Q4 | B59: 2284887.9 | C59: 85896.4 | D59: 104.8 | E59: 118.1 | F59: 1779234.2 | G59: 261591.3 | H59: 106.8 | I59: 109.1 | J59: 92.2 | K59: 113.1 | L59: 106.7 | M59: 98.2 | N59: 103.1 | O59: 87.8 | P59: 117 | Q59: 121 | R59: 106.5 | S59: 111.5 | T59: 95.2 | U59: 102.7 | V59: 90.2 | W59: 91.4 | X59: 113.2 | Y59: 125.6 | Z59: 108.5 | AA59: 113.2 | AB59: 108.4 | AC59: 121.1 | AD59: 107.3 | AE59: 110.7 | AF59: 2052067 | AG59: 281551.8 | AH59: 33673.4 | AI59: 10487.1 | AJ59: 393655.2 | AK59: 65530.7 | AL59: 322703.4 | AM59: 46933.6 | AN59: 138187 | AO59: 21849.1 | AP59: 391989.5 | AQ59: 70732.1 | AR59: 91700.1 | AS59: 11928 | AT59: 98279.6 | AU59: 14876.7 | AV59: 232273.6 | AW59: 17437.1 | AX59: 213501 | AY59: 20399.7 | AZ59: 386069.9 | BA59: 40006.2 | BB59: 72737.8 | BC59: 9566.9 | BD59: 105.4 | BE59: 118.9 | BF59: 107.9 | BG59: 91.7 | BH59: 100 | BI59: 125.5 | BJ59: 100 | BK59: 138.6 | BL59: 101.2 | BM59: 132.6 | BN59: 104.2 | BO59: 114.7 | BP59: 116.9 | BQ59: 124.3 | BR59: 116.8 | BS59: 170.6 | BT59: 104.5 | BU59: 99.4 | BV59: 110.3 | BW59: 131.9 | BX59: 105.8 | BY59: 108 | BZ59: 105.8 | CA59: 113.4 | CB59: 4.21 | CC59: 6.64 | CD59: 3.7658
A60: 2009Q1 | B60: 2222477 | C60: 73323.4 | D60: 104.6 | E60: 118.7 | F60: 1767898.1 | G60: 264482.1 | H60: 107.1 | I60: 113.5 | J60: 87 | K60: 109.7 | L60: 108.2 | M60: 109.1 | N60: 105.2 | O60: 100.5 | P60: 117.7 | Q60: 123.4 | R60: 106.7 | S60: 113.9 | T60: 93.6 | U60: 106.7 | V60: 93.7 | W60: 92.3 | X60: 109.9 | Y60: 117.5 | Z60: 109.1 | AA60: 114.8 | AB60: 109.7 | AC60: 122.6 | AD60: 108.6 | AE60: 112.2 | AF60: 1998396 | AG60: 292945.9 | AH60: 31772.2 | AI60: 10342.6 | AJ60: 362779.2 | AK60: 72185.2 | AL60: 292420.3 | AM60: 53612.6 | AN60: 136417.1 | AO60: 24167.6 | AP60: 382136.7 | AQ60: 73778.4 | AR60: 92209 | AS60: 12003.2 | AT60: 102782 | AU60: 12340.3 | AV60: 225040 | AW60: 16520.5 | AX60: 202033.4 | AY60: 20816.4 | AZ60: 390029.6 | BA60: 40854.8 | BB60: 73196.8 | BC60: 9609.7 | BD60: 102.3 | BE60: 119 | BF60: 108 | BG60: 93.3 | BH60: 90.9 | BI60: 124.4 | BJ60: 88.7 | BK60: 138.4 | BL60: 99.3 | BM60: 143.8 | BN60: 101.5 | BO60: 117.1 | BP60: 119.6 | BQ60: 120.5 | BR60: 117.6 | BS60: 140.2 | BT60: 104.4 | BU60: 100.6 | BV60: 103.9 | BW60: 132.7 | BX60: 105.7 | BY60: 109 | BZ60: 105.2 | CA60: 112.5 | CB60: 2.01 | CC60: 4.83 | CD60: 4.4988
A61: 2009Q2 | B61: 2219893.4 | C61: 74563 | D61: 104.8 | E61: 118.4 | F61: 1776241.7 | G61: 264814.7 | H61: 107.3 | I61: 113.7 | J61: 84.6 | K61: 109.9 | L61: 108.1 | M61: 107.3 | N61: 105.7 | O61: 96.9 | P61: 117.9 | Q61: 123.4 | R61: 106.9 | S61: 116.6 | T61: 93.5 | U61: 103.5 | V61: 95.2 | W61: 94.9 | X61: 109.6 | Y61: 116.8 | Z61: 109.3 | AA61: 112 | AB61: 110.3 | AC61: 124.9 | AD61: 109.2 | AE61: 113.6 | AF61: 1997261.9 | AG61: 296081 | AH61: 30889.2 | AI61: 10694.1 | AJ61: 359591 | AK61: 72445.8 | AL61: 292898.2 | AM61: 53603.4 | AN61: 133642.5 | AO61: 23870.9 | AP61: 381540 | AQ61: 75651.7 | AR61: 92195.1 | AS61: 12019.5 | AT61: 104073.4 | AU61: 10982.8 | AV61: 225634.4 | AW61: 16736.7 | AX61: 201187.4 | AY61: 20768.4 | AZ61: 394774.7 | BA61: 41679.2 | BB61: 73734.2 | BC61: 9739.2 | BD61: 102.1 | BE61: 120 | BF61: 108 | BG61: 96.3 | BH61: 90.2 | BI61: 126.9 | BJ61: 88.5 | BK61: 143.4 | BL61: 97.2 | BM61: 142 | BN61: 101.1 | BO61: 117.3 | BP61: 119.7 | BQ61: 124.4 | BR61: 117.2 | BS61: 121.3 | BT61: 104.9 | BU61: 102.6 | BV61: 103.3 | BW61: 135.7 | BX61: 106.4 | BY61: 109.1 | BZ61: 105.4 | CA61: 112.5 | CB61: 1.31 | CC61: 4.44 | CD61: 4.4523
A62: 2009Q3 | B62: 2230881.8 | C62: 80389.3 | D62: 105 | E62: 119.1 | F62: 1784173.1 | G62: 269234.1 | H62: 107.5 | I62: 114 | J62: 82.2 | K62: 109.4 | L62: 107.9 | M62: 106 | N62: 105.7 | O62: 94 | P62: 118.3 | Q62: 119.6 | R62: 107.2 | S62: 116.5 | T62: 93.7 | U62: 100.8 | V62: 97.7 | W62: 130.6 | X62: 109.7 | Y62: 116.9 | Z62: 109.5 | AA62: 114.1 | AB62: 110.4 | AC62: 125.6 | AD62: 109.3 | AE62: 115.9 | AF62: 2010237 | AG62: 299664.3 | AH62: 30343.6 | AI62: 10591.8 | AJ62: 367712.3 | AK62: 73553.8 | AL62: 299509 | AM62: 53717.5 | AN62: 131193.3 | AO62: 24036.1 | AP62: 383793.9 | AQ62: 77185.1 | AR62: 92308.9 | AS62: 12049 | AT62: 106857.4 | AU62: 11698.8 | AV62: 226232.8 | AW62: 16950.5 | AX62: 201398 | AY62: 21174.3 | AZ62: 396643.1 | BA62: 42467.6 | BB62: 73753.8 | BC62: 9886.6 | BD62: 102.5 | BE62: 121.1 | BF62: 109.1 | BG62: 95.8 | BH62: 92.4 | BI62: 130.5 | BJ62: 90.5 | BK62: 148.1 | BL62: 95 | BM62: 147.5 | BN62: 101.4 | BO62: 119.8 | BP62: 119.6 | BQ62: 127.9 | BR62: 117.3 | BS62: 93.9 | BT62: 105.1 | BU62: 103.9 | BV62: 103.1 | BW62: 135.8 | BX62: 106.8 | BY62: 110.5 | BZ62: 105.3 | CA62: 112 | CB62: 0.87 | CC62: 4.2 | CD62: 4.1978
A63: 2009Q4 | B63: 2245612.6 | C63: 81957 | D63: 105.5 | E63: 120 | F63: 1797126.6 | G63: 271618.8 | H63: 107.6 | I63: 114.5 | J63: 84.9 | K63: 115.1 | L63: 107.6 | M63: 104.8 | N63: 105.6 | O63: 91.2 | P63: 118.9 | Q63: 122.2 | R63: 106.8 | S63: 119.3 | T63: 93.9 | U63: 100.3 | V63: 98.8 | W63: 119.2 | X63: 109.3 | Y63: 116.7 | Z63: 109.4 | AA63: 114.4 | AB63: 110.8 | AC63: 129.9 | AD63: 109.5 | AE63: 117.3 | AF63: 2019575 | AG63: 303348.4 | AH63: 31040.7 | AI63: 11044.7 | AJ63: 372762.8 | AK63: 74331 | AL63: 303800.8 | AM63: 53345 | AN63: 128611.5 | AO63: 24550.4 | AP63: 384649.1 | AQ63: 78995.4 | AR63: 93155.9 | AS63: 12135.3 | AT63: 107346.2 | AU63: 11735.3 | AV63: 225893.8 | AW63: 17141.7 | AX63: 201701.9 | AY63: 21411.9 | AZ63: 400166.4 | BA63: 43287.5 | BB63: 74246.7 | BC63: 9888.7 | BD63: 103 | BE63: 122.1 | BF63: 108.1 | BG63: 94.9 | BH63: 93.9 | BI63: 133.4 | BJ63: 91.9 | BK63: 151.7 | BL63: 92.7 | BM63: 147.5 | BN63: 102 | BO63: 119.7 | BP63: 120.3 | BQ63: 129.5 | BR63: 116.5 | BS63: 103.2 | BT63: 105.3 | BU63: 105.2 | BV63: 103.4 | BW63: 137 | BX63: 107.3 | BY63: 109 | BZ63: 105.8 | CA63: 110.7 | CB63: 0.72 | CC63: 4.2 | CD63: 4.1745
A64: 2010Q1 | B64: 2258651.7 | C64: 86182.6 | D64: 105.5 | E64: 121.3 | F64: 1803837 | G64: 276238.3 | H64: 107.5 | I64: 111.9 | J64: 89.7 | K64: 120.8 | L64: 106.2 | M64: 92.5 | N64: 103.9 | O64: 76.3 | P64: 117.3 | Q64: 120.1 | R64: 107.2 | S64: 119 | T64: 93.1 | U64: 97.1 | V64: 98.3 | W64: 118.7 | X64: 110.7 | Y64: 115.1 | Z64: 108.8 | AA64: 114.1 | AB64: 111 | AC64: 129.4 | AD64: 110.2 | AE64: 119.9 | AF64: 2029361.1 | AG64: 300040.6 | AH64: 32017.6 | AI64: 11366.4 | AJ64: 382481.7 | AK64: 67100.8 | AL64: 313825.9 | AM64: 45656.3 | AN64: 125344.9 | AO64: 24245.4 | AP64: 381927.8 | AQ64: 79760.1 | AR64: 92580.7 | AS64: 11545.1 | AT64: 109195.9 | AU64: 12534.9 | AV64: 227203.1 | AW64: 17326.5 | AX64: 203105.1 | AY64: 21323.4 | AZ64: 401026.3 | BA64: 43691.5 | BB64: 74478 | BC64: 9834.2 | BD64: 103.6 | BE64: 123.5 | BF64: 105.5 | BG64: 93.1 | BH64: 97.7 | BI64: 136.5 | BJ64: 96.4 | BK64: 155.2 | BL64: 91.6 | BM64: 148.3 | BN64: 100.9 | BO64: 121.1 | BP64: 120.7 | BQ64: 127.3 | BR64: 119.1 | BS64: 110.7 | BT64: 104.5 | BU64: 107.8 | BV64: 104.7 | BW64: 136.8 | BX64: 107.3 | BY64: 110.4 | BZ64: 105.5 | CA64: 107.7 | CB64: 0.66 | CC64: 4.18 | CD64: 3.9869
A65: 2010Q2 | B65: 2285681.1 | C65: 87544.8 | D65: 105.7 | E65: 122.2 | F65: 1816175.1 | G65: 281053.6 | H65: 107.7 | I65: 115.2 | J65: 93.6 | K65: 124.2 | L65: 106.6 | M65: 104.5 | N65: 104.1 | O65: 89.8 | P65: 117.2 | Q65: 119 | R65: 106.8 | S65: 119.7 | T65: 92.3 | U65: 101.2 | V65: 99.8 | W65: 121 | X65: 110.9 | Y65: 115.7 | Z65: 108.9 | AA65: 114.2 | AB65: 111.4 | AC65: 130.9 | AD65: 110.5 | AE65: 120.2 | AF65: 2049045.9 | AG65: 310527.6 | AH65: 33155.6 | AI65: 11551.5 | AJ65: 393269 | AK65: 76166.3 | AL65: 323845.8 | AM65: 53630.3 | AN65: 125823.9 | AO65: 24763.3 | AP65: 383831.8 | AQ65: 80834.9 | AR65: 92122.2 | AS65: 11946.6 | AT65: 109431.4 | AU65: 12827.9 | AV65: 227645.7 | AW65: 17382.4 | AX65: 205073.8 | AY65: 21329.5 | AZ65: 403624.7 | BA65: 43812.9 | BB65: 75067.8 | BC65: 9890.5 | BD65: 104.4 | BE65: 124.2 | BF65: 104.7 | BG65: 92 | BH65: 100.1 | BI65: 137.1 | BJ65: 99.4 | BK65: 154.8 | BL65: 92 | BM65: 152.9 | BN65: 101.8 | BO65: 122 | BP65: 121.1 | BQ65: 126.4 | BR65: 117.5 | BS65: 111.2 | BT65: 104.5 | BU65: 107.6 | BV65: 105.7 | BW65: 136.7 | BX65: 107.7 | BY65: 109.4 | BZ65: 106 | CA65: 108 | CB65: 0.69 | CC65: 3.8 | CD65: 4.0171
A66: 2010Q3 | B66: 2300524.1 | C66: 88951.7 | D66: 106 | E66: 123.8 | F66: 1826506.2 | G66: 287680.3 | H66: 108 | I66: 116 | J66: 98.8 | K66: 124.6 | L66: 106 | M66: 103.4 | N66: 103.1 | O66: 88.5 | P66: 117.7 | Q66: 121.9 | R66: 107.3 | S66: 118.9 | T66: 92.5 | U66: 101.7 | V66: 101.7 | W66: 117.6 | X66: 111.9 | Y66: 117.2 | Z66: 109.4 | AA66: 114.8 | AB66: 111 | AC66: 131.1 | AD66: 110.9 | AE66: 119.5 | AF66: 2062137.8 | AG66: 314963.6 | AH66: 35042 | AI66: 11431.5 | AJ66: 395476.5 | AK66: 76602.8 | AL66: 324932 | AM66: 53788.7 | AN66: 124113.7 | AO66: 25632.5 | AP66: 388965.7 | AQ66: 81320.7 | AR66: 92750.2 | AS66: 11800.6 | AT66: 109915.4 | AU66: 15393.9 | AV66: 230163.7 | AW66: 17513.1 | AX66: 207733.5 | AY66: 21420.1 | AZ66: 402896.4 | BA66: 43971.9 | BB66: 75080.9 | BC66: 9820.6 | BD66: 104.7 | BE66: 125.1 | BF66: 104.8 | BG66: 90.7 | BH66: 101.1 | BI66: 139.3 | BJ66: 100.6 | BK66: 157.6 | BL66: 90.4 | BM66: 154.5 | BN66: 102.6 | BO66: 123.7 | BP66: 121.7 | BQ66: 124.2 | BR66: 115.9 | BS66: 137.3 | BT66: 104.8 | BU66: 107 | BV66: 106.5 | BW66: 136.6 | BX66: 107.9 | BY66: 109.6 | BZ66: 105.7 | CA66: 107.9 | CB66: 0.87 | CC66: 3.83 | CD66: 4.0087
A67: 2010Q4 | B67: 2314800 | C67: 91398.2 | D67: 106.3 | E67: 124.1 | F67: 1840772.4 | G67: 291377.3 | H67: 108.2 | I67: 116.3 | J67: 101.1 | K67: 128.4 | L67: 106.3 | M67: 105.3 | N67: 103.7 | O67: 89.6 | P67: 118.3 | Q67: 119.4 | R67: 107.5 | S67: 116.7 | T67: 91.4 | U67: 101.5 | V67: 100.6 | W67: 118.8 | X67: 112.6 | Y67: 117.1 | Z67: 109.7 | AA67: 114.6 | AB67: 111.3 | AC67: 131.8 | AD67: 111.2 | AE67: 120.1 | AF67: 2077644.9 | AG67: 319547.2 | AH67: 36085.6 | AI67: 11809.5 | AJ67: 403732.2 | AK67: 78417.3 | AL67: 332886.8 | AM67: 54945.3 | AN67: 122056.3 | AO67: 26384.8 | AP67: 391488.1 | AQ67: 82542.1 | AR67: 92411.6 | AS67: 11827.5 | AT67: 109703.3 | AU67: 14155.1 | AV67: 232462.1 | AW67: 17778.7 | AX67: 209743.4 | AY67: 21654 | AZ67: 404464.7 | BA67: 44289.7 | BB67: 75497.7 | BC67: 9874.1 | BD67: 105.3 | BE67: 126.6 | BF67: 105.5 | BG67: 91 | BH67: 103 | BI67: 140 | BJ67: 102.5 | BK67: 159 | BL67: 88.4 | BM67: 162.3 | BN67: 103.1 | BO67: 127.9 | BP67: 122.7 | BQ67: 124.8 | BR67: 117 | BS67: 124.9 | BT67: 105.2 | BU67: 108.7 | BV67: 107.3 | BW67: 138.3 | BX67: 108 | BY67: 109.8 | BZ67: 106 | CA67: 108 | CB67: 1.02 | CC67: 3.87 | CD67: 3.9666
A68: 2011Q1 | B68: 2343422.3 | C68: 94152.7 | D68: 106.4 | E68: 124.6 | F68: 1853581.7 | G68: 296309.2 | H68: 108.4 | I68: 117 | J68: 99.6 | K68: 139.7 | L68: 106.6 | M68: 103.5 | N68: 103.4 | O68: 87.7 | P68: 119.2 | Q68: 119.4 | R68: 107.4 | S68: 124.8 | T68: 90.7 | U68: 99.9 | V68: 97.5 | W68: 118.5 | X68: 114 | Y68: 118.9 | Z68: 109.7 | AA68: 116.4 | AB68: 111.9 | AC68: 133.2 | AD68: 112.6 | AE68: 121.2 | AF68: 2098979.9 | AG68: 325151.8 | AH68: 35176.9 | AI68: 13067.1 | AJ68: 408255.7 | AK68: 79116.5 | AL68: 339270.1 | AM68: 54837.6 | AN68: 125993.2 | AO68: 27094.6 | AP68: 393078.7 | AQ68: 83735 | AR68: 93302.6 | AS68: 12149.3 | AT68: 109080.6 | AU68: 14878.6 | AV68: 238086.2 | AW68: 18189.9 | AX68: 211949.8 | AY68: 22447.6 | AZ68: 407536 | BA68: 44885 | BB68: 76520.5 | BC68: 9948.8 | BD68: 106.2 | BE68: 128 | BF68: 104.4 | BG68: 92.5 | BH68: 103.9 | BI68: 143.7 | BJ68: 104.8 | BK68: 162.1 | BL68: 90.6 | BM68: 166.6 | BN68: 103.7 | BO68: 121.3 | BP68: 124.8 | BQ68: 130.2 | BR68: 120 | BS68: 131.6 | BT68: 106.4 | BU68: 109.6 | BV68: 108.4 | BW68: 141.2 | BX68: 108.3 | BY68: 110.1 | BZ68: 106.1 | CA68: 107.7 | CB68: 1.09 | CC68: 4.1 | CD68: 3.946
A69: 2011Q2 | B69: 2352750.4 | C69: 95386.8 | D69: 106 | E69: 125.1 | F69: 1857665.8 | G69: 299995.5 | H69: 108.6 | I69: 117.3 | J69: 99.6 | K69: 139.8 | L69: 106.9 | M69: 101.8 | N69: 103.8 | O69: 85.6 | P69: 119.4 | Q69: 118.4 | R69: 107.7 | S69: 123.6 | T69: 90.1 | U69: 100 | V69: 98.7 | W69: 122.1 | X69: 114.5 | Y69: 120.7 | Z69: 110 | AA69: 117 | AB69: 111.8 | AC69: 134.6 | AD69: 112.7 | AE69: 122.3 | AF69: 2107128.2 | AG69: 331494.3 | AH69: 35480.9 | AI69: 13117 | AJ69: 409952.5 | AK69: 80793 | AL69: 340487.9 | AM69: 56254.6 | AN69: 124561 | AO69: 27763.4 | AP69: 395280.2 | AQ69: 84702.7 | AR69: 93026.9 | AS69: 12169.2 | AT69: 109647.6 | AU69: 16291.5 | AV69: 240096.7 | AW69: 18510.2 | AX69: 213398.4 | AY69: 22827.5 | AZ69: 409084.9 | BA69: 45439.4 | BB69: 76599 | BC69: 9973.4 | BD69: 106.4 | BE69: 130.2 | BF69: 105.3 | BG69: 92.8 | BH69: 104 | BI69: 149.2 | BJ69: 104.8 | BK69: 170.3 | BL69: 89.4 | BM69: 172.2 | BN69: 103.9 | BO69: 123.9 | BP69: 125.3 | BQ69: 130.3 | BR69: 119.1 | BS69: 139.8 | BT69: 106.9 | BU69: 109.8 | BV69: 108.8 | BW69: 142.8 | BX69: 108.7 | BY69: 110.3 | BZ69: 106.1 | CA69: 107.1 | CB69: 1.41 | CC69: 4.43 | CD69: 3.9596
A70: 2011Q3 | B70: 2360507.5 | C70: 92483.6 | D70: 106.1 | E70: 125.3 | F70: 1863579.7 | G70: 303576.7 | H70: 109 | I70: 118.2 | J70: 98 | K70: 145.3 | L70: 107.3 | M70: 103.1 | N70: 103.8 | O70: 86.5 | P70: 120.5 | Q70: 116.8 | R70: 108.4 | S70: 125 | T70: 90 | U70: 97.9 | V70: 99.1 | W70: 118.2 | X70: 115 | Y70: 121.2 | Z70: 110.5 | AA70: 117.2 | AB70: 111.7 | AC70: 136.1 | AD70: 113 | AE70: 123.6 | AF70: 2116958.4 | AG70: 337985.9 | AH70: 35072.6 | AI70: 13722.7 | AJ70: 411337.7 | AK70: 82018.4 | AL70: 341007.2 | AM70: 57103.5 | AN70: 124422.7 | AO70: 28190.1 | AP70: 398689.5 | AQ70: 86689 | AR70: 93721.1 | AS70: 12438.3 | AT70: 110273.8 | AU70: 14904.7 | AV70: 241926.3 | AW70: 18984.2 | AX70: 215104.9 | AY70: 23459.3 | AZ70: 409600.4 | BA70: 46041.2 | BB70: 76809.4 | BC70: 10186.5 | BD70: 106.5 | BE70: 131.7 | BF70: 105.8 | BG70: 93.5 | BH70: 103.9 | BI70: 149.5 | BJ70: 104.9 | BK70: 171.2 | BL70: 88.5 | BM70: 177.3 | BN70: 104.1 | BO70: 125.4 | BP70: 126.3 | BQ70: 136 | BR70: 119.3 | BS70: 132.1 | BT70: 107.2 | BU70: 112.1 | BV70: 109.2 | BW70: 146.5 | BX70: 109 | BY70: 110.6 | BZ70: 106.1 | CA70: 108.2 | CB70: 1.56 | CC70: 4.72 | CD70: 4.1527
A71: 2011Q4 | B71: 2362435.3 | C71: 88732.9 | D71: 105.7 | E71: 125.8 | F71: 1867867.6 | G71: 309197.9 | H71: 109.5 | I71: 119.6 | J71: 98.7 | K71: 152.2 | L71: 107.8 | M71: 108.1 | N71: 104.2 | O71: 94.1 | P71: 121.6 | Q71: 115.6 | R71: 109.1 | S71: 126.6 | T71: 89.2 | U71: 99.2 | V71: 99.8 | W71: 137.2 | X71: 115.5 | Y71: 123 | Z71: 111.4 | AA71: 118.6 | AB71: 111.9 | AC71: 136.9 | AD71: 113.6 | AE71: 124.3 | AF71: 2122154.8 | AG71: 344767.1 | AH71: 35369.5 | AI71: 14377.6 | AJ71: 408230 | AK71: 88945.2 | AL71: 338147.4 | AM71: 63798.5 | AN71: 125351.9 | AO71: 27491.3 | AP71: 399648.1 | AQ71: 89358.3 | AR71: 93552.4 | AS71: 12865.5 | AT71: 110461 | AU71: 13026 | AV71: 243780.7 | AW71: 19385 | AX71: 217388.6 | AY71: 24060.3 | AZ71: 410743.2 | BA71: 46659.1 | BB71: 77629.5 | BC71: 10368.2 | BD71: 106.3 | BE71: 132.9 | BF71: 106 | BG71: 93.5 | BH71: 102.6 | BI71: 154.7 | BJ71: 103.6 | BK71: 175.9 | BL71: 88.3 | BM71: 174.6 | BN71: 103.7 | BO71: 127.5 | BP71: 127.3 | BQ71: 138.9 | BR71: 118.7 | BS71: 99.5 | BT71: 107.5 | BU71: 112.8 | BV71: 109.5 | BW71: 148.5 | BX71: 109.1 | BY71: 111.4 | BZ71: 106.7 | CA71: 109.5 | CB71: 1.5 | CC71: 4.91 | CD71: 4.4207
A72: 2012Q1 | B72: 2369361.4 | C72: 93276.9 | D72: 105.4 | E72: 126.3 | F72: 1871872.8 | G72: 313536.3 | H72: 109.6 | I72: 121.1 | J72: 103.3 | K72: 144.7 | L72: 107.5 | M72: 104.3 | N72: 103.8 | O72: 87.7 | P72: 122.2 | Q72: 115.7 | R72: 108.9 | S72: 129.3 | T72: 89.1 | U72: 98.4 | V72: 99.1 | W72: 135.1 | X72: 115.4 | Y72: 125.7 | Z72: 111.2 | AA72: 117.3 | AB72: 113 | AC72: 137.5 | AD72: 114.1 | AE72: 125.1 | AF72: 2123065.4 | AG72: 349201.5 | AH72: 35705 | AI72: 13334 | AJ72: 408614.8 | AK72: 85736.5 | AL72: 337464.9 | AM72: 60025.3 | AN72: 124249.2 | AO72: 27345.6 | AP72: 399128.1 | AQ72: 91360.6 | AR72: 93088.6 | AS72: 13248 | AT72: 109141.1 | AU72: 15859.1 | AV72: 243257.4 | AW72: 19675.1 | AX72: 218190.2 | AY72: 24006 | AZ72: 413609.1 | BA72: 46554.9 | BB72: 78081.9 | BC72: 10502 | BD72: 106.2 | BE72: 132.9 | BF72: 102.2 | BG72: 91.2 | BH72: 103.1 | BI72: 154.5 | BJ72: 103.9 | BK72: 177.6 | BL72: 87.2 | BM72: 173.5 | BN72: 103.8 | BO72: 127.7 | BP72: 126.7 | BQ72: 144.2 | BR72: 118 | BS72: 123 | BT72: 107.4 | BU72: 112.1 | BV72: 110.1 | BW72: 149.8 | BX72: 108.8 | BY72: 110.7 | BZ72: 106.8 | CA72: 110.2 | CB72: 1.04 | CC72: 4.97 | CD72: 4.2329
A73: 2012Q2 | B73: 2370524.9 | C73: 93552.6 | D73: 104.9 | E73: 126.2 | F73: 1871326.6 | G73: 316063.4 | H73: 110 | I73: 122.1 | J73: 104.2 | K73: 150.5 | L73: 108 | M73: 107.2 | N73: 104.1 | O73: 91.3 | P73: 122.8 | Q73: 117.2 | R73: 109.5 | S73: 131.8 | T73: 88.7 | U73: 96.3 | V73: 98.3 | W73: 130.5 | X73: 115.8 | Y73: 127.3 | Z73: 111.7 | AA73: 120.2 | AB73: 113.4 | AC73: 137.6 | AD73: 114.5 | AE73: 126.2 | AF73: 2126136.7 | AG73: 353097.5 | AH73: 35413 | AI73: 13660.3 | AJ73: 409789.9 | AK73: 86196.4 | AL73: 336512.2 | AM73: 60430.5 | AN73: 123403.6 | AO73: 27752 | AP73: 399637 | AQ73: 93317.7 | AR73: 92617.3 | AS73: 13231.7 | AT73: 108910.7 | AU73: 16483 | AV73: 244307.8 | AW73: 20141.6 | AX73: 218298 | AY73: 24840.6 | AZ73: 415831.1 | BA73: 47031.2 | BB73: 77928.5 | BC73: 10652.8 | BD73: 106 | BE73: 133.2 | BF73: 100.5 | BG73: 89.8 | BH73: 102.9 | BI73: 151.2 | BJ73: 103.3 | BK73: 171.7 | BL73: 86.1 | BM73: 173.9 | BN73: 103.4 | BO73: 128 | BP73: 126.8 | BQ73: 147.1 | BR73: 118.8 | BS73: 132.4 | BT73: 107.5 | BU73: 113.3 | BV73: 109.6 | BW73: 151.3 | BX73: 109 | BY73: 111.7 | BZ73: 106.2 | CA73: 110.8 | CB73: 0.7 | CC73: 5.04 | CD73: 4.2595
A74: 2012Q3 | B74: 2373339.5 | C74: 96828.1 | D74: 104.7 | E74: 126.6 | F74: 1871757.7 | G74: 316569.3 | H74: 110.3 | I74: 122.5 | J74: 107.7 | K74: 156.4 | L74: 108.5 | M74: 107.8 | N74: 104.1 | O74: 92.3 | P74: 123.1 | Q74: 116.5 | R74: 110.2 | S74: 132.6 | T74: 88.1 | U74: 97 | V74: 96.8 | W74: 122.2 | X74: 116 | Y74: 128.1 | Z74: 112.1 | AA74: 121.2 | AB74: 113.3 | AC74: 139.2 | AD74: 115.5 | AE74: 127.5 | AF74: 2129729.9 | AG74: 355487.1 | AH74: 36114.3 | AI74: 14253.4 | AJ74: 412642.6 | AK74: 87808.8 | AL74: 337785.6 | AM74: 61734.5 | AN74: 122337.8 | AO74: 25676.1 | AP74: 399904.3 | AQ74: 95025.8 | AR74: 92295.2 | AS74: 13345 | AT74: 107163.7 | AU74: 14994.4 | AV74: 245477.3 | AW74: 20441.6 | AX74: 219719.6 | AY74: 25265.8 | AZ74: 415622.3 | BA74: 47826.2 | BB74: 78452.8 | BC74: 10808.3 | BD74: 105.9 | BE74: 133.7 | BF74: 99.2 | BG74: 90.2 | BH74: 103.1 | BI74: 153.2 | BJ74: 103.6 | BK74: 173.4 | BL74: 85.1 | BM74: 161.9 | BN74: 102.7 | BO74: 129.5 | BP74: 127.2 | BQ74: 147.3 | BR74: 118.7 | BS74: 128.6 | BT74: 107.8 | BU74: 114.3 | BV74: 109.9 | BW74: 152.6 | BX74: 109 | BY74: 112.3 | BZ74: 106 | CA74: 111.3 | CB74: 0.36 | CC74: 5.06 | CD74: 4.1366
A75: 2012Q4 | B75: 2370430 | C75: 97664.5 | D75: 104.3 | E75: 126.5 | F75: 1871795.4 | G75: 317982.6 | H75: 110.7 | I75: 122.7 | J75: 108.7 | K75: 155.8 | L75: 109.7 | M75: 107 | N75: 105 | O75: 90.7 | P75: 123.8 | Q75: 116.5 | R75: 111.5 | S75: 133.4 | T75: 87.6 | U75: 93.4 | V75: 96.5 | W75: 126.4 | X75: 116.4 | Y75: 129.9 | Z75: 112.6 | AA75: 120.9 | AB75: 112.5 | AC75: 140.2 | AD75: 115.9 | AE75: 128.1 | AF75: 2126857.1 | AG75: 356832.1 | AH75: 36400.7 | AI75: 14082.2 | AJ75: 409168.7 | AK75: 87792.4 | AL75: 334273.9 | AM75: 61907.2 | AN75: 120932.8 | AO75: 25319.4 | AP75: 401394.6 | AQ75: 95258.8 | AR75: 91204.2 | AS75: 12916.1 | AT75: 107843.7 | AU75: 16931.9 | AV75: 247382.8 | AW75: 20720.9 | AX75: 219782.3 | AY75: 25403.6 | AZ75: 413958.1 | BA75: 48574.3 | BB75: 78789.1 | BC75: 10889.1 | BD75: 105.4 | BE75: 134 | BF75: 99 | BG75: 89.4 | BH75: 101.2 | BI75: 154.3 | BJ75: 101.6 | BK75: 177.1 | BL75: 83.7 | BM75: 159.5 | BN75: 102 | BO75: 129 | BP75: 126.4 | BQ75: 148 | BR75: 119.9 | BS75: 140.4 | BT75: 108.3 | BU75: 114.2 | BV75: 109.5 | BW75: 153.8 | BX75: 109.3 | BY75: 113.3 | BZ75: 106.1 | CA75: 111.6 | CB75: 0.2 | CC75: 4.57 | CD75: 4.1123
A76: 2013Q1 | B76: 2379868.3 | C76: 96999.1 | D76: 104.2 | E76: 126.9 | F76: 1879322 | G76: 317998.5 | H76: 111.3 | I76: 123.4 | J76: 106.7 | K76: 155.1 | L76: 109.9 | M76: 108.4 | N76: 105.1 | O76: 93.1 | P76: 124.3 | Q76: 116.7 | R76: 111.5 | S76: 134.2 | T76: 86.7 | U76: 93.3 | V76: 98.6 | W76: 120.3 | X76: 117 | Y76: 130.5 | Z76: 112.5 | AA76: 122.5 | AB76: 114.6 | AC76: 142.6 | AD76: 116.7 | AE76: 128.7 | AF76: 2134856 | AG76: 358823.5 | AH76: 35861.9 | AI76: 13953 | AJ76: 411183.8 | AK76: 88538.7 | AL76: 334581.9 | AM76: 62391.3 | AN76: 119919.8 | AO76: 23990.1 | AP76: 400851.5 | AQ76: 96394.8 | AR76: 90153.4 | AS76: 13055.1 | AT76: 108759.6 | AU76: 14858.3 | AV76: 248653.5 | AW76: 21038.5 | AX76: 220501.1 | AY76: 25658.1 | AZ76: 419889.8 | BA76: 49696.8 | BB76: 79081.6 | BC76: 10932.5 | BD76: 105.2 | BE76: 134 | BF76: 99.4 | BG76: 89 | BH76: 101.4 | BI76: 153.5 | BJ76: 101.6 | BK76: 173.8 | BL76: 82.6 | BM76: 150.9 | BN76: 101.8 | BO76: 129.9 | BP76: 126.1 | BQ76: 149.8 | BR76: 118.3 | BS76: 129.4 | BT76: 108.2 | BU76: 115.4 | BV76: 109.9 | BW76: 153.3 | BX76: 108.9 | BY76: 113.9 | BZ76: 105.8 | CA76: 111.5 | CB76: 0.21 | CC76: 3.77 | CD76: 4.1558
A77: 2013Q2 | B77: 2395048.1 | C77: 96875.5 | D77: 104.3 | E77: 127.7 | F77: 1883741.6 | G77: 321181.7 | H77: 111.5 | I77: 123 | J77: 107.1 | K77: 156.6 | L77: 110.2 | M77: 106.1 | N77: 105.4 | O77: 91 | P77: 124.2 | Q77: 113.9 | R77: 111.5 | S77: 135.2 | T77: 86.3 | U77: 89.3 | V77: 100.5 | W77: 121 | X77: 117.4 | Y77: 130.1 | Z77: 112.8 | AA77: 122.8 | AB77: 114.5 | AC77: 142.6 | AD77: 117.4 | AE77: 129.8 | AF77: 2145125.2 | AG77: 361060 | AH77: 36059.2 | AI77: 14132.3 | AJ77: 414313 | AK77: 89524.5 | AL77: 338219.7 | AM77: 63594.2 | AN77: 118707.5 | AO77: 23107.5 | AP77: 403233.2 | AQ77: 98010.4 | AR77: 89907.7 | AS77: 12824.4 | AT77: 110488.6 | AU77: 14691.5 | AV77: 249687.3 | AW77: 21186.6 | AX77: 223027 | AY77: 26188.9 | AZ77: 420146.7 | BA77: 50052.4 | BB77: 79555.1 | BC77: 11072.6 | BD77: 105.5 | BE77: 135.2 | BF77: 99.6 | BG77: 89.3 | BH77: 102 | BI77: 158.6 | BJ77: 102.5 | BK77: 181.3 | BL77: 81.9 | BM77: 149 | BN77: 102.4 | BO77: 131.1 | BP77: 126.4 | BQ77: 153.7 | BR77: 117.9 | BS77: 127.3 | BT77: 108.3 | BU77: 116.6 | BV77: 110.9 | BW77: 156.1 | BX77: 109 | BY77: 114.7 | BZ77: 105.8 | CA77: 112 | CB77: 0.21 | CC77: 2.95 | CD77: 4.1982
A78: 2013Q3 | B78: 2400180.5 | C78: 96809.8 | D78: 104.5 | E78: 128.1 | F78: 1892695.8 | G78: 323982.9 | H78: 111.7 | I78: 123.3 | J78: 105.1 | K78: 155.4 | L78: 110.2 | M78: 105.5 | N78: 105.2 | O78: 90.7 | P78: 124.3 | Q78: 113.6 | R78: 112 | S78: 135.7 | T78: 85.8 | U78: 87.4 | V78: 99.7 | W78: 130.5 | X78: 117.8 | Y78: 131.7 | Z78: 113.4 | AA78: 124.6 | AB78: 114.8 | AC78: 142.8 | AD78: 118.8 | AE78: 130.3 | AF78: 2152291.1 | AG78: 364428.9 | AH78: 35422.8 | AI78: 13796.5 | AJ78: 414717.8 | AK78: 89876.5 | AL78: 337718.2 | AM78: 64427.4 | AN78: 119024.3 | AO78: 23882.2 | AP78: 405842.3 | AQ78: 99878.6 | AR78: 88671.3 | AS78: 12427.2 | AT78: 110234.2 | AU78: 15920 | AV78: 251233.3 | AW78: 21455.4 | AX78: 224933.1 | AY78: 26466 | AZ78: 421608.3 | BA78: 49823.9 | BB78: 80603.8 | BC78: 11138.9 | BD78: 105.6 | BE78: 136.2 | BF78: 99.7 | BG78: 87.9 | BH78: 102.1 | BI78: 160.2 | BJ78: 102.5 | BK78: 184.1 | BL78: 82 | BM78: 154.3 | BN78: 102.7 | BO78: 133 | BP78: 125.4 | BQ78: 152.2 | BR78: 118.6 | BS78: 127.8 | BT78: 108.7 | BU78: 116.7 | BV78: 111.3 | BW78: 155.4 | BX78: 109.1 | BY78: 114 | BZ78: 105.9 | CA78: 112.2 | CB78: 0.22 | CC78: 2.7 | CD78: 4.2477
A79: 2013Q4 | B79: 2409726.8 | C79: 99188.2 | D79: 104.5 | E79: 129.2 | F79: 1893006.9 | G79: 326459.4 | H79: 111.9 | I79: 123.5 | J79: 104.6 | K79: 157.3 | L79: 110.6 | M79: 106.5 | N79: 105.6 | O79: 92.2 | P79: 124.9 | Q79: 113.6 | R79: 112 | S79: 137.7 | T79: 85.5 | U79: 85.8 | V79: 99.8 | W79: 122.1 | X79: 118.3 | Y79: 132 | Z79: 113.6 | AA79: 124.9 | AB79: 114.6 | AC79: 141.5 | AD79: 119.2 | AE79: 131 | AF79: 2163342.9 | AG79: 368011.8 | AH79: 35696.3 | AI79: 13942.5 | AJ79: 418992.3 | AK79: 91011.8 | AL79: 342190.5 | AM79: 65799.4 | AN79: 119691.3 | AO79: 23949.9 | AP79: 407441.4 | AQ79: 101588.4 | AR79: 88579 | AS79: 12419.8 | AT79: 109943.2 | AU79: 16416.7 | AV79: 253240.8 | AW79: 21652.3 | AX79: 226113.9 | AY79: 26671 | AZ79: 422747.2 | BA79: 49577.9 | BB79: 80897.6 | BC79: 11236.7 | BD79: 106.1 | BE79: 137.3 | BF79: 100.9 | BG79: 87.7 | BH79: 102.7 | BI79: 160.6 | BJ79: 103.5 | BK79: 185.1 | BL79: 82.1 | BM79: 154.8 | BN79: 103 | BO79: 133.3 | BP79: 125.8 | BQ79: 154.9 | BR79: 118.1 | BS79: 140.9 | BT79: 109.1 | BU79: 117.5 | BV79: 111.6 | BW79: 156.3 | BX79: 109.7 | BY79: 114.5 | BZ79: 105.9 | CA79: 112.6 | CB79: 0.24 | CC79: 2.66 | CD79: 4.1853
A80: 2014Q1 | B80: 2423916.8 | C80: 100617.4 | D80: 104.8 | E80: 129.7 | F80: 1904369.7 | G80: 327956.1 | H80: 112.2 | I80: 123.4 | J80: 104 | K80: 159.1 | L80: 110.4 | M80: 106 | N80: 105.8 | O80: 90.7 | P80: 125 | Q80: 112.5 | R80: 111.9 | S80: 138.2 | T80: 85.3 | U80: 83.5 | V80: 101.7 | W80: 130.5 | X80: 118.6 | Y80: 132.7 | Z80: 113.6 | AA80: 125.7 | AB80: 115.6 | AC80: 140.2 | AD80: 120 | AE80: 131.9 | AF80: 2172117.8 | AG80: 371902.9 | AH80: 36112.4 | AI80: 14183.9 | AJ80: 416915.8 | AK80: 92540.6 | AL80: 344204.7 | AM80: 67474.2 | AN80: 120160.3 | AO80: 24692.2 | AP80: 408563.5 | AQ80: 103207.9 | AR80: 88536.9 | AS80: 11734.3 | AT80: 112885.1 | AU80: 16859.7 | AV80: 253694.2 | AW80: 21785.4 | AX80: 226516 | AY80: 27042.1 | AZ80: 427071.3 | BA80: 49167.5 | BB80: 81662.5 | BC80: 11367.8 | BD80: 106.2 | BE80: 138.8 | BF80: 102.6 | BG80: 88.2 | BH80: 102.4 | BI80: 164.2 | BJ80: 103.9 | BK80: 192.8 | BL80: 82.4 | BM80: 161.1 | BN80: 103.4 | BO80: 135 | BP80: 125.9 | BQ80: 150.5 | BR80: 119 | BS80: 135.5 | BT80: 109 | BU80: 117.6 | BV80: 111.9 | BW80: 157.5 | BX80: 109.8 | BY80: 114.6 | BZ80: 106.2 | CA80: 113.1 | CB80: 0.3 | CC80: 2.71 | CD80: 4.1843
A81: 2014Q2 | B81: 2428123.2 | C81: 101863.1 | D81: 105.1 | E81: 130.5 | F81: 1910604.4 | G81: 329419.5 | H81: 112.3 | I81: 124.2 | J81: 104.3 | K81: 157.9 | L81: 110.5 | M81: 107.6 | N81: 105.9 | O81: 91.9 | P81: 125.3 | Q81: 113.3 | R81: 111.8 | S81: 138.3 | T81: 85 | U81: 82 | V81: 102 | W81: 131.8 | X81: 118.6 | Y81: 134.3 | Z81: 114.1 | AA81: 126.7 | AB81: 115.6 | AC81: 139.3 | AD81: 120.3 | AE81: 132.3 | AF81: 2172006.9 | AG81: 375617.2 | AH81: 35777.9 | AI81: 14045.1 | AJ81: 418190.3 | AK81: 93677.2 | AL81: 343357.8 | AM81: 68660.5 | AN81: 118254.2 | AO81: 24889.8 | AP81: 408569.7 | AQ81: 104394.8 | AR81: 88056.6 | AS81: 11518.9 | AT81: 112848.6 | AU81: 17260.9 | AV81: 254459.7 | AW81: 22176.6 | AX81: 227531.3 | AY81: 27298 | AZ81: 426746.4 | BA81: 49075.9 | BB81: 81572.3 | BC81: 11390.5 | BD81: 106.1 | BE81: 139.3 | BF81: 101.4 | BG81: 88 | BH81: 102.6 | BI81: 163.7 | BJ81: 103.5 | BK81: 193.7 | BL81: 80.9 | BM81: 161.4 | BN81: 103.5 | BO81: 136.5 | BP81: 125.8 | BQ81: 150.4 | BR81: 118.6 | BS81: 137.3 | BT81: 109.3 | BU81: 118.2 | BV81: 111.9 | BW81: 157.7 | BX81: 109.7 | BY81: 115.1 | BZ81: 105.8 | CA81: 113 | CB81: 0.3 | CC81: 2.71 | CD81: 4.1665
A82: 2014Q3 | CB82: 0.17 | CC82: 2.59 | CD82: 4.1747
A83: 2014Q4 | CB83: : | CC83: 2.05 | CD83: 4.2112

Sheet pomocniczo_do_kalibracji_alfy
B2: http://appsso.eurostat.ec.europa.eu/nui/show.do?query=BOOKMARK_DS-337919_QID_-3878284D_UID_-3F171EB0&layout=STK_FLOW,L,X,0;BEC,L,X,1;TIME,C,Y,0;INDIC_ET,L,Z,0;PARTNER,L,Z,1;GEO,L,Z,2;INDICATORS,C,Z,3;&zSelection=DS-337919INDICATORS,OBS_FLAG;DS-337919GEO,PL;DS-337919INDIC_ET,TRD_VAL_SWDA;DS-337919PARTNER,EA17;&rankName1=PARTNER_1_2_-1_2&rankName2=INDIC-ET_1_2_-1_2&rankName3=INDICATORS_1_2_-1_2&rankName4=GEO_1_2_1_0&rankName5=STK-FLOW_1_2_0_0&rankName6=BEC_1_2_1_0&rankName7=TIME_1_0_0_1&sortR=ASC_-1_FIRST&rStp=&cStp=&rDCh=&cDCh=&rDM=true&cDM=true&footnes=false&empty=false&wai=false&time_mode=ROLLING&time_most_recent=false&lang=EN&cfo=%23%23%23%2C%23%23%23.%23%23%23
B4: Member States (EU28) trade by BEC product group since 1999 [ext_st_28msbec]
B6: Last update | C6: 2015-02-18T13:49:04
B7: Extracted on | C7: 2015-03-16T13:08:05.617
B8: Source of data | C8: Eurostat
B10: INDIC_ET | C10: Seasonally and working day adjusted trade value in million ECU/EURO
B11: PARTNER | C11: Euro area (17 countries)
B12: GEO | C12: Poland
G13: Sumy kwartalne
B14: STK_FLOW | C14: Imports | D14: Exports | G14: PL_to_EA | H14: EA_to_PL | K14: GDP_EUR_PL | L14: GDP_EUR_EA | M14: alpha | N14: alpha_f
B15: TIME/BEC | C15: Total - All products | D15: Total - All products
B16: 1999M01 | C16: 1827.3 | D16: 1212.3 | F16: =Eurostat!A20 -> 1999Q1 | G16: 3747.1 | H16: 5653.4 | I16: 1 | J16: 1 | K16: =Eurostat!C20 -> 36982.7 | L16: =Eurostat!B20 -> 1581929.8 | M16: =H16/K16 -> 0.1528660698 | N16: =G16/L16 -> 0.00236868918
B17: 1999M02 | C17: 1847.2 | D17: 1237 | F17: =Eurostat!A21 -> 1999Q2 | G17: 3956.3 | H17: 5933.6 | I17: 1 | J17: 4 | K17: =Eurostat!C21 -> 38840.1 | L17: =Eurostat!B21 -> 1597384.5 | M17: =H17/K17 -> 0.1527699465 | N17: =G17/L17 -> 0.00247673619
B18: 1999M03 | C18: 1978.9 | D18: 1297.8 | F18: =Eurostat!A22 -> 1999Q3 | G18: 4129.8 | H18: 6291.9 | I18: 1 | J18: 7 | K18: =Eurostat!C22 -> 40459.6 | L18: =Eurostat!B22 -> 1618763.3 | M18: 0.1555106823 | N18: 0.002551206838
B19: 1999M04 | C19: 1950.2 | D19: 1264.6 | F19: =Eurostat!A23 -> 1999Q4 | G19: 4428.6 | H19: 6676.4 | I19: 1 | J19: 10 | K19: =Eurostat!C23 -> 40508.2 | L19: =Eurostat!B23 -> 1641677.5 | M19: 0.1648160126 | N19: 0.002697606564
B20: 1999M05 | C20: 1939.8 | D20: 1364.1 | F20: =Eurostat!A24 -> 2000Q1 | G20: 4738.4 | H20: 6873.1 | I20: 1 | J20: 13 | K20: =Eurostat!C24 -> 44245 | L20: =Eurostat!B24 -> 1668006.1 | M20: 0.1553418465 | N20: 0.002840756997
B21: 1999M06 | C21: 2043.6 | D21: 1327.6 | F21: =Eurostat!A25 -> 2000Q2 | G21: 5092.6 | H21: 7156.6 | I21: 1 | J21: 16 | K21: =Eurostat!C25 -> 45084.8 | L21: =Eurostat!B25 -> 1687758.4 | M21: 0.1587364256 | N21: 0.003017374999
B22: 1999M07 | C22: 2041.8 | D22: 1331.5 | F22: =Eurostat!A26 -> 2000Q3 | G22: 5659.8 | H22: 7303.3 | I22: 1 | J22: 19 | K22: =Eurostat!C26 -> 47417.5 | L22: =Eurostat!B26 -> 1706020.5 | M22: 0.1540211947 | N22: 0.003317545129
B23: 1999M08 | C23: 2104.9 | D23: 1409.2 | F23: =Eurostat!A27 -> 2000Q4 | G23: 5950.2 | H23: 7462.9 | I23: 1 | J23: 22 | K23: =Eurostat!C27 -> 48812.5 | L23: =Eurostat!B27 -> 1724588.2 | M23: 0.1528891165 | N23: 0.003450214956
B24: 1999M09 | C24: 2145.2 | D24: 1389.1 | F24: =Eurostat!A28 -> 2001Q1 | G24: 6205 | H24: 7653.6 | I24: 1 | J24: 25 | K24: =Eurostat!C28 -> 50978.5 | L24: =Eurostat!B28 -> 1752119.4 | M24: 0.15013388 | N24: 0.003541425316
B25: 1999M10 | C25: 2102.7 | D25: 1420 | F25: =Eurostat!A29 -> 2001Q2 | G25: 6151 | H25: 7705.2 | I25: 1 | J25: 28 | K25: =Eurostat!C29 -> 55909 | L25: =Eurostat!B29 -> 1764661.7 | M25: 0.1378168095 | N25: 0.003485653936
B26: 1999M11 | C26: 2271.9 | D26: 1439.2 | F26: =Eurostat!A30 -> 2001Q3 | G26: 6155 | H26: 7769.2 | I26: 1 | J26: 31 | K26: =Eurostat!C30 -> 52139.2 | L26: =Eurostat!B30 -> 1777426.8 | M26: 0.1490088072 | N26: 0.003462871157
B27: 1999M12 | C27: 2301.8 | D27: 1569.4 | F27: =Eurostat!A31 -> 2001Q4 | G27: 6092.1 | H27: 7710.3 | I27: 1 | J27: 34 | K27: =Eurostat!C31 -> 53874.3 | L27: =Eurostat!B31 -> 1794030.2 | M27: 0.1431164767 | N27: 0.003395762234
B28: 2000M01 | C28: 2219.5 | D28: 1542.7 | F28: =Eurostat!A32 -> 2002Q1 | G28: 6312.8 | H28: 7983.8 | I28: 1 | J28: 37 | K28: =Eurostat!C32 -> 55334.3 | L28: =Eurostat!B32 -> 1808634.5 | M28: 0.1442830216 | N28: 0.00349036801
B29: 2000M02 | C29: 2354.6 | D29: 1579.1 | F29: =Eurostat!A33 -> 2002Q2 | G29: 6343.1 | H29: 8178.1 | I29: 1 | J29: 40 | K29: =Eurostat!C33 -> 54044.9 | L29: =Eurostat!B33 -> 1824144.9 | M29: 0.1513204761 | N29: 0.003477300515
B30: 2000M03 | C30: 2299 | D30: 1616.6 | F30: =Eurostat!A34 -> 2002Q3 | G30: 6584.2 | H30: 8118 | I30: 1 | J30: 43 | K30: =Eurostat!C34 -> 49756 | L30: =Eurostat!B34 -> 1844595.3 | M30: 0.1631562023 | N30: 0.003569455045
B31: 2000M04 | C31: 2280.4 | D31: 1662.9 | F31: =Eurostat!A35 -> 2002Q4 | G31: 6823.6 | H31: 8228.4 | I31: 1 | J31: 46 | K31: =Eurostat!C35 -> 51224 | L31: =Eurostat!B35 -> 1857140.3 | M31: 0.1606356395 | N31: 0.003674251213
B32: 2000M05 | C32: 2498.5 | D32: 1693 | F32: =Eurostat!A36 -> 2003Q1 | G32: 6670.2 | H32: 8036.6 | I32: 1 | J32: 49 | K32: =Eurostat!C36 -> 49263.4 | L32: =Eurostat!B36 -> 1864016.2 | M32: 0.1631353094 | N32: 0.003578402377
B33: 2000M06 | C33: 2377.7 | D33: 1736.7 | F33: =Eurostat!A37 -> 2003Q2 | G33: 6967.2 | H33: 8158.5 | I33: 1 | J33: 52 | K33: =Eurostat!C37 -> 48214.9 | L33: =Eurostat!B37 -> 1873745.8 | M33: 0.1692111775 | N33: 0.003718327214
B34: 2000M07 | C34: 2386.2 | D34: 1912.1 | F34: =Eurostat!A38 -> 2003Q3 | G34: 7241.7 | H34: 8584.3 | I34: 1 | J34: 55 | K34: =Eurostat!C38 -> 47854.6 | L34: =Eurostat!B38 -> 1897870.3 | M34: 0.1793829642 | N34: 0.003815698048
B35: 2000M08 | C35: 2487.7 | D35: 1855.8 | F35: =Eurostat!A39 -> 2003Q4 | G35: 7744.2 | H35: 8736.5 | I35: 1 | J35: 58 | K35: =Eurostat!C39 -> 46424.8 | L35: =Eurostat!B39 -> 1915846.3 | M35: 0.1881860557 | N35: 0.004042182298
B36: 2000M09 | C36: 2429.4 | D36: 1891.9 | F36: =Eurostat!A40 -> 2004Q1 | G36: 7998.7 | H36: 8777 | I36: 1 | J36: 61 | K36: =Eurostat!C40 -> 47240.6 | L36: =Eurostat!B40 -> 1934387.8 | M36: 0.1857935759 | N36: 0.004135003333
B37: 2000M10 | C37: 2510.4 | D37: 1921.4 | F37: =Eurostat!A41 -> 2004Q2 | G37: 8894 | H37: 11497.5 | I37: 1 | J37: 64 | K37: =Eurostat!C41 -> 48863 | L37: =Eurostat!B41 -> 1955064.1 | M37: 0.2353007388 | N37: 0.004549211456
B38: 2000M11 | C38: 2501 | D38: 1935.1 | F38: =Eurostat!A42 -> 2004Q3 | G38: 9129.9 | H38: 11462.1 | I38: 1 | J38: 67 | K38: =Eurostat!C42 -> 52641.7 | L38: =Eurostat!B42 -> 1971424.6 | M38: 0.217738029 | N38: 0.004631118025
B39: 2000M12 | C39: 2451.5 | D39: 2093.7 | F39: =Eurostat!A43 -> 2004Q4 | G39: 9360.3 | H39: 11597.7 | I39: 1 | J39: 70 | K39: =Eurostat!C43 -> 55935.9 | L39: =Eurostat!B43 -> 1987286.2 | M39: 0.207339115 | N39: 0.004710091581
B40: 2001M01 | C40: 2647.9 | D40: 2078.3 | F40: =Eurostat!A44 -> 2005Q1 | G40: 9641.2 | H40: 11641.6 | I40: 1 | J40: 73 | K40: =Eurostat!C44 -> 59888.2 | L40: =Eurostat!B44 -> 2001728.8 | M40: 0.1943888779 | N40: 0.004816436672
B41: 2001M02 | C41: 2504.9 | D41: 2104.9 | F41: =Eurostat!A45 -> 2005Q2 | G41: 9899.6 | H41: 12106.6 | I41: 1 | J41: 76 | K41: =Eurostat!C45 -> 58927.4 | L41: =Eurostat!B45 -> 2023023.1 | M41: 0.2054494174 | N41: 0.004893468592
B42: 2001M03 | C42: 2500.8 | D42: 2021.8 | F42: =Eurostat!A46 -> 2005Q3 | G42: 10225.5 | H42: 12601.6 | I42: 1 | J42: 79 | K42: =Eurostat!C46 -> 61539.6 | L42: =Eurostat!B46 -> 2044188.2 | M42: 0.2047722117 | N42: 0.005002230225
B43: 2001M04 | C43: 2552.9 | D43: 2017.7 | F43: =Eurostat!A47 -> 2005Q4 | G43: 11326.6 | H43: 13284.4 | I43: 1 | J43: 82 | K43: =Eurostat!C47 -> 64139.4 | L43: =Eurostat!B47 -> 2071300.3 | M43: 0.2071176219 | N43: 0.005468352416
B44: 2001M05 | C44: 2575.3 | D44: 2054.2 | F44: =Eurostat!A48 -> 2006Q1 | G44: 11565.5 | H44: 13988.1 | I44: 1 | J44: 85 | K44: =Eurostat!C48 -> 66514 | L44: =Eurostat!B48 -> 2096417.5 | M44: 0.2103030941 | N44: 0.005516792337
B45: 2001M06 | C45: 2577 | D45: 2079.1 | F45: =Eurostat!A49 -> 2006Q2 | G45: 12103.5 | H45: 14380.3 | I45: 1 | J45: 88 | K45: =Eurostat!C49 -> 66263.3 | L45: =Eurostat!B49 -> 2130582.4 | M45: 0.2170175648 | N45: 0.00568084107
B46: 2001M07 | C46: 2619.5 | D46: 2004.1 | F46: =Eurostat!A50 -> 2006Q3 | G46: 12655.1 | H46: 14998.5 | I46: 1 | J46: 91 | K46: =Eurostat!C50 -> 67678.5 | L46: =Eurostat!B50 -> 2153791.7 | M46: 0.2216139542 | N46: 0.005875730694
B47: 2001M08 | C47: 2648.7 | D47: 2090.6 | F47: =Eurostat!A51 -> 2006Q4 | G47: 12983 | H47: 15870.9 | I47: 1 | J47: 94 | K47: =Eurostat!C51 -> 71480.2 | L47: =Eurostat!B51 -> 2187743.6 | M47: 0.2220321152 | N47: 0.005934424857
B48: 2001M09 | C48: 2501 | D48: 2060.3 | F48: =Eurostat!A52 -> 2007Q1 | G48: 13412.3 | H48: 16913.5 | I48: 1 | J48: 97 | K48: =Eurostat!C52 -> 72773.6 | L48: =Eurostat!B52 -> 2223059.7 | M48: 0.2324125782 | N48: 0.006033261275
B49: 2001M10 | C49: 2652 | D49: 2080.7 | F49: =Eurostat!A53 -> 2007Q2 | G49: 13701.3 | H49: 17404.9 | I49: 1 | J49: 100 | K49: =Eurostat!C53 -> 76277.1 | L49: =Eurostat!B53 -> 2246733.7 | M49: 0.2281798862 | N49: 0.006098319529
B50: 2001M11 | C50: 2541.9 | D50: 2033.8 | F50: =Eurostat!A54 -> 2007Q3 | G50: 14421.7 | H50: 17963.7 | I50: 1 | J50: 103 | K50: =Eurostat!C54 -> 78647.7 | L50: =Eurostat!B54 -> 2271416.7 | M50: 0.228407188 | N50: 0.006349209284
B51: 2001M12 | C51: 2516.4 | D51: 1977.6 | F51: =Eurostat!A55 -> 2007Q4 | G51: 14725.5 | H51: 18813.8 | I51: 1 | J51: 106 | K51: =Eurostat!C55 -> 83600.6 | L51: =Eurostat!B55 -> 2293646.5 | M51: 0.2250438394 | N51: 0.006420126205
B52: 2002M01 | C52: 2533.5 | D52: 2053.3 | F52: =Eurostat!A56 -> 2008Q1 | G52: 15823.5 | H52: 20916.2 | I52: 1 | J52: 109 | K52: =Eurostat!C56 -> 87354.1 | L52: =Eurostat!B56 -> 2315099 | M52: 0.2394415374 | N52: 0.006834912891
B53: 2002M02 | C53: 2741.8 | D53: 2088 | F53: =Eurostat!A57 -> 2008Q2 | G53: 16416.9 | H53: 21710.6 | I53: 1 | J53: 112 | K53: =Eurostat!C57 -> 93196.3 | L53: =Eurostat!B57 -> 2321936 | M53: 0.2329556002 | N53: 0.007070349915
B54: 2002M03 | C54: 2708.5 | D54: 2171.5 | F54: =Eurostat!A58 -> 2008Q3 | G54: 16280.2 | H54: 21446.2 | I54: 1 | J54: 115 | K54: =Eurostat!C58 -> 97103.7 | L54: =Eurostat!B58 -> 2314757.6 | M54: 0.2208587314 | N54: 0.007033220239
B55: 2002M04 | C55: 2760.5 | D55: 2116.3 | F55: =Eurostat!A59 -> 2008Q4 | G55: 13897 | H55: 18547.5 | I55: 1 | J55: 118 | K55: =Eurostat!C59 -> 85896.4 | L55: =Eurostat!B59 -> 2284887.9 | M55: 0.2159287234 | N55: 0.006082136458
B56: 2002M05 | C56: 2658.7 | D56: 2016.6 | F56: =Eurostat!A60 -> 2009Q1 | G56: 13155.8 | H56: 14892.9 | I56: 1 | J56: 121 | K56: =Eurostat!C60 -> 73323.4 | L56: =Eurostat!B60 -> 2222477 | M56: 0.2031125125 | N56: 0.005919431337
B57: 2002M06 | C57: 2758.9 | D57: 2210.2 | F57: =Eurostat!A61 -> 2009Q2 | G57: 13199.8 | H57: 15306.2 | I57: 1 | J57: 124 | K57: =Eurostat!C61 -> 74563 | L57: =Eurostat!B61 -> 2219893.4 | M57: 0.2052787576 | N57: 0.005946141378
B58: 2002M07 | C58: 2782 | D58: 2169.1 | F58: =Eurostat!A62 -> 2009Q3 | G58: 14068.7 | H58: 16001 | I58: 1 | J58: 127 | K58: =Eurostat!C62 -> 80389.3 | L58: =Eurostat!B62 -> 2230881.8 | M58: 0.1990439026 | N58: 0.00630634039
B59: 2002M08 | C59: 2642.5 | D59: 2242.8 | F59: =Eurostat!A63 -> 2009Q4 | G59: 15020.1 | H59: 16406.1 | I59: 1 | J59: 130 | K59: =Eurostat!C63 -> 81957 | L59: =Eurostat!B63 -> 2245612.6 | M59: 0.2001793623 | N59: 0.006688642556
B60: 2002M09 | C60: 2693.5 | D60: 2172.3 | F60: =Eurostat!A64 -> 2010Q1 | G60: 15644.4 | H60: 17567.7 | I60: 1 | J60: 133 | K60: =Eurostat!C64 -> 86182.6 | L60: =Eurostat!B64 -> 2258651.7 | M60: 0.203842771 | N60: 0.006926433146
B61: 2002M10 | C61: 2749.2 | D61: 2224.2 | F61: =Eurostat!A65 -> 2010Q2 | G61: 17014.4 | H61: 18835.8 | I61: 1 | J61: 136 | K61: =Eurostat!C65 -> 87544.8 | L61: =Eurostat!B65 -> 2285681.1 | M61: 0.2151561258 | N61: 0.007443908076
B62: 2002M11 | C62: 2727.3 | D62: 2304.7 | F62: =Eurostat!A66 -> 2010Q3 | G62: 17091.3 | H62: 19633.6 | I62: 1 | J62: 139 | K62: =Eurostat!C66 -> 88951.7 | L62: =Eurostat!B66 -> 2300524.1 | M62: 0.2207220323 | N62: 0.007429307087
B63: 2002M12 | C63: 2751.9 | D63: 2294.7 | F63: =Eurostat!A67 -> 2010Q4 | G63: 17461.5 | H63: 20079.6 | I63: 1 | J63: 142 | K63: =Eurostat!C67 -> 91398.2 | L63: =Eurostat!B67 -> 2314800 | M63: 0.2196936045 | N63: 0.007543416278
B64: 2003M01 | C64: 2723.5 | D64: 2184.6 | F64: =Eurostat!A68 -> 2011Q1 | G64: 18102.3 | H64: 20781.7 | I64: 1 | J64: 145 | K64: =Eurostat!C68 -> 94152.7 | L64: =Eurostat!B68 -> 2343422.3 | M64: 0.2207233568 | N64: 0.007724728061
B65: 2003M02 | C65: 2699.2 | D65: 2205.7 | F65: =Eurostat!A69 -> 2011Q2 | G65: 18489.7 | H65: 21731.3 | I65: 1 | J65: 148 | K65: =Eurostat!C69 -> 95386.8 | L65: =Eurostat!B69 -> 2352750.4 | M65: 0.2278229273 | N65: 0.007858759688
B66: 2003M03 | C66: 2613.9 | D66: 2279.9 | F66: =Eurostat!A70 -> 2011Q3 | G66: 18435.6 | H66: 21196.4 | I66: 1 | J66: 151 | K66: =Eurostat!C70 -> 92483.6 | L66: =Eurostat!B70 -> 2360507.5 | M66: 0.2291909052 | N66: 0.007810015431
B67: 2003M04 | C67: 2770.1 | D67: 2310.1 | F67: =Eurostat!A71 -> 2011Q4 | G67: 18554.4 | H67: 20756.9 | I67: 1 | J67: 154 | K67: =Eurostat!C71 -> 88732.9 | L67: =Eurostat!B71 -> 2362435.3 | M67: 0.2339256352 | N67: 0.007853929375
B68: 2003M05 | C68: 2758.1 | D68: 2378.2 | F68: =Eurostat!A72 -> 2012Q1 | G68: 18437.3 | H68: 20958.3 | I68: 1 | J68: 157 | K68: =Eurostat!C72 -> 93276.9 | L68: =Eurostat!B72 -> 2369361.4 | M68: 0.2246890709 | N68: 0.007781548226
B69: 2003M06 | C69: 2630.3 | D69: 2278.9 | F69: =Eurostat!A73 -> 2012Q2 | G69: 18420.7 | H69: 20988.6 | I69: 1 | J69: 160 | K69: =Eurostat!C73 -> 93552.6 | L69: =Eurostat!B73 -> 2370524.9 | M69: 0.224350793 | N69: 0.007770726222
B70: 2003M07 | C70: 2956.3 | D70: 2442 | F70: =Eurostat!A74 -> 2012Q3 | G70: 19096 | H70: 20863.3 | I70: 1 | J70: 163 | K70: =Eurostat!C74 -> 96828.1 | L70: =Eurostat!B74 -> 2373339.5 | M70: 0.2154674108 | N70: 0.00804604651
B71: 2003M08 | C71: 2747.5 | D71: 2341.5 | F71: =Eurostat!A75 -> 2012Q4 | G71: 18834.6 | H71: 20938.2 | I71: 1 | J71: 166 | K71: =Eurostat!C75 -> 97664.5 | L71: =Eurostat!B75 -> 2370430 | M71: 0.2143890564 | N71: 0.007945646992
B72: 2003M09 | C72: 2880.5 | D72: 2458.2 | F72: =Eurostat!A76 -> 2013Q1 | G72: 18910.9 | H72: 20988.4 | I72: 1 | J72: 169 | K72: =Eurostat!C76 -> 96999.1 | L72: =Eurostat!B76 -> 2379868.3 | M72: 0.2163772654 | N72: 0.007946196014
B73: 2003M10 | C73: 2914.2 | D73: 2559.5 | F73: =Eurostat!A77 -> 2013Q2 | G73: 19192.2 | H73: 20791.8 | I73: 1 | J73: 172 | K73: =Eurostat!C77 -> 96875.5 | L73: =Eurostat!B77 -> 2395048.1 | M73: 0.2146239245 | N73: 0.008013283742
B74: 2003M11 | C74: 2799.9 | D74: 2568.3 | F74: =Eurostat!A78 -> 2013Q3 | G74: 20079.2 | H74: 21620.7 | I74: 1 | J74: 175 | K74: =Eurostat!C78 -> 96809.8 | L74: =Eurostat!B78 -> 2400180.5 | M74: 0.2233317288 | N74: 0.008365704163
B75: 2003M12 | C75: 3022.4 | D75: 2616.4 | F75: =Eurostat!A79 -> 2013Q4 | G75: 20244.5 | H75: 22081.1 | I75: 1 | J75: 178 | K75: =Eurostat!C79 -> 99188.2 | L75: =Eurostat!B79 -> 2409726.8 | M75: 0.2226182147 | N75: 0.008401159833
B76: 2004M01 | C76: 2850.9 | D76: 2534.5 | F76: =Eurostat!A80 -> 2014Q1 | G76: 21057.4 | H76: 22456.4 | I76: 1 | J76: 181 | K76: =Eurostat!C80 -> 100617.4 | L76: =Eurostat!B80 -> 2423916.8 | M76: 0.2231860493 | N76: 0.008687344384
B77: 2004M02 | C77: 2849.7 | D77: 2729 | F77: =Eurostat!A81 -> 2014Q2 | G77: 21370.7 | H77: 22881.8 | I77: 1 | J77: 184 | K77: =Eurostat!C81 -> 101863.1 | L77: =Eurostat!B81 -> 2428123.2 | M77: 0.2246328651 | N77: 0.008801324414
B78: 2004M03 | C78: 3076.4 | D78: 2735.2
B79: 2004M04 | C79: 3881.4 | D79: 2996
B80: 2004M05 | C80: 3765.4 | D80: 2948.4
B81: 2004M06 | C81: 3850.7 | D81: 2949.6
B82: 2004M07 | C82: 3717.3 | D82: 2966.3
B83: 2004M08 | C83: 3833.4 | D83: 3051.7
B84: 2004M09 | C84: 3911.4 | D84: 3111.9
B85: 2004M10 | C85: 3738.8 | D85: 3014.4
B86: 2004M11 | C86: 3882.2 | D86: 3160.2
B87: 2004M12 | C87: 3976.7 | D87: 3185.7
B88: 2005M01 | C88: 3852.7 | D88: 3302.7
B89: 2005M02 | C89: 3906.3 | D89: 3169.4
B90: 2005M03 | C90: 3882.6 | D90: 3169.1
B91: 2005M04 | C91: 4010.3 | D91: 3320.5
B92: 2005M05 | C92: 3919.7 | D92: 3182.5
B93: 2005M06 | C93: 4176.6 | D93: 3396.6
B94: 2005M07 | C94: 3924.5 | D94: 3345.8
B95: 2005M08 | C95: 4255.9 | D95: 3364
B96: 2005M09 | C96: 4421.2 | D96: 3515.7
B97: 2005M10 | C97: 4267.1 | D97: 3655.8
B98: 2005M11 | C98: 4454.1 | D98: 3730.9
B99: 2005M12 | C99: 4563.2 | D99: 3939.9
B100: 2006M01 | C100: 4624.8 | D100: 3875.6
B101: 2006M02 | C101: 4597.6 | D101: 3840.6
B102: 2006M03 | C102: 4765.7 | D102: 3849.3
B103: 2006M04 | C103: 4506.3 | D103: 3899
B104: 2006M05 | C104: 5022.4 | D104: 4160.1
B105: 2006M06 | C105: 4851.6 | D105: 4044.4
B106: 2006M07 | C106: 4868.4 | D106: 4148
B107: 2006M08 | C107: 5080.4 | D107: 4141.7
B108: 2006M09 | C108: 5049.7 | D108: 4365.4
B109: 2006M10 | C109: 5286.2 | D109: 4260.7
B110: 2006M11 | C110: 5324.2 | D110: 4431
B111: 2006M12 | C111: 5260.5 | D111: 4291.3
B112: 2007M01 | C112: 5679.9 | D112: 4406
B113: 2007M02 | C113: 5504.3 | D113: 4448.7
B114: 2007M03 | C114: 5729.3 | D114: 4557.6
B115: 2007M04 | C115: 5610.4 | D115: 4439.3
B116: 2007M05 | C116: 5867.8 | D116: 4560.8
B117: 2007M06 | C117: 5926.7 | D117: 4701.2
B118: 2007M07 | C118: 6063.2 | D118: 4737
B119: 2007M08 | C119: 6092.7 | D119: 4886.4
B120: 2007M09 | C120: 5807.8 | D120: 4798.3
B121: 2007M10 | C121: 6338.9 | D121: 4962
B122: 2007M11 | C122: 6359.5 | D122: 5000.1
B123: 2007M12 | C123: 6115.4 | D123: 4763.4
B124: 2008M01 | C124: 6977.9 | D124: 5196.9
B125: 2008M02 | C125: 7184 | D125: 5283.1
B126: 2008M03 | C126: 6754.3 | D126: 5343.5
B127: 2008M04 | C127: 7495.9 | D127: 5553.6
B128: 2008M05 | C128: 6994.2 | D128: 5276.4
B129: 2008M06 | C129: 7220.5 | D129: 5586.9
B130: 2008M07 | C130: 7324.4 | D130: 5474.4
B131: 2008M08 | C131: 6865.7 | D131: 5342.3
B132: 2008M09 | C132: 7256.1 | D132: 5463.5
B133: 2008M10 | C133: 6873.6 | D133: 4979
B134: 2008M11 | C134: 5914.2 | D134: 4827.6
B135: 2008M12 | C135: 5759.7 | D135: 4090.4
B136: 2009M01 | C136: 5038.2 | D136: 4281.6
B137: 2009M02 | C137: 4855.7 | D137: 4443.7
B138: 2009M03 | C138: 4999 | D138: 4430.5
B139: 2009M04 | C139: 5166.6 | D139: 4325.7
B140: 2009M05 | C140: 5022.2 | D140: 4465.1
B141: 2009M06 | C141: 5117.4 | D141: 4409
B142: 2009M07 | C142: 5266.3 | D142: 4569.9
B143: 2009M08 | C143: 5284.9 | D143: 4671.4
B144: 2009M09 | C144: 5449.8 | D144: 4827.4
B145: 2009M10 | C145: 5490.8 | D145: 4970.7
B146: 2009M11 | C146: 5475.6 | D146: 4950.9
B147: 2009M12 | C147: 5439.7 | D147: 5098.5
B148: 2010M01 | C148: 5446.7 | D148: 5018.5
B149: 2010M02 | C149: 5694.5 | D149: 5237.5
B150: 2010M03 | C150: 6426.5 | D150: 5388.4
B151: 2010M04 | C151: 6150.8 | D151: 5451.4
B152: 2010M05 | C152: 6219.6 | D152: 5859.1
B153: 2010M06 | C153: 6465.4 | D153: 5703.9
B154: 2010M07 | C154: 6293.6 | D154: 5584.4
B155: 2010M08 | C155: 6623.1 | D155: 5704.1
B156: 2010M09 | C156: 6716.9 | D156: 5802.8
B157: 2010M10 | C157: 6588.1 | D157: 5744.6
B158: 2010M11 | C158: 6596.1 | D158: 5786.3
B159: 2010M12 | C159: 6895.4 | D159: 5930.6
B160: 2011M01 | C160: 6698.5 | D160: 6065.1
B161: 2011M02 | C161: 6886.7 | D161: 6083.9
B162: 2011M03 | C162: 7196.5 | D162: 5953.3
B163: 2011M04 | C163: 7102.1 | D163: 6106.9
B164: 2011M05 | C164: 7448 | D164: 6365.6
B165: 2011M06 | C165: 7181.2 | D165: 6017.2
B166: 2011M07 | C166: 6929 | D166: 6173.6
B167: 2011M08 | C167: 7233.8 | D167: 6147.4
B168: 2011M09 | C168: 7033.6 | D168: 6114.6
B169: 2011M10 | C169: 6635.4 | D169: 6057.6
B170: 2011M11 | C170: 6948.4 | D170: 6137
B171: 2011M12 | C171: 7173.1 | D171: 6359.8
B172: 2012M01 | C172: 6839.2 | D172: 6246.5
B173: 2012M02 | C173: 7124.3 | D173: 6075.4
B174: 2012M03 | C174: 6994.8 | D174: 6115.4
B175: 2012M04 | C175: 6967.4 | D175: 6156.5
B176: 2012M05 | C176: 7084.2 | D176: 6053.2
B177: 2012M06 | C177: 6937 | D177: 6211
B178: 2012M07 | C178: 7004 | D178: 6262.1
B179: 2012M08 | C179: 7149.4 | D179: 6565
B180: 2012M09 | C180: 6709.9 | D180: 6268.9
B181: 2012M10 | C181: 7182.7 | D181: 6392.5
B182: 2012M11 | C182: 7091.7 | D182: 6414.7
B183: 2012M12 | C183: 6663.8 | D183: 6027.4
B184: 2013M01 | C184: 7068.9 | D184: 6329.9
B185: 2013M02 | C185: 6822.5 | D185: 6215.1
B186: 2013M03 | C186: 7097 | D186: 6365.9
B187: 2013M04 | C187: 6889.6 | D187: 6336.9
B188: 2013M05 | C188: 6845.8 | D188: 6109.1
B189: 2013M06 | C189: 7056.4 | D189: 6746.2
B190: 2013M07 | C190: 7180.6 | D190: 6629.2
B191: 2013M08 | C191: 7205.4 | D191: 6658.4
B192: 2013M09 | C192: 7234.7 | D192: 6791.6
B193: 2013M10 | C193: 7522.1 | D193: 6708.7
B194: 2013M11 | C194: 7355.6 | D194: 6735
B195: 2013M12 | C195: 7203.4 | D195: 6800.8
B196: 2014M01 | C196: 7560.2 | D196: 6958.5
B197: 2014M02 | C197: 7524.2 | D197: 7040.8
B198: 2014M03 | C198: 7372 | D198: 7058.1
B199: 2014M04 | C199: 7733.9 | D199: 7153
B200: 2014M05 | C200: 7614.3 | D200: 7237.8
B201: 2014M06 | C201: 7533.6 | D201: 6979.9
B202: 2014M07 | C202: 7788.2 | D202: 7187.1
B203: 2014M08 | C203: 7354.9 | D203: 7081.8
B204: 2014M09 | C204: 7712 | D204: 7285.3
... 5 more rows

Sheet pomocniczo_do_innych_kalibracji
F1: udziały branż w wartości dodanej | AC1: poziomy cen (ln)
F2: GVA, 2005=100 (NC), SWDA, price index, TOTAL | H2: -- AGRICULTURE, FORESTRY AND FISHING | J2: -- INDUSTRY EXCEPT CONSTRUCTION | L2: -- CONSTRUCTION | N2: -- WHOLESALE AND RETAIL TRADE, TRANSPORT, ACCOMODATION AND FOOD SERVICE ACTIVITIES | P2: -- INFORMATION AND COMMUNICATION | R2: -- FINANCIAL AND INSURANCE ACTIVITIES | T2: -- REAL ESTATE ACTIVITIES | V2: -- Professional, scientific and technical activities; administrative and support service activities | X2: -- Public administration, defence, education, human health and social work activities | Z2: -- Arts, entertainment and recreation; other service activities; activities of household and extra-territorial organizations and bodies | AC2: H | AD2: N | AE2: F | AF2: NF
B3: kappa | C3: kappa_f | D3: w | F3: Euro area (17 countries) | G3: Poland | H3: Euro area (17 countries) | I3: Poland | J3: Euro area (17 countries) | K3: Poland | L3: Euro area (17 countries) | M3: Poland | N3: Euro area (17 countries) | O3: Poland | P3: Euro area (17 countries) | Q3: Poland | R3: Euro area (17 countries) | S3: Poland | T3: Euro area (17 countries) | U3: Poland | V3: Euro area (17 countries) | W3: Poland | X3: Euro area (17 countries) | Y3: Poland | Z3: Euro area (17 countries) | AA3: Poland
A4: =dane_do_matlaba!A2 -> 2000Q1 | B4: =1-(Eurostat!AI24+Eurostat!AK24)/Eurostat!AG24 -> 0.7153335001 | C4: =1-(Eurostat!AH24+Eurostat!AJ24)/Eurostat!AF24 -> 0.7579732076 | D4: =Eurostat!C24/SUM(Eurostat!B24:C24) -> 0.02584025205 | F4: =Eurostat!AG24/Eurostat!$AG24 -> 1 | G4: =Eurostat!AG24/Eurostat!$AG24 -> 1 | H4: =Eurostat!AI24/Eurostat!$AG24 -> 0.04849293577 | I4: =Eurostat!AI24/Eurostat!$AG24 -> 0.04849293577 | J4: =Eurostat!AK24/Eurostat!$AG24 -> 0.2361735641 | K4: =Eurostat!AK24/Eurostat!$AG24 -> 0.2361735641 | L4: =Eurostat!AO24/Eurostat!$AG24 -> 0.07693148977 | M4: =Eurostat!AO24/Eurostat!$AG24 -> 0.07693148977 | N4: =Eurostat!AQ24/Eurostat!$AG24 -> 0.260676793 | O4: =Eurostat!AQ24/Eurostat!$AG24 -> 0.260676793 | P4: =Eurostat!AS24/Eurostat!$AG24 -> 0.03376170824 | Q4: =Eurostat!AS24/Eurostat!$AG24 -> 0.03376170824 | R4: =Eurostat!AU24/Eurostat!$AG24 -> 0.05043325661 | S4: =Eurostat!AU24/Eurostat!$AG24 -> 0.05043325661 | T4: =Eurostat!AW24/Eurostat!$AG24 -> 0.06777797752 | U4: =Eurostat!AW24/Eurostat!$AG24 -> 0.06777797752 | V4: =Eurostat!AY24/Eurostat!$AG24 -> 0.06277726726 | W4: =Eurostat!AY24/Eurostat!$AG24 -> 0.06277726726 | X4: =Eurostat!BA24/Eurostat!$AG24 -> 0.1331423392 | Y4: =Eurostat!BA24/Eurostat!$AG24 -> 0.1331423392 | Z4: =Eurostat!BC24/Eurostat!$AG24 -> 0.03583339514 | AA4: =Eurostat!BC24/Eurostat!$AG24 -> 0.03583339514 | AC4: =LN((Eurostat!K24^pomocniczo_do_innych_kalibracji!I4*Eurostat!M24^pomocniczo_do_innych_kalibracji!K4)^(1/(pomocniczo_do_innych_kalibracji!I4+pomocniczo_do_innych_kalibracji!K4))) -> 4.491482551 | AD4: =LN((Eurostat!Q24^pomocniczo_do_innych_kalibracji!M4*Eurostat!S24^pomocniczo_do_innych_kalibracji!O4*Eurostat!U24^pomocniczo_do_innych_kalibracji!Q4*Eurostat!W24^pomocniczo_do_innych_kalibracji!S4*Eurostat!Y24^pomocniczo_do_innych_kalibracji!U4*Eurostat!AA24^pomocniczo_do_innych_kalibracji!W4*Eurostat!AC24^pomocniczo_do_innych_kalibracji!Y4*Eurostat!AE24^pomocniczo_do_innych_kalibracji!AA4)^(1/(pomocniczo_do_innych_kalibracji!M4+pomocniczo_do_innych_kalibracji!O4+pomocniczo_do_innych_kalibracji!Q4+pomocniczo_do_innych_kalibracji!S4+pomocniczo_do_innych_kalibracji!U4+pomocniczo_do_innych_kalibracji!W4+pomocniczo_do_innych_kalibracji!Y4+pomocniczo_do_innych_kalibracji!AA4))) -> 4.447897317 | AE4: =LN((Eurostat!J24^pomocniczo_do_innych_kalibracji!H4*Eurostat!L24^pomocniczo_do_innych_kalibracji!J4)^(1/(pomocniczo_do_innych_kalibracji!H4+pomocniczo_do_innych_kalibracji!J4))) -> 4.550020763 | AF4: =LN((Eurostat!P24^pomocniczo_do_innych_kalibracji!L4*Eurostat!R24^pomocniczo_do_innych_kalibracji!N4*Eurostat!T24^pomocniczo_do_innych_kalibracji!P4*Eurostat!V24^pomocniczo_do_innych_kalibracji!R4*Eurostat!X24^pomocniczo_do_innych_kalibracji!T4*Eurostat!Z24^pomocniczo_do_innych_kalibracji!V4*Eurostat!AB24^pomocniczo_do_innych_kalibracji!X4*Eurostat!AD24^pomocniczo_do_innych_kalibracji!Z4)^(1/(pomocniczo_do_innych_kalibracji!L4+pomocniczo_do_innych_kalibracji!N4+pomocniczo_do_innych_kalibracji!P4+pomocniczo_do_innych_kalibracji!R4+pomocniczo_do_innych_kalibracji!T4+pomocniczo_do_innych_kalibracji!V4+pomocniczo_do_innych_kalibracji!X4+pomocniczo_do_innych_kalibracji!Z4))) -> 4.470170048
A5: =dane_do_matlaba!A3 -> 2000Q2 | B5: =1-(Eurostat!AI25+Eurostat!AK25)/Eurostat!AG25 -> 0.7155263543 | C5: =1-(Eurostat!AH25+Eurostat!AJ25)/Eurostat!AF25 -> 0.7562953376 | D5: =Eurostat!C25/SUM(Eurostat!B25:C25) -> 0.02601781858 | F5: =Eurostat!AG25/Eurostat!$AG25 -> 1 | G5: =Eurostat!AG25/Eurostat!$AG25 -> 1 | H5: =Eurostat!AI25/Eurostat!$AG25 -> 0.04586284422 | I5: =Eurostat!AI25/Eurostat!$AG25 -> 0.04586284422 | J5: =Eurostat!AK25/Eurostat!$AG25 -> 0.2386108015 | K5: =Eurostat!AK25/Eurostat!$AG25 -> 0.2386108015 | L5: =Eurostat!AO25/Eurostat!$AG25 -> 0.07894319647 | M5: =Eurostat!AO25/Eurostat!$AG25 -> 0.07894319647 | N5: =Eurostat!AQ25/Eurostat!$AG25 -> 0.2591841069 | O5: =Eurostat!AQ25/Eurostat!$AG25 -> 0.2591841069 | P5: =Eurostat!AS25/Eurostat!$AG25 -> 0.03448083789 | Q5: =Eurostat!AS25/Eurostat!$AG25 -> 0.03448083789 | R5: =Eurostat!AU25/Eurostat!$AG25 -> 0.04980905529 | S5: =Eurostat!AU25/Eurostat!$AG25 -> 0.04980905529 | T5: =Eurostat!AW25/Eurostat!$AG25 -> 0.06628740928 | U5: =Eurostat!AW25/Eurostat!$AG25 -> 0.06628740928 | V5: =Eurostat!AY25/Eurostat!$AG25 -> 0.06289208854 | W5: =Eurostat!AY25/Eurostat!$AG25 -> 0.06289208854 | X5: =Eurostat!BA25/Eurostat!$AG25 -> 0.1333999299 | Y5: =Eurostat!BA25/Eurostat!$AG25 -> 0.1333999299 | Z5: =Eurostat!BC25/Eurostat!$AG25 -> 0.03367408961 | AA5: =Eurostat!BC25/Eurostat!$AG25 -> 0.03367408961 | AC5: =LN((Eurostat!K25^pomocniczo_do_innych_kalibracji!I5*Eurostat!M25^pomocniczo_do_innych_kalibracji!K5)^(1/(pomocniczo_do_innych_kalibracji!I5+pomocniczo_do_innych_kalibracji!K5))) -> 4.500073377 | AD5: =LN((Eurostat!Q25^pomocniczo_do_innych_kalibracji!M5*Eurostat!S25^pomocniczo_do_innych_kalibracji!O5*Eurostat!U25^pomocniczo_do_innych_kalibracji!Q5*Eurostat!W25^pomocniczo_do_innych_kalibracji!S5*Eurostat!Y25^pomocniczo_do_innych_kalibracji!U5*Eurostat!AA25^pomocniczo_do_innych_kalibracji!W5*Eurostat!AC25^pomocniczo_do_innych_kalibracji!Y5*Eurostat!AE25^pomocniczo_do_innych_kalibracji!AA5)^(1/(pomocniczo_do_innych_kalibracji!M5+pomocniczo_do_innych_kalibracji!O5+pomocniczo_do_innych_kalibracji!Q5+pomocniczo_do_innych_kalibracji!S5+pomocniczo_do_innych_kalibracji!U5+pomocniczo_do_innych_kalibracji!W5+pomocniczo_do_innych_kalibracji!Y5+pomocniczo_do_innych_kalibracji!AA5))) -> 4.450132235 | AE5: =LN((Eurostat!J25^pomocniczo_do_innych_kalibracji!H5*Eurostat!L25^pomocniczo_do_innych_kalibracji!J5)^(1/(pomocniczo_do_innych_kalibracji!H5+pomocniczo_do_innych_kalibracji!J5))) -> 4.575967785 | AF5: =LN((Eurostat!P25^pomocniczo_do_innych_kalibracji!L5*Eurostat!R25^pomocniczo_do_innych_kalibracji!N5*Eurostat!T25^pomocniczo_do_innych_kalibracji!P5*Eurostat!V25^pomocniczo_do_innych_kalibracji!R5*Eurostat!X25^pomocniczo_do_innych_kalibracji!T5*Eurostat!Z25^pomocniczo_do_innych_kalibracji!V5*Eurostat!AB25^pomocniczo_do_innych_kalibracji!X5*Eurostat!AD25^pomocniczo_do_innych_kalibracji!Z5)^(1/(pomocniczo_do_innych_kalibracji!L5+pomocniczo_do_innych_kalibracji!N5+pomocniczo_do_innych_kalibracji!P5+pomocniczo_do_innych_kalibracji!R5+pomocniczo_do_innych_kalibracji!T5+pomocniczo_do_innych_kalibracji!V5+pomocniczo_do_innych_kalibracji!X5+pomocniczo_do_innych_kalibracji!Z5))) -> 4.474315344
A6: =dane_do_matlaba!A4 -> 2000Q3 | B6: =1-(Eurostat!AI26+Eurostat!AK26)/Eurostat!AG26 -> 0.7182398589 | C6: =1-(Eurostat!AH26+Eurostat!AJ26)/Eurostat!AF26 -> 0.7556658319 | D6: =Eurostat!C26/SUM(Eurostat!B26:C26) -> 0.02704258719 | F6: =Eurostat!AG26/Eurostat!$AG26 -> 1 | G6: =Eurostat!AG26/Eurostat!$AG26 -> 1 | H6: =Eurostat!AI26/Eurostat!$AG26 -> 0.05030926138 | I6: =Eurostat!AI26/Eurostat!$AG26 -> 0.05030926138 | J6: =Eurostat!AK26/Eurostat!$AG26 -> 0.2314508797 | K6: =Eurostat!AK26/Eurostat!$AG26 -> 0.2314508797 | L6: =Eurostat!AO26/Eurostat!$AG26 -> 0.07882406703 | M6: =Eurostat!AO26/Eurostat!$AG26 -> 0.07882406703 | N6: =Eurostat!AQ26/Eurostat!$AG26 -> 0.2572984253 | O6: =Eurostat!AQ26/Eurostat!$AG26 -> 0.2572984253 | P6: =Eurostat!AS26/Eurostat!$AG26 -> 0.034741793 | Q6: =Eurostat!AS26/Eurostat!$AG26 -> 0.034741793 | R6: =Eurostat!AU26/Eurostat!$AG26 -> 0.04777861563 | S6: =Eurostat!AU26/Eurostat!$AG26 -> 0.04777861563 | T6: =Eurostat!AW26/Eurostat!$AG26 -> 0.065710287 | U6: =Eurostat!AW26/Eurostat!$AG26 -> 0.065710287 | V6: =Eurostat!AY26/Eurostat!$AG26 -> 0.06385913335 | W6: =Eurostat!AY26/Eurostat!$AG26 -> 0.06385913335 | X6: =Eurostat!BA26/Eurostat!$AG26 -> 0.133719751 | Y6: =Eurostat!BA26/Eurostat!$AG26 -> 0.133719751 | Z6: =Eurostat!BC26/Eurostat!$AG26 -> 0.03546901063 | AA6: =Eurostat!BC26/Eurostat!$AG26 -> 0.03546901063 | AC6: =LN((Eurostat!K26^pomocniczo_do_innych_kalibracji!I6*Eurostat!M26^pomocniczo_do_innych_kalibracji!K6)^(1/(pomocniczo_do_innych_kalibracji!I6+pomocniczo_do_innych_kalibracji!K6))) -> 4.522955555 | AD6: =LN((Eurostat!Q26^pomocniczo_do_innych_kalibracji!M6*Eurostat!S26^pomocniczo_do_innych_kalibracji!O6*Eurostat!U26^pomocniczo_do_innych_kalibracji!Q6*Eurostat!W26^pomocniczo_do_innych_kalibracji!S6*Eurostat!Y26^pomocniczo_do_innych_kalibracji!U6*Eurostat!AA26^pomocniczo_do_innych_kalibracji!W6*Eurostat!AC26^pomocniczo_do_innych_kalibracji!Y6*Eurostat!AE26^pomocniczo_do_innych_kalibracji!AA6)^(1/(pomocniczo_do_innych_kalibracji!M6+pomocniczo_do_innych_kalibracji!O6+pomocniczo_do_innych_kalibracji!Q6+pomocniczo_do_innych_kalibracji!S6+pomocniczo_do_innych_kalibracji!U6+pomocniczo_do_innych_kalibracji!W6+pomocniczo_do_innych_kalibracji!Y6+pomocniczo_do_innych_kalibracji!AA6))) -> 4.480445578 | AE6: =LN((Eurostat!J26^pomocniczo_do_innych_kalibracji!H6*Eurostat!L26^pomocniczo_do_innych_kalibracji!J6)^(1/(pomocniczo_do_innych_kalibracji!H6+pomocniczo_do_innych_kalibracji!J6))) -> 4.589540143 | AF6: =LN((Eurostat!P26^pomocniczo_do_innych_kalibracji!L6*Eurostat!R26^pomocniczo_do_innych_kalibracji!N6*Eurostat!T26^pomocniczo_do_innych_kalibracji!P6*Eurostat!V26^pomocniczo_do_innych_kalibracji!R6*Eurostat!X26^pomocniczo_do_innych_kalibracji!T6*Eurostat!Z26^pomocniczo_do_innych_kalibracji!V6*Eurostat!AB26^pomocniczo_do_innych_kalibracji!X6*Eurostat!AD26^pomocniczo_do_innych_kalibracji!Z6)^(1/(pomocniczo_do_innych_kalibracji!L6+pomocniczo_do_innych_kalibracji!N6+pomocniczo_do_innych_kalibracji!P6+pomocniczo_do_innych_kalibracji!R6+pomocniczo_do_innych_kalibracji!T6+pomocniczo_do_innych_kalibracji!V6+pomocniczo_do_innych_kalibracji!X6+pomocniczo_do_innych_kalibracji!Z6))) -> 4.48032769
A7: =dane_do_matlaba!A5 -> 2000Q4 | B7: =1-(Eurostat!AI27+Eurostat!AK27)/Eurostat!AG27 -> 0.7161760673 | C7: =1-(Eurostat!AH27+Eurostat!AJ27)/Eurostat!AF27 -> 0.755686665 | D7: =Eurostat!C27/SUM(Eurostat!B27:C27) -> 0.02752480023 | F7: =Eurostat!AG27/Eurostat!$AG27 -> 1 | G7: =Eurostat!AG27/Eurostat!$AG27 -> 1 | H7: =Eurostat!AI27/Eurostat!$AG27 -> 0.05466971856 | I7: =Eurostat!AI27/Eurostat!$AG27 -> 0.05466971856 | J7: =Eurostat!AK27/Eurostat!$AG27 -> 0.2291542142 | K7: =Eurostat!AK27/Eurostat!$AG27 -> 0.2291542142 | L7: =Eurostat!AO27/Eurostat!$AG27 -> 0.07857149554 | M7: =Eurostat!AO27/Eurostat!$AG27 -> 0.07857149554 | N7: =Eurostat!AQ27/Eurostat!$AG27 -> 0.2555048861 | O7: =Eurostat!AQ27/Eurostat!$AG27 -> 0.2555048861 | P7: =Eurostat!AS27/Eurostat!$AG27 -> 0.03609761357 | Q7: =Eurostat!AS27/Eurostat!$AG27 -> 0.03609761357 | R7: =Eurostat!AU27/Eurostat!$AG27 -> 0.0510740212 | S7: =Eurostat!AU27/Eurostat!$AG27 -> 0.0510740212 | T7: =Eurostat!AW27/Eurostat!$AG27 -> 0.0646375823 | U7: =Eurostat!AW27/Eurostat!$AG27 -> 0.0646375823 | V7: =Eurostat!AY27/Eurostat!$AG27 -> 0.066495203 | W7: =Eurostat!AY27/Eurostat!$AG27 -> 0.066495203 | X7: =Eurostat!BA27/Eurostat!$AG27 -> 0.1331826141 | Y7: =Eurostat!BA27/Eurostat!$AG27 -> 0.1331826141 | Z7: =Eurostat!BC27/Eurostat!$AG27 -> 0.03498069715 | AA7: =Eurostat!BC27/Eurostat!$AG27 -> 0.03498069715 | AC7: =LN((Eurostat!K27^pomocniczo_do_innych_kalibracji!I7*Eurostat!M27^pomocniczo_do_innych_kalibracji!K7)^(1/(pomocniczo_do_innych_kalibracji!I7+pomocniczo_do_innych_kalibracji!K7))) -> 4.540636975 | AD7: =LN((Eurostat!Q27^pomocniczo_do_innych_kalibracji!M7*Eurostat!S27^pomocniczo_do_innych_kalibracji!O7*Eurostat!U27^pomocniczo_do_innych_kalibracji!Q7*Eurostat!W27^pomocniczo_do_innych_kalibracji!S7*Eurostat!Y27^pomocniczo_do_innych_kalibracji!U7*Eurostat!AA27^pomocniczo_do_innych_kalibracji!W7*Eurostat!AC27^pomocniczo_do_innych_kalibracji!Y7*Eurostat!AE27^pomocniczo_do_innych_kalibracji!AA7)^(1/(pomocniczo_do_innych_kalibracji!M7+pomocniczo_do_innych_kalibracji!O7+pomocniczo_do_innych_kalibracji!Q7+pomocniczo_do_innych_kalibracji!S7+pomocniczo_do_innych_kalibracji!U7+pomocniczo_do_innych_kalibracji!W7+pomocniczo_do_innych_kalibracji!Y7+pomocniczo_do_innych_kalibracji!AA7))) -> 4.493430088 | AE7: =LN((Eurostat!J27^pomocniczo_do_innych_kalibracji!H7*Eurostat!L27^pomocniczo_do_innych_kalibracji!J7)^(1/(pomocniczo_do_innych_kalibracji!H7+pomocniczo_do_innych_kalibracji!J7))) -> 4.604614319 | AF7: =LN((Eurostat!P27^pomocniczo_do_innych_kalibracji!L7*Eurostat!R27^pomocniczo_do_innych_kalibracji!N7*Eurostat!T27^pomocniczo_do_innych_kalibracji!P7*Eurostat!V27^pomocniczo_do_innych_kalibracji!R7*Eurostat!X27^pomocniczo_do_innych_kalibracji!T7*Eurostat!Z27^pomocniczo_do_innych_kalibracji!V7*Eurostat!AB27^pomocniczo_do_innych_kalibracji!X7*Eurostat!AD27^pomocniczo_do_innych_kalibracji!Z7)^(1/(pomocniczo_do_innych_kalibracji!L7+pomocniczo_do_innych_kalibracji!N7+pomocniczo_do_innych_kalibracji!P7+pomocniczo_do_innych_kalibracji!R7+pomocniczo_do_innych_kalibracji!T7+pomocniczo_do_innych_kalibracji!V7+pomocniczo_do_innych_kalibracji!X7+pomocniczo_do_innych_kalibracji!Z7))) -> 4.485636972
A8: =dane_do_matlaba!A6 -> 2001Q1 | B8: =1-(Eurostat!AI28+Eurostat!AK28)/Eurostat!AG28 -> 0.7205312997 | C8: =1-(Eurostat!AH28+Eurostat!AJ28)/Eurostat!AF28 -> 0.756818124 | D8: =Eurostat!C28/SUM(Eurostat!B28:C28) -> 0.02827272995 | F8: =Eurostat!AG28/Eurostat!$AG28 -> 1 | G8: =Eurostat!AG28/Eurostat!$AG28 -> 1 | H8: =Eurostat!AI28/Eurostat!$AG28 -> 0.05156217168 | I8: =Eurostat!AI28/Eurostat!$AG28 -> 0.05156217168 | J8: =Eurostat!AK28/Eurostat!$AG28 -> 0.2279065286 | K8: =Eurostat!AK28/Eurostat!$AG28 -> 0.2279065286 | L8: =Eurostat!AO28/Eurostat!$AG28 -> 0.07692039791 | M8: =Eurostat!AO28/Eurostat!$AG28 -> 0.07692039791 | N8: =Eurostat!AQ28/Eurostat!$AG28 -> 0.2562053269 | O8: =Eurostat!AQ28/Eurostat!$AG28 -> 0.2562053269 | P8: =Eurostat!AS28/Eurostat!$AG28 -> 0.0372865241 | Q8: =Eurostat!AS28/Eurostat!$AG28 -> 0.0372865241 | R8: =Eurostat!AU28/Eurostat!$AG28 -> 0.04695395967 | S8: =Eurostat!AU28/Eurostat!$AG28 -> 0.04695395967 | T8: =Eurostat!AW28/Eurostat!$AG28 -> 0.06462467364 | U8: =Eurostat!AW28/Eurostat!$AG28 -> 0.06462467364 | V8: =Eurostat!AY28/Eurostat!$AG28 -> 0.06550696137 | W8: =Eurostat!AY28/Eurostat!$AG28 -> 0.06550696137 | X8: =Eurostat!BA28/Eurostat!$AG28 -> 0.1370111575 | Y8: =Eurostat!BA28/Eurostat!$AG28 -> 0.1370111575 | Z8: =Eurostat!BC28/Eurostat!$AG28 -> 0.03555445399 | AA8: =Eurostat!BC28/Eurostat!$AG28 -> 0.03555445399 | AC8: =LN((Eurostat!K28^pomocniczo_do_innych_kalibracji!I8*Eurostat!M28^pomocniczo_do_innych_kalibracji!K8)^(1/(pomocniczo_do_innych_kalibracji!I8+pomocniczo_do_innych_kalibracji!K8))) -> 4.533170565 | AD8: =LN((Eurostat!Q28^pomocniczo_do_innych_kalibracji!M8*Eurostat!S28^pomocniczo_do_innych_kalibracji!O8*Eurostat!U28^pomocniczo_do_innych_kalibracji!Q8*Eurostat!W28^pomocniczo_do_innych_kalibracji!S8*Eurostat!Y28^pomocniczo_do_innych_kalibracji!U8*Eurostat!AA28^pomocniczo_do_innych_kalibracji!W8*Eurostat!AC28^pomocniczo_do_innych_kalibracji!Y8*Eurostat!AE28^pomocniczo_do_innych_kalibracji!AA8)^(1/(pomocniczo_do_innych_kalibracji!M8+pomocniczo_do_innych_kalibracji!O8+pomocniczo_do_innych_kalibracji!Q8+pomocniczo_do_innych_kalibracji!S8+pomocniczo_do_innych_kalibracji!U8+pomocniczo_do_innych_kalibracji!W8+pomocniczo_do_innych_kalibracji!Y8+pomocniczo_do_innych_kalibracji!AA8))) -> 4.497401978 | AE8: =LN((Eurostat!J28^pomocniczo_do_innych_kalibracji!H8*Eurostat!L28^pomocniczo_do_innych_kalibracji!J8)^(1/(pomocniczo_do_innych_kalibracji!H8+pomocniczo_do_innych_kalibracji!J8))) -> 4.601548332 | AF8: =LN((Eurostat!P28^pomocniczo_do_innych_kalibracji!L8*Eurostat!R28^pomocniczo_do_innych_kalibracji!N8*Eurostat!T28^pomocniczo_do_innych_kalibracji!P8*Eurostat!V28^pomocniczo_do_innych_kalibracji!R8*Eurostat!X28^pomocniczo_do_innych_kalibracji!T8*Eurostat!Z28^pomocniczo_do_innych_kalibracji!V8*Eurostat!AB28^pomocniczo_do_innych_kalibracji!X8*Eurostat!AD28^pomocniczo_do_innych_kalibracji!Z8)^(1/(pomocniczo_do_innych_kalibracji!L8+pomocniczo_do_innych_kalibracji!N8+pomocniczo_do_innych_kalibracji!P8+pomocniczo_do_innych_kalibracji!R8+pomocniczo_do_innych_kalibracji!T8+pomocniczo_do_innych_kalibracji!V8+pomocniczo_do_innych_kalibracji!X8+pomocniczo_do_innych_kalibracji!Z8))) -> 4.493269714
A9: =dane_do_matlaba!A7 -> 2001Q2 | B9: =1-(Eurostat!AI29+Eurostat!AK29)/Eurostat!AG29 -> 0.7221381156 | C9: =1-(Eurostat!AH29+Eurostat!AJ29)/Eurostat!AF29 -> 0.7596454419 | D9: =Eurostat!C29/SUM(Eurostat!B29:C29) -> 0.03070960112 | F9: =Eurostat!AG29/Eurostat!$AG29 -> 1 | G9: =Eurostat!AG29/Eurostat!$AG29 -> 1 | H9: =Eurostat!AI29/Eurostat!$AG29 -> 0.05467956703 | I9: =Eurostat!AI29/Eurostat!$AG29 -> 0.05467956703 | J9: =Eurostat!AK29/Eurostat!$AG29 -> 0.2231823174 | K9: =Eurostat!AK29/Eurostat!$AG29 -> 0.2231823174 | L9: =Eurostat!AO29/Eurostat!$AG29 -> 0.07448083481 | M9: =Eurostat!AO29/Eurostat!$AG29 -> 0.07448083481 | N9: =Eurostat!AQ29/Eurostat!$AG29 -> 0.2582402148 | O9: =Eurostat!AQ29/Eurostat!$AG29 -> 0.2582402148 | P9: =Eurostat!AS29/Eurostat!$AG29 -> 0.03880873492 | Q9: =Eurostat!AS29/Eurostat!$AG29 -> 0.03880873492 | R9: =Eurostat!AU29/Eurostat!$AG29 -> 0.04454896697 | S9: =Eurostat!AU29/Eurostat!$AG29 -> 0.04454896697 | T9: =Eurostat!AW29/Eurostat!$AG29 -> 0.06483722194 | U9: =Eurostat!AW29/Eurostat!$AG29 -> 0.06483722194 | V9: =Eurostat!AY29/Eurostat!$AG29 -> 0.06752946675 | W9: =Eurostat!AY29/Eurostat!$AG29 -> 0.06752946675 | X9: =Eurostat!BA29/Eurostat!$AG29 -> 0.1399633436 | Y9: =Eurostat!BA29/Eurostat!$AG29 -> 0.1399633436 | Z9: =Eurostat!BC29/Eurostat!$AG29 -> 0.03460659954 | AA9: =Eurostat!BC29/Eurostat!$AG29 -> 0.03460659954 | AC9: =LN((Eurostat!K29^pomocniczo_do_innych_kalibracji!I9*Eurostat!M29^pomocniczo_do_innych_kalibracji!K9)^(1/(pomocniczo_do_innych_kalibracji!I9+pomocniczo_do_innych_kalibracji!K9))) -> 4.540174798 | AD9: =LN((Eurostat!Q29^pomocniczo_do_innych_kalibracji!M9*Eurostat!S29^pomocniczo_do_innych_kalibracji!O9*Eurostat!U29^pomocniczo_do_innych_kalibracji!Q9*Eurostat!W29^pomocniczo_do_innych_kalibracji!S9*Eurostat!Y29^pomocniczo_do_innych_kalibracji!U9*Eurostat!AA29^pomocniczo_do_innych_kalibracji!W9*Eurostat!AC29^pomocniczo_do_innych_kalibracji!Y9*Eurostat!AE29^pomocniczo_do_innych_kalibracji!AA9)^(1/(pomocniczo_do_innych_kalibracji!M9+pomocniczo_do_innych_kalibracji!O9+pomocniczo_do_innych_kalibracji!Q9+pomocniczo_do_innych_kalibracji!S9+pomocniczo_do_innych_kalibracji!U9+pomocniczo_do_innych_kalibracji!W9+pomocniczo_do_innych_kalibracji!Y9+pomocniczo_do_innych_kalibracji!AA9))) -> 4.515003683 | AE9: =LN((Eurostat!J29^pomocniczo_do_innych_kalibracji!H9*Eurostat!L29^pomocniczo_do_innych_kalibracji!J9)^(1/(pomocniczo_do_innych_kalibracji!H9+pomocniczo_do_innych_kalibracji!J9))) -> 4.607144523 | AF9: =LN((Eurostat!P29^pomocniczo_do_innych_kalibracji!L9*Eurostat!R29^pomocniczo_do_innych_kalibracji!N9*Eurostat!T29^pomocniczo_do_innych_kalibracji!P9*Eurostat!V29^pomocniczo_do_innych_kalibracji!R9*Eurostat!X29^pomocniczo_do_innych_kalibracji!T9*Eurostat!Z29^pomocniczo_do_innych_kalibracji!V9*Eurostat!AB29^pomocniczo_do_innych_kalibracji!X9*Eurostat!AD29^pomocniczo_do_innych_kalibracji!Z9)^(1/(pomocniczo_do_innych_kalibracji!L9+pomocniczo_do_innych_kalibracji!N9+pomocniczo_do_innych_kalibracji!P9+pomocniczo_do_innych_kalibracji!R9+pomocniczo_do_innych_kalibracji!T9+pomocniczo_do_innych_kalibracji!V9+pomocniczo_do_innych_kalibracji!X9+pomocniczo_do_innych_kalibracji!Z9))) -> 4.502444074
A10: =dane_do_matlaba!A8 -> 2001Q3 | B10: =1-(Eurostat!AI30+Eurostat!AK30)/Eurostat!AG30 -> 0.72836785 | C10: =1-(Eurostat!AH30+Eurostat!AJ30)/Eurostat!AF30 -> 0.7613460736 | D10: =Eurostat!C30/SUM(Eurostat!B30:C30) -> 0.02849812469 | F10: =Eurostat!AG30/Eurostat!$AG30 -> 1 | G10: =Eurostat!AG30/Eurostat!$AG30 -> 1 | H10: =Eurostat!AI30/Eurostat!$AG30 -> 0.05075796033 | I10: =Eurostat!AI30/Eurostat!$AG30 -> 0.05075796033 | J10: =Eurostat!AK30/Eurostat!$AG30 -> 0.2208741897 | K10: =Eurostat!AK30/Eurostat!$AG30 -> 0.2208741897 | L10: =Eurostat!AO30/Eurostat!$AG30 -> 0.07207813712 | M10: =Eurostat!AO30/Eurostat!$AG30 -> 0.07207813712 | N10: =Eurostat!AQ30/Eurostat!$AG30 -> 0.2632504117 | O10: =Eurostat!AQ30/Eurostat!$AG30 -> 0.2632504117 | P10: =Eurostat!AS30/Eurostat!$AG30 -> 0.03895683482 | Q10: =Eurostat!AS30/Eurostat!$AG30 -> 0.03895683482 | R10: =Eurostat!AU30/Eurostat!$AG30 -> 0.04519228896 | S10: =Eurostat!AU30/Eurostat!$AG30 -> 0.04519228896 | T10: =Eurostat!AW30/Eurostat!$AG30 -> 0.06463546972 | U10: =Eurostat!AW30/Eurostat!$AG30 -> 0.06463546972 | V10: =Eurostat!AY30/Eurostat!$AG30 -> 0.06568340188 | W10: =Eurostat!AY30/Eurostat!$AG30 -> 0.06568340188 | X10: =Eurostat!BA30/Eurostat!$AG30 -> 0.1438497441 | Y10: =Eurostat!BA30/Eurostat!$AG30 -> 0.1438497441 | Z10: =Eurostat!BC30/Eurostat!$AG30 -> 0.03465166139 | AA10: =Eurostat!BC30/Eurostat!$AG30 -> 0.03465166139 | AC10: =LN((Eurostat!K30^pomocniczo_do_innych_kalibracji!I10*Eurostat!M30^pomocniczo_do_innych_kalibracji!K10)^(1/(pomocniczo_do_innych_kalibracji!I10+pomocniczo_do_innych_kalibracji!K10))) -> 4.51267166 | AD10: =LN((Eurostat!Q30^pomocniczo_do_innych_kalibracji!M10*Eurostat!S30^pomocniczo_do_innych_kalibracji!O10*Eurostat!U30^pomocniczo_do_innych_kalibracji!Q10*Eurostat!W30^pomocniczo_do_innych_kalibracji!S10*Eurostat!Y30^pomocniczo_do_innych_kalibracji!U10*Eurostat!AA30^pomocniczo_do_innych_kalibracji!W10*Eurostat!AC30^pomocniczo_do_innych_kalibracji!Y10*Eurostat!AE30^pomocniczo_do_innych_kalibracji!AA10)^(1/(pomocniczo_do_innych_kalibracji!M10+pomocniczo_do_innych_kalibracji!O10+pomocniczo_do_innych_kalibracji!Q10+pomocniczo_do_innych_kalibracji!S10+pomocniczo_do_innych_kalibracji!U10+pomocniczo_do_innych_kalibracji!W10+pomocniczo_do_innych_kalibracji!Y10+pomocniczo_do_innych_kalibracji!AA10))) -> 4.520342506 | AE10: =LN((Eurostat!J30^pomocniczo_do_innych_kalibracji!H10*Eurostat!L30^pomocniczo_do_innych_kalibracji!J10)^(1/(pomocniczo_do_innych_kalibracji!H10+pomocniczo_do_innych_kalibracji!J10))) -> 4.608081566 | AF10: =LN((Eurostat!P30^pomocniczo_do_innych_kalibracji!L10*Eurostat!R30^pomocniczo_do_innych_kalibracji!N10*Eurostat!T30^pomocniczo_do_innych_kalibracji!P10*Eurostat!V30^pomocniczo_do_innych_kalibracji!R10*Eurostat!X30^pomocniczo_do_innych_kalibracji!T10*Eurostat!Z30^pomocniczo_do_innych_kalibracji!V10*Eurostat!AB30^pomocniczo_do_innych_kalibracji!X10*Eurostat!AD30^pomocniczo_do_innych_kalibracji!Z10)^(1/(pomocniczo_do_innych_kalibracji!L10+pomocniczo_do_innych_kalibracji!N10+pomocniczo_do_innych_kalibracji!P10+pomocniczo_do_innych_kalibracji!R10+pomocniczo_do_innych_kalibracji!T10+pomocniczo_do_innych_kalibracji!V10+pomocniczo_do_innych_kalibracji!X10+pomocniczo_do_innych_kalibracji!Z10))) -> 4.510145559
A11: =dane_do_matlaba!A9 -> 2001Q4 | B11: =1-(Eurostat!AI31+Eurostat!AK31)/Eurostat!AG31 -> 0.7367543727 | C11: =1-(Eurostat!AH31+Eurostat!AJ31)/Eurostat!AF31 -> 0.7649345917 | D11: =Eurostat!C31/SUM(Eurostat!B31:C31) -> 0.02915426636 | F11: =Eurostat!AG31/Eurostat!$AG31 -> 1 | G11: =Eurostat!AG31/Eurostat!$AG31 -> 1 | H11: =Eurostat!AI31/Eurostat!$AG31 -> 0.04672728951 | I11: =Eurostat!AI31/Eurostat!$AG31 -> 0.04672728951 | J11: =Eurostat!AK31/Eurostat!$AG31 -> 0.2165183378 | K11: =Eurostat!AK31/Eurostat!$AG31 -> 0.2165183378 | L11: =Eurostat!AO31/Eurostat!$AG31 -> 0.07066461426 | M11: =Eurostat!AO31/Eurostat!$AG31 -> 0.07066461426 | N11: =Eurostat!AQ31/Eurostat!$AG31 -> 0.264558198 | O11: =Eurostat!AQ31/Eurostat!$AG31 -> 0.264558198 | P11: =Eurostat!AS31/Eurostat!$AG31 -> 0.0391515233 | Q11: =Eurostat!AS31/Eurostat!$AG31 -> 0.0391515233 | R11: =Eurostat!AU31/Eurostat!$AG31 -> 0.04642535267 | S11: =Eurostat!AU31/Eurostat!$AG31 -> 0.04642535267 | T11: =Eurostat!AW31/Eurostat!$AG31 -> 0.06458599902 | U11: =Eurostat!AW31/Eurostat!$AG31 -> 0.06458599902 | V11: =Eurostat!AY31/Eurostat!$AG31 -> 0.06416157837 | W11: =Eurostat!AY31/Eurostat!$AG31 -> 0.06416157837 | X11: =Eurostat!BA31/Eurostat!$AG31 -> 0.1483028301 | Y11: =Eurostat!BA31/Eurostat!$AG31 -> 0.1483028301 | Z11: =Eurostat!BC31/Eurostat!$AG31 -> 0.03554195384 | AA11: =Eurostat!BC31/Eurostat!$AG31 -> 0.03554195384 | AC11: =LN((Eurostat!K31^pomocniczo_do_innych_kalibracji!I11*Eurostat!M31^pomocniczo_do_innych_kalibracji!K11)^(1/(pomocniczo_do_innych_kalibracji!I11+pomocniczo_do_innych_kalibracji!K11))) -> 4.497629598 | AD11: =LN((Eurostat!Q31^pomocniczo_do_innych_kalibracji!M11*Eurostat!S31^pomocniczo_do_innych_kalibracji!O11*Eurostat!U31^pomocniczo_do_innych_kalibracji!Q11*Eurostat!W31^pomocniczo_do_innych_kalibracji!S11*Eurostat!Y31^pomocniczo_do_innych_kalibracji!U11*Eurostat!AA31^pomocniczo_do_innych_kalibracji!W11*Eurostat!AC31^pomocniczo_do_innych_kalibracji!Y11*Eurostat!AE31^pomocniczo_do_innych_kalibracji!AA11)^(1/(pomocniczo_do_innych_kalibracji!M11+pomocniczo_do_innych_kalibracji!O11+pomocniczo_do_innych_kalibracji!Q11+pomocniczo_do_innych_kalibracji!S11+pomocniczo_do_innych_kalibracji!U11+pomocniczo_do_innych_kalibracji!W11+pomocniczo_do_innych_kalibracji!Y11+pomocniczo_do_innych_kalibracji!AA11))) -> 4.526635058 | AE11: =LN((Eurostat!J31^pomocniczo_do_innych_kalibracji!H11*Eurostat!L31^pomocniczo_do_innych_kalibracji!J11)^(1/(pomocniczo_do_innych_kalibracji!H11+pomocniczo_do_innych_kalibracji!J11))) -> 4.605672103 | AF11: =LN((Eurostat!P31^pomocniczo_do_innych_kalibracji!L11*Eurostat!R31^pomocniczo_do_innych_kalibracji!N11*Eurostat!T31^pomocniczo_do_innych_kalibracji!P11*Eurostat!V31^pomocniczo_do_innych_kalibracji!R11*Eurostat!X31^pomocniczo_do_innych_kalibracji!T11*Eurostat!Z31^pomocniczo_do_innych_kalibracji!V11*Eurostat!AB31^pomocniczo_do_innych_kalibracji!X11*Eurostat!AD31^pomocniczo_do_innych_kalibracji!Z11)^(1/(pomocniczo_do_innych_kalibracji!L11+pomocniczo_do_innych_kalibracji!N11+pomocniczo_do_innych_kalibracji!P11+pomocniczo_do_innych_kalibracji!R11+pomocniczo_do_innych_kalibracji!T11+pomocniczo_do_innych_kalibracji!V11+pomocniczo_do_innych_kalibracji!X11+pomocniczo_do_innych_kalibracji!Z11))) -> 4.521364853
A12: =dane_do_matlaba!A10 -> 2002Q1 | B12: =1-(Eurostat!AI32+Eurostat!AK32)/Eurostat!AG32 -> 0.7355851523 | C12: =1-(Eurostat!AH32+Eurostat!AJ32)/Eurostat!AF32 -> 0.766355374 | D12: =Eurostat!C32/SUM(Eurostat!B32:C32) -> 0.02968628016 | F12: =Eurostat!AG32/Eurostat!$AG32 -> 1 | G12: =Eurostat!AG32/Eurostat!$AG32 -> 1 | H12: =Eurostat!AI32/Eurostat!$AG32 -> 0.0456855404 | I12: =Eurostat!AI32/Eurostat!$AG32 -> 0.0456855404 | J12: =Eurostat!AK32/Eurostat!$AG32 -> 0.2187293073 | K12: =Eurostat!AK32/Eurostat!$AG32 -> 0.2187293073 | L12: =Eurostat!AO32/Eurostat!$AG32 -> 0.07115096551 | M12: =Eurostat!AO32/Eurostat!$AG32 -> 0.07115096551 | N12: =Eurostat!AQ32/Eurostat!$AG32 -> 0.2654926356 | O12: =Eurostat!AQ32/Eurostat!$AG32 -> 0.2654926356 | P12: =Eurostat!AS32/Eurostat!$AG32 -> 0.04304309399 | Q12: =Eurostat!AS32/Eurostat!$AG32 -> 0.04304309399 | R12: =Eurostat!AU32/Eurostat!$AG32 -> 0.03811275154 | S12: =Eurostat!AU32/Eurostat!$AG32 -> 0.03811275154 | T12: =Eurostat!AW32/Eurostat!$AG32 -> 0.06918029876 | U12: =Eurostat!AW32/Eurostat!$AG32 -> 0.06918029876 | V12: =Eurostat!AY32/Eurostat!$AG32 -> 0.06402716071 | W12: =Eurostat!AY32/Eurostat!$AG32 -> 0.06402716071 | X12: =Eurostat!BA32/Eurostat!$AG32 -> 0.1490643998 | Y12: =Eurostat!BA32/Eurostat!$AG32 -> 0.1490643998 | Z12: =Eurostat!BC32/Eurostat!$AG32 -> 0.03602899057 | AA12: =Eurostat!BC32/Eurostat!$AG32 -> 0.03602899057 | AC12: =LN((Eurostat!K32^pomocniczo_do_innych_kalibracji!I12*Eurostat!M32^pomocniczo_do_innych_kalibracji!K12)^(1/(pomocniczo_do_innych_kalibracji!I12+pomocniczo_do_innych_kalibracji!K12))) -> 4.507705226 | AD12: =LN((Eurostat!Q32^pomocniczo_do_innych_kalibracji!M12*Eurostat!S32^pomocniczo_do_innych_kalibracji!O12*Eurostat!U32^pomocniczo_do_innych_kalibracji!Q12*Eurostat!W32^pomocniczo_do_innych_kalibracji!S12*Eurostat!Y32^pomocniczo_do_innych_kalibracji!U12*Eurostat!AA32^pomocniczo_do_innych_kalibracji!W12*Eurostat!AC32^pomocniczo_do_innych_kalibracji!Y12*Eurostat!AE32^pomocniczo_do_innych_kalibracji!AA12)^(1/(pomocniczo_do_innych_kalibracji!M12+pomocniczo_do_innych_kalibracji!O12+pomocniczo_do_innych_kalibracji!Q12+pomocniczo_do_innych_kalibracji!S12+pomocniczo_do_innych_kalibracji!U12+pomocniczo_do_innych_kalibracji!W12+pomocniczo_do_innych_kalibracji!Y12+pomocniczo_do_innych_kalibracji!AA12))) -> 4.527046804 | AE12: =LN((Eurostat!J32^pomocniczo_do_innych_kalibracji!H12*Eurostat!L32^pomocniczo_do_innych_kalibracji!J12)^(1/(pomocniczo_do_innych_kalibracji!H12+pomocniczo_do_innych_kalibracji!J12))) -> 4.606612255 | AF12: =LN((Eurostat!P32^pomocniczo_do_innych_kalibracji!L12*Eurostat!R32^pomocniczo_do_innych_kalibracji!N12*Eurostat!T32^pomocniczo_do_innych_kalibracji!P12*Eurostat!V32^pomocniczo_do_innych_kalibracji!R12*Eurostat!X32^pomocniczo_do_innych_kalibracji!T12*Eurostat!Z32^pomocniczo_do_innych_kalibracji!V12*Eurostat!AB32^pomocniczo_do_innych_kalibracji!X12*Eurostat!AD32^pomocniczo_do_innych_kalibracji!Z12)^(1/(pomocniczo_do_innych_kalibracji!L12+pomocniczo_do_innych_kalibracji!N12+pomocniczo_do_innych_kalibracji!P12+pomocniczo_do_innych_kalibracji!R12+pomocniczo_do_innych_kalibracji!T12+pomocniczo_do_innych_kalibracji!V12+pomocniczo_do_innych_kalibracji!X12+pomocniczo_do_innych_kalibracji!Z12))) -> 4.529329772
A13: =dane_do_matlaba!A11 -> 2002Q2 | B13: =1-(Eurostat!AI33+Eurostat!AK33)/Eurostat!AG33 -> 0.7396668338 | C13: =1-(Eurostat!AH33+Eurostat!AJ33)/Eurostat!AF33 -> 0.7665099923 | D13: =Eurostat!C33/SUM(Eurostat!B33:C33) -> 0.02877499388 | F13: =Eurostat!AG33/Eurostat!$AG33 -> 1 | G13: =Eurostat!AG33/Eurostat!$AG33 -> 1 | H13: =Eurostat!AI33/Eurostat!$AG33 -> 0.04299303836 | I13: =Eurostat!AI33/Eurostat!$AG33 -> 0.04299303836 | J13: =Eurostat!AK33/Eurostat!$AG33 -> 0.2173401279 | K13: =Eurostat!AK33/Eurostat!$AG33 -> 0.2173401279 | L13: =Eurostat!AO33/Eurostat!$AG33 -> 0.0676223801 | M13: =Eurostat!AO33/Eurostat!$AG33 -> 0.0676223801 | N13: =Eurostat!AQ33/Eurostat!$AG33 -> 0.2635717666 | O13: =Eurostat!AQ33/Eurostat!$AG33 -> 0.2635717666 | P13: =Eurostat!AS33/Eurostat!$AG33 -> 0.0432918043 | Q13: =Eurostat!AS33/Eurostat!$AG33 -> 0.0432918043 | R13: =Eurostat!AU33/Eurostat!$AG33 -> 0.04386964352 | S13: =Eurostat!AU33/Eurostat!$AG33 -> 0.04386964352 | T13: =Eurostat!AW33/Eurostat!$AG33 -> 0.06927543913 | U13: =Eurostat!AW33/Eurostat!$AG33 -> 0.06927543913 | V13: =Eurostat!AY33/Eurostat!$AG33 -> 0.06269977511 | W13: =Eurostat!AY33/Eurostat!$AG33 -> 0.06269977511 | X13: =Eurostat!BA33/Eurostat!$AG33 -> 0.1500131378 | Y13: =Eurostat!BA33/Eurostat!$AG33 -> 0.1500131378 | Z13: =Eurostat!BC33/Eurostat!$AG33 -> 0.03609441454 | AA13: =Eurostat!BC33/Eurostat!$AG33 -> 0.03609441454 | AC13: =LN((Eurostat!K33^pomocniczo_do_innych_kalibracji!I13*Eurostat!M33^pomocniczo_do_innych_kalibracji!K13)^(1/(pomocniczo_do_innych_kalibracji!I13+pomocniczo_do_innych_kalibracji!K13))) -> 4.495015604 | AD13: =LN((Eurostat!Q33^pomocniczo_do_innych_kalibracji!M13*Eurostat!S33^pomocniczo_do_innych_kalibracji!O13*Eurostat!U33^pomocniczo_do_innych_kalibracji!Q13*Eurostat!W33^pomocniczo_do_innych_kalibracji!S13*Eurostat!Y33^pomocniczo_do_innych_kalibracji!U13*Eurostat!AA33^pomocniczo_do_innych_kalibracji!W13*Eurostat!AC33^pomocniczo_do_innych_kalibracji!Y13*Eurostat!AE33^pomocniczo_do_innych_kalibracji!AA13)^(1/(pomocniczo_do_innych_kalibracji!M13+pomocniczo_do_innych_kalibracji!O13+pomocniczo_do_innych_kalibracji!Q13+pomocniczo_do_innych_kalibracji!S13+pomocniczo_do_innych_kalibracji!U13+pomocniczo_do_innych_kalibracji!W13+pomocniczo_do_innych_kalibracji!Y13+pomocniczo_do_innych_kalibracji!AA13))) -> 4.535684875 | AE13: =LN((Eurostat!J33^pomocniczo_do_innych_kalibracji!H13*Eurostat!L33^pomocniczo_do_innych_kalibracji!J13)^(1/(pomocniczo_do_innych_kalibracji!H13+pomocniczo_do_innych_kalibracji!J13))) -> 4.603262401 | AF13: =LN((Eurostat!P33^pomocniczo_do_innych_kalibracji!L13*Eurostat!R33^pomocniczo_do_innych_kalibracji!N13*Eurostat!T33^pomocniczo_do_innych_kalibracji!P13*Eurostat!V33^pomocniczo_do_innych_kalibracji!R13*Eurostat!X33^pomocniczo_do_innych_kalibracji!T13*Eurostat!Z33^pomocniczo_do_innych_kalibracji!V13*Eurostat!AB33^pomocniczo_do_innych_kalibracji!X13*Eurostat!AD33^pomocniczo_do_innych_kalibracji!Z13)^(1/(pomocniczo_do_innych_kalibracji!L13+pomocniczo_do_innych_kalibracji!N13+pomocniczo_do_innych_kalibracji!P13+pomocniczo_do_innych_kalibracji!R13+pomocniczo_do_innych_kalibracji!T13+pomocniczo_do_innych_kalibracji!V13+pomocniczo_do_innych_kalibracji!X13+pomocniczo_do_innych_kalibracji!Z13))) -> 4.533253648
A14: =dane_do_matlaba!A12 -> 2002Q3 | B14: =1-(Eurostat!AI34+Eurostat!AK34)/Eurostat!AG34 -> 0.7321107355 | C14: =1-(Eurostat!AH34+Eurostat!AJ34)/Eurostat!AF34 -> 0.7669587905 | D14: =Eurostat!C34/SUM(Eurostat!B34:C34) -> 0.02626545562 | F14: =Eurostat!AG34/Eurostat!$AG34 -> 1 | G14: =Eurostat!AG34/Eurostat!$AG34 -> 1 | H14: =Eurostat!AI34/Eurostat!$AG34 -> 0.04777376186 | I14: =Eurostat!AI34/Eurostat!$AG34 -> 0.04777376186 | J14: =Eurostat!AK34/Eurostat!$AG34 -> 0.2201155026 | K14: =Eurostat!AK34/Eurostat!$AG34 -> 0.2201155026 | L14: =Eurostat!AO34/Eurostat!$AG34 -> 0.06663176712 | M14: =Eurostat!AO34/Eurostat!$AG34 -> 0.06663176712 | N14: =Eurostat!AQ34/Eurostat!$AG34 -> 0.2611406582 | O14: =Eurostat!AQ34/Eurostat!$AG34 -> 0.2611406582 | P14: =Eurostat!AS34/Eurostat!$AG34 -> 0.04385591686 | Q14: =Eurostat!AS34/Eurostat!$AG34 -> 0.04385591686 | R14: =Eurostat!AU34/Eurostat!$AG34 -> 0.04344881741 | S14: =Eurostat!AU34/Eurostat!$AG34 -> 0.04344881741 | T14: =Eurostat!AW34/Eurostat!$AG34 -> 0.06956388566 | U14: =Eurostat!AW34/Eurostat!$AG34 -> 0.06956388566 | V14: =Eurostat!AY34/Eurostat!$AG34 -> 0.06389846461 | W14: =Eurostat!AY34/Eurostat!$AG34 -> 0.06389846461 | X14: =Eurostat!BA34/Eurostat!$AG34 -> 0.1493269772 | Y14: =Eurostat!BA34/Eurostat!$AG34 -> 0.1493269772 | Z14: =Eurostat!BC34/Eurostat!$AG34 -> 0.03588155689 | AA14: =Eurostat!BC34/Eurostat!$AG34 -> 0.03588155689 | AC14: =LN((Eurostat!K34^pomocniczo_do_innych_kalibracji!I14*Eurostat!M34^pomocniczo_do_innych_kalibracji!K14)^(1/(pomocniczo_do_innych_kalibracji!I14+pomocniczo_do_innych_kalibracji!K14))) -> 4.525983821 | AD14: =LN((Eurostat!Q34^pomocniczo_do_innych_kalibracji!M14*Eurostat!S34^pomocniczo_do_innych_kalibracji!O14*Eurostat!U34^pomocniczo_do_innych_kalibracji!Q14*Eurostat!W34^pomocniczo_do_innych_kalibracji!S14*Eurostat!Y34^pomocniczo_do_innych_kalibracji!U14*Eurostat!AA34^pomocniczo_do_innych_kalibracji!W14*Eurostat!AC34^pomocniczo_do_innych_kalibracji!Y14*Eurostat!AE34^pomocniczo_do_innych_kalibracji!AA14)^(1/(pomocniczo_do_innych_kalibracji!M14+pomocniczo_do_innych_kalibracji!O14+pomocniczo_do_innych_kalibracji!Q14+pomocniczo_do_innych_kalibracji!S14+pomocniczo_do_innych_kalibracji!U14+pomocniczo_do_innych_kalibracji!W14+pomocniczo_do_innych_kalibracji!Y14+pomocniczo_do_innych_kalibracji!AA14))) -> 4.534340064 | AE14: =LN((Eurostat!J34^pomocniczo_do_innych_kalibracji!H14*Eurostat!L34^pomocniczo_do_innych_kalibracji!J14)^(1/(pomocniczo_do_innych_kalibracji!H14+pomocniczo_do_innych_kalibracji!J14))) -> 4.609311027 | AF14: =LN((Eurostat!P34^pomocniczo_do_innych_kalibracji!L14*Eurostat!R34^pomocniczo_do_innych_kalibracji!N14*Eurostat!T34^pomocniczo_do_innych_kalibracji!P14*Eurostat!V34^pomocniczo_do_innych_kalibracji!R14*Eurostat!X34^pomocniczo_do_innych_kalibracji!T14*Eurostat!Z34^pomocniczo_do_innych_kalibracji!V14*Eurostat!AB34^pomocniczo_do_innych_kalibracji!X14*Eurostat!AD34^pomocniczo_do_innych_kalibracji!Z14)^(1/(pomocniczo_do_innych_kalibracji!L14+pomocniczo_do_innych_kalibracji!N14+pomocniczo_do_innych_kalibracji!P14+pomocniczo_do_innych_kalibracji!R14+pomocniczo_do_innych_kalibracji!T14+pomocniczo_do_innych_kalibracji!V14+pomocniczo_do_innych_kalibracji!X14+pomocniczo_do_innych_kalibracji!Z14))) -> 4.541864326
A15: =dane_do_matlaba!A13 -> 2002Q4 | B15: =1-(Eurostat!AI35+Eurostat!AK35)/Eurostat!AG35 -> 0.7296207559 | C15: =1-(Eurostat!AH35+Eurostat!AJ35)/Eurostat!AF35 -> 0.7693482084 | D15: =Eurostat!C35/SUM(Eurostat!B35:C35) -> 0.02684183518 | F15: =Eurostat!AG35/Eurostat!$AG35 -> 1 | G15: =Eurostat!AG35/Eurostat!$AG35 -> 1 | H15: =Eurostat!AI35/Eurostat!$AG35 -> 0.04613434503 | I15: =Eurostat!AI35/Eurostat!$AG35 -> 0.04613434503 | J15: =Eurostat!AK35/Eurostat!$AG35 -> 0.224244899 | K15: =Eurostat!AK35/Eurostat!$AG35 -> 0.224244899 | L15: =Eurostat!AO35/Eurostat!$AG35 -> 0.06518993147 | M15: =Eurostat!AO35/Eurostat!$AG35 -> 0.06518993147 | N15: =Eurostat!AQ35/Eurostat!$AG35 -> 0.2594015332 | O15: =Eurostat!AQ35/Eurostat!$AG35 -> 0.2594015332 | P15: =Eurostat!AS35/Eurostat!$AG35 -> 0.0446805595 | Q15: =Eurostat!AS35/Eurostat!$AG35 -> 0.0446805595 | R15: =Eurostat!AU35/Eurostat!$AG35 -> 0.04280075016 | S15: =Eurostat!AU35/Eurostat!$AG35 -> 0.04280075016 | T15: =Eurostat!AW35/Eurostat!$AG35 -> 0.06975463018 | U15: =Eurostat!AW35/Eurostat!$AG35 -> 0.06975463018 | V15: =Eurostat!AY35/Eurostat!$AG35 -> 0.06383394907 | W15: =Eurostat!AY35/Eurostat!$AG35 -> 0.06383394907 | X15: =Eurostat!BA35/Eurostat!$AG35 -> 0.1502007451 | Y15: =Eurostat!BA35/Eurostat!$AG35 -> 0.1502007451 | Z15: =Eurostat!BC35/Eurostat!$AG35 -> 0.0359827115 | AA15: =Eurostat!BC35/Eurostat!$AG35 -> 0.0359827115 | AC15: =LN((Eurostat!K35^pomocniczo_do_innych_kalibracji!I15*Eurostat!M35^pomocniczo_do_innych_kalibracji!K15)^(1/(pomocniczo_do_innych_kalibracji!I15+pomocniczo_do_innych_kalibracji!K15))) -> 4.526250105 | AD15: =LN((Eurostat!Q35^pomocniczo_do_innych_kalibracji!M15*Eurostat!S35^pomocniczo_do_innych_kalibracji!O15*Eurostat!U35^pomocniczo_do_innych_kalibracji!Q15*Eurostat!W35^pomocniczo_do_innych_kalibracji!S15*Eurostat!Y35^pomocniczo_do_innych_kalibracji!U15*Eurostat!AA35^pomocniczo_do_innych_kalibracji!W15*Eurostat!AC35^pomocniczo_do_innych_kalibracji!Y15*Eurostat!AE35^pomocniczo_do_innych_kalibracji!AA15)^(1/(pomocniczo_do_innych_kalibracji!M15+pomocniczo_do_innych_kalibracji!O15+pomocniczo_do_innych_kalibracji!Q15+pomocniczo_do_innych_kalibracji!S15+pomocniczo_do_innych_kalibracji!U15+pomocniczo_do_innych_kalibracji!W15+pomocniczo_do_innych_kalibracji!Y15+pomocniczo_do_innych_kalibracji!AA15))) -> 4.534538361 | AE15: =LN((Eurostat!J35^pomocniczo_do_innych_kalibracji!H15*Eurostat!L35^pomocniczo_do_innych_kalibracji!J15)^(1/(pomocniczo_do_innych_kalibracji!H15+pomocniczo_do_innych_kalibracji!J15))) -> 4.610700901 | AF15: =LN((Eurostat!P35^pomocniczo_do_innych_kalibracji!L15*Eurostat!R35^pomocniczo_do_innych_kalibracji!N15*Eurostat!T35^pomocniczo_do_innych_kalibracji!P15*Eurostat!V35^pomocniczo_do_innych_kalibracji!R15*Eurostat!X35^pomocniczo_do_innych_kalibracji!T15*Eurostat!Z35^pomocniczo_do_innych_kalibracji!V15*Eurostat!AB35^pomocniczo_do_innych_kalibracji!X15*Eurostat!AD35^pomocniczo_do_innych_kalibracji!Z15)^(1/(pomocniczo_do_innych_kalibracji!L15+pomocniczo_do_innych_kalibracji!N15+pomocniczo_do_innych_kalibracji!P15+pomocniczo_do_innych_kalibracji!R15+pomocniczo_do_innych_kalibracji!T15+pomocniczo_do_innych_kalibracji!V15+pomocniczo_do_innych_kalibracji!X15+pomocniczo_do_innych_kalibracji!Z15))) -> 4.550343846
A16: =dane_do_matlaba!A14 -> 2003Q1 | B16: =1-(Eurostat!AI36+Eurostat!AK36)/Eurostat!AG36 -> 0.7296879541 | C16: =1-(Eurostat!AH36+Eurostat!AJ36)/Eurostat!AF36 -> 0.7695785805 | D16: =Eurostat!C36/SUM(Eurostat!B36:C36) -> 0.0257481447 | F16: =Eurostat!AG36/Eurostat!$AG36 -> 1 | G16: =Eurostat!AG36/Eurostat!$AG36 -> 1 | H16: =Eurostat!AI36/Eurostat!$AG36 -> 0.04303558014 | I16: =Eurostat!AI36/Eurostat!$AG36 -> 0.04303558014 | J16: =Eurostat!AK36/Eurostat!$AG36 -> 0.2272764658 | K16: =Eurostat!AK36/Eurostat!$AG36 -> 0.2272764658 | L16: =Eurostat!AO36/Eurostat!$AG36 -> 0.06308361252 | M16: =Eurostat!AO36/Eurostat!$AG36 -> 0.06308361252 | N16: =Eurostat!AQ36/Eurostat!$AG36 -> 0.2560054173 | O16: =Eurostat!AQ36/Eurostat!$AG36 -> 0.2560054173 | P16: =Eurostat!AS36/Eurostat!$AG36 -> 0.04421390855 | Q16: =Eurostat!AS36/Eurostat!$AG36 -> 0.04421390855 | R16: =Eurostat!AU36/Eurostat!$AG36 -> 0.04408450627 | S16: =Eurostat!AU36/Eurostat!$AG36 -> 0.04408450627 | T16: =Eurostat!AW36/Eurostat!$AG36 -> 0.07047050889 | U16: =Eurostat!AW36/Eurostat!$AG36 -> 0.07047050889 | V16: =Eurostat!AY36/Eurostat!$AG36 -> 0.06340602159 | W16: =Eurostat!AY36/Eurostat!$AG36 -> 0.06340602159 | X16: =Eurostat!BA36/Eurostat!$AG36 -> 0.1510919688 | Y16: =Eurostat!BA36/Eurostat!$AG36 -> 0.1510919688 | Z16: =Eurostat!BC36/Eurostat!$AG36 -> 0.03564813546 | AA16: =Eurostat!BC36/Eurostat!$AG36 -> 0.03564813546 | AC16: =LN((Eurostat!K36^pomocniczo_do_innych_kalibracji!I16*Eurostat!M36^pomocniczo_do_innych_kalibracji!K16)^(1/(pomocniczo_do_innych_kalibracji!I16+pomocniczo_do_innych_kalibracji!K16))) -> 4.521783566 | AD16: =LN((Eurostat!Q36^pomocniczo_do_innych_kalibracji!M16*Eurostat!S36^pomocniczo_do_innych_kalibracji!O16*Eurostat!U36^pomocniczo_do_innych_kalibracji!Q16*Eurostat!W36^pomocniczo_do_innych_kalibracji!S16*Eurostat!Y36^pomocniczo_do_innych_kalibracji!U16*Eurostat!AA36^pomocniczo_do_innych_kalibracji!W16*Eurostat!AC36^pomocniczo_do_innych_kalibracji!Y16*Eurostat!AE36^pomocniczo_do_innych_kalibracji!AA16)^(1/(pomocniczo_do_innych_kalibracji!M16+pomocniczo_do_innych_kalibracji!O16+pomocniczo_do_innych_kalibracji!Q16+pomocniczo_do_innych_kalibracji!S16+pomocniczo_do_innych_kalibracji!U16+pomocniczo_do_innych_kalibracji!W16+pomocniczo_do_innych_kalibracji!Y16+pomocniczo_do_innych_kalibracji!AA16))) -> 4.541895519 | AE16: =LN((Eurostat!J36^pomocniczo_do_innych_kalibracji!H16*Eurostat!L36^pomocniczo_do_innych_kalibracji!J16)^(1/(pomocniczo_do_innych_kalibracji!H16+pomocniczo_do_innych_kalibracji!J16))) -> 4.612628433 | AF16: =LN((Eurostat!P36^pomocniczo_do_innych_kalibracji!L16*Eurostat!R36^pomocniczo_do_innych_kalibracji!N16*Eurostat!T36^pomocniczo_do_innych_kalibracji!P16*Eurostat!V36^pomocniczo_do_innych_kalibracji!R16*Eurostat!X36^pomocniczo_do_innych_kalibracji!T16*Eurostat!Z36^pomocniczo_do_innych_kalibracji!V16*Eurostat!AB36^pomocniczo_do_innych_kalibracji!X16*Eurostat!AD36^pomocniczo_do_innych_kalibracji!Z16)^(1/(pomocniczo_do_innych_kalibracji!L16+pomocniczo_do_innych_kalibracji!N16+pomocniczo_do_innych_kalibracji!P16+pomocniczo_do_innych_kalibracji!R16+pomocniczo_do_innych_kalibracji!T16+pomocniczo_do_innych_kalibracji!V16+pomocniczo_do_innych_kalibracji!X16+pomocniczo_do_innych_kalibracji!Z16))) -> 4.554854004
A17: =dane_do_matlaba!A15 -> 2003Q2 | B17: =1-(Eurostat!AI37+Eurostat!AK37)/Eurostat!AG37 -> 0.7217948676 | C17: =1-(Eurostat!AH37+Eurostat!AJ37)/Eurostat!AF37 -> 0.7729962797 | D17: =Eurostat!C37/SUM(Eurostat!B37:C37) -> 0.025086309 | F17: =Eurostat!AG37/Eurostat!$AG37 -> 1 | G17: =Eurostat!AG37/Eurostat!$AG37 -> 1 | H17: =Eurostat!AI37/Eurostat!$AG37 -> 0.0460344554 | I17: =Eurostat!AI37/Eurostat!$AG37 -> 0.0460344554 | J17: =Eurostat!AK37/Eurostat!$AG37 -> 0.232170677 | K17: =Eurostat!AK37/Eurostat!$AG37 -> 0.232170677 | L17: =Eurostat!AO37/Eurostat!$AG37 -> 0.06253070205 | M17: =Eurostat!AO37/Eurostat!$AG37 -> 0.06253070205 | N17: =Eurostat!AQ37/Eurostat!$AG37 -> 0.2551576749 | O17: =Eurostat!AQ37/Eurostat!$AG37 -> 0.2551576749 | P17: =Eurostat!AS37/Eurostat!$AG37 -> 0.04388652629 | Q17: =Eurostat!AS37/Eurostat!$AG37 -> 0.04388652629 | R17: =Eurostat!AU37/Eurostat!$AG37 -> 0.04074749444 | S17: =Eurostat!AU37/Eurostat!$AG37 -> 0.04074749444 | T17: =Eurostat!AW37/Eurostat!$AG37 -> 0.06999420237 | U17: =Eurostat!AW37/Eurostat!$AG37 -> 0.06999420237 | V17: =Eurostat!AY37/Eurostat!$AG37 -> 0.0631709242 | W17: =Eurostat!AY37/Eurostat!$AG37 -> 0.0631709242 | X17: =Eurostat!BA37/Eurostat!$AG37 -> 0.1498476099 | Y17: =Eurostat!BA37/Eurostat!$AG37 -> 0.1498476099 | Z17: =Eurostat!BC37/Eurostat!$AG37 -> 0.03540817131 | AA17: =Eurostat!BC37/Eurostat!$AG37 -> 0.03540817131 | AC17: =LN((Eurostat!K37^pomocniczo_do_innych_kalibracji!I17*Eurostat!M37^pomocniczo_do_innych_kalibracji!K17)^(1/(pomocniczo_do_innych_kalibracji!I17+pomocniczo_do_innych_kalibracji!K17))) -> 4.542406511 | AD17: =LN((Eurostat!Q37^pomocniczo_do_innych_kalibracji!M17*Eurostat!S37^pomocniczo_do_innych_kalibracji!O17*Eurostat!U37^pomocniczo_do_innych_kalibracji!Q17*Eurostat!W37^pomocniczo_do_innych_kalibracji!S17*Eurostat!Y37^pomocniczo_do_innych_kalibracji!U17*Eurostat!AA37^pomocniczo_do_innych_kalibracji!W17*Eurostat!AC37^pomocniczo_do_innych_kalibracji!Y17*Eurostat!AE37^pomocniczo_do_innych_kalibracji!AA17)^(1/(pomocniczo_do_innych_kalibracji!M17+pomocniczo_do_innych_kalibracji!O17+pomocniczo_do_innych_kalibracji!Q17+pomocniczo_do_innych_kalibracji!S17+pomocniczo_do_innych_kalibracji!U17+pomocniczo_do_innych_kalibracji!W17+pomocniczo_do_innych_kalibracji!Y17+pomocniczo_do_innych_kalibracji!AA17))) -> 4.533352172 | AE17: =LN((Eurostat!J37^pomocniczo_do_innych_kalibracji!H17*Eurostat!L37^pomocniczo_do_innych_kalibracji!J17)^(1/(pomocniczo_do_innych_kalibracji!H17+pomocniczo_do_innych_kalibracji!J17))) -> 4.613592501 | AF17: =LN((Eurostat!P37^pomocniczo_do_innych_kalibracji!L17*Eurostat!R37^pomocniczo_do_innych_kalibracji!N17*Eurostat!T37^pomocniczo_do_innych_kalibracji!P17*Eurostat!V37^pomocniczo_do_innych_kalibracji!R17*Eurostat!X37^pomocniczo_do_innych_kalibracji!T17*Eurostat!Z37^pomocniczo_do_innych_kalibracji!V17*Eurostat!AB37^pomocniczo_do_innych_kalibracji!X17*Eurostat!AD37^pomocniczo_do_innych_kalibracji!Z17)^(1/(pomocniczo_do_innych_kalibracji!L17+pomocniczo_do_innych_kalibracji!N17+pomocniczo_do_innych_kalibracji!P17+pomocniczo_do_innych_kalibracji!R17+pomocniczo_do_innych_kalibracji!T17+pomocniczo_do_innych_kalibracji!V17+pomocniczo_do_innych_kalibracji!X17+pomocniczo_do_innych_kalibracji!Z17))) -> 4.562398054
A18: =dane_do_matlaba!A16 -> 2003Q3 | B18: =1-(Eurostat!AI38+Eurostat!AK38)/Eurostat!AG38 -> 0.7180815482 | C18: =1-(Eurostat!AH38+Eurostat!AJ38)/Eurostat!AF38 -> 0.77481746 | D18: =Eurostat!C38/SUM(Eurostat!B38:C38) -> 0.02459474101 | F18: =Eurostat!AG38/Eurostat!$AG38 -> 1 | G18: =Eurostat!AG38/Eurostat!$AG38 -> 1 | H18: =Eurostat!AI38/Eurostat!$AG38 -> 0.0435202069 | I18: =Eurostat!AI38/Eurostat!$AG38 -> 0.0435202069 | J18: =Eurostat!AK38/Eurostat!$AG38 -> 0.2383982449 | K18: =Eurostat!AK38/Eurostat!$AG38 -> 0.2383982449 | L18: =Eurostat!AO38/Eurostat!$AG38 -> 0.06175361132 | M18: =Eurostat!AO38/Eurostat!$AG38 -> 0.06175361132 | N18: =Eurostat!AQ38/Eurostat!$AG38 -> 0.2521980239 | O18: =Eurostat!AQ38/Eurostat!$AG38 -> 0.2521980239 | P18: =Eurostat!AS38/Eurostat!$AG38 -> 0.04283847969 | Q18: =Eurostat!AS38/Eurostat!$AG38 -> 0.04283847969 | R18: =Eurostat!AU38/Eurostat!$AG38 -> 0.04034023464 | S18: =Eurostat!AU38/Eurostat!$AG38 -> 0.04034023464 | T18: =Eurostat!AW38/Eurostat!$AG38 -> 0.069604401 | U18: =Eurostat!AW38/Eurostat!$AG38 -> 0.069604401 | V18: =Eurostat!AY38/Eurostat!$AG38 -> 0.06222319823 | W18: =Eurostat!AY38/Eurostat!$AG38 -> 0.06222319823 | X18: =Eurostat!BA38/Eurostat!$AG38 -> 0.1504319827 | Y18: =Eurostat!BA38/Eurostat!$AG38 -> 0.1504319827 | Z18: =Eurostat!BC38/Eurostat!$AG38 -> 0.03558626674 | AA18: =Eurostat!BC38/Eurostat!$AG38 -> 0.03558626674 | AC18: =LN((Eurostat!K38^pomocniczo_do_innych_kalibracji!I18*Eurostat!M38^pomocniczo_do_innych_kalibracji!K18)^(1/(pomocniczo_do_innych_kalibracji!I18+pomocniczo_do_innych_kalibracji!K18))) -> 4.534924664 | AD18: =LN((Eurostat!Q38^pomocniczo_do_innych_kalibracji!M18*Eurostat!S38^pomocniczo_do_innych_kalibracji!O18*Eurostat!U38^pomocniczo_do_innych_kalibracji!Q18*Eurostat!W38^pomocniczo_do_innych_kalibracji!S18*Eurostat!Y38^pomocniczo_do_innych_kalibracji!U18*Eurostat!AA38^pomocniczo_do_innych_kalibracji!W18*Eurostat!AC38^pomocniczo_do_innych_kalibracji!Y18*Eurostat!AE38^pomocniczo_do_innych_kalibracji!AA18)^(1/(pomocniczo_do_innych_kalibracji!M18+pomocniczo_do_innych_kalibracji!O18+pomocniczo_do_innych_kalibracji!Q18+pomocniczo_do_innych_kalibracji!S18+pomocniczo_do_innych_kalibracji!U18+pomocniczo_do_innych_kalibracji!W18+pomocniczo_do_innych_kalibracji!Y18+pomocniczo_do_innych_kalibracji!AA18))) -> 4.525719984 | AE18: =LN((Eurostat!J38^pomocniczo_do_innych_kalibracji!H18*Eurostat!L38^pomocniczo_do_innych_kalibracji!J18)^(1/(pomocniczo_do_innych_kalibracji!H18+pomocniczo_do_innych_kalibracji!J18))) -> 4.614419777 | AF18: =LN((Eurostat!P38^pomocniczo_do_innych_kalibracji!L18*Eurostat!R38^pomocniczo_do_innych_kalibracji!N18*Eurostat!T38^pomocniczo_do_innych_kalibracji!P18*Eurostat!V38^pomocniczo_do_innych_kalibracji!R18*Eurostat!X38^pomocniczo_do_innych_kalibracji!T18*Eurostat!Z38^pomocniczo_do_innych_kalibracji!V18*Eurostat!AB38^pomocniczo_do_innych_kalibracji!X18*Eurostat!AD38^pomocniczo_do_innych_kalibracji!Z18)^(1/(pomocniczo_do_innych_kalibracji!L18+pomocniczo_do_innych_kalibracji!N18+pomocniczo_do_innych_kalibracji!P18+pomocniczo_do_innych_kalibracji!R18+pomocniczo_do_innych_kalibracji!T18+pomocniczo_do_innych_kalibracji!V18+pomocniczo_do_innych_kalibracji!X18+pomocniczo_do_innych_kalibracji!Z18))) -> 4.571148828
A19: =dane_do_matlaba!A17 -> 2003Q4 | B19: =1-(Eurostat!AI39+Eurostat!AK39)/Eurostat!AG39 -> 0.7121543908 | C19: =1-(Eurostat!AH39+Eurostat!AJ39)/Eurostat!AF39 -> 0.7738204802 | D19: =Eurostat!C39/SUM(Eurostat!B39:C39) -> 0.02365870852 | F19: =Eurostat!AG39/Eurostat!$AG39 -> 1 | G19: =Eurostat!AG39/Eurostat!$AG39 -> 1 | H19: =Eurostat!AI39/Eurostat!$AG39 -> 0.04264828351 | I19: =Eurostat!AI39/Eurostat!$AG39 -> 0.04264828351 | J19: =Eurostat!AK39/Eurostat!$AG39 -> 0.2451973256 | K19: =Eurostat!AK39/Eurostat!$AG39 -> 0.2451973256 | L19: =Eurostat!AO39/Eurostat!$AG39 -> 0.06034191882 | M19: =Eurostat!AO39/Eurostat!$AG39 -> 0.06034191882 | N19: =Eurostat!AQ39/Eurostat!$AG39 -> 0.2535960039 | O19: =Eurostat!AQ39/Eurostat!$AG39 -> 0.2535960039 | P19: =Eurostat!AS39/Eurostat!$AG39 -> 0.04309327439 | Q19: =Eurostat!AS39/Eurostat!$AG39 -> 0.04309327439 | R19: =Eurostat!AU39/Eurostat!$AG39 -> 0.04334043325 | S19: =Eurostat!AU39/Eurostat!$AG39 -> 0.04334043325 | T19: =Eurostat!AW39/Eurostat!$AG39 -> 0.06921654841 | U19: =Eurostat!AW39/Eurostat!$AG39 -> 0.06921654841 | V19: =Eurostat!AY39/Eurostat!$AG39 -> 0.06317453771 | W19: =Eurostat!AY39/Eurostat!$AG39 -> 0.06317453771 | X19: =Eurostat!BA39/Eurostat!$AG39 -> 0.1470967755 | Y19: =Eurostat!BA39/Eurostat!$AG39 -> 0.1470967755 | Z19: =Eurostat!BC39/Eurostat!$AG39 -> 0.03554049863 | AA19: =Eurostat!BC39/Eurostat!$AG39 -> 0.03554049863 | AC19: =LN((Eurostat!K39^pomocniczo_do_innych_kalibracji!I19*Eurostat!M39^pomocniczo_do_innych_kalibracji!K19)^(1/(pomocniczo_do_innych_kalibracji!I19+pomocniczo_do_innych_kalibracji!K19))) -> 4.543491037 | AD19: =LN((Eurostat!Q39^pomocniczo_do_innych_kalibracji!M19*Eurostat!S39^pomocniczo_do_innych_kalibracji!O19*Eurostat!U39^pomocniczo_do_innych_kalibracji!Q19*Eurostat!W39^pomocniczo_do_innych_kalibracji!S19*Eurostat!Y39^pomocniczo_do_innych_kalibracji!U19*Eurostat!AA39^pomocniczo_do_innych_kalibracji!W19*Eurostat!AC39^pomocniczo_do_innych_kalibracji!Y19*Eurostat!AE39^pomocniczo_do_innych_kalibracji!AA19)^(1/(pomocniczo_do_innych_kalibracji!M19+pomocniczo_do_innych_kalibracji!O19+pomocniczo_do_innych_kalibracji!Q19+pomocniczo_do_innych_kalibracji!S19+pomocniczo_do_innych_kalibracji!U19+pomocniczo_do_innych_kalibracji!W19+pomocniczo_do_innych_kalibracji!Y19+pomocniczo_do_innych_kalibracji!AA19))) -> 4.542653554 | AE19: =LN((Eurostat!J39^pomocniczo_do_innych_kalibracji!H19*Eurostat!L39^pomocniczo_do_innych_kalibracji!J19)^(1/(pomocniczo_do_innych_kalibracji!H19+pomocniczo_do_innych_kalibracji!J19))) -> 4.612935609 | AF19: =LN((Eurostat!P39^pomocniczo_do_innych_kalibracji!L19*Eurostat!R39^pomocniczo_do_innych_kalibracji!N19*Eurostat!T39^pomocniczo_do_innych_kalibracji!P19*Eurostat!V39^pomocniczo_do_innych_kalibracji!R19*Eurostat!X39^pomocniczo_do_innych_kalibracji!T19*Eurostat!Z39^pomocniczo_do_innych_kalibracji!V19*Eurostat!AB39^pomocniczo_do_innych_kalibracji!X19*Eurostat!AD39^pomocniczo_do_innych_kalibracji!Z19)^(1/(pomocniczo_do_innych_kalibracji!L19+pomocniczo_do_innych_kalibracji!N19+pomocniczo_do_innych_kalibracji!P19+pomocniczo_do_innych_kalibracji!R19+pomocniczo_do_innych_kalibracji!T19+pomocniczo_do_innych_kalibracji!V19+pomocniczo_do_innych_kalibracji!X19+pomocniczo_do_innych_kalibracji!Z19))) -> 4.574683204
A20: =dane_do_matlaba!A18 -> 2004Q1 | B20: =1-(Eurostat!AI40+Eurostat!AK40)/Eurostat!AG40 -> 0.6994115654 | C20: =1-(Eurostat!AH40+Eurostat!AJ40)/Eurostat!AF40 -> 0.7736286875 | D20: =Eurostat!C40/SUM(Eurostat!B40:C40) -> 0.02383928288 | F20: =Eurostat!AG40/Eurostat!$AG40 -> 1 | G20: =Eurostat!AG40/Eurostat!$AG40 -> 1 | H20: =Eurostat!AI40/Eurostat!$AG40 -> 0.04634770018 | I20: =Eurostat!AI40/Eurostat!$AG40 -> 0.04634770018 | J20: =Eurostat!AK40/Eurostat!$AG40 -> 0.2542407345 | K20: =Eurostat!AK40/Eurostat!$AG40 -> 0.2542407345 | L20: =Eurostat!AO40/Eurostat!$AG40 -> 0.057695349 | M20: =Eurostat!AO40/Eurostat!$AG40 -> 0.057695349 | N20: =Eurostat!AQ40/Eurostat!$AG40 -> 0.2551819218 | O20: =Eurostat!AQ40/Eurostat!$AG40 -> 0.2551819218 | P20: =Eurostat!AS40/Eurostat!$AG40 -> 0.04812994855 | Q20: =Eurostat!AS40/Eurostat!$AG40 -> 0.04812994855 | R20: =Eurostat!AU40/Eurostat!$AG40 -> 0.0403657948 | S20: =Eurostat!AU40/Eurostat!$AG40 -> 0.0403657948 | T20: =Eurostat!AW40/Eurostat!$AG40 -> 0.06738757612 | U20: =Eurostat!AW40/Eurostat!$AG40 -> 0.06738757612 | V20: =Eurostat!AY40/Eurostat!$AG40 -> 0.06115407129 | W20: =Eurostat!AY40/Eurostat!$AG40 -> 0.06115407129 | X20: =Eurostat!BA40/Eurostat!$AG40 -> 0.1443020426 | Y20: =Eurostat!BA40/Eurostat!$AG40 -> 0.1443020426 | Z20: =Eurostat!BC40/Eurostat!$AG40 -> 0.03324039558 | AA20: =Eurostat!BC40/Eurostat!$AG40 -> 0.03324039558 | AC20: =LN((Eurostat!K40^pomocniczo_do_innych_kalibracji!I20*Eurostat!M40^pomocniczo_do_innych_kalibracji!K20)^(1/(pomocniczo_do_innych_kalibracji!I20+pomocniczo_do_innych_kalibracji!K20))) -> 4.578521437 | AD20: =LN((Eurostat!Q40^pomocniczo_do_innych_kalibracji!M20*Eurostat!S40^pomocniczo_do_innych_kalibracji!O20*Eurostat!U40^pomocniczo_do_innych_kalibracji!Q20*Eurostat!W40^pomocniczo_do_innych_kalibracji!S20*Eurostat!Y40^pomocniczo_do_innych_kalibracji!U20*Eurostat!AA40^pomocniczo_do_innych_kalibracji!W20*Eurostat!AC40^pomocniczo_do_innych_kalibracji!Y20*Eurostat!AE40^pomocniczo_do_innych_kalibracji!AA20)^(1/(pomocniczo_do_innych_kalibracji!M20+pomocniczo_do_innych_kalibracji!O20+pomocniczo_do_innych_kalibracji!Q20+pomocniczo_do_innych_kalibracji!S20+pomocniczo_do_innych_kalibracji!U20+pomocniczo_do_innych_kalibracji!W20+pomocniczo_do_innych_kalibracji!Y20+pomocniczo_do_innych_kalibracji!AA20))) -> 4.542627186 | AE20: =LN((Eurostat!J40^pomocniczo_do_innych_kalibracji!H20*Eurostat!L40^pomocniczo_do_innych_kalibracji!J20)^(1/(pomocniczo_do_innych_kalibracji!H20+pomocniczo_do_innych_kalibracji!J20))) -> 4.603068299 | AF20: =LN((Eurostat!P40^pomocniczo_do_innych_kalibracji!L20*Eurostat!R40^pomocniczo_do_innych_kalibracji!N20*Eurostat!T40^pomocniczo_do_innych_kalibracji!P20*Eurostat!V40^pomocniczo_do_innych_kalibracji!R20*Eurostat!X40^pomocniczo_do_innych_kalibracji!T20*Eurostat!Z40^pomocniczo_do_innych_kalibracji!V20*Eurostat!AB40^pomocniczo_do_innych_kalibracji!X20*Eurostat!AD40^pomocniczo_do_innych_kalibracji!Z20)^(1/(pomocniczo_do_innych_kalibracji!L20+pomocniczo_do_innych_kalibracji!N20+pomocniczo_do_innych_kalibracji!P20+pomocniczo_do_innych_kalibracji!R20+pomocniczo_do_innych_kalibracji!T20+pomocniczo_do_innych_kalibracji!V20+pomocniczo_do_innych_kalibracji!X20+pomocniczo_do_innych_kalibracji!Z20))) -> 4.580639617
A21: =dane_do_matlaba!A19 -> 2004Q2 | B21: =1-(Eurostat!AI41+Eurostat!AK41)/Eurostat!AG41 -> 0.7013750788 | C21: =1-(Eurostat!AH41+Eurostat!AJ41)/Eurostat!AF41 -> 0.7742655579 | D21: =Eurostat!C41/SUM(Eurostat!B41:C41) -> 0.02438362154 | F21: =Eurostat!AG41/Eurostat!$AG41 -> 1 | G21: =Eurostat!AG41/Eurostat!$AG41 -> 1 | H21: =Eurostat!AI41/Eurostat!$AG41 -> 0.05063949919 | I21: =Eurostat!AI41/Eurostat!$AG41 -> 0.05063949919 | J21: =Eurostat!AK41/Eurostat!$AG41 -> 0.247985422 | K21: =Eurostat!AK41/Eurostat!$AG41 -> 0.247985422 | L21: =Eurostat!AO41/Eurostat!$AG41 -> 0.05700916864 | M21: =Eurostat!AO41/Eurostat!$AG41 -> 0.05700916864 | N21: =Eurostat!AQ41/Eurostat!$AG41 -> 0.2467713937 | O21: =Eurostat!AQ41/Eurostat!$AG41 -> 0.2467713937 | P21: =Eurostat!AS41/Eurostat!$AG41 -> 0.04577373927 | Q21: =Eurostat!AS41/Eurostat!$AG41 -> 0.04577373927 | R21: =Eurostat!AU41/Eurostat!$AG41 -> 0.04136137094 | S21: =Eurostat!AU41/Eurostat!$AG41 -> 0.04136137094 | T21: =Eurostat!AW41/Eurostat!$AG41 -> 0.06408593603 | U21: =Eurostat!AW41/Eurostat!$AG41 -> 0.06408593603 | V21: =Eurostat!AY41/Eurostat!$AG41 -> 0.06022197859 | W21: =Eurostat!AY41/Eurostat!$AG41 -> 0.06022197859 | X21: =Eurostat!BA41/Eurostat!$AG41 -> 0.137533926 | Y21: =Eurostat!BA41/Eurostat!$AG41 -> 0.137533926 | Z21: =Eurostat!BC41/Eurostat!$AG41 -> 0.03230318585 | AA21: =Eurostat!BC41/Eurostat!$AG41 -> 0.03230318585 | AC21: =LN((Eurostat!K41^pomocniczo_do_innych_kalibracji!I21*Eurostat!M41^pomocniczo_do_innych_kalibracji!K21)^(1/(pomocniczo_do_innych_kalibracji!I21+pomocniczo_do_innych_kalibracji!K21))) -> 4.613766501 | AD21: =LN((Eurostat!Q41^pomocniczo_do_innych_kalibracji!M21*Eurostat!S41^pomocniczo_do_innych_kalibracji!O21*Eurostat!U41^pomocniczo_do_innych_kalibracji!Q21*Eurostat!W41^pomocniczo_do_innych_kalibracji!S21*Eurostat!Y41^pomocniczo_do_innych_kalibracji!U21*Eurostat!AA41^pomocniczo_do_innych_kalibracji!W21*Eurostat!AC41^pomocniczo_do_innych_kalibracji!Y21*Eurostat!AE41^pomocniczo_do_innych_kalibracji!AA21)^(1/(pomocniczo_do_innych_kalibracji!M21+pomocniczo_do_innych_kalibracji!O21+pomocniczo_do_innych_kalibracji!Q21+pomocniczo_do_innych_kalibracji!S21+pomocniczo_do_innych_kalibracji!U21+pomocniczo_do_innych_kalibracji!W21+pomocniczo_do_innych_kalibracji!Y21+pomocniczo_do_innych_kalibracji!AA21))) -> 4.566463266 | AE21: =LN((Eurostat!J41^pomocniczo_do_innych_kalibracji!H21*Eurostat!L41^pomocniczo_do_innych_kalibracji!J21)^(1/(pomocniczo_do_innych_kalibracji!H21+pomocniczo_do_innych_kalibracji!J21))) -> 4.603286744 | AF21: =LN((Eurostat!P41^pomocniczo_do_innych_kalibracji!L21*Eurostat!R41^pomocniczo_do_innych_kalibracji!N21*Eurostat!T41^pomocniczo_do_innych_kalibracji!P21*Eurostat!V41^pomocniczo_do_innych_kalibracji!R21*Eurostat!X41^pomocniczo_do_innych_kalibracji!T21*Eurostat!Z41^pomocniczo_do_innych_kalibracji!V21*Eurostat!AB41^pomocniczo_do_innych_kalibracji!X21*Eurostat!AD41^pomocniczo_do_innych_kalibracji!Z21)^(1/(pomocniczo_do_innych_kalibracji!L21+pomocniczo_do_innych_kalibracji!N21+pomocniczo_do_innych_kalibracji!P21+pomocniczo_do_innych_kalibracji!R21+pomocniczo_do_innych_kalibracji!T21+pomocniczo_do_innych_kalibracji!V21+pomocniczo_do_innych_kalibracji!X21+pomocniczo_do_innych_kalibracji!Z21))) -> 4.586878766
A22: =dane_do_matlaba!A20 -> 2004Q3 | B22: =1-(Eurostat!AI42+Eurostat!AK42)/Eurostat!AG42 -> 0.6979132763 | C22: =1-(Eurostat!AH42+Eurostat!AJ42)/Eurostat!AF42 -> 0.7750828273 | D22: =Eurostat!C42/SUM(Eurostat!B42:C42) -> 0.02600789312 | F22: =Eurostat!AG42/Eurostat!$AG42 -> 1 | G22: =Eurostat!AG42/Eurostat!$AG42 -> 1 | H22: =Eurostat!AI42/Eurostat!$AG42 -> 0.05148574746 | I22: =Eurostat!AI42/Eurostat!$AG42 -> 0.05148574746 | J22: =Eurostat!AK42/Eurostat!$AG42 -> 0.2506009762 | K22: =Eurostat!AK42/Eurostat!$AG42 -> 0.2506009762 | L22: =Eurostat!AO42/Eurostat!$AG42 -> 0.05813615161 | M22: =Eurostat!AO42/Eurostat!$AG42 -> 0.05813615161 | N22: =Eurostat!AQ42/Eurostat!$AG42 -> 0.2472460549 | O22: =Eurostat!AQ42/Eurostat!$AG42 -> 0.2472460549 | P22: =Eurostat!AS42/Eurostat!$AG42 -> 0.04550306803 | Q22: =Eurostat!AS42/Eurostat!$AG42 -> 0.04550306803 | R22: =Eurostat!AU42/Eurostat!$AG42 -> 0.0419094339 | S22: =Eurostat!AU42/Eurostat!$AG42 -> 0.0419094339 | T22: =Eurostat!AW42/Eurostat!$AG42 -> 0.064366172 | U22: =Eurostat!AW42/Eurostat!$AG42 -> 0.064366172 | V22: =Eurostat!AY42/Eurostat!$AG42 -> 0.06165500825 | W22: =Eurostat!AY42/Eurostat!$AG42 -> 0.06165500825 | X22: =Eurostat!BA42/Eurostat!$AG42 -> 0.1377646033 | Y22: =Eurostat!BA42/Eurostat!$AG42 -> 0.1377646033 | Z22: =Eurostat!BC42/Eurostat!$AG42 -> 0.03282876096 | AA22: =Eurostat!BC42/Eurostat!$AG42 -> 0.03282876096 | AC22: =LN((Eurostat!K42^pomocniczo_do_innych_kalibracji!I22*Eurostat!M42^pomocniczo_do_innych_kalibracji!K22)^(1/(pomocniczo_do_innych_kalibracji!I22+pomocniczo_do_innych_kalibracji!K22))) -> 4.632677297 | AD22: =LN((Eurostat!Q42^pomocniczo_do_innych_kalibracji!M22*Eurostat!S42^pomocniczo_do_innych_kalibracji!O22*Eurostat!U42^pomocniczo_do_innych_kalibracji!Q22*Eurostat!W42^pomocniczo_do_innych_kalibracji!S22*Eurostat!Y42^pomocniczo_do_innych_kalibracji!U22*Eurostat!AA42^pomocniczo_do_innych_kalibracji!W22*Eurostat!AC42^pomocniczo_do_innych_kalibracji!Y22*Eurostat!AE42^pomocniczo_do_innych_kalibracji!AA22)^(1/(pomocniczo_do_innych_kalibracji!M22+pomocniczo_do_innych_kalibracji!O22+pomocniczo_do_innych_kalibracji!Q22+pomocniczo_do_innych_kalibracji!S22+pomocniczo_do_innych_kalibracji!U22+pomocniczo_do_innych_kalibracji!W22+pomocniczo_do_innych_kalibracji!Y22+pomocniczo_do_innych_kalibracji!AA22))) -> 4.574600603 | AE22: =LN((Eurostat!J42^pomocniczo_do_innych_kalibracji!H22*Eurostat!L42^pomocniczo_do_innych_kalibracji!J22)^(1/(pomocniczo_do_innych_kalibracji!H22+pomocniczo_do_innych_kalibracji!J22))) -> 4.604382787 | AF22: =LN((Eurostat!P42^pomocniczo_do_innych_kalibracji!L22*Eurostat!R42^pomocniczo_do_innych_kalibracji!N22*Eurostat!T42^pomocniczo_do_innych_kalibracji!P22*Eurostat!V42^pomocniczo_do_innych_kalibracji!R22*Eurostat!X42^pomocniczo_do_innych_kalibracji!T22*Eurostat!Z42^pomocniczo_do_innych_kalibracji!V22*Eurostat!AB42^pomocniczo_do_innych_kalibracji!X22*Eurostat!AD42^pomocniczo_do_innych_kalibracji!Z22)^(1/(pomocniczo_do_innych_kalibracji!L22+pomocniczo_do_innych_kalibracji!N22+pomocniczo_do_innych_kalibracji!P22+pomocniczo_do_innych_kalibracji!R22+pomocniczo_do_innych_kalibracji!T22+pomocniczo_do_innych_kalibracji!V22+pomocniczo_do_innych_kalibracji!X22+pomocniczo_do_innych_kalibracji!Z22))) -> 4.588783491
A23: =dane_do_matlaba!A21 -> 2004Q4 | B23: =1-(Eurostat!AI43+Eurostat!AK43)/Eurostat!AG43 -> 0.699951843 | C23: =1-(Eurostat!AH43+Eurostat!AJ43)/Eurostat!AF43 -> 0.7760640333 | D23: =Eurostat!C43/SUM(Eurostat!B43:C43) -> 0.027376319 | F23: =Eurostat!AG43/Eurostat!$AG43 -> 1 | G23: =Eurostat!AG43/Eurostat!$AG43 -> 1 | H23: =Eurostat!AI43/Eurostat!$AG43 -> 0.05148338585 | I23: =Eurostat!AI43/Eurostat!$AG43 -> 0.05148338585 | J23: =Eurostat!AK43/Eurostat!$AG43 -> 0.2485647711 | K23: =Eurostat!AK43/Eurostat!$AG43 -> 0.2485647711 | L23: =Eurostat!AO43/Eurostat!$AG43 -> 0.06004546471 | M23: =Eurostat!AO43/Eurostat!$AG43 -> 0.06004546471 | N23: =Eurostat!AQ43/Eurostat!$AG43 -> 0.2487477296 | O23: =Eurostat!AQ43/Eurostat!$AG43 -> 0.2487477296 | P23: =Eurostat!AS43/Eurostat!$AG43 -> 0.0443626977 | Q23: =Eurostat!AS43/Eurostat!$AG43 -> 0.0443626977 | R23: =Eurostat!AU43/Eurostat!$AG43 -> 0.04529929357 | S23: =Eurostat!AU43/Eurostat!$AG43 -> 0.04529929357 | T23: =Eurostat!AW43/Eurostat!$AG43 -> 0.06411178859 | U23: =Eurostat!AW43/Eurostat!$AG43 -> 0.06411178859 | V23: =Eurostat!AY43/Eurostat!$AG43 -> 0.0606853455 | W23: =Eurostat!AY43/Eurostat!$AG43 -> 0.0606853455 | X23: =Eurostat!BA43/Eurostat!$AG43 -> 0.1530092408 | Y23: =Eurostat!BA43/Eurostat!$AG43 -> 0.1530092408 | Z23: =Eurostat!BC43/Eurostat!$AG43 -> 0.03390277983 | AA23: =Eurostat!BC43/Eurostat!$AG43 -> 0.03390277983 | AC23: =LN((Eurostat!K43^pomocniczo_do_innych_kalibracji!I23*Eurostat!M43^pomocniczo_do_innych_kalibracji!K23)^(1/(pomocniczo_do_innych_kalibracji!I23+pomocniczo_do_innych_kalibracji!K23))) -> 4.63677006 | AD23: =LN((Eurostat!Q43^pomocniczo_do_innych_kalibracji!M23*Eurostat!S43^pomocniczo_do_innych_kalibracji!O23*Eurostat!U43^pomocniczo_do_innych_kalibracji!Q23*Eurostat!W43^pomocniczo_do_innych_kalibracji!S23*Eurostat!Y43^pomocniczo_do_innych_kalibracji!U23*Eurostat!AA43^pomocniczo_do_innych_kalibracji!W23*Eurostat!AC43^pomocniczo_do_innych_kalibracji!Y23*Eurostat!AE43^pomocniczo_do_innych_kalibracji!AA23)^(1/(pomocniczo_do_innych_kalibracji!M23+pomocniczo_do_innych_kalibracji!O23+pomocniczo_do_innych_kalibracji!Q23+pomocniczo_do_innych_kalibracji!S23+pomocniczo_do_innych_kalibracji!U23+pomocniczo_do_innych_kalibracji!W23+pomocniczo_do_innych_kalibracji!Y23+pomocniczo_do_innych_kalibracji!AA23))) -> 4.597504276 | AE23: =LN((Eurostat!J43^pomocniczo_do_innych_kalibracji!H23*Eurostat!L43^pomocniczo_do_innych_kalibracji!J23)^(1/(pomocniczo_do_innych_kalibracji!H23+pomocniczo_do_innych_kalibracji!J23))) -> 4.60870248 | AF23: =LN((Eurostat!P43^pomocniczo_do_innych_kalibracji!L23*Eurostat!R43^pomocniczo_do_innych_kalibracji!N23*Eurostat!T43^pomocniczo_do_innych_kalibracji!P23*Eurostat!V43^pomocniczo_do_innych_kalibracji!R23*Eurostat!X43^pomocniczo_do_innych_kalibracji!T23*Eurostat!Z43^pomocniczo_do_innych_kalibracji!V23*Eurostat!AB43^pomocniczo_do_innych_kalibracji!X23*Eurostat!AD43^pomocniczo_do_innych_kalibracji!Z23)^(1/(pomocniczo_do_innych_kalibracji!L23+pomocniczo_do_innych_kalibracji!N23+pomocniczo_do_innych_kalibracji!P23+pomocniczo_do_innych_kalibracji!R23+pomocniczo_do_innych_kalibracji!T23+pomocniczo_do_innych_kalibracji!V23+pomocniczo_do_innych_kalibracji!X23+pomocniczo_do_innych_kalibracji!Z23))) -> 4.592511426
A24: =dane_do_matlaba!A22 -> 2005Q1 | B24: =1-(Eurostat!AI44+Eurostat!AK44)/Eurostat!AG44 -> 0.6975399671 | C24: =1-(Eurostat!AH44+Eurostat!AJ44)/Eurostat!AF44 -> 0.7783215524 | D24: =Eurostat!C44/SUM(Eurostat!B44:C44) -> 0.02904913958 | F24: =Eurostat!AG44/Eurostat!$AG44 -> 1 | G24: =Eurostat!AG44/Eurostat!$AG44 -> 1 | H24: =Eurostat!AI44/Eurostat!$AG44 -> 0.04862167124 | I24: =Eurostat!AI44/Eurostat!$AG44 -> 0.04862167124 | J24: =Eurostat!AK44/Eurostat!$AG44 -> 0.2538383616 | K24: =Eurostat!AK44/Eurostat!$AG44 -> 0.2538383616 | L24: =Eurostat!AO44/Eurostat!$AG44 -> 0.06286031193 | M24: =Eurostat!AO44/Eurostat!$AG44 -> 0.06286031193 | N24: =Eurostat!AQ44/Eurostat!$AG44 -> 0.2527151104 | O24: =Eurostat!AQ44/Eurostat!$AG44 -> 0.2527151104 | P24: =Eurostat!AS44/Eurostat!$AG44 -> 0.04422391268 | Q24: =Eurostat!AS44/Eurostat!$AG44 -> 0.04422391268 | R24: =Eurostat!AU44/Eurostat!$AG44 -> 0.04397148612 | S24: =Eurostat!AU44/Eurostat!$AG44 -> 0.04397148612 | T24: =Eurostat!AW44/Eurostat!$AG44 -> 0.06441803714 | U24: =Eurostat!AW44/Eurostat!$AG44 -> 0.06441803714 | V24: =Eurostat!AY44/Eurostat!$AG44 -> 0.06362181435 | W24: =Eurostat!AY44/Eurostat!$AG44 -> 0.06362181435 | X24: =Eurostat!BA44/Eurostat!$AG44 -> 0.1404387812 | Y24: =Eurostat!BA44/Eurostat!$AG44 -> 0.1404387812 | Z24: =Eurostat!BC44/Eurostat!$AG44 -> 0.03556868466 | AA24: =Eurostat!BC44/Eurostat!$AG44 -> 0.03556868466 | AC24: =LN((Eurostat!K44^pomocniczo_do_innych_kalibracji!I24*Eurostat!M44^pomocniczo_do_innych_kalibracji!K24)^(1/(pomocniczo_do_innych_kalibracji!I24+pomocniczo_do_innych_kalibracji!K24))) -> 4.651229521 | AD24: =LN((Eurostat!Q44^pomocniczo_do_innych_kalibracji!M24*Eurostat!S44^pomocniczo_do_innych_kalibracji!O24*Eurostat!U44^pomocniczo_do_innych_kalibracji!Q24*Eurostat!W44^pomocniczo_do_innych_kalibracji!S24*Eurostat!Y44^pomocniczo_do_innych_kalibracji!U24*Eurostat!AA44^pomocniczo_do_innych_kalibracji!W24*Eurostat!AC44^pomocniczo_do_innych_kalibracji!Y24*Eurostat!AE44^pomocniczo_do_innych_kalibracji!AA24)^(1/(pomocniczo_do_innych_kalibracji!M24+pomocniczo_do_innych_kalibracji!O24+pomocniczo_do_innych_kalibracji!Q24+pomocniczo_do_innych_kalibracji!S24+pomocniczo_do_innych_kalibracji!U24+pomocniczo_do_innych_kalibracji!W24+pomocniczo_do_innych_kalibracji!Y24+pomocniczo_do_innych_kalibracji!AA24))) -> 4.607278475 | AE24: =LN((Eurostat!J44^pomocniczo_do_innych_kalibracji!H24*Eurostat!L44^pomocniczo_do_innych_kalibracji!J24)^(1/(pomocniczo_do_innych_kalibracji!H24+pomocniczo_do_innych_kalibracji!J24))) -> 4.606304128 | AF24: =LN((Eurostat!P44^pomocniczo_do_innych_kalibracji!L24*Eurostat!R44^pomocniczo_do_innych_kalibracji!N24*Eurostat!T44^pomocniczo_do_innych_kalibracji!P24*Eurostat!V44^pomocniczo_do_innych_kalibracji!R24*Eurostat!X44^pomocniczo_do_innych_kalibracji!T24*Eurostat!Z44^pomocniczo_do_innych_kalibracji!V24*Eurostat!AB44^pomocniczo_do_innych_kalibracji!X24*Eurostat!AD44^pomocniczo_do_innych_kalibracji!Z24)^(1/(pomocniczo_do_innych_kalibracji!L24+pomocniczo_do_innych_kalibracji!N24+pomocniczo_do_innych_kalibracji!P24+pomocniczo_do_innych_kalibracji!R24+pomocniczo_do_innych_kalibracji!T24+pomocniczo_do_innych_kalibracji!V24+pomocniczo_do_innych_kalibracji!X24+pomocniczo_do_innych_kalibracji!Z24))) -> 4.600235885
A25: =dane_do_matlaba!A23 -> 2005Q2 | B25: =1-(Eurostat!AI45+Eurostat!AK45)/Eurostat!AG45 -> 0.7206783632 | C25: =1-(Eurostat!AH45+Eurostat!AJ45)/Eurostat!AF45 -> 0.7788870776 | D25: =Eurostat!C45/SUM(Eurostat!B45:C45) -> 0.02830393902 | F25: =Eurostat!AG45/Eurostat!$AG45 -> 1 | G25: =Eurostat!AG45/Eurostat!$AG45 -> 1 | H25: =Eurostat!AI45/Eurostat!$AG45 -> 0.04451776262 | I25: =Eurostat!AI45/Eurostat!$AG45 -> 0.04451776262 | J25: =Eurostat!AK45/Eurostat!$AG45 -> 0.2348038741 | K25: =Eurostat!AK45/Eurostat!$AG45 -> 0.2348038741 | L25: =Eurostat!AO45/Eurostat!$AG45 -> 0.06235994997 | M25: =Eurostat!AO45/Eurostat!$AG45 -> 0.06235994997 | N25: =Eurostat!AQ45/Eurostat!$AG45 -> 0.2533719021 | O25: =Eurostat!AQ45/Eurostat!$AG45 -> 0.2533719021 | P25: =Eurostat!AS45/Eurostat!$AG45 -> 0.04254263849 | Q25: =Eurostat!AS45/Eurostat!$AG45 -> 0.04254263849 | R25: =Eurostat!AU45/Eurostat!$AG45 -> 0.04432048285 | S25: =Eurostat!AU45/Eurostat!$AG45 -> 0.04432048285 | T25: =Eurostat!AW45/Eurostat!$AG45 -> 0.06440021366 | U25: =Eurostat!AW45/Eurostat!$AG45 -> 0.06440021366 | V25: =Eurostat!AY45/Eurostat!$AG45 -> 0.06255536862 | W25: =Eurostat!AY45/Eurostat!$AG45 -> 0.06255536862 | X25: =Eurostat!BA45/Eurostat!$AG45 -> 0.1409577933 | Y25: =Eurostat!BA45/Eurostat!$AG45 -> 0.1409577933 | Z25: =Eurostat!BC45/Eurostat!$AG45 -> 0.03441368824 | AA25: =Eurostat!BC45/Eurostat!$AG45 -> 0.03441368824 | AC25: =LN((Eurostat!K45^pomocniczo_do_innych_kalibracji!I25*Eurostat!M45^pomocniczo_do_innych_kalibracji!K25)^(1/(pomocniczo_do_innych_kalibracji!I25+pomocniczo_do_innych_kalibracji!K25))) -> 4.5588335 | AD25: =LN((Eurostat!Q45^pomocniczo_do_innych_kalibracji!M25*Eurostat!S45^pomocniczo_do_innych_kalibracji!O25*Eurostat!U45^pomocniczo_do_innych_kalibracji!Q25*Eurostat!W45^pomocniczo_do_innych_kalibracji!S25*Eurostat!Y45^pomocniczo_do_innych_kalibracji!U25*Eurostat!AA45^pomocniczo_do_innych_kalibracji!W25*Eurostat!AC45^pomocniczo_do_innych_kalibracji!Y25*Eurostat!AE45^pomocniczo_do_innych_kalibracji!AA25)^(1/(pomocniczo_do_innych_kalibracji!M25+pomocniczo_do_innych_kalibracji!O25+pomocniczo_do_innych_kalibracji!Q25+pomocniczo_do_innych_kalibracji!S25+pomocniczo_do_innych_kalibracji!U25+pomocniczo_do_innych_kalibracji!W25+pomocniczo_do_innych_kalibracji!Y25+pomocniczo_do_innych_kalibracji!AA25))) -> 4.58831088 | AE25: =LN((Eurostat!J45^pomocniczo_do_innych_kalibracji!H25*Eurostat!L45^pomocniczo_do_innych_kalibracji!J25)^(1/(pomocniczo_do_innych_kalibracji!H25+pomocniczo_do_innych_kalibracji!J25))) -> 4.604169686 | AF25: =LN((Eurostat!P45^pomocniczo_do_innych_kalibracji!L25*Eurostat!R45^pomocniczo_do_innych_kalibracji!N25*Eurostat!T45^pomocniczo_do_innych_kalibracji!P25*Eurostat!V45^pomocniczo_do_innych_kalibracji!R25*Eurostat!X45^pomocniczo_do_innych_kalibracji!T25*Eurostat!Z45^pomocniczo_do_innych_kalibracji!V25*Eurostat!AB45^pomocniczo_do_innych_kalibracji!X25*Eurostat!AD45^pomocniczo_do_innych_kalibracji!Z25)^(1/(pomocniczo_do_innych_kalibracji!L25+pomocniczo_do_innych_kalibracji!N25+pomocniczo_do_innych_kalibracji!P25+pomocniczo_do_innych_kalibracji!R25+pomocniczo_do_innych_kalibracji!T25+pomocniczo_do_innych_kalibracji!V25+pomocniczo_do_innych_kalibracji!X25+pomocniczo_do_innych_kalibracji!Z25))) -> 4.603063166
A26: =dane_do_matlaba!A24 -> 2005Q3 | B26: =1-(Eurostat!AI46+Eurostat!AK46)/Eurostat!AG46 -> 0.7124093741 | C26: =1-(Eurostat!AH46+Eurostat!AJ46)/Eurostat!AF46 -> 0.7792771019 | D26: =Eurostat!C46/SUM(Eurostat!B46:C46) -> 0.02922485993 | F26: =Eurostat!AG46/Eurostat!$AG46 -> 1 | G26: =Eurostat!AG46/Eurostat!$AG46 -> 1 | H26: =Eurostat!AI46/Eurostat!$AG46 -> 0.04669685769 | I26: =Eurostat!AI46/Eurostat!$AG46 -> 0.04669685769 | J26: =Eurostat!AK46/Eurostat!$AG46 -> 0.2408937682 | K26: =Eurostat!AK46/Eurostat!$AG46 -> 0.2408937682 | L26: =Eurostat!AO46/Eurostat!$AG46 -> 0.06270287752 | M26: =Eurostat!AO46/Eurostat!$AG46 -> 0.06270287752 | N26: =Eurostat!AQ46/Eurostat!$AG46 -> 0.2573711208 | O26: =Eurostat!AQ46/Eurostat!$AG46 -> 0.2573711208 | P26: =Eurostat!AS46/Eurostat!$AG46 -> 0.04273784618 | Q26: =Eurostat!AS46/Eurostat!$AG46 -> 0.04273784618 | R26: =Eurostat!AU46/Eurostat!$AG46 -> 0.0441596541 | S26: =Eurostat!AU46/Eurostat!$AG46 -> 0.0441596541 | T26: =Eurostat!AW46/Eurostat!$AG46 -> 0.06438469942 | U26: =Eurostat!AW46/Eurostat!$AG46 -> 0.06438469942 | V26: =Eurostat!AY46/Eurostat!$AG46 -> 0.06225864868 | W26: =Eurostat!AY46/Eurostat!$AG46 -> 0.06225864868 | X26: =Eurostat!BA46/Eurostat!$AG46 -> 0.1401447809 | Y26: =Eurostat!BA46/Eurostat!$AG46 -> 0.1401447809 | Z26: =Eurostat!BC46/Eurostat!$AG46 -> 0.03462871749 | AA26: =Eurostat!BC46/Eurostat!$AG46 -> 0.03462871749 | AC26: =LN((Eurostat!K46^pomocniczo_do_innych_kalibracji!I26*Eurostat!M46^pomocniczo_do_innych_kalibracji!K26)^(1/(pomocniczo_do_innych_kalibracji!I26+pomocniczo_do_innych_kalibracji!K26))) -> 4.588288232 | AD26: =LN((Eurostat!Q46^pomocniczo_do_innych_kalibracji!M26*Eurostat!S46^pomocniczo_do_innych_kalibracji!O26*Eurostat!U46^pomocniczo_do_innych_kalibracji!Q26*Eurostat!W46^pomocniczo_do_innych_kalibracji!S26*Eurostat!Y46^pomocniczo_do_innych_kalibracji!U26*Eurostat!AA46^pomocniczo_do_innych_kalibracji!W26*Eurostat!AC46^pomocniczo_do_innych_kalibracji!Y26*Eurostat!AE46^pomocniczo_do_innych_kalibracji!AA26)^(1/(pomocniczo_do_innych_kalibracji!M26+pomocniczo_do_innych_kalibracji!O26+pomocniczo_do_innych_kalibracji!Q26+pomocniczo_do_innych_kalibracji!S26+pomocniczo_do_innych_kalibracji!U26+pomocniczo_do_innych_kalibracji!W26+pomocniczo_do_innych_kalibracji!Y26+pomocniczo_do_innych_kalibracji!AA26))) -> 4.603167007 | AE26: =LN((Eurostat!J46^pomocniczo_do_innych_kalibracji!H26*Eurostat!L46^pomocniczo_do_innych_kalibracji!J26)^(1/(pomocniczo_do_innych_kalibracji!H26+pomocniczo_do_innych_kalibracji!J26))) -> 4.603865981 | AF26: =LN((Eurostat!P46^pomocniczo_do_innych_kalibracji!L26*Eurostat!R46^pomocniczo_do_innych_kalibracji!N26*Eurostat!T46^pomocniczo_do_innych_kalibracji!P26*Eurostat!V46^pomocniczo_do_innych_kalibracji!R26*Eurostat!X46^pomocniczo_do_innych_kalibracji!T26*Eurostat!Z46^pomocniczo_do_innych_kalibracji!V26*Eurostat!AB46^pomocniczo_do_innych_kalibracji!X26*Eurostat!AD46^pomocniczo_do_innych_kalibracji!Z26)^(1/(pomocniczo_do_innych_kalibracji!L26+pomocniczo_do_innych_kalibracji!N26+pomocniczo_do_innych_kalibracji!P26+pomocniczo_do_innych_kalibracji!R26+pomocniczo_do_innych_kalibracji!T26+pomocniczo_do_innych_kalibracji!V26+pomocniczo_do_innych_kalibracji!X26+pomocniczo_do_innych_kalibracji!Z26))) -> 4.605862873
A27: =dane_do_matlaba!A25 -> 2005Q4 | B27: =1-(Eurostat!AI47+Eurostat!AK47)/Eurostat!AG47 -> 0.7062420474 | C27: =1-(Eurostat!AH47+Eurostat!AJ47)/Eurostat!AF47 -> 0.7801271621 | D27: =Eurostat!C47/SUM(Eurostat!B47:C47) -> 0.03003568773 | F27: =Eurostat!AG47/Eurostat!$AG47 -> 1 | G27: =Eurostat!AG47/Eurostat!$AG47 -> 1 | H27: =Eurostat!AI47/Eurostat!$AG47 -> 0.04575237388 | I27: =Eurostat!AI47/Eurostat!$AG47 -> 0.04575237388 | J27: =Eurostat!AK47/Eurostat!$AG47 -> 0.2480055787 | K27: =Eurostat!AK47/Eurostat!$AG47 -> 0.2480055787 | L27: =Eurostat!AO47/Eurostat!$AG47 -> 0.0634891166 | M27: =Eurostat!AO47/Eurostat!$AG47 -> 0.0634891166 | N27: =Eurostat!AQ47/Eurostat!$AG47 -> 0.2568078391 | O27: =Eurostat!AQ47/Eurostat!$AG47 -> 0.2568078391 | P27: =Eurostat!AS47/Eurostat!$AG47 -> 0.04267006579 | Q27: =Eurostat!AS47/Eurostat!$AG47 -> 0.04267006579 | R27: =Eurostat!AU47/Eurostat!$AG47 -> 0.04307805163 | S27: =Eurostat!AU47/Eurostat!$AG47 -> 0.04307805163 | T27: =Eurostat!AW47/Eurostat!$AG47 -> 0.06450160976 | U27: =Eurostat!AW47/Eurostat!$AG47 -> 0.06450160976 | V27: =Eurostat!AY47/Eurostat!$AG47 -> 0.06386178291 | W27: =Eurostat!AY47/Eurostat!$AG47 -> 0.06386178291 | X27: =Eurostat!BA47/Eurostat!$AG47 -> 0.1399894041 | Y27: =Eurostat!BA47/Eurostat!$AG47 -> 0.1399894041 | Z27: =Eurostat!BC47/Eurostat!$AG47 -> 0.03534579177 | AA27: =Eurostat!BC47/Eurostat!$AG47 -> 0.03534579177 | AC27: =LN((Eurostat!K47^pomocniczo_do_innych_kalibracji!I27*Eurostat!M47^pomocniczo_do_innych_kalibracji!K27)^(1/(pomocniczo_do_innych_kalibracji!I27+pomocniczo_do_innych_kalibracji!K27))) -> 4.601952377 | AD27: =LN((Eurostat!Q47^pomocniczo_do_innych_kalibracji!M27*Eurostat!S47^pomocniczo_do_innych_kalibracji!O27*Eurostat!U47^pomocniczo_do_innych_kalibracji!Q27*Eurostat!W47^pomocniczo_do_innych_kalibracji!S27*Eurostat!Y47^pomocniczo_do_innych_kalibracji!U27*Eurostat!AA47^pomocniczo_do_innych_kalibracji!W27*Eurostat!AC47^pomocniczo_do_innych_kalibracji!Y27*Eurostat!AE47^pomocniczo_do_innych_kalibracji!AA27)^(1/(pomocniczo_do_innych_kalibracji!M27+pomocniczo_do_innych_kalibracji!O27+pomocniczo_do_innych_kalibracji!Q27+pomocniczo_do_innych_kalibracji!S27+pomocniczo_do_innych_kalibracji!U27+pomocniczo_do_innych_kalibracji!W27+pomocniczo_do_innych_kalibracji!Y27+pomocniczo_do_innych_kalibracji!AA27))) -> 4.613033691 | AE27: =LN((Eurostat!J47^pomocniczo_do_innych_kalibracji!H27*Eurostat!L47^pomocniczo_do_innych_kalibracji!J27)^(1/(pomocniczo_do_innych_kalibracji!H27+pomocniczo_do_innych_kalibracji!J27))) -> 4.606344569 | AF27: =LN((Eurostat!P47^pomocniczo_do_innych_kalibracji!L27*Eurostat!R47^pomocniczo_do_innych_kalibracji!N27*Eurostat!T47^pomocniczo_do_innych_kalibracji!P27*Eurostat!V47^pomocniczo_do_innych_kalibracji!R27*Eurostat!X47^pomocniczo_do_innych_kalibracji!T27*Eurostat!Z47^pomocniczo_do_innych_kalibracji!V27*Eurostat!AB47^pomocniczo_do_innych_kalibracji!X27*Eurostat!AD47^pomocniczo_do_innych_kalibracji!Z27)^(1/(pomocniczo_do_innych_kalibracji!L27+pomocniczo_do_innych_kalibracji!N27+pomocniczo_do_innych_kalibracji!P27+pomocniczo_do_innych_kalibracji!R27+pomocniczo_do_innych_kalibracji!T27+pomocniczo_do_innych_kalibracji!V27+pomocniczo_do_innych_kalibracji!X27+pomocniczo_do_innych_kalibracji!Z27))) -> 4.611470541
A28: =dane_do_matlaba!A26 -> 2006Q1 | B28: =1-(Eurostat!AI48+Eurostat!AK48)/Eurostat!AG48 -> 0.7073414141 | C28: =1-(Eurostat!AH48+Eurostat!AJ48)/Eurostat!AF48 -> 0.7786872744 | D28: =Eurostat!C48/SUM(Eurostat!B48:C48) -> 0.03075178294 | F28: =Eurostat!AG48/Eurostat!$AG48 -> 1 | G28: =Eurostat!AG48/Eurostat!$AG48 -> 1 | H28: =Eurostat!AI48/Eurostat!$AG48 -> 0.04688009357 | I28: =Eurostat!AI48/Eurostat!$AG48 -> 0.04688009357 | J28: =Eurostat!AK48/Eurostat!$AG48 -> 0.2457784923 | K28: =Eurostat!AK48/Eurostat!$AG48 -> 0.2457784923 | L28: =Eurostat!AO48/Eurostat!$AG48 -> 0.06322844328 | M28: =Eurostat!AO48/Eurostat!$AG48 -> 0.06322844328 | N28: =Eurostat!AQ48/Eurostat!$AG48 -> 0.2559268327 | O28: =Eurostat!AQ48/Eurostat!$AG48 -> 0.2559268327 | P28: =Eurostat!AS48/Eurostat!$AG48 -> 0.0412306625 | Q28: =Eurostat!AS48/Eurostat!$AG48 -> 0.0412306625 | R28: =Eurostat!AU48/Eurostat!$AG48 -> 0.0456117178 | S28: =Eurostat!AU48/Eurostat!$AG48 -> 0.0456117178 | T28: =Eurostat!AW48/Eurostat!$AG48 -> 0.06447191406 | U28: =Eurostat!AW48/Eurostat!$AG48 -> 0.06447191406 | V28: =Eurostat!AY48/Eurostat!$AG48 -> 0.0636118023 | W28: =Eurostat!AY48/Eurostat!$AG48 -> 0.0636118023 | X28: =Eurostat!BA48/Eurostat!$AG48 -> 0.1398179712 | Y28: =Eurostat!BA48/Eurostat!$AG48 -> 0.1398179712 | Z28: =Eurostat!BC48/Eurostat!$AG48 -> 0.03291550758 | AA28: =Eurostat!BC48/Eurostat!$AG48 -> 0.03291550758 | AC28: =LN((Eurostat!K48^pomocniczo_do_innych_kalibracji!I28*Eurostat!M48^pomocniczo_do_innych_kalibracji!K28)^(1/(pomocniczo_do_innych_kalibracji!I28+pomocniczo_do_innych_kalibracji!K28))) -> 4.585948944 | AD28: =LN((Eurostat!Q48^pomocniczo_do_innych_kalibracji!M28*Eurostat!S48^pomocniczo_do_innych_kalibracji!O28*Eurostat!U48^pomocniczo_do_innych_kalibracji!Q28*Eurostat!W48^pomocniczo_do_innych_kalibracji!S28*Eurostat!Y48^pomocniczo_do_innych_kalibracji!U28*Eurostat!AA48^pomocniczo_do_innych_kalibracji!W28*Eurostat!AC48^pomocniczo_do_innych_kalibracji!Y28*Eurostat!AE48^pomocniczo_do_innych_kalibracji!AA28)^(1/(pomocniczo_do_innych_kalibracji!M28+pomocniczo_do_innych_kalibracji!O28+pomocniczo_do_innych_kalibracji!Q28+pomocniczo_do_innych_kalibracji!S28+pomocniczo_do_innych_kalibracji!U28+pomocniczo_do_innych_kalibracji!W28+pomocniczo_do_innych_kalibracji!Y28+pomocniczo_do_innych_kalibracji!AA28))) -> 4.60896587 | AE28: =LN((Eurostat!J48^pomocniczo_do_innych_kalibracji!H28*Eurostat!L48^pomocniczo_do_innych_kalibracji!J28)^(1/(pomocniczo_do_innych_kalibracji!H28+pomocniczo_do_innych_kalibracji!J28))) -> 4.607748855 | AF28: =LN((Eurostat!P48^pomocniczo_do_innych_kalibracji!L28*Eurostat!R48^pomocniczo_do_innych_kalibracji!N28*Eurostat!T48^pomocniczo_do_innych_kalibracji!P28*Eurostat!V48^pomocniczo_do_innych_kalibracji!R28*Eurostat!X48^pomocniczo_do_innych_kalibracji!T28*Eurostat!Z48^pomocniczo_do_innych_kalibracji!V28*Eurostat!AB48^pomocniczo_do_innych_kalibracji!X28*Eurostat!AD48^pomocniczo_do_innych_kalibracji!Z28)^(1/(pomocniczo_do_innych_kalibracji!L28+pomocniczo_do_innych_kalibracji!N28+pomocniczo_do_innych_kalibracji!P28+pomocniczo_do_innych_kalibracji!R28+pomocniczo_do_innych_kalibracji!T28+pomocniczo_do_innych_kalibracji!V28+pomocniczo_do_innych_kalibracji!X28+pomocniczo_do_innych_kalibracji!Z28))) -> 4.612471477
A29: =dane_do_matlaba!A27 -> 2006Q2 | B29: =1-(Eurostat!AI49+Eurostat!AK49)/Eurostat!AG49 -> 0.7082180667 | C29: =1-(Eurostat!AH49+Eurostat!AJ49)/Eurostat!AF49 -> 0.7790081432 | D29: =Eurostat!C49/SUM(Eurostat!B49:C49) -> 0.0301629286 | F29: =Eurostat!AG49/Eurostat!$AG49 -> 1 | G29: =Eurostat!AG49/Eurostat!$AG49 -> 1 | H29: =Eurostat!AI49/Eurostat!$AG49 -> 0.04391568113 | I29: =Eurostat!AI49/Eurostat!$AG49 -> 0.04391568113 | J29: =Eurostat!AK49/Eurostat!$AG49 -> 0.2478662522 | K29: =Eurostat!AK49/Eurostat!$AG49 -> 0.2478662522 | L29: =Eurostat!AO49/Eurostat!$AG49 -> 0.06639186829 | M29: =Eurostat!AO49/Eurostat!$AG49 -> 0.06639186829 | N29: =Eurostat!AQ49/Eurostat!$AG49 -> 0.2576424039 | O29: =Eurostat!AQ49/Eurostat!$AG49 -> 0.2576424039 | P29: =Eurostat!AS49/Eurostat!$AG49 -> 0.04194974887 | Q29: =Eurostat!AS49/Eurostat!$AG49 -> 0.04194974887 | R29: =Eurostat!AU49/Eurostat!$AG49 -> 0.04561754591 | S29: =Eurostat!AU49/Eurostat!$AG49 -> 0.04561754591 | T29: =Eurostat!AW49/Eurostat!$AG49 -> 0.0640504991 | U29: =Eurostat!AW49/Eurostat!$AG49 -> 0.0640504991 | V29: =Eurostat!AY49/Eurostat!$AG49 -> 0.06447553026 | W29: =Eurostat!AY49/Eurostat!$AG49 -> 0.06447553026 | X29: =Eurostat!BA49/Eurostat!$AG49 -> 0.138207778 | Y29: =Eurostat!BA49/Eurostat!$AG49 -> 0.138207778 | Z29: =Eurostat!BC49/Eurostat!$AG49 -> 0.03348479872 | AA29: =Eurostat!BC49/Eurostat!$AG49 -> 0.03348479872 | AC29: =LN((Eurostat!K49^pomocniczo_do_innych_kalibracji!I29*Eurostat!M49^pomocniczo_do_innych_kalibracji!K29)^(1/(pomocniczo_do_innych_kalibracji!I29+pomocniczo_do_innych_kalibracji!K29))) -> 4.60297523 | AD29: =LN((Eurostat!Q49^pomocniczo_do_innych_kalibracji!M29*Eurostat!S49^pomocniczo_do_innych_kalibracji!O29*Eurostat!U49^pomocniczo_do_innych_kalibracji!Q29*Eurostat!W49^pomocniczo_do_innych_kalibracji!S29*Eurostat!Y49^pomocniczo_do_innych_kalibracji!U29*Eurostat!AA49^pomocniczo_do_innych_kalibracji!W29*Eurostat!AC49^pomocniczo_do_innych_kalibracji!Y29*Eurostat!AE49^pomocniczo_do_innych_kalibracji!AA29)^(1/(pomocniczo_do_innych_kalibracji!M29+pomocniczo_do_innych_kalibracji!O29+pomocniczo_do_innych_kalibracji!Q29+pomocniczo_do_innych_kalibracji!S29+pomocniczo_do_innych_kalibracji!U29+pomocniczo_do_innych_kalibracji!W29+pomocniczo_do_innych_kalibracji!Y29+pomocniczo_do_innych_kalibracji!AA29))) -> 4.625411364 | AE29: =LN((Eurostat!J49^pomocniczo_do_innych_kalibracji!H29*Eurostat!L49^pomocniczo_do_innych_kalibracji!J29)^(1/(pomocniczo_do_innych_kalibracji!H29+pomocniczo_do_innych_kalibracji!J29))) -> 4.609740729 | AF29: =LN((Eurostat!P49^pomocniczo_do_innych_kalibracji!L29*Eurostat!R49^pomocniczo_do_innych_kalibracji!N29*Eurostat!T49^pomocniczo_do_innych_kalibracji!P29*Eurostat!V49^pomocniczo_do_innych_kalibracji!R29*Eurostat!X49^pomocniczo_do_innych_kalibracji!T29*Eurostat!Z49^pomocniczo_do_innych_kalibracji!V29*Eurostat!AB49^pomocniczo_do_innych_kalibracji!X29*Eurostat!AD49^pomocniczo_do_innych_kalibracji!Z29)^(1/(pomocniczo_do_innych_kalibracji!L29+pomocniczo_do_innych_kalibracji!N29+pomocniczo_do_innych_kalibracji!P29+pomocniczo_do_innych_kalibracji!R29+pomocniczo_do_innych_kalibracji!T29+pomocniczo_do_innych_kalibracji!V29+pomocniczo_do_innych_kalibracji!X29+pomocniczo_do_innych_kalibracji!Z29))) -> 4.61817346
A30: =dane_do_matlaba!A28 -> 2006Q3 | B30: =1-(Eurostat!AI50+Eurostat!AK50)/Eurostat!AG50 -> 0.7118185156 | C30: =1-(Eurostat!AH50+Eurostat!AJ50)/Eurostat!AF50 -> 0.778486125 | D30: =Eurostat!C50/SUM(Eurostat!B50:C50) -> 0.03046563488 | F30: =Eurostat!AG50/Eurostat!$AG50 -> 1 | G30: =Eurostat!AG50/Eurostat!$AG50 -> 1 | H30: =Eurostat!AI50/Eurostat!$AG50 -> 0.04211808943 | I30: =Eurostat!AI50/Eurostat!$AG50 -> 0.04211808943 | J30: =Eurostat!AK50/Eurostat!$AG50 -> 0.246063395 | K30: =Eurostat!AK50/Eurostat!$AG50 -> 0.246063395 | L30: =Eurostat!AO50/Eurostat!$AG50 -> 0.06871099399 | M30: =Eurostat!AO50/Eurostat!$AG50 -> 0.06871099399 | N30: =Eurostat!AQ50/Eurostat!$AG50 -> 0.2568924358 | O30: =Eurostat!AQ50/Eurostat!$AG50 -> 0.2568924358 | P30: =Eurostat!AS50/Eurostat!$AG50 -> 0.04121272664 | Q30: =Eurostat!AS50/Eurostat!$AG50 -> 0.04121272664 | R30: =Eurostat!AU50/Eurostat!$AG50 -> 0.04677211363 | S30: =Eurostat!AU50/Eurostat!$AG50 -> 0.04677211363 | T30: =Eurostat!AW50/Eurostat!$AG50 -> 0.06344346737 | U30: =Eurostat!AW50/Eurostat!$AG50 -> 0.06344346737 | V30: =Eurostat!AY50/Eurostat!$AG50 -> 0.06378723294 | W30: =Eurostat!AY50/Eurostat!$AG50 -> 0.06378723294 | X30: =Eurostat!BA50/Eurostat!$AG50 -> 0.138334158 | Y30: =Eurostat!BA50/Eurostat!$AG50 -> 0.138334158 | Z30: =Eurostat!BC50/Eurostat!$AG50 -> 0.03352735383 | AA30: =Eurostat!BC50/Eurostat!$AG50 -> 0.03352735383 | AC30: =LN((Eurostat!K50^pomocniczo_do_innych_kalibracji!I30*Eurostat!M50^pomocniczo_do_innych_kalibracji!K30)^(1/(pomocniczo_do_innych_kalibracji!I30+pomocniczo_do_innych_kalibracji!K30))) -> 4.595744782 | AD30: =LN((Eurostat!Q50^pomocniczo_do_innych_kalibracji!M30*Eurostat!S50^pomocniczo_do_innych_kalibracji!O30*Eurostat!U50^pomocniczo_do_innych_kalibracji!Q30*Eurostat!W50^pomocniczo_do_innych_kalibracji!S30*Eurostat!Y50^pomocniczo_do_innych_kalibracji!U30*Eurostat!AA50^pomocniczo_do_innych_kalibracji!W30*Eurostat!AC50^pomocniczo_do_innych_kalibracji!Y30*Eurostat!AE50^pomocniczo_do_innych_kalibracji!AA30)^(1/(pomocniczo_do_innych_kalibracji!M30+pomocniczo_do_innych_kalibracji!O30+pomocniczo_do_innych_kalibracji!Q30+pomocniczo_do_innych_kalibracji!S30+pomocniczo_do_innych_kalibracji!U30+pomocniczo_do_innych_kalibracji!W30+pomocniczo_do_innych_kalibracji!Y30+pomocniczo_do_innych_kalibracji!AA30))) -> 4.628625845 | AE30: =LN((Eurostat!J50^pomocniczo_do_innych_kalibracji!H30*Eurostat!L50^pomocniczo_do_innych_kalibracji!J30)^(1/(pomocniczo_do_innych_kalibracji!H30+pomocniczo_do_innych_kalibracji!J30))) -> 4.617590214 | AF30: =LN((Eurostat!P50^pomocniczo_do_innych_kalibracji!L30*Eurostat!R50^pomocniczo_do_innych_kalibracji!N30*Eurostat!T50^pomocniczo_do_innych_kalibracji!P30*Eurostat!V50^pomocniczo_do_innych_kalibracji!R30*Eurostat!X50^pomocniczo_do_innych_kalibracji!T30*Eurostat!Z50^pomocniczo_do_innych_kalibracji!V30*Eurostat!AB50^pomocniczo_do_innych_kalibracji!X30*Eurostat!AD50^pomocniczo_do_innych_kalibracji!Z30)^(1/(pomocniczo_do_innych_kalibracji!L30+pomocniczo_do_innych_kalibracji!N30+pomocniczo_do_innych_kalibracji!P30+pomocniczo_do_innych_kalibracji!R30+pomocniczo_do_innych_kalibracji!T30+pomocniczo_do_innych_kalibracji!V30+pomocniczo_do_innych_kalibracji!X30+pomocniczo_do_innych_kalibracji!Z30))) -> 4.621467062
A31: =dane_do_matlaba!A29 -> 2006Q4 | B31: =1-(Eurostat!AI51+Eurostat!AK51)/Eurostat!AG51 -> 0.7143993771 | C31: =1-(Eurostat!AH51+Eurostat!AJ51)/Eurostat!AF51 -> 0.7787413081 | D31: =Eurostat!C51/SUM(Eurostat!B51:C51) -> 0.03163927363 | F31: =Eurostat!AG51/Eurostat!$AG51 -> 1 | G31: =Eurostat!AG51/Eurostat!$AG51 -> 1 | H31: =Eurostat!AI51/Eurostat!$AG51 -> 0.03929688511 | I31: =Eurostat!AI51/Eurostat!$AG51 -> 0.03929688511 | J31: =Eurostat!AK51/Eurostat!$AG51 -> 0.2463037378 | K31: =Eurostat!AK51/Eurostat!$AG51 -> 0.2463037378 | L31: =Eurostat!AO51/Eurostat!$AG51 -> 0.0710893007 | M31: =Eurostat!AO51/Eurostat!$AG51 -> 0.0710893007 | N31: =Eurostat!AQ51/Eurostat!$AG51 -> 0.2552941752 | O31: =Eurostat!AQ51/Eurostat!$AG51 -> 0.2552941752 | P31: =Eurostat!AS51/Eurostat!$AG51 -> 0.04052952532 | Q31: =Eurostat!AS51/Eurostat!$AG51 -> 0.04052952532 | R31: =Eurostat!AU51/Eurostat!$AG51 -> 0.04426890712 | S31: =Eurostat!AU51/Eurostat!$AG51 -> 0.04426890712 | T31: =Eurostat!AW51/Eurostat!$AG51 -> 0.06256944744 | U31: =Eurostat!AW51/Eurostat!$AG51 -> 0.06256944744 | V31: =Eurostat!AY51/Eurostat!$AG51 -> 0.0626826364 | W31: =Eurostat!AY51/Eurostat!$AG51 -> 0.0626826364 | X31: =Eurostat!BA51/Eurostat!$AG51 -> 0.1385395556 | Y31: =Eurostat!BA51/Eurostat!$AG51 -> 0.1385395556 | Z31: =Eurostat!BC51/Eurostat!$AG51 -> 0.03488334489 | AA31: =Eurostat!BC51/Eurostat!$AG51 -> 0.03488334489 | AC31: =LN((Eurostat!K51^pomocniczo_do_innych_kalibracji!I31*Eurostat!M51^pomocniczo_do_innych_kalibracji!K31)^(1/(pomocniczo_do_innych_kalibracji!I31+pomocniczo_do_innych_kalibracji!K31))) -> 4.594884234 | AD31: =LN((Eurostat!Q51^pomocniczo_do_innych_kalibracji!M31*Eurostat!S51^pomocniczo_do_innych_kalibracji!O31*Eurostat!U51^pomocniczo_do_innych_kalibracji!Q31*Eurostat!W51^pomocniczo_do_innych_kalibracji!S31*Eurostat!Y51^pomocniczo_do_innych_kalibracji!U31*Eurostat!AA51^pomocniczo_do_innych_kalibracji!W31*Eurostat!AC51^pomocniczo_do_innych_kalibracji!Y31*Eurostat!AE51^pomocniczo_do_innych_kalibracji!AA31)^(1/(pomocniczo_do_innych_kalibracji!M31+pomocniczo_do_innych_kalibracji!O31+pomocniczo_do_innych_kalibracji!Q31+pomocniczo_do_innych_kalibracji!S31+pomocniczo_do_innych_kalibracji!U31+pomocniczo_do_innych_kalibracji!W31+pomocniczo_do_innych_kalibracji!Y31+pomocniczo_do_innych_kalibracji!AA31))) -> 4.641172343 | AE31: =LN((Eurostat!J51^pomocniczo_do_innych_kalibracji!H31*Eurostat!L51^pomocniczo_do_innych_kalibracji!J31)^(1/(pomocniczo_do_innych_kalibracji!H31+pomocniczo_do_innych_kalibracji!J31))) -> 4.620417779 | AF31: =LN((Eurostat!P51^pomocniczo_do_innych_kalibracji!L31*Eurostat!R51^pomocniczo_do_innych_kalibracji!N31*Eurostat!T51^pomocniczo_do_innych_kalibracji!P31*Eurostat!V51^pomocniczo_do_innych_kalibracji!R31*Eurostat!X51^pomocniczo_do_innych_kalibracji!T31*Eurostat!Z51^pomocniczo_do_innych_kalibracji!V31*Eurostat!AB51^pomocniczo_do_innych_kalibracji!X31*Eurostat!AD51^pomocniczo_do_innych_kalibracji!Z31)^(1/(pomocniczo_do_innych_kalibracji!L31+pomocniczo_do_innych_kalibracji!N31+pomocniczo_do_innych_kalibracji!P31+pomocniczo_do_innych_kalibracji!R31+pomocniczo_do_innych_kalibracji!T31+pomocniczo_do_innych_kalibracji!V31+pomocniczo_do_innych_kalibracji!X31+pomocniczo_do_innych_kalibracji!Z31))) -> 4.625228676
A32: =dane_do_matlaba!A30 -> 2007Q1 | B32: =1-(Eurostat!AI52+Eurostat!AK52)/Eurostat!AG52 -> 0.7105181135 | C32: =1-(Eurostat!AH52+Eurostat!AJ52)/Eurostat!AF52 -> 0.779045707 | D32: =Eurostat!C52/SUM(Eurostat!B52:C52) -> 0.03169812024 | F32: =Eurostat!AG52/Eurostat!$AG52 -> 1 | G32: =Eurostat!AG52/Eurostat!$AG52 -> 1 | H32: =Eurostat!AI52/Eurostat!$AG52 -> 0.04582870376 | I32: =Eurostat!AI52/Eurostat!$AG52 -> 0.04582870376 | J32: =Eurostat!AK52/Eurostat!$AG52 -> 0.2436531828 | K32: =Eurostat!AK52/Eurostat!$AG52 -> 0.2436531828 | L32: =Eurostat!AO52/Eurostat!$AG52 -> 0.07239247555 | M32: =Eurostat!AO52/Eurostat!$AG52 -> 0.07239247555 | N32: =Eurostat!AQ52/Eurostat!$AG52 -> 0.2523493721 | O32: =Eurostat!AQ52/Eurostat!$AG52 -> 0.2523493721 | P32: =Eurostat!AS52/Eurostat!$AG52 -> 0.04031480536 | Q32: =Eurostat!AS52/Eurostat!$AG52 -> 0.04031480536 | R32: =Eurostat!AU52/Eurostat!$AG52 -> 0.05287722381 | S32: =Eurostat!AU52/Eurostat!$AG52 -> 0.05287722381 | T32: =Eurostat!AW52/Eurostat!$AG52 -> 0.0616226696 | U32: =Eurostat!AW52/Eurostat!$AG52 -> 0.0616226696 | V32: =Eurostat!AY52/Eurostat!$AG52 -> 0.06534799292 | W32: =Eurostat!AY52/Eurostat!$AG52 -> 0.06534799292 | X32: =Eurostat!BA52/Eurostat!$AG52 -> 0.1372111633 | Y32: =Eurostat!BA52/Eurostat!$AG52 -> 0.1372111633 | Z32: =Eurostat!BC52/Eurostat!$AG52 -> 0.03293562099 | AA32: =Eurostat!BC52/Eurostat!$AG52 -> 0.03293562099 | AC32: =LN((Eurostat!K52^pomocniczo_do_innych_kalibracji!I32*Eurostat!M52^pomocniczo_do_innych_kalibracji!K32)^(1/(pomocniczo_do_innych_kalibracji!I32+pomocniczo_do_innych_kalibracji!K32))) -> 4.62055223 | AD32: =LN((Eurostat!Q52^pomocniczo_do_innych_kalibracji!M32*Eurostat!S52^pomocniczo_do_innych_kalibracji!O32*Eurostat!U52^pomocniczo_do_innych_kalibracji!Q32*Eurostat!W52^pomocniczo_do_innych_kalibracji!S32*Eurostat!Y52^pomocniczo_do_innych_kalibracji!U32*Eurostat!AA52^pomocniczo_do_innych_kalibracji!W32*Eurostat!AC52^pomocniczo_do_innych_kalibracji!Y32*Eurostat!AE52^pomocniczo_do_innych_kalibracji!AA32)^(1/(pomocniczo_do_innych_kalibracji!M32+pomocniczo_do_innych_kalibracji!O32+pomocniczo_do_innych_kalibracji!Q32+pomocniczo_do_innych_kalibracji!S32+pomocniczo_do_innych_kalibracji!U32+pomocniczo_do_innych_kalibracji!W32+pomocniczo_do_innych_kalibracji!Y32+pomocniczo_do_innych_kalibracji!AA32))) -> 4.653499962 | AE32: =LN((Eurostat!J52^pomocniczo_do_innych_kalibracji!H32*Eurostat!L52^pomocniczo_do_innych_kalibracji!J32)^(1/(pomocniczo_do_innych_kalibracji!H32+pomocniczo_do_innych_kalibracji!J32))) -> 4.619983242 | AF32: =LN((Eurostat!P52^pomocniczo_do_innych_kalibracji!L32*Eurostat!R52^pomocniczo_do_innych_kalibracji!N32*Eurostat!T52^pomocniczo_do_innych_kalibracji!P32*Eurostat!V52^pomocniczo_do_innych_kalibracji!R32*Eurostat!X52^pomocniczo_do_innych_kalibracji!T32*Eurostat!Z52^pomocniczo_do_innych_kalibracji!V32*Eurostat!AB52^pomocniczo_do_innych_kalibracji!X32*Eurostat!AD52^pomocniczo_do_innych_kalibracji!Z32)^(1/(pomocniczo_do_innych_kalibracji!L32+pomocniczo_do_innych_kalibracji!N32+pomocniczo_do_innych_kalibracji!P32+pomocniczo_do_innych_kalibracji!R32+pomocniczo_do_innych_kalibracji!T32+pomocniczo_do_innych_kalibracji!V32+pomocniczo_do_innych_kalibracji!X32+pomocniczo_do_innych_kalibracji!Z32))) -> 4.63198326
A33: =dane_do_matlaba!A31 -> 2007Q2 | B33: =1-(Eurostat!AI53+Eurostat!AK53)/Eurostat!AG53 -> 0.7116456431 | C33: =1-(Eurostat!AH53+Eurostat!AJ53)/Eurostat!AF53 -> 0.7781458097 | D33: =Eurostat!C53/SUM(Eurostat!B53:C53) -> 0.03283544786 | F33: =Eurostat!AG53/Eurostat!$AG53 -> 1 | G33: =Eurostat!AG53/Eurostat!$AG53 -> 1 | H33: =Eurostat!AI53/Eurostat!$AG53 -> 0.04289869333 | I33: =Eurostat!AI53/Eurostat!$AG53 -> 0.04289869333 | J33: =Eurostat!AK53/Eurostat!$AG53 -> 0.2454556636 | K33: =Eurostat!AK53/Eurostat!$AG53 -> 0.2454556636 | L33: =Eurostat!AO53/Eurostat!$AG53 -> 0.07294906638 | M33: =Eurostat!AO53/Eurostat!$AG53 -> 0.07294906638 | N33: =Eurostat!AQ53/Eurostat!$AG53 -> 0.2504090001 | O33: =Eurostat!AQ53/Eurostat!$AG53 -> 0.2504090001 | P33: =Eurostat!AS53/Eurostat!$AG53 -> 0.04039896337 | Q33: =Eurostat!AS53/Eurostat!$AG53 -> 0.04039896337 | R33: =Eurostat!AU53/Eurostat!$AG53 -> 0.05170077038 | S33: =Eurostat!AU53/Eurostat!$AG53 -> 0.05170077038 | T33: =Eurostat!AW53/Eurostat!$AG53 -> 0.06099995506 | U33: =Eurostat!AW53/Eurostat!$AG53 -> 0.06099995506 | V33: =Eurostat!AY53/Eurostat!$AG53 -> 0.06489994378 | W33: =Eurostat!AY53/Eurostat!$AG53 -> 0.06489994378 | X33: =Eurostat!BA53/Eurostat!$AG53 -> 0.1371043343 | Y33: =Eurostat!BA53/Eurostat!$AG53 -> 0.1371043343 | Z33: =Eurostat!BC53/Eurostat!$AG53 -> 0.03241725188 | AA33: =Eurostat!BC53/Eurostat!$AG53 -> 0.03241725188 | AC33: =LN((Eurostat!K53^pomocniczo_do_innych_kalibracji!I33*Eurostat!M53^pomocniczo_do_innych_kalibracji!K33)^(1/(pomocniczo_do_innych_kalibracji!I33+pomocniczo_do_innych_kalibracji!K33))) -> 4.612113237 | AD33: =LN((Eurostat!Q53^pomocniczo_do_innych_kalibracji!M33*Eurostat!S53^pomocniczo_do_innych_kalibracji!O33*Eurostat!U53^pomocniczo_do_innych_kalibracji!Q33*Eurostat!W53^pomocniczo_do_innych_kalibracji!S33*Eurostat!Y53^pomocniczo_do_innych_kalibracji!U33*Eurostat!AA53^pomocniczo_do_innych_kalibracji!W33*Eurostat!AC53^pomocniczo_do_innych_kalibracji!Y33*Eurostat!AE53^pomocniczo_do_innych_kalibracji!AA33)^(1/(pomocniczo_do_innych_kalibracji!M33+pomocniczo_do_innych_kalibracji!O33+pomocniczo_do_innych_kalibracji!Q33+pomocniczo_do_innych_kalibracji!S33+pomocniczo_do_innych_kalibracji!U33+pomocniczo_do_innych_kalibracji!W33+pomocniczo_do_innych_kalibracji!Y33+pomocniczo_do_innych_kalibracji!AA33))) -> 4.66418939 | AE33: =LN((Eurostat!J53^pomocniczo_do_innych_kalibracji!H33*Eurostat!L53^pomocniczo_do_innych_kalibracji!J33)^(1/(pomocniczo_do_innych_kalibracji!H33+pomocniczo_do_innych_kalibracji!J33))) -> 4.628909071 | AF33: =LN((Eurostat!P53^pomocniczo_do_innych_kalibracji!L33*Eurostat!R53^pomocniczo_do_innych_kalibracji!N33*Eurostat!T53^pomocniczo_do_innych_kalibracji!P33*Eurostat!V53^pomocniczo_do_innych_kalibracji!R33*Eurostat!X53^pomocniczo_do_innych_kalibracji!T33*Eurostat!Z53^pomocniczo_do_innych_kalibracji!V33*Eurostat!AB53^pomocniczo_do_innych_kalibracji!X33*Eurostat!AD53^pomocniczo_do_innych_kalibracji!Z33)^(1/(pomocniczo_do_innych_kalibracji!L33+pomocniczo_do_innych_kalibracji!N33+pomocniczo_do_innych_kalibracji!P33+pomocniczo_do_innych_kalibracji!R33+pomocniczo_do_innych_kalibracji!T33+pomocniczo_do_innych_kalibracji!V33+pomocniczo_do_innych_kalibracji!X33+pomocniczo_do_innych_kalibracji!Z33))) -> 4.637632959
A34: =dane_do_matlaba!A32 -> 2007Q3 | B34: =1-(Eurostat!AI54+Eurostat!AK54)/Eurostat!AG54 -> 0.7124364509 | C34: =1-(Eurostat!AH54+Eurostat!AJ54)/Eurostat!AF54 -> 0.778373386 | D34: =Eurostat!C54/SUM(Eurostat!B54:C54) -> 0.03346618927 | F34: =Eurostat!AG54/Eurostat!$AG54 -> 1 | G34: =Eurostat!AG54/Eurostat!$AG54 -> 1 | H34: =Eurostat!AI54/Eurostat!$AG54 -> 0.04212805898 | I34: =Eurostat!AI54/Eurostat!$AG54 -> 0.04212805898 | J34: =Eurostat!AK54/Eurostat!$AG54 -> 0.2454354901 | K34: =Eurostat!AK54/Eurostat!$AG54 -> 0.2454354901 | L34: =Eurostat!AO54/Eurostat!$AG54 -> 0.07453375598 | M34: =Eurostat!AO54/Eurostat!$AG54 -> 0.07453375598 | N34: =Eurostat!AQ54/Eurostat!$AG54 -> 0.2516001035 | O34: =Eurostat!AQ54/Eurostat!$AG54 -> 0.2516001035 | P34: =Eurostat!AS54/Eurostat!$AG54 -> 0.04027007244 | Q34: =Eurostat!AS54/Eurostat!$AG54 -> 0.04027007244 | R34: =Eurostat!AU54/Eurostat!$AG54 -> 0.05362430268 | S34: =Eurostat!AU54/Eurostat!$AG54 -> 0.05362430268 | T34: =Eurostat!AW54/Eurostat!$AG54 -> 0.06041643784 | U34: =Eurostat!AW54/Eurostat!$AG54 -> 0.06041643784 | V34: =Eurostat!AY54/Eurostat!$AG54 -> 0.06498843655 | W34: =Eurostat!AY54/Eurostat!$AG54 -> 0.06498843655 | X34: =Eurostat!BA54/Eurostat!$AG54 -> 0.1360473967 | Y34: =Eurostat!BA54/Eurostat!$AG54 -> 0.1360473967 | Z34: =Eurostat!BC54/Eurostat!$AG54 -> 0.03244832547 | AA34: =Eurostat!BC54/Eurostat!$AG54 -> 0.03244832547 | AC34: =LN((Eurostat!K54^pomocniczo_do_innych_kalibracji!I34*Eurostat!M54^pomocniczo_do_innych_kalibracji!K34)^(1/(pomocniczo_do_innych_kalibracji!I34+pomocniczo_do_innych_kalibracji!K34))) -> 4.622867587 | AD34: =LN((Eurostat!Q54^pomocniczo_do_innych_kalibracji!M34*Eurostat!S54^pomocniczo_do_innych_kalibracji!O34*Eurostat!U54^pomocniczo_do_innych_kalibracji!Q34*Eurostat!W54^pomocniczo_do_innych_kalibracji!S34*Eurostat!Y54^pomocniczo_do_innych_kalibracji!U34*Eurostat!AA54^pomocniczo_do_innych_kalibracji!W34*Eurostat!AC54^pomocniczo_do_innych_kalibracji!Y34*Eurostat!AE54^pomocniczo_do_innych_kalibracji!AA34)^(1/(pomocniczo_do_innych_kalibracji!M34+pomocniczo_do_innych_kalibracji!O34+pomocniczo_do_innych_kalibracji!Q34+pomocniczo_do_innych_kalibracji!S34+pomocniczo_do_innych_kalibracji!U34+pomocniczo_do_innych_kalibracji!W34+pomocniczo_do_innych_kalibracji!Y34+pomocniczo_do_innych_kalibracji!AA34))) -> 4.686687058 | AE34: =LN((Eurostat!J54^pomocniczo_do_innych_kalibracji!H34*Eurostat!L54^pomocniczo_do_innych_kalibracji!J34)^(1/(pomocniczo_do_innych_kalibracji!H34+pomocniczo_do_innych_kalibracji!J34))) -> 4.635596875 | AF34: =LN((Eurostat!P54^pomocniczo_do_innych_kalibracji!L34*Eurostat!R54^pomocniczo_do_innych_kalibracji!N34*Eurostat!T54^pomocniczo_do_innych_kalibracji!P34*Eurostat!V54^pomocniczo_do_innych_kalibracji!R34*Eurostat!X54^pomocniczo_do_innych_kalibracji!T34*Eurostat!Z54^pomocniczo_do_innych_kalibracji!V34*Eurostat!AB54^pomocniczo_do_innych_kalibracji!X34*Eurostat!AD54^pomocniczo_do_innych_kalibracji!Z34)^(1/(pomocniczo_do_innych_kalibracji!L34+pomocniczo_do_innych_kalibracji!N34+pomocniczo_do_innych_kalibracji!P34+pomocniczo_do_innych_kalibracji!R34+pomocniczo_do_innych_kalibracji!T34+pomocniczo_do_innych_kalibracji!V34+pomocniczo_do_innych_kalibracji!X34+pomocniczo_do_innych_kalibracji!Z34))) -> 4.643330476
A35: =dane_do_matlaba!A33 -> 2007Q4 | B35: =1-(Eurostat!AI55+Eurostat!AK55)/Eurostat!AG55 -> 0.7163425427 | C35: =1-(Eurostat!AH55+Eurostat!AJ55)/Eurostat!AF55 -> 0.7790952384 | D35: =Eurostat!C55/SUM(Eurostat!B55:C55) -> 0.03516697949 | F35: =Eurostat!AG55/Eurostat!$AG55 -> 1 | G35: =Eurostat!AG55/Eurostat!$AG55 -> 1 | H35: =Eurostat!AI55/Eurostat!$AG55 -> 0.04161730841 | I35: =Eurostat!AI55/Eurostat!$AG55 -> 0.04161730841 | J35: =Eurostat!AK55/Eurostat!$AG55 -> 0.2420401488 | K35: =Eurostat!AK55/Eurostat!$AG55 -> 0.2420401488 | L35: =Eurostat!AO55/Eurostat!$AG55 -> 0.07653389342 | M35: =Eurostat!AO55/Eurostat!$AG55 -> 0.07653389342 | N35: =Eurostat!AQ55/Eurostat!$AG55 -> 0.2533090189 | O35: =Eurostat!AQ55/Eurostat!$AG55 -> 0.2533090189 | P35: =Eurostat!AS55/Eurostat!$AG55 -> 0.03948773159 | Q35: =Eurostat!AS55/Eurostat!$AG55 -> 0.03948773159 | R35: =Eurostat!AU55/Eurostat!$AG55 -> 0.05405690196 | S35: =Eurostat!AU55/Eurostat!$AG55 -> 0.05405690196 | T35: =Eurostat!AW55/Eurostat!$AG55 -> 0.05997951796 | U35: =Eurostat!AW55/Eurostat!$AG55 -> 0.05997951796 | V35: =Eurostat!AY55/Eurostat!$AG55 -> 0.06505127821 | W35: =Eurostat!AY55/Eurostat!$AG55 -> 0.06505127821 | X35: =Eurostat!BA55/Eurostat!$AG55 -> 0.1356378062 | Y35: =Eurostat!BA55/Eurostat!$AG55 -> 0.1356378062 | Z35: =Eurostat!BC55/Eurostat!$AG55 -> 0.03265913609 | AA35: =Eurostat!BC55/Eurostat!$AG55 -> 0.03265913609 | AC35: =LN((Eurostat!K55^pomocniczo_do_innych_kalibracji!I35*Eurostat!M55^pomocniczo_do_innych_kalibracji!K35)^(1/(pomocniczo_do_innych_kalibracji!I35+pomocniczo_do_innych_kalibracji!K35))) -> 4.607860715 | AD35: =LN((Eurostat!Q55^pomocniczo_do_innych_kalibracji!M35*Eurostat!S55^pomocniczo_do_innych_kalibracji!O35*Eurostat!U55^pomocniczo_do_innych_kalibracji!Q35*Eurostat!W55^pomocniczo_do_innych_kalibracji!S35*Eurostat!Y55^pomocniczo_do_innych_kalibracji!U35*Eurostat!AA55^pomocniczo_do_innych_kalibracji!W35*Eurostat!AC55^pomocniczo_do_innych_kalibracji!Y35*Eurostat!AE55^pomocniczo_do_innych_kalibracji!AA35)^(1/(pomocniczo_do_innych_kalibracji!M35+pomocniczo_do_innych_kalibracji!O35+pomocniczo_do_innych_kalibracji!Q35+pomocniczo_do_innych_kalibracji!S35+pomocniczo_do_innych_kalibracji!U35+pomocniczo_do_innych_kalibracji!W35+pomocniczo_do_innych_kalibracji!Y35+pomocniczo_do_innych_kalibracji!AA35))) -> 4.695724597 | AE35: =LN((Eurostat!J55^pomocniczo_do_innych_kalibracji!H35*Eurostat!L55^pomocniczo_do_innych_kalibracji!J35)^(1/(pomocniczo_do_innych_kalibracji!H35+pomocniczo_do_innych_kalibracji!J35))) -> 4.640171894 | AF35: =LN((Eurostat!P55^pomocniczo_do_innych_kalibracji!L35*Eurostat!R55^pomocniczo_do_innych_kalibracji!N35*Eurostat!T55^pomocniczo_do_innych_kalibracji!P35*Eurostat!V55^pomocniczo_do_innych_kalibracji!R35*Eurostat!X55^pomocniczo_do_innych_kalibracji!T35*Eurostat!Z55^pomocniczo_do_innych_kalibracji!V35*Eurostat!AB55^pomocniczo_do_innych_kalibracji!X35*Eurostat!AD55^pomocniczo_do_innych_kalibracji!Z35)^(1/(pomocniczo_do_innych_kalibracji!L35+pomocniczo_do_innych_kalibracji!N35+pomocniczo_do_innych_kalibracji!P35+pomocniczo_do_innych_kalibracji!R35+pomocniczo_do_innych_kalibracji!T35+pomocniczo_do_innych_kalibracji!V35+pomocniczo_do_innych_kalibracji!X35+pomocniczo_do_innych_kalibracji!Z35))) -> 4.649270406
A36: =dane_do_matlaba!A34 -> 2008Q1 | B36: =1-(Eurostat!AI56+Eurostat!AK56)/Eurostat!AG56 -> 0.720391518 | C36: =1-(Eurostat!AH56+Eurostat!AJ56)/Eurostat!AF56 -> 0.7815313839 | D36: =Eurostat!C56/SUM(Eurostat!B56:C56) -> 0.03636037682 | F36: =Eurostat!AG56/Eurostat!$AG56 -> 1 | G36: =Eurostat!AG56/Eurostat!$AG56 -> 1 | H36: =Eurostat!AI56/Eurostat!$AG56 -> 0.03716354498 | I36: =Eurostat!AI56/Eurostat!$AG56 -> 0.03716354498 | J36: =Eurostat!AK56/Eurostat!$AG56 -> 0.2424449371 | K36: =Eurostat!AK56/Eurostat!$AG56 -> 0.2424449371 | L36: =Eurostat!AO56/Eurostat!$AG56 -> 0.07560454441 | M36: =Eurostat!AO56/Eurostat!$AG56 -> 0.07560454441 | N36: =Eurostat!AQ56/Eurostat!$AG56 -> 0.2524214052 | O36: =Eurostat!AQ56/Eurostat!$AG56 -> 0.2524214052 | P36: =Eurostat!AS56/Eurostat!$AG56 -> 0.04112024283 | Q36: =Eurostat!AS56/Eurostat!$AG56 -> 0.04112024283 | R36: =Eurostat!AU56/Eurostat!$AG56 -> 0.05473358675 | S36: =Eurostat!AU56/Eurostat!$AG56 -> 0.05473358675 | T36: =Eurostat!AW56/Eurostat!$AG56 -> 0.06009977568 | U36: =Eurostat!AW56/Eurostat!$AG56 -> 0.06009977568 | V36: =Eurostat!AY56/Eurostat!$AG56 -> 0.06547770121 | W36: =Eurostat!AY56/Eurostat!$AG56 -> 0.06547770121 | X36: =Eurostat!BA56/Eurostat!$AG56 -> 0.1366923942 | Y36: =Eurostat!BA56/Eurostat!$AG56 -> 0.1366923942 | Z36: =Eurostat!BC56/Eurostat!$AG56 -> 0.03324535781 | AA36: =Eurostat!BC56/Eurostat!$AG56 -> 0.03324535781 | AC36: =LN((Eurostat!K56^pomocniczo_do_innych_kalibracji!I36*Eurostat!M56^pomocniczo_do_innych_kalibracji!K36)^(1/(pomocniczo_do_innych_kalibracji!I36+pomocniczo_do_innych_kalibracji!K36))) -> 4.595545893 | AD36: =LN((Eurostat!Q56^pomocniczo_do_innych_kalibracji!M36*Eurostat!S56^pomocniczo_do_innych_kalibracji!O36*Eurostat!U56^pomocniczo_do_innych_kalibracji!Q36*Eurostat!W56^pomocniczo_do_innych_kalibracji!S36*Eurostat!Y56^pomocniczo_do_innych_kalibracji!U36*Eurostat!AA56^pomocniczo_do_innych_kalibracji!W36*Eurostat!AC56^pomocniczo_do_innych_kalibracji!Y36*Eurostat!AE56^pomocniczo_do_innych_kalibracji!AA36)^(1/(pomocniczo_do_innych_kalibracji!M36+pomocniczo_do_innych_kalibracji!O36+pomocniczo_do_innych_kalibracji!Q36+pomocniczo_do_innych_kalibracji!S36+pomocniczo_do_innych_kalibracji!U36+pomocniczo_do_innych_kalibracji!W36+pomocniczo_do_innych_kalibracji!Y36+pomocniczo_do_innych_kalibracji!AA36))) -> 4.702408221 | AE36: =LN((Eurostat!J56^pomocniczo_do_innych_kalibracji!H36*Eurostat!L56^pomocniczo_do_innych_kalibracji!J36)^(1/(pomocniczo_do_innych_kalibracji!H36+pomocniczo_do_innych_kalibracji!J36))) -> 4.644957541 | AF36: =LN((Eurostat!P56^pomocniczo_do_innych_kalibracji!L36*Eurostat!R56^pomocniczo_do_innych_kalibracji!N36*Eurostat!T56^pomocniczo_do_innych_kalibracji!P36*Eurostat!V56^pomocniczo_do_innych_kalibracji!R36*Eurostat!X56^pomocniczo_do_innych_kalibracji!T36*Eurostat!Z56^pomocniczo_do_innych_kalibracji!V36*Eurostat!AB56^pomocniczo_do_innych_kalibracji!X36*Eurostat!AD56^pomocniczo_do_innych_kalibracji!Z36)^(1/(pomocniczo_do_innych_kalibracji!L36+pomocniczo_do_innych_kalibracji!N36+pomocniczo_do_innych_kalibracji!P36+pomocniczo_do_innych_kalibracji!R36+pomocniczo_do_innych_kalibracji!T36+pomocniczo_do_innych_kalibracji!V36+pomocniczo_do_innych_kalibracji!X36+pomocniczo_do_innych_kalibracji!Z36))) -> 4.652339757
A37: =dane_do_matlaba!A35 -> 2008Q2 | B37: =1-(Eurostat!AI57+Eurostat!AK57)/Eurostat!AG57 -> 0.71750145 | C37: =1-(Eurostat!AH57+Eurostat!AJ57)/Eurostat!AF57 -> 0.7821152496 | D37: =Eurostat!C57/SUM(Eurostat!B57:C57) -> 0.03858848644 | F37: =Eurostat!AG57/Eurostat!$AG57 -> 1 | G37: =Eurostat!AG57/Eurostat!$AG57 -> 1 | H37: =Eurostat!AI57/Eurostat!$AG57 -> 0.03779270472 | I37: =Eurostat!AI57/Eurostat!$AG57 -> 0.03779270472 | J37: =Eurostat!AK57/Eurostat!$AG57 -> 0.2447058452 | K37: =Eurostat!AK57/Eurostat!$AG57 -> 0.2447058452 | L37: =Eurostat!AO57/Eurostat!$AG57 -> 0.07645937426 | M37: =Eurostat!AO57/Eurostat!$AG57 -> 0.07645937426 | N37: =Eurostat!AQ57/Eurostat!$AG57 -> 0.2475686356 | O37: =Eurostat!AQ57/Eurostat!$AG57 -> 0.2475686356 | P37: =Eurostat!AS57/Eurostat!$AG57 -> 0.0400640095 | Q37: =Eurostat!AS57/Eurostat!$AG57 -> 0.0400640095 | R37: =Eurostat!AU57/Eurostat!$AG57 -> 0.05436218851 | S37: =Eurostat!AU57/Eurostat!$AG57 -> 0.05436218851 | T37: =Eurostat!AW57/Eurostat!$AG57 -> 0.06007056244 | U37: =Eurostat!AW57/Eurostat!$AG57 -> 0.06007056244 | V37: =Eurostat!AY57/Eurostat!$AG57 -> 0.06716767291 | W37: =Eurostat!AY57/Eurostat!$AG57 -> 0.06716767291 | X37: =Eurostat!BA57/Eurostat!$AG57 -> 0.1379269182 | Y37: =Eurostat!BA57/Eurostat!$AG57 -> 0.1379269182 | Z37: =Eurostat!BC57/Eurostat!$AG57 -> 0.03320349328 | AA37: =Eurostat!BC57/Eurostat!$AG57 -> 0.03320349328 | AC37: =LN((Eurostat!K57^pomocniczo_do_innych_kalibracji!I37*Eurostat!M57^pomocniczo_do_innych_kalibracji!K37)^(1/(pomocniczo_do_innych_kalibracji!I37+pomocniczo_do_innych_kalibracji!K37))) -> 4.628826628 | AD37: =LN((Eurostat!Q57^pomocniczo_do_innych_kalibracji!M37*Eurostat!S57^pomocniczo_do_innych_kalibracji!O37*Eurostat!U57^pomocniczo_do_innych_kalibracji!Q37*Eurostat!W57^pomocniczo_do_innych_kalibracji!S37*Eurostat!Y57^pomocniczo_do_innych_kalibracji!U37*Eurostat!AA57^pomocniczo_do_innych_kalibracji!W37*Eurostat!AC57^pomocniczo_do_innych_kalibracji!Y37*Eurostat!AE57^pomocniczo_do_innych_kalibracji!AA37)^(1/(pomocniczo_do_innych_kalibracji!M37+pomocniczo_do_innych_kalibracji!O37+pomocniczo_do_innych_kalibracji!Q37+pomocniczo_do_innych_kalibracji!S37+pomocniczo_do_innych_kalibracji!U37+pomocniczo_do_innych_kalibracji!W37+pomocniczo_do_innych_kalibracji!Y37+pomocniczo_do_innych_kalibracji!AA37))) -> 4.719682284 | AE37: =LN((Eurostat!J57^pomocniczo_do_innych_kalibracji!H37*Eurostat!L57^pomocniczo_do_innych_kalibracji!J37)^(1/(pomocniczo_do_innych_kalibracji!H37+pomocniczo_do_innych_kalibracji!J37))) -> 4.650324865 | AF37: =LN((Eurostat!P57^pomocniczo_do_innych_kalibracji!L37*Eurostat!R57^pomocniczo_do_innych_kalibracji!N37*Eurostat!T57^pomocniczo_do_innych_kalibracji!P37*Eurostat!V57^pomocniczo_do_innych_kalibracji!R37*Eurostat!X57^pomocniczo_do_innych_kalibracji!T37*Eurostat!Z57^pomocniczo_do_innych_kalibracji!V37*Eurostat!AB57^pomocniczo_do_innych_kalibracji!X37*Eurostat!AD57^pomocniczo_do_innych_kalibracji!Z37)^(1/(pomocniczo_do_innych_kalibracji!L37+pomocniczo_do_innych_kalibracji!N37+pomocniczo_do_innych_kalibracji!P37+pomocniczo_do_innych_kalibracji!R37+pomocniczo_do_innych_kalibracji!T37+pomocniczo_do_innych_kalibracji!V37+pomocniczo_do_innych_kalibracji!X37+pomocniczo_do_innych_kalibracji!Z37))) -> 4.660253519
A38: =dane_do_matlaba!A36 -> 2008Q3 | B38: =1-(Eurostat!AI58+Eurostat!AK58)/Eurostat!AG58 -> 0.7200966669 | C38: =1-(Eurostat!AH58+Eurostat!AJ58)/Eurostat!AF58 -> 0.7847234047 | D38: =Eurostat!C58/SUM(Eurostat!B58:C58) -> 0.04026089726 | F38: =Eurostat!AG58/Eurostat!$AG58 -> 1 | G38: =Eurostat!AG58/Eurostat!$AG58 -> 1 | H38: =Eurostat!AI58/Eurostat!$AG58 -> 0.03516266367 | I38: =Eurostat!AI58/Eurostat!$AG58 -> 0.03516266367 | J38: =Eurostat!AK58/Eurostat!$AG58 -> 0.2447406694 | K38: =Eurostat!AK58/Eurostat!$AG58 -> 0.2447406694 | L38: =Eurostat!AO58/Eurostat!$AG58 -> 0.07680973775 | M38: =Eurostat!AO58/Eurostat!$AG58 -> 0.07680973775 | N38: =Eurostat!AQ58/Eurostat!$AG58 -> 0.2479194264 | O38: =Eurostat!AQ58/Eurostat!$AG58 -> 0.2479194264 | P38: =Eurostat!AS58/Eurostat!$AG58 -> 0.04103515103 | Q38: =Eurostat!AS58/Eurostat!$AG58 -> 0.04103515103 | R38: =Eurostat!AU58/Eurostat!$AG58 -> 0.04955272514 | S38: =Eurostat!AU58/Eurostat!$AG58 -> 0.04955272514 | T38: =Eurostat!AW58/Eurostat!$AG58 -> 0.06020321767 | U38: =Eurostat!AW58/Eurostat!$AG58 -> 0.06020321767 | V38: =Eurostat!AY58/Eurostat!$AG58 -> 0.06835666936 | W38: =Eurostat!AY58/Eurostat!$AG58 -> 0.06835666936 | X38: =Eurostat!BA58/Eurostat!$AG58 -> 0.1393887396 | Y38: =Eurostat!BA58/Eurostat!$AG58 -> 0.1393887396 | Z38: =Eurostat!BC58/Eurostat!$AG58 -> 0.03326520872 | AA38: =Eurostat!BC58/Eurostat!$AG58 -> 0.03326520872 | AC38: =LN((Eurostat!K58^pomocniczo_do_innych_kalibracji!I38*Eurostat!M58^pomocniczo_do_innych_kalibracji!K38)^(1/(pomocniczo_do_innych_kalibracji!I38+pomocniczo_do_innych_kalibracji!K38))) -> 4.641513333 | AD38: =LN((Eurostat!Q58^pomocniczo_do_innych_kalibracji!M38*Eurostat!S58^pomocniczo_do_innych_kalibracji!O38*Eurostat!U58^pomocniczo_do_innych_kalibracji!Q38*Eurostat!W58^pomocniczo_do_innych_kalibracji!S38*Eurostat!Y58^pomocniczo_do_innych_kalibracji!U38*Eurostat!AA58^pomocniczo_do_innych_kalibracji!W38*Eurostat!AC58^pomocniczo_do_innych_kalibracji!Y38*Eurostat!AE58^pomocniczo_do_innych_kalibracji!AA38)^(1/(pomocniczo_do_innych_kalibracji!M38+pomocniczo_do_innych_kalibracji!O38+pomocniczo_do_innych_kalibracji!Q38+pomocniczo_do_innych_kalibracji!S38+pomocniczo_do_innych_kalibracji!U38+pomocniczo_do_innych_kalibracji!W38+pomocniczo_do_innych_kalibracji!Y38+pomocniczo_do_innych_kalibracji!AA38))) -> 4.721325589 | AE38: =LN((Eurostat!J58^pomocniczo_do_innych_kalibracji!H38*Eurostat!L58^pomocniczo_do_innych_kalibracji!J38)^(1/(pomocniczo_do_innych_kalibracji!H38+pomocniczo_do_innych_kalibracji!J38))) -> 4.650948304 | AF38: =LN((Eurostat!P58^pomocniczo_do_innych_kalibracji!L38*Eurostat!R58^pomocniczo_do_innych_kalibracji!N38*Eurostat!T58^pomocniczo_do_innych_kalibracji!P38*Eurostat!V58^pomocniczo_do_innych_kalibracji!R38*Eurostat!X58^pomocniczo_do_innych_kalibracji!T38*Eurostat!Z58^pomocniczo_do_innych_kalibracji!V38*Eurostat!AB58^pomocniczo_do_innych_kalibracji!X38*Eurostat!AD58^pomocniczo_do_innych_kalibracji!Z38)^(1/(pomocniczo_do_innych_kalibracji!L38+pomocniczo_do_innych_kalibracji!N38+pomocniczo_do_innych_kalibracji!P38+pomocniczo_do_innych_kalibracji!R38+pomocniczo_do_innych_kalibracji!T38+pomocniczo_do_innych_kalibracji!V38+pomocniczo_do_innych_kalibracji!X38+pomocniczo_do_innych_kalibracji!Z38))) -> 4.665006531
A39: =dane_do_matlaba!A37 -> 2008Q4 | B39: =1-(Eurostat!AI59+Eurostat!AK59)/Eurostat!AG59 -> 0.7300042124 | C39: =1-(Eurostat!AH59+Eurostat!AJ59)/Eurostat!AF59 -> 0.7917569943 | D39: =Eurostat!C59/SUM(Eurostat!B59:C59) -> 0.03623121682 | F39: =Eurostat!AG59/Eurostat!$AG59 -> 1 | G39: =Eurostat!AG59/Eurostat!$AG59 -> 1 | H39: =Eurostat!AI59/Eurostat!$AG59 -> 0.03724749762 | I39: =Eurostat!AI59/Eurostat!$AG59 -> 0.03724749762 | J39: =Eurostat!AK59/Eurostat!$AG59 -> 0.23274829 | K39: =Eurostat!AK59/Eurostat!$AG59 -> 0.23274829 | L39: =Eurostat!AO59/Eurostat!$AG59 -> 0.07760241632 | M39: =Eurostat!AO59/Eurostat!$AG59 -> 0.07760241632 | N39: =Eurostat!AQ59/Eurostat!$AG59 -> 0.2512223328 | O39: =Eurostat!AQ59/Eurostat!$AG59 -> 0.2512223328 | P39: =Eurostat!AS59/Eurostat!$AG59 -> 0.04236520598 | Q39: =Eurostat!AS59/Eurostat!$AG59 -> 0.04236520598 | R39: =Eurostat!AU59/Eurostat!$AG59 -> 0.05283823439 | S39: =Eurostat!AU59/Eurostat!$AG59 -> 0.05283823439 | T39: =Eurostat!AW59/Eurostat!$AG59 -> 0.06193212048 | U39: =Eurostat!AW59/Eurostat!$AG59 -> 0.06193212048 | V39: =Eurostat!AY59/Eurostat!$AG59 -> 0.07245451814 | W39: =Eurostat!AY59/Eurostat!$AG59 -> 0.07245451814 | X39: =Eurostat!BA59/Eurostat!$AG59 -> 0.1420917927 | Y39: =Eurostat!BA59/Eurostat!$AG59 -> 0.1420917927 | Z39: =Eurostat!BC59/Eurostat!$AG59 -> 0.03397918252 | AA39: =Eurostat!BC59/Eurostat!$AG59 -> 0.03397918252 | AC39: =LN((Eurostat!K59^pomocniczo_do_innych_kalibracji!I39*Eurostat!M59^pomocniczo_do_innych_kalibracji!K39)^(1/(pomocniczo_do_innych_kalibracji!I39+pomocniczo_do_innych_kalibracji!K39))) -> 4.606494709 | AD39: =LN((Eurostat!Q59^pomocniczo_do_innych_kalibracji!M39*Eurostat!S59^pomocniczo_do_innych_kalibracji!O39*Eurostat!U59^pomocniczo_do_innych_kalibracji!Q39*Eurostat!W59^pomocniczo_do_innych_kalibracji!S39*Eurostat!Y59^pomocniczo_do_innych_kalibracji!U39*Eurostat!AA59^pomocniczo_do_innych_kalibracji!W39*Eurostat!AC59^pomocniczo_do_innych_kalibracji!Y39*Eurostat!AE59^pomocniczo_do_innych_kalibracji!AA39)^(1/(pomocniczo_do_innych_kalibracji!M39+pomocniczo_do_innych_kalibracji!O39+pomocniczo_do_innych_kalibracji!Q39+pomocniczo_do_innych_kalibracji!S39+pomocniczo_do_innych_kalibracji!U39+pomocniczo_do_innych_kalibracji!W39+pomocniczo_do_innych_kalibracji!Y39+pomocniczo_do_innych_kalibracji!AA39))) -> 4.730799879 | AE39: =LN((Eurostat!J59^pomocniczo_do_innych_kalibracji!H39*Eurostat!L59^pomocniczo_do_innych_kalibracji!J39)^(1/(pomocniczo_do_innych_kalibracji!H39+pomocniczo_do_innych_kalibracji!J39))) -> 4.649871185 | AF39: =LN((Eurostat!P59^pomocniczo_do_innych_kalibracji!L39*Eurostat!R59^pomocniczo_do_innych_kalibracji!N39*Eurostat!T59^pomocniczo_do_innych_kalibracji!P39*Eurostat!V59^pomocniczo_do_innych_kalibracji!R39*Eurostat!X59^pomocniczo_do_innych_kalibracji!T39*Eurostat!Z59^pomocniczo_do_innych_kalibracji!V39*Eurostat!AB59^pomocniczo_do_innych_kalibracji!X39*Eurostat!AD59^pomocniczo_do_innych_kalibracji!Z39)^(1/(pomocniczo_do_innych_kalibracji!L39+pomocniczo_do_innych_kalibracji!N39+pomocniczo_do_innych_kalibracji!P39+pomocniczo_do_innych_kalibracji!R39+pomocniczo_do_innych_kalibracji!T39+pomocniczo_do_innych_kalibracji!V39+pomocniczo_do_innych_kalibracji!X39+pomocniczo_do_innych_kalibracji!Z39))) -> 4.670406731
A40: =dane_do_matlaba!A38 -> 2009Q1 | B40: =1-(Eurostat!AI60+Eurostat!AK60)/Eurostat!AG60 -> 0.7182831369 | C40: =1-(Eurostat!AH60+Eurostat!AJ60)/Eurostat!AF60 -> 0.8025659579 | D40: =Eurostat!C60/SUM(Eurostat!B60:C60) -> 0.03193805524 | F40: =Eurostat!AG60/Eurostat!$AG60 -> 1 | G40: =Eurostat!AG60/Eurostat!$AG60 -> 1 | H40: =Eurostat!AI60/Eurostat!$AG60 -> 0.03530549497 | I40: =Eurostat!AI60/Eurostat!$AG60 -> 0.03530549497 | J40: =Eurostat!AK60/Eurostat!$AG60 -> 0.2464113681 | K40: =Eurostat!AK60/Eurostat!$AG60 -> 0.2464113681 | L40: =Eurostat!AO60/Eurostat!$AG60 -> 0.08249850911 | M40: =Eurostat!AO60/Eurostat!$AG60 -> 0.08249850911 | N40: =Eurostat!AQ60/Eurostat!$AG60 -> 0.251849915 | O40: =Eurostat!AQ60/Eurostat!$AG60 -> 0.251849915 | P40: =Eurostat!AS60/Eurostat!$AG60 -> 0.04097411843 | Q40: =Eurostat!AS60/Eurostat!$AG60 -> 0.04097411843 | R40: =Eurostat!AU60/Eurostat!$AG60 -> 0.04212484285 | S40: =Eurostat!AU60/Eurostat!$AG60 -> 0.04212484285 | T40: =Eurostat!AW60/Eurostat!$AG60 -> 0.05639437179 | U40: =Eurostat!AW60/Eurostat!$AG60 -> 0.05639437179 | V40: =Eurostat!AY60/Eurostat!$AG60 -> 0.07105885421 | W40: =Eurostat!AY60/Eurostat!$AG60 -> 0.07105885421 | X40: =Eurostat!BA60/Eurostat!$AG60 -> 0.139461928 | Y40: =Eurostat!BA60/Eurostat!$AG60 -> 0.139461928 | Z40: =Eurostat!BC60/Eurostat!$AG60 -> 0.03280366784 | AA40: =Eurostat!BC60/Eurostat!$AG60 -> 0.03280366784 | AC40: =LN((Eurostat!K60^pomocniczo_do_innych_kalibracji!I40*Eurostat!M60^pomocniczo_do_innych_kalibracji!K40)^(1/(pomocniczo_do_innych_kalibracji!I40+pomocniczo_do_innych_kalibracji!K40))) -> 4.692952222 | AD40: =LN((Eurostat!Q60^pomocniczo_do_innych_kalibracji!M40*Eurostat!S60^pomocniczo_do_innych_kalibracji!O40*Eurostat!U60^pomocniczo_do_innych_kalibracji!Q40*Eurostat!W60^pomocniczo_do_innych_kalibracji!S40*Eurostat!Y60^pomocniczo_do_innych_kalibracji!U40*Eurostat!AA60^pomocniczo_do_innych_kalibracji!W40*Eurostat!AC60^pomocniczo_do_innych_kalibracji!Y40*Eurostat!AE60^pomocniczo_do_innych_kalibracji!AA40)^(1/(pomocniczo_do_innych_kalibracji!M40+pomocniczo_do_innych_kalibracji!O40+pomocniczo_do_innych_kalibracji!Q40+pomocniczo_do_innych_kalibracji!S40+pomocniczo_do_innych_kalibracji!U40+pomocniczo_do_innych_kalibracji!W40+pomocniczo_do_innych_kalibracji!Y40+pomocniczo_do_innych_kalibracji!AA40))) -> 4.745306824 | AE40: =LN((Eurostat!J60^pomocniczo_do_innych_kalibracji!H40*Eurostat!L60^pomocniczo_do_innych_kalibracji!J40)^(1/(pomocniczo_do_innych_kalibracji!H40+pomocniczo_do_innych_kalibracji!J40))) -> 4.656651856 | AF40: =LN((Eurostat!P60^pomocniczo_do_innych_kalibracji!L40*Eurostat!R60^pomocniczo_do_innych_kalibracji!N40*Eurostat!T60^pomocniczo_do_innych_kalibracji!P40*Eurostat!V60^pomocniczo_do_innych_kalibracji!R40*Eurostat!X60^pomocniczo_do_innych_kalibracji!T40*Eurostat!Z60^pomocniczo_do_innych_kalibracji!V40*Eurostat!AB60^pomocniczo_do_innych_kalibracji!X40*Eurostat!AD60^pomocniczo_do_innych_kalibracji!Z40)^(1/(pomocniczo_do_innych_kalibracji!L40+pomocniczo_do_innych_kalibracji!N40+pomocniczo_do_innych_kalibracji!P40+pomocniczo_do_innych_kalibracji!R40+pomocniczo_do_innych_kalibracji!T40+pomocniczo_do_innych_kalibracji!V40+pomocniczo_do_innych_kalibracji!X40+pomocniczo_do_innych_kalibracji!Z40))) -> 4.676919746
A41: =dane_do_matlaba!A39 -> 2009Q2 | B41: =1-(Eurostat!AI61+Eurostat!AK61)/Eurostat!AG61 -> 0.7191988003 | C41: =1-(Eurostat!AH61+Eurostat!AJ61)/Eurostat!AF61 -> 0.8044922401 | D41: =Eurostat!C61/SUM(Eurostat!B61:C61) -> 0.03249702195 | F41: =Eurostat!AG61/Eurostat!$AG61 -> 1 | G41: =Eurostat!AG61/Eurostat!$AG61 -> 1 | H41: =Eurostat!AI61/Eurostat!$AG61 -> 0.03611883235 | I41: =Eurostat!AI61/Eurostat!$AG61 -> 0.03611883235 | J41: =Eurostat!AK61/Eurostat!$AG61 -> 0.2446823673 | K41: =Eurostat!AK61/Eurostat!$AG61 -> 0.2446823673 | L41: =Eurostat!AO61/Eurostat!$AG61 -> 0.08062287009 | M41: =Eurostat!AO61/Eurostat!$AG61 -> 0.08062287009 | N41: =Eurostat!AQ61/Eurostat!$AG61 -> 0.2555101476 | O41: =Eurostat!AQ61/Eurostat!$AG61 -> 0.2555101476 | P41: =Eurostat!AS61/Eurostat!$AG61 -> 0.04059531007 | Q41: =Eurostat!AS61/Eurostat!$AG61 -> 0.04059531007 | R41: =Eurostat!AU61/Eurostat!$AG61 -> 0.03709390336 | S41: =Eurostat!AU61/Eurostat!$AG61 -> 0.03709390336 | T41: =Eurostat!AW61/Eurostat!$AG61 -> 0.05652743675 | U41: =Eurostat!AW61/Eurostat!$AG61 -> 0.05652743675 | V41: =Eurostat!AY61/Eurostat!$AG61 -> 0.07014431862 | W41: =Eurostat!AY61/Eurostat!$AG61 -> 0.07014431862 | X41: =Eurostat!BA61/Eurostat!$AG61 -> 0.1407695867 | Y41: =Eurostat!BA61/Eurostat!$AG61 -> 0.1407695867 | Z41: =Eurostat!BC61/Eurostat!$AG61 -> 0.03289370139 | AA41: =Eurostat!BC61/Eurostat!$AG61 -> 0.03289370139 | AC41: =LN((Eurostat!K61^pomocniczo_do_innych_kalibracji!I41*Eurostat!M61^pomocniczo_do_innych_kalibracji!K41)^(1/(pomocniczo_do_innych_kalibracji!I41+pomocniczo_do_innych_kalibracji!K41))) -> 4.678708283 | AD41: =LN((Eurostat!Q61^pomocniczo_do_innych_kalibracji!M41*Eurostat!S61^pomocniczo_do_innych_kalibracji!O41*Eurostat!U61^pomocniczo_do_innych_kalibracji!Q41*Eurostat!W61^pomocniczo_do_innych_kalibracji!S41*Eurostat!Y61^pomocniczo_do_innych_kalibracji!U41*Eurostat!AA61^pomocniczo_do_innych_kalibracji!W41*Eurostat!AC61^pomocniczo_do_innych_kalibracji!Y41*Eurostat!AE61^pomocniczo_do_innych_kalibracji!AA41)^(1/(pomocniczo_do_innych_kalibracji!M41+pomocniczo_do_innych_kalibracji!O41+pomocniczo_do_innych_kalibracji!Q41+pomocniczo_do_innych_kalibracji!S41+pomocniczo_do_innych_kalibracji!U41+pomocniczo_do_innych_kalibracji!W41+pomocniczo_do_innych_kalibracji!Y41+pomocniczo_do_innych_kalibracji!AA41))) -> 4.756213775 | AE41: =LN((Eurostat!J61^pomocniczo_do_innych_kalibracji!H41*Eurostat!L61^pomocniczo_do_innych_kalibracji!J41)^(1/(pomocniczo_do_innych_kalibracji!H41+pomocniczo_do_innych_kalibracji!J41))) -> 4.651527169 | AF41: =LN((Eurostat!P61^pomocniczo_do_innych_kalibracji!L41*Eurostat!R61^pomocniczo_do_innych_kalibracji!N41*Eurostat!T61^pomocniczo_do_innych_kalibracji!P41*Eurostat!V61^pomocniczo_do_innych_kalibracji!R41*Eurostat!X61^pomocniczo_do_innych_kalibracji!T41*Eurostat!Z61^pomocniczo_do_innych_kalibracji!V41*Eurostat!AB61^pomocniczo_do_innych_kalibracji!X41*Eurostat!AD61^pomocniczo_do_innych_kalibracji!Z41)^(1/(pomocniczo_do_innych_kalibracji!L41+pomocniczo_do_innych_kalibracji!N41+pomocniczo_do_innych_kalibracji!P41+pomocniczo_do_innych_kalibracji!R41+pomocniczo_do_innych_kalibracji!T41+pomocniczo_do_innych_kalibracji!V41+pomocniczo_do_innych_kalibracji!X41+pomocniczo_do_innych_kalibracji!Z41))) -> 4.680624146
A42: =dane_do_matlaba!A40 -> 2009Q3 | B42: =1-(Eurostat!AI62+Eurostat!AK62)/Eurostat!AG62 -> 0.719200452 | C42: =1-(Eurostat!AH62+Eurostat!AJ62)/Eurostat!AF62 -> 0.8019855868 | D42: =Eurostat!C62/SUM(Eurostat!B62:C62) -> 0.03478142395 | F42: =Eurostat!AG62/Eurostat!$AG62 -> 1 | G42: =Eurostat!AG62/Eurostat!$AG62 -> 1 | H42: =Eurostat!AI62/Eurostat!$AG62 -> 0.03534555167 | I42: =Eurostat!AI62/Eurostat!$AG62 -> 0.03534555167 | J42: =Eurostat!AK62/Eurostat!$AG62 -> 0.2454539964 | K42: =Eurostat!AK62/Eurostat!$AG62 -> 0.2454539964 | L42: =Eurostat!AO62/Eurostat!$AG62 -> 0.08021008842 | M42: =Eurostat!AO62/Eurostat!$AG62 -> 0.08021008842 | N42: =Eurostat!AQ62/Eurostat!$AG62 -> 0.2575718896 | O42: =Eurostat!AQ62/Eurostat!$AG62 -> 0.2575718896 | P42: =Eurostat!AS62/Eurostat!$AG62 -> 0.04020832645 | Q42: =Eurostat!AS62/Eurostat!$AG62 -> 0.04020832645 | R42: =Eurostat!AU62/Eurostat!$AG62 -> 0.03903968541 | S42: =Eurostat!AU62/Eurostat!$AG62 -> 0.03903968541 | T42: =Eurostat!AW62/Eurostat!$AG62 -> 0.05656496286 | U42: =Eurostat!AW62/Eurostat!$AG62 -> 0.05656496286 | V42: =Eurostat!AY62/Eurostat!$AG62 -> 0.07066006862 | W42: =Eurostat!AY62/Eurostat!$AG62 -> 0.07066006862 | X42: =Eurostat!BA62/Eurostat!$AG62 -> 0.1417172483 | Y42: =Eurostat!BA62/Eurostat!$AG62 -> 0.1417172483 | Z42: =Eurostat!BC62/Eurostat!$AG62 -> 0.03299225166 | AA42: =Eurostat!BC62/Eurostat!$AG62 -> 0.03299225166 | AC42: =LN((Eurostat!K62^pomocniczo_do_innych_kalibracji!I42*Eurostat!M62^pomocniczo_do_innych_kalibracji!K42)^(1/(pomocniczo_do_innych_kalibracji!I42+pomocniczo_do_innych_kalibracji!K42))) -> 4.667413184 | AD42: =LN((Eurostat!Q62^pomocniczo_do_innych_kalibracji!M42*Eurostat!S62^pomocniczo_do_innych_kalibracji!O42*Eurostat!U62^pomocniczo_do_innych_kalibracji!Q42*Eurostat!W62^pomocniczo_do_innych_kalibracji!S42*Eurostat!Y62^pomocniczo_do_innych_kalibracji!U42*Eurostat!AA62^pomocniczo_do_innych_kalibracji!W42*Eurostat!AC62^pomocniczo_do_innych_kalibracji!Y42*Eurostat!AE62^pomocniczo_do_innych_kalibracji!AA42)^(1/(pomocniczo_do_innych_kalibracji!M42+pomocniczo_do_innych_kalibracji!O42+pomocniczo_do_innych_kalibracji!Q42+pomocniczo_do_innych_kalibracji!S42+pomocniczo_do_innych_kalibracji!U42+pomocniczo_do_innych_kalibracji!W42+pomocniczo_do_innych_kalibracji!Y42+pomocniczo_do_innych_kalibracji!AA42))) -> 4.771741375 | AE42: =LN((Eurostat!J62^pomocniczo_do_innych_kalibracji!H42*Eurostat!L62^pomocniczo_do_innych_kalibracji!J42)^(1/(pomocniczo_do_innych_kalibracji!H42+pomocniczo_do_innych_kalibracji!J42))) -> 4.646960721 | AF42: =LN((Eurostat!P62^pomocniczo_do_innych_kalibracji!L42*Eurostat!R62^pomocniczo_do_innych_kalibracji!N42*Eurostat!T62^pomocniczo_do_innych_kalibracji!P42*Eurostat!V62^pomocniczo_do_innych_kalibracji!R42*Eurostat!X62^pomocniczo_do_innych_kalibracji!T42*Eurostat!Z62^pomocniczo_do_innych_kalibracji!V42*Eurostat!AB62^pomocniczo_do_innych_kalibracji!X42*Eurostat!AD62^pomocniczo_do_innych_kalibracji!Z42)^(1/(pomocniczo_do_innych_kalibracji!L42+pomocniczo_do_innych_kalibracji!N42+pomocniczo_do_innych_kalibracji!P42+pomocniczo_do_innych_kalibracji!R42+pomocniczo_do_innych_kalibracji!T42+pomocniczo_do_innych_kalibracji!V42+pomocniczo_do_innych_kalibracji!X42+pomocniczo_do_innych_kalibracji!Z42))) -> 4.683710274
A43: =dane_do_matlaba!A41 -> 2009Q4 | B43: =1-(Eurostat!AI63+Eurostat!AK63)/Eurostat!AG63 -> 0.7185556278 | C43: =1-(Eurostat!AH63+Eurostat!AJ63)/Eurostat!AF63 -> 0.8000552096 | D43: =Eurostat!C63/SUM(Eurostat!B63:C63) -> 0.03521140678 | F43: =Eurostat!AG63/Eurostat!$AG63 -> 1 | G43: =Eurostat!AG63/Eurostat!$AG63 -> 1 | H43: =Eurostat!AI63/Eurostat!$AG63 -> 0.03640929044 | I43: =Eurostat!AI63/Eurostat!$AG63 -> 0.03640929044 | J43: =Eurostat!AK63/Eurostat!$AG63 -> 0.2450350818 | K43: =Eurostat!AK63/Eurostat!$AG63 -> 0.2450350818 | L43: =Eurostat!AO63/Eurostat!$AG63 -> 0.08093136473 | M43: =Eurostat!AO63/Eurostat!$AG63 -> 0.08093136473 | N43: =Eurostat!AQ63/Eurostat!$AG63 -> 0.2604114609 | O43: =Eurostat!AQ63/Eurostat!$AG63 -> 0.2604114609 | P43: =Eurostat!AS63/Eurostat!$AG63 -> 0.04000449648 | Q43: =Eurostat!AS63/Eurostat!$AG63 -> 0.04000449648 | R43: =Eurostat!AU63/Eurostat!$AG63 -> 0.03868588066 | S43: =Eurostat!AU63/Eurostat!$AG63 -> 0.03868588066 | T43: =Eurostat!AW63/Eurostat!$AG63 -> 0.05650829212 | U43: =Eurostat!AW63/Eurostat!$AG63 -> 0.05650829212 | V43: =Eurostat!AY63/Eurostat!$AG63 -> 0.07058517533 | W43: =Eurostat!AY63/Eurostat!$AG63 -> 0.07058517533 | X43: =Eurostat!BA63/Eurostat!$AG63 -> 0.1426989561 | Y43: =Eurostat!BA63/Eurostat!$AG63 -> 0.1426989561 | Z43: =Eurostat!BC63/Eurostat!$AG63 -> 0.03259849071 | AA43: =Eurostat!BC63/Eurostat!$AG63 -> 0.03259849071 | AC43: =LN((Eurostat!K63^pomocniczo_do_innych_kalibracji!I43*Eurostat!M63^pomocniczo_do_innych_kalibracji!K43)^(1/(pomocniczo_do_innych_kalibracji!I43+pomocniczo_do_innych_kalibracji!K43))) -> 4.664181503 | AD43: =LN((Eurostat!Q63^pomocniczo_do_innych_kalibracji!M43*Eurostat!S63^pomocniczo_do_innych_kalibracji!O43*Eurostat!U63^pomocniczo_do_innych_kalibracji!Q43*Eurostat!W63^pomocniczo_do_innych_kalibracji!S43*Eurostat!Y63^pomocniczo_do_innych_kalibracji!U43*Eurostat!AA63^pomocniczo_do_innych_kalibracji!W43*Eurostat!AC63^pomocniczo_do_innych_kalibracji!Y43*Eurostat!AE63^pomocniczo_do_innych_kalibracji!AA43)^(1/(pomocniczo_do_innych_kalibracji!M43+pomocniczo_do_innych_kalibracji!O43+pomocniczo_do_innych_kalibracji!Q43+pomocniczo_do_innych_kalibracji!S43+pomocniczo_do_innych_kalibracji!U43+pomocniczo_do_innych_kalibracji!W43+pomocniczo_do_innych_kalibracji!Y43+pomocniczo_do_innych_kalibracji!AA43))) -> 4.784910809 | AE43: =LN((Eurostat!J63^pomocniczo_do_innych_kalibracji!H43*Eurostat!L63^pomocniczo_do_innych_kalibracji!J43)^(1/(pomocniczo_do_innych_kalibracji!H43+pomocniczo_do_innych_kalibracji!J43))) -> 4.647767855 | AF43: =LN((Eurostat!P63^pomocniczo_do_innych_kalibracji!L43*Eurostat!R63^pomocniczo_do_innych_kalibracji!N43*Eurostat!T63^pomocniczo_do_innych_kalibracji!P43*Eurostat!V63^pomocniczo_do_innych_kalibracji!R43*Eurostat!X63^pomocniczo_do_innych_kalibracji!T43*Eurostat!Z63^pomocniczo_do_innych_kalibracji!V43*Eurostat!AB63^pomocniczo_do_innych_kalibracji!X43*Eurostat!AD63^pomocniczo_do_innych_kalibracji!Z43)^(1/(pomocniczo_do_innych_kalibracji!L43+pomocniczo_do_innych_kalibracji!N43+pomocniczo_do_innych_kalibracji!P43+pomocniczo_do_innych_kalibracji!R43+pomocniczo_do_innych_kalibracji!T43+pomocniczo_do_innych_kalibracji!V43+pomocniczo_do_innych_kalibracji!X43+pomocniczo_do_innych_kalibracji!Z43))) -> 4.684232984
A44: =dane_do_matlaba!A42 -> 2010Q1 | B44: =1-(Eurostat!AI64+Eurostat!AK64)/Eurostat!AG64 -> 0.7384780593 | C44: =1-(Eurostat!AH64+Eurostat!AJ64)/Eurostat!AF64 -> 0.7957488689 | D44: =Eurostat!C64/SUM(Eurostat!B64:C64) -> 0.03675423888 | F44: =Eurostat!AG64/Eurostat!$AG64 -> 1 | G44: =Eurostat!AG64/Eurostat!$AG64 -> 1 | H44: =Eurostat!AI64/Eurostat!$AG64 -> 0.03788287318 | I44: =Eurostat!AI64/Eurostat!$AG64 -> 0.03788287318 | J44: =Eurostat!AK64/Eurostat!$AG64 -> 0.2236390675 | K44: =Eurostat!AK64/Eurostat!$AG64 -> 0.2236390675 | L44: =Eurostat!AO64/Eurostat!$AG64 -> 0.08080706411 | M44: =Eurostat!AO64/Eurostat!$AG64 -> 0.08080706411 | N44: =Eurostat!AQ64/Eurostat!$AG64 -> 0.2658310242 | O44: =Eurostat!AQ64/Eurostat!$AG64 -> 0.2658310242 | P44: =Eurostat!AS64/Eurostat!$AG64 -> 0.03847845925 | Q44: =Eurostat!AS64/Eurostat!$AG64 -> 0.03847845925 | R44: =Eurostat!AU64/Eurostat!$AG64 -> 0.04177734613 | S44: =Eurostat!AU64/Eurostat!$AG64 -> 0.04177734613 | T44: =Eurostat!AW64/Eurostat!$AG64 -> 0.05774718488 | U44: =Eurostat!AW64/Eurostat!$AG64 -> 0.05774718488 | V44: =Eurostat!AY64/Eurostat!$AG64 -> 0.07106838208 | W44: =Eurostat!AY64/Eurostat!$AG64 -> 0.07106838208 | X44: =Eurostat!BA64/Eurostat!$AG64 -> 0.1456186263 | Y44: =Eurostat!BA64/Eurostat!$AG64 -> 0.1456186263 | Z44: =Eurostat!BC64/Eurostat!$AG64 -> 0.03277623095 | AA44: =Eurostat!BC64/Eurostat!$AG64 -> 0.03277623095 | AC44: =LN((Eurostat!K64^pomocniczo_do_innych_kalibracji!I44*Eurostat!M64^pomocniczo_do_innych_kalibracji!K44)^(1/(pomocniczo_do_innych_kalibracji!I44+pomocniczo_do_innych_kalibracji!K44))) -> 4.565874563 | AD44: =LN((Eurostat!Q64^pomocniczo_do_innych_kalibracji!M44*Eurostat!S64^pomocniczo_do_innych_kalibracji!O44*Eurostat!U64^pomocniczo_do_innych_kalibracji!Q44*Eurostat!W64^pomocniczo_do_innych_kalibracji!S44*Eurostat!Y64^pomocniczo_do_innych_kalibracji!U44*Eurostat!AA64^pomocniczo_do_innych_kalibracji!W44*Eurostat!AC64^pomocniczo_do_innych_kalibracji!Y44*Eurostat!AE64^pomocniczo_do_innych_kalibracji!AA44)^(1/(pomocniczo_do_innych_kalibracji!M44+pomocniczo_do_innych_kalibracji!O44+pomocniczo_do_innych_kalibracji!Q44+pomocniczo_do_innych_kalibracji!S44+pomocniczo_do_innych_kalibracji!U44+pomocniczo_do_innych_kalibracji!W44+pomocniczo_do_innych_kalibracji!Y44+pomocniczo_do_innych_kalibracji!AA44))) -> 4.77959655 | AE44: =LN((Eurostat!J64^pomocniczo_do_innych_kalibracji!H44*Eurostat!L64^pomocniczo_do_innych_kalibracji!J44)^(1/(pomocniczo_do_innych_kalibracji!H44+pomocniczo_do_innych_kalibracji!J44))) -> 4.640864786 | AF44: =LN((Eurostat!P64^pomocniczo_do_innych_kalibracji!L44*Eurostat!R64^pomocniczo_do_innych_kalibracji!N44*Eurostat!T64^pomocniczo_do_innych_kalibracji!P44*Eurostat!V64^pomocniczo_do_innych_kalibracji!R44*Eurostat!X64^pomocniczo_do_innych_kalibracji!T44*Eurostat!Z64^pomocniczo_do_innych_kalibracji!V44*Eurostat!AB64^pomocniczo_do_innych_kalibracji!X44*Eurostat!AD64^pomocniczo_do_innych_kalibracji!Z44)^(1/(pomocniczo_do_innych_kalibracji!L44+pomocniczo_do_innych_kalibracji!N44+pomocniczo_do_innych_kalibracji!P44+pomocniczo_do_innych_kalibracji!R44+pomocniczo_do_innych_kalibracji!T44+pomocniczo_do_innych_kalibracji!V44+pomocniczo_do_innych_kalibracji!X44+pomocniczo_do_innych_kalibracji!Z44))) -> 4.68438667
A45: =dane_do_matlaba!A43 -> 2010Q2 | B45: =1-(Eurostat!AI65+Eurostat!AK65)/Eurostat!AG65 -> 0.7175201174 | C45: =1-(Eurostat!AH65+Eurostat!AJ65)/Eurostat!AF65 -> 0.7918911431 | D45: =Eurostat!C65/SUM(Eurostat!B65:C65) -> 0.03688852376 | F45: =Eurostat!AG65/Eurostat!$AG65 -> 1 | G45: =Eurostat!AG65/Eurostat!$AG65 -> 1 | H45: =Eurostat!AI65/Eurostat!$AG65 -> 0.03719959192 | I45: =Eurostat!AI65/Eurostat!$AG65 -> 0.03719959192 | J45: =Eurostat!AK65/Eurostat!$AG65 -> 0.2452802907 | K45: =Eurostat!AK65/Eurostat!$AG65 -> 0.2452802907 | L45: =Eurostat!AO65/Eurostat!$AG65 -> 0.07974589054 | M45: =Eurostat!AO65/Eurostat!$AG65 -> 0.07974589054 | N45: =Eurostat!AQ65/Eurostat!$AG65 -> 0.2603147031 | O45: =Eurostat!AQ65/Eurostat!$AG65 -> 0.2603147031 | P45: =Eurostat!AS65/Eurostat!$AG65 -> 0.03847194259 | Q45: =Eurostat!AS65/Eurostat!$AG65 -> 0.03847194259 | R45: =Eurostat!AU65/Eurostat!$AG65 -> 0.0413100156 | S45: =Eurostat!AU65/Eurostat!$AG65 -> 0.0413100156 | T45: =Eurostat!AW65/Eurostat!$AG65 -> 0.05597698884 | U45: =Eurostat!AW65/Eurostat!$AG65 -> 0.05597698884 | V45: =Eurostat!AY65/Eurostat!$AG65 -> 0.06868793627 | W45: =Eurostat!AY65/Eurostat!$AG65 -> 0.06868793627 | X45: =Eurostat!BA65/Eurostat!$AG65 -> 0.1410918063 | Y45: =Eurostat!BA65/Eurostat!$AG65 -> 0.1410918063 | Z45: =Eurostat!BC65/Eurostat!$AG65 -> 0.03185063099 | AA45: =Eurostat!BC65/Eurostat!$AG65 -> 0.03185063099 | AC45: =LN((Eurostat!K65^pomocniczo_do_innych_kalibracji!I45*Eurostat!M65^pomocniczo_do_innych_kalibracji!K45)^(1/(pomocniczo_do_innych_kalibracji!I45+pomocniczo_do_innych_kalibracji!K45))) -> 4.671930625 | AD45: =LN((Eurostat!Q65^pomocniczo_do_innych_kalibracji!M45*Eurostat!S65^pomocniczo_do_innych_kalibracji!O45*Eurostat!U65^pomocniczo_do_innych_kalibracji!Q45*Eurostat!W65^pomocniczo_do_innych_kalibracji!S45*Eurostat!Y65^pomocniczo_do_innych_kalibracji!U45*Eurostat!AA65^pomocniczo_do_innych_kalibracji!W45*Eurostat!AC65^pomocniczo_do_innych_kalibracji!Y45*Eurostat!AE65^pomocniczo_do_innych_kalibracji!AA45)^(1/(pomocniczo_do_innych_kalibracji!M45+pomocniczo_do_innych_kalibracji!O45+pomocniczo_do_innych_kalibracji!Q45+pomocniczo_do_innych_kalibracji!S45+pomocniczo_do_innych_kalibracji!U45+pomocniczo_do_innych_kalibracji!W45+pomocniczo_do_innych_kalibracji!Y45+pomocniczo_do_innych_kalibracji!AA45))) -> 4.786575832 | AE45: =LN((Eurostat!J65^pomocniczo_do_innych_kalibracji!H45*Eurostat!L65^pomocniczo_do_innych_kalibracji!J45)^(1/(pomocniczo_do_innych_kalibracji!H45+pomocniczo_do_innych_kalibracji!J45))) -> 4.6519569 | AF45: =LN((Eurostat!P65^pomocniczo_do_innych_kalibracji!L45*Eurostat!R65^pomocniczo_do_innych_kalibracji!N45*Eurostat!T65^pomocniczo_do_innych_kalibracji!P45*Eurostat!V65^pomocniczo_do_innych_kalibracji!R45*Eurostat!X65^pomocniczo_do_innych_kalibracji!T45*Eurostat!Z65^pomocniczo_do_innych_kalibracji!V45*Eurostat!AB65^pomocniczo_do_innych_kalibracji!X45*Eurostat!AD65^pomocniczo_do_innych_kalibracji!Z45)^(1/(pomocniczo_do_innych_kalibracji!L45+pomocniczo_do_innych_kalibracji!N45+pomocniczo_do_innych_kalibracji!P45+pomocniczo_do_innych_kalibracji!R45+pomocniczo_do_innych_kalibracji!T45+pomocniczo_do_innych_kalibracji!V45+pomocniczo_do_innych_kalibracji!X45+pomocniczo_do_innych_kalibracji!Z45))) -> 4.684167267
A46: =dane_do_matlaba!A44 -> 2010Q3 | B46: =1-(Eurostat!AI66+Eurostat!AK66)/Eurostat!AG66 -> 0.7204937332 | C46: =1-(Eurostat!AH66+Eurostat!AJ66)/Eurostat!AF66 -> 0.7912270945 | D46: =Eurostat!C66/SUM(Eurostat!B66:C66) -> 0.03722644942 | F46: =Eurostat!AG66/Eurostat!$AG66 -> 1 | G46: =Eurostat!AG66/Eurostat!$AG66 -> 1 | H46: =Eurostat!AI66/Eurostat!$AG66 -> 0.03629467024 | I46: =Eurostat!AI66/Eurostat!$AG66 -> 0.03629467024 | J46: =Eurostat!AK66/Eurostat!$AG66 -> 0.2432115965 | K46: =Eurostat!AK66/Eurostat!$AG66 -> 0.2432115965 | L46: =Eurostat!AO66/Eurostat!$AG66 -> 0.08138242006 | M46: =Eurostat!AO66/Eurostat!$AG66 -> 0.08138242006 | N46: =Eurostat!AQ66/Eurostat!$AG66 -> 0.2581907878 | O46: =Eurostat!AQ66/Eurostat!$AG66 -> 0.2581907878 | P46: =Eurostat!AS66/Eurostat!$AG66 -> 0.03746655169 | Q46: =Eurostat!AS66/Eurostat!$AG66 -> 0.03746655169 | R46: =Eurostat!AU66/Eurostat!$AG66 -> 0.04887517161 | S46: =Eurostat!AU66/Eurostat!$AG66 -> 0.04887517161 | T46: =Eurostat!AW66/Eurostat!$AG66 -> 0.05560356816 | U46: =Eurostat!AW66/Eurostat!$AG66 -> 0.05560356816 | V46: =Eurostat!AY66/Eurostat!$AG66 -> 0.06800817618 | W46: =Eurostat!AY66/Eurostat!$AG66 -> 0.06800817618 | X46: =Eurostat!BA66/Eurostat!$AG66 -> 0.139609466 | Y46: =Eurostat!BA66/Eurostat!$AG66 -> 0.139609466 | Z46: =Eurostat!BC66/Eurostat!$AG66 -> 0.03118011097 | AA46: =Eurostat!BC66/Eurostat!$AG66 -> 0.03118011097 | AC46: =LN((Eurostat!K66^pomocniczo_do_innych_kalibracji!I46*Eurostat!M66^pomocniczo_do_innych_kalibracji!K46)^(1/(pomocniczo_do_innych_kalibracji!I46+pomocniczo_do_innych_kalibracji!K46))) -> 4.662822982 | AD46: =LN((Eurostat!Q66^pomocniczo_do_innych_kalibracji!M46*Eurostat!S66^pomocniczo_do_innych_kalibracji!O46*Eurostat!U66^pomocniczo_do_innych_kalibracji!Q46*Eurostat!W66^pomocniczo_do_innych_kalibracji!S46*Eurostat!Y66^pomocniczo_do_innych_kalibracji!U46*Eurostat!AA66^pomocniczo_do_innych_kalibracji!W46*Eurostat!AC66^pomocniczo_do_innych_kalibracji!Y46*Eurostat!AE66^pomocniczo_do_innych_kalibracji!AA46)^(1/(pomocniczo_do_innych_kalibracji!M46+pomocniczo_do_innych_kalibracji!O46+pomocniczo_do_innych_kalibracji!Q46+pomocniczo_do_innych_kalibracji!S46+pomocniczo_do_innych_kalibracji!U46+pomocniczo_do_innych_kalibracji!W46+pomocniczo_do_innych_kalibracji!Y46+pomocniczo_do_innych_kalibracji!AA46))) -> 4.786949348 | AE46: =LN((Eurostat!J66^pomocniczo_do_innych_kalibracji!H46*Eurostat!L66^pomocniczo_do_innych_kalibracji!J46)^(1/(pomocniczo_do_innych_kalibracji!H46+pomocniczo_do_innych_kalibracji!J46))) -> 4.654305055 | AF46: =LN((Eurostat!P66^pomocniczo_do_innych_kalibracji!L46*Eurostat!R66^pomocniczo_do_innych_kalibracji!N46*Eurostat!T66^pomocniczo_do_innych_kalibracji!P46*Eurostat!V66^pomocniczo_do_innych_kalibracji!R46*Eurostat!X66^pomocniczo_do_innych_kalibracji!T46*Eurostat!Z66^pomocniczo_do_innych_kalibracji!V46*Eurostat!AB66^pomocniczo_do_innych_kalibracji!X46*Eurostat!AD66^pomocniczo_do_innych_kalibracji!Z46)^(1/(pomocniczo_do_innych_kalibracji!L46+pomocniczo_do_innych_kalibracji!N46+pomocniczo_do_innych_kalibracji!P46+pomocniczo_do_innych_kalibracji!R46+pomocniczo_do_innych_kalibracji!T46+pomocniczo_do_innych_kalibracji!V46+pomocniczo_do_innych_kalibracji!X46+pomocniczo_do_innych_kalibracji!Z46))) -> 4.687793175
A47: =dane_do_matlaba!A45 -> 2010Q4 | B47: =1-(Eurostat!AI67+Eurostat!AK67)/Eurostat!AG67 -> 0.717641713 | C47: =1-(Eurostat!AH67+Eurostat!AJ67)/Eurostat!AF67 -> 0.788309446 | D47: =Eurostat!C67/SUM(Eurostat!B67:C67) -> 0.03798448523 | F47: =Eurostat!AG67/Eurostat!$AG67 -> 1 | G47: =Eurostat!AG67/Eurostat!$AG67 -> 1 | H47: =Eurostat!AI67/Eurostat!$AG67 -> 0.03695698163 | I47: =Eurostat!AI67/Eurostat!$AG67 -> 0.03695698163 | J47: =Eurostat!AK67/Eurostat!$AG67 -> 0.2454013053 | K47: =Eurostat!AK67/Eurostat!$AG67 -> 0.2454013053 | L47: =Eurostat!AO67/Eurostat!$AG67 -> 0.08256933561 | M47: =Eurostat!AO67/Eurostat!$AG67 -> 0.08256933561 | N47: =Eurostat!AQ67/Eurostat!$AG67 -> 0.2583095705 | O47: =Eurostat!AQ67/Eurostat!$AG67 -> 0.2583095705 | P47: =Eurostat!AS67/Eurostat!$AG67 -> 0.03701331134 | Q47: =Eurostat!AS67/Eurostat!$AG67 -> 0.03701331134 | R47: =Eurostat!AU67/Eurostat!$AG67 -> 0.04429736828 | S47: =Eurostat!AU67/Eurostat!$AG67 -> 0.04429736828 | T47: =Eurostat!AW67/Eurostat!$AG67 -> 0.05563716409 | U47: =Eurostat!AW67/Eurostat!$AG67 -> 0.05563716409 | V47: =Eurostat!AY67/Eurostat!$AG67 -> 0.06776463696 | W47: =Eurostat!AY67/Eurostat!$AG67 -> 0.06776463696 | X47: =Eurostat!BA67/Eurostat!$AG67 -> 0.1386014335 | Y47: =Eurostat!BA67/Eurostat!$AG67 -> 0.1386014335 | Z47: =Eurostat!BC67/Eurostat!$AG67 -> 0.03090028641 | AA47: =Eurostat!BC67/Eurostat!$AG67 -> 0.03090028641 | AC47: =LN((Eurostat!K67^pomocniczo_do_innych_kalibracji!I47*Eurostat!M67^pomocniczo_do_innych_kalibracji!K47)^(1/(pomocniczo_do_innych_kalibracji!I47+pomocniczo_do_innych_kalibracji!K47))) -> 4.682773117 | AD47: =LN((Eurostat!Q67^pomocniczo_do_innych_kalibracji!M47*Eurostat!S67^pomocniczo_do_innych_kalibracji!O47*Eurostat!U67^pomocniczo_do_innych_kalibracji!Q47*Eurostat!W67^pomocniczo_do_innych_kalibracji!S47*Eurostat!Y67^pomocniczo_do_innych_kalibracji!U47*Eurostat!AA67^pomocniczo_do_innych_kalibracji!W47*Eurostat!AC67^pomocniczo_do_innych_kalibracji!Y47*Eurostat!AE67^pomocniczo_do_innych_kalibracji!AA47)^(1/(pomocniczo_do_innych_kalibracji!M47+pomocniczo_do_innych_kalibracji!O47+pomocniczo_do_innych_kalibracji!Q47+pomocniczo_do_innych_kalibracji!S47+pomocniczo_do_innych_kalibracji!U47+pomocniczo_do_innych_kalibracji!W47+pomocniczo_do_innych_kalibracji!Y47+pomocniczo_do_innych_kalibracji!AA47))) -> 4.779499956 | AE47: =LN((Eurostat!J67^pomocniczo_do_innych_kalibracji!H47*Eurostat!L67^pomocniczo_do_innych_kalibracji!J47)^(1/(pomocniczo_do_innych_kalibracji!H47+pomocniczo_do_innych_kalibracji!J47))) -> 4.659700635 | AF47: =LN((Eurostat!P67^pomocniczo_do_innych_kalibracji!L47*Eurostat!R67^pomocniczo_do_innych_kalibracji!N47*Eurostat!T67^pomocniczo_do_innych_kalibracji!P47*Eurostat!V67^pomocniczo_do_innych_kalibracji!R47*Eurostat!X67^pomocniczo_do_innych_kalibracji!T47*Eurostat!Z67^pomocniczo_do_innych_kalibracji!V47*Eurostat!AB67^pomocniczo_do_innych_kalibracji!X47*Eurostat!AD67^pomocniczo_do_innych_kalibracji!Z47)^(1/(pomocniczo_do_innych_kalibracji!L47+pomocniczo_do_innych_kalibracji!N47+pomocniczo_do_innych_kalibracji!P47+pomocniczo_do_innych_kalibracji!R47+pomocniczo_do_innych_kalibracji!T47+pomocniczo_do_innych_kalibracji!V47+pomocniczo_do_innych_kalibracji!X47+pomocniczo_do_innych_kalibracji!Z47))) -> 4.689758939
A48: =dane_do_matlaba!A46 -> 2011Q1 | B48: =1-(Eurostat!AI68+Eurostat!AK68)/Eurostat!AG68 -> 0.7164905746 | C48: =1-(Eurostat!AH68+Eurostat!AJ68)/Eurostat!AF68 -> 0.7887389965 | D48: =Eurostat!C68/SUM(Eurostat!B68:C68) -> 0.03862556024 | F48: =Eurostat!AG68/Eurostat!$AG68 -> 1 | G48: =Eurostat!AG68/Eurostat!$AG68 -> 1 | H48: =Eurostat!AI68/Eurostat!$AG68 -> 0.0401876908 | I48: =Eurostat!AI68/Eurostat!$AG68 -> 0.0401876908 | J48: =Eurostat!AK68/Eurostat!$AG68 -> 0.2433217346 | K48: =Eurostat!AK68/Eurostat!$AG68 -> 0.2433217346 | L48: =Eurostat!AO68/Eurostat!$AG68 -> 0.08332907891 | M48: =Eurostat!AO68/Eurostat!$AG68 -> 0.08332907891 | N48: =Eurostat!AQ68/Eurostat!$AG68 -> 0.2575258695 | O48: =Eurostat!AQ68/Eurostat!$AG68 -> 0.2575258695 | P48: =Eurostat!AS68/Eurostat!$AG68 -> 0.0373650092 | Q48: =Eurostat!AS68/Eurostat!$AG68 -> 0.0373650092 | R48: =Eurostat!AU68/Eurostat!$AG68 -> 0.04575893475 | S48: =Eurostat!AU68/Eurostat!$AG68 -> 0.04575893475 | T48: =Eurostat!AW68/Eurostat!$AG68 -> 0.05594279349 | U48: =Eurostat!AW68/Eurostat!$AG68 -> 0.05594279349 | V48: =Eurostat!AY68/Eurostat!$AG68 -> 0.06903729274 | W48: =Eurostat!AY68/Eurostat!$AG68 -> 0.06903729274 | X48: =Eurostat!BA68/Eurostat!$AG68 -> 0.1380432155 | Y48: =Eurostat!BA68/Eurostat!$AG68 -> 0.1380432155 | Z48: =Eurostat!BC68/Eurostat!$AG68 -> 0.03059740097 | AA48: =Eurostat!BC68/Eurostat!$AG68 -> 0.03059740097 | AC48: =LN((Eurostat!K68^pomocniczo_do_innych_kalibracji!I48*Eurostat!M68^pomocniczo_do_innych_kalibracji!K48)^(1/(pomocniczo_do_innych_kalibracji!I48+pomocniczo_do_innych_kalibracji!K48))) -> 4.682086317 | AD48: =LN((Eurostat!Q68^pomocniczo_do_innych_kalibracji!M48*Eurostat!S68^pomocniczo_do_innych_kalibracji!O48*Eurostat!U68^pomocniczo_do_innych_kalibracji!Q48*Eurostat!W68^pomocniczo_do_innych_kalibracji!S48*Eurostat!Y68^pomocniczo_do_innych_kalibracji!U48*Eurostat!AA68^pomocniczo_do_innych_kalibracji!W48*Eurostat!AC68^pomocniczo_do_innych_kalibracji!Y48*Eurostat!AE68^pomocniczo_do_innych_kalibracji!AA48)^(1/(pomocniczo_do_innych_kalibracji!M48+pomocniczo_do_innych_kalibracji!O48+pomocniczo_do_innych_kalibracji!Q48+pomocniczo_do_innych_kalibracji!S48+pomocniczo_do_innych_kalibracji!U48+pomocniczo_do_innych_kalibracji!W48+pomocniczo_do_innych_kalibracji!Y48+pomocniczo_do_innych_kalibracji!AA48))) -> 4.80748881 | AE48: =LN((Eurostat!J68^pomocniczo_do_innych_kalibracji!H48*Eurostat!L68^pomocniczo_do_innych_kalibracji!J48)^(1/(pomocniczo_do_innych_kalibracji!H48+pomocniczo_do_innych_kalibracji!J48))) -> 4.659455606 | AF48: =LN((Eurostat!P68^pomocniczo_do_innych_kalibracji!L48*Eurostat!R68^pomocniczo_do_innych_kalibracji!N48*Eurostat!T68^pomocniczo_do_innych_kalibracji!P48*Eurostat!V68^pomocniczo_do_innych_kalibracji!R48*Eurostat!X68^pomocniczo_do_innych_kalibracji!T48*Eurostat!Z68^pomocniczo_do_innych_kalibracji!V48*Eurostat!AB68^pomocniczo_do_innych_kalibracji!X48*Eurostat!AD68^pomocniczo_do_innych_kalibracji!Z48)^(1/(pomocniczo_do_innych_kalibracji!L48+pomocniczo_do_innych_kalibracji!N48+pomocniczo_do_innych_kalibracji!P48+pomocniczo_do_innych_kalibracji!R48+pomocniczo_do_innych_kalibracji!T48+pomocniczo_do_innych_kalibracji!V48+pomocniczo_do_innych_kalibracji!X48+pomocniczo_do_innych_kalibracji!Z48))) -> 4.69029808
A49: =dane_do_matlaba!A47 -> 2011Q2 | B49: =1-(Eurostat!AI69+Eurostat!AK69)/Eurostat!AG69 -> 0.7167070444 | C49: =1-(Eurostat!AH69+Eurostat!AJ69)/Eurostat!AF69 -> 0.7886064075 | D49: =Eurostat!C69/SUM(Eurostat!B69:C69) -> 0.03896301237 | F49: =Eurostat!AG69/Eurostat!$AG69 -> 1 | G49: =Eurostat!AG69/Eurostat!$AG69 -> 1 | H49: =Eurostat!AI69/Eurostat!$AG69 -> 0.03956930783 | I49: =Eurostat!AI69/Eurostat!$AG69 -> 0.03956930783 | J49: =Eurostat!AK69/Eurostat!$AG69 -> 0.2437236477 | K49: =Eurostat!AK69/Eurostat!$AG69 -> 0.2437236477 | L49: =Eurostat!AO69/Eurostat!$AG69 -> 0.08375226965 | M49: =Eurostat!AO69/Eurostat!$AG69 -> 0.08375226965 | N49: =Eurostat!AQ69/Eurostat!$AG69 -> 0.2555178174 | O49: =Eurostat!AQ69/Eurostat!$AG69 -> 0.2555178174 | P49: =Eurostat!AS69/Eurostat!$AG69 -> 0.03671013348 | Q49: =Eurostat!AS69/Eurostat!$AG69 -> 0.03671013348 | R49: =Eurostat!AU69/Eurostat!$AG69 -> 0.04914564142 | S49: =Eurostat!AU69/Eurostat!$AG69 -> 0.04914564142 | T49: =Eurostat!AW69/Eurostat!$AG69 -> 0.05583866751 | U49: =Eurostat!AW69/Eurostat!$AG69 -> 0.05583866751 | V49: =Eurostat!AY69/Eurostat!$AG69 -> 0.06886242086 | W49: =Eurostat!AY69/Eurostat!$AG69 -> 0.06886242086 | X49: =Eurostat!BA69/Eurostat!$AG69 -> 0.1370744535 | Y49: =Eurostat!BA69/Eurostat!$AG69 -> 0.1370744535 | Z49: =Eurostat!BC69/Eurostat!$AG69 -> 0.03008618851 | AA49: =Eurostat!BC69/Eurostat!$AG69 -> 0.03008618851 | AC49: =LN((Eurostat!K69^pomocniczo_do_innych_kalibracji!I49*Eurostat!M69^pomocniczo_do_innych_kalibracji!K49)^(1/(pomocniczo_do_innych_kalibracji!I49+pomocniczo_do_innych_kalibracji!K49))) -> 4.667315803 | AD49: =LN((Eurostat!Q69^pomocniczo_do_innych_kalibracji!M49*Eurostat!S69^pomocniczo_do_innych_kalibracji!O49*Eurostat!U69^pomocniczo_do_innych_kalibracji!Q49*Eurostat!W69^pomocniczo_do_innych_kalibracji!S49*Eurostat!Y69^pomocniczo_do_innych_kalibracji!U49*Eurostat!AA69^pomocniczo_do_innych_kalibracji!W49*Eurostat!AC69^pomocniczo_do_innych_kalibracji!Y49*Eurostat!AE69^pomocniczo_do_innych_kalibracji!AA49)^(1/(pomocniczo_do_innych_kalibracji!M49+pomocniczo_do_innych_kalibracji!O49+pomocniczo_do_innych_kalibracji!Q49+pomocniczo_do_innych_kalibracji!S49+pomocniczo_do_innych_kalibracji!U49+pomocniczo_do_innych_kalibracji!W49+pomocniczo_do_innych_kalibracji!Y49+pomocniczo_do_innych_kalibracji!AA49))) -> 4.80908065 | AE49: =LN((Eurostat!J69^pomocniczo_do_innych_kalibracji!H49*Eurostat!L69^pomocniczo_do_innych_kalibracji!J49)^(1/(pomocniczo_do_innych_kalibracji!H49+pomocniczo_do_innych_kalibracji!J49))) -> 4.662014283 | AF49: =LN((Eurostat!P69^pomocniczo_do_innych_kalibracji!L49*Eurostat!R69^pomocniczo_do_innych_kalibracji!N49*Eurostat!T69^pomocniczo_do_innych_kalibracji!P49*Eurostat!V69^pomocniczo_do_innych_kalibracji!R49*Eurostat!X69^pomocniczo_do_innych_kalibracji!T49*Eurostat!Z69^pomocniczo_do_innych_kalibracji!V49*Eurostat!AB69^pomocniczo_do_innych_kalibracji!X49*Eurostat!AD69^pomocniczo_do_innych_kalibracji!Z49)^(1/(pomocniczo_do_innych_kalibracji!L49+pomocniczo_do_innych_kalibracji!N49+pomocniczo_do_innych_kalibracji!P49+pomocniczo_do_innych_kalibracji!R49+pomocniczo_do_innych_kalibracji!T49+pomocniczo_do_innych_kalibracji!V49+pomocniczo_do_innych_kalibracji!X49+pomocniczo_do_innych_kalibracji!Z49))) -> 4.692123901
A50: =dane_do_matlaba!A48 -> 2011Q3 | B50: =1-(Eurostat!AI70+Eurostat!AK70)/Eurostat!AG70 -> 0.7167304908 | C50: =1-(Eurostat!AH70+Eurostat!AJ70)/Eurostat!AF70 -> 0.7891265601 | D50: =Eurostat!C70/SUM(Eurostat!B70:C70) -> 0.03770237894 | F50: =Eurostat!AG70/Eurostat!$AG70 -> 1 | G50: =Eurostat!AG70/Eurostat!$AG70 -> 1 | H50: =Eurostat!AI70/Eurostat!$AG70 -> 0.04060139787 | I50: =Eurostat!AI70/Eurostat!$AG70 -> 0.04060139787 | J50: =Eurostat!AK70/Eurostat!$AG70 -> 0.2426681113 | K50: =Eurostat!AK70/Eurostat!$AG70 -> 0.2426681113 | L50: =Eurostat!AO70/Eurostat!$AG70 -> 0.08340614209 | M50: =Eurostat!AO70/Eurostat!$AG70 -> 0.08340614209 | N50: =Eurostat!AQ70/Eurostat!$AG70 -> 0.256487031 | O50: =Eurostat!AQ70/Eurostat!$AG70 -> 0.256487031 | P50: =Eurostat!AS70/Eurostat!$AG70 -> 0.03680123934 | Q50: =Eurostat!AS70/Eurostat!$AG70 -> 0.03680123934 | R50: =Eurostat!AU70/Eurostat!$AG70 -> 0.04409858518 | S50: =Eurostat!AU70/Eurostat!$AG70 -> 0.04409858518 | T50: =Eurostat!AW70/Eurostat!$AG70 -> 0.05616861532 | U50: =Eurostat!AW70/Eurostat!$AG70 -> 0.05616861532 | V50: =Eurostat!AY70/Eurostat!$AG70 -> 0.06940910849 | W50: =Eurostat!AY70/Eurostat!$AG70 -> 0.06940910849 | X50: =Eurostat!BA70/Eurostat!$AG70 -> 0.1362222507 | Y50: =Eurostat!BA70/Eurostat!$AG70 -> 0.1362222507 | Z50: =Eurostat!BC70/Eurostat!$AG70 -> 0.03013883124 | AA50: =Eurostat!BC70/Eurostat!$AG70 -> 0.03013883124 | AC50: =LN((Eurostat!K70^pomocniczo_do_innych_kalibracji!I50*Eurostat!M70^pomocniczo_do_innych_kalibracji!K50)^(1/(pomocniczo_do_innych_kalibracji!I50+pomocniczo_do_innych_kalibracji!K50))) -> 4.684876542 | AD50: =LN((Eurostat!Q70^pomocniczo_do_innych_kalibracji!M50*Eurostat!S70^pomocniczo_do_innych_kalibracji!O50*Eurostat!U70^pomocniczo_do_innych_kalibracji!Q50*Eurostat!W70^pomocniczo_do_innych_kalibracji!S50*Eurostat!Y70^pomocniczo_do_innych_kalibracji!U50*Eurostat!AA70^pomocniczo_do_innych_kalibracji!W50*Eurostat!AC70^pomocniczo_do_innych_kalibracji!Y50*Eurostat!AE70^pomocniczo_do_innych_kalibracji!AA50)^(1/(pomocniczo_do_innych_kalibracji!M50+pomocniczo_do_innych_kalibracji!O50+pomocniczo_do_innych_kalibracji!Q50+pomocniczo_do_innych_kalibracji!S50+pomocniczo_do_innych_kalibracji!U50+pomocniczo_do_innych_kalibracji!W50+pomocniczo_do_innych_kalibracji!Y50+pomocniczo_do_innych_kalibracji!AA50))) -> 4.81137156 | AE50: =LN((Eurostat!J70^pomocniczo_do_innych_kalibracji!H50*Eurostat!L70^pomocniczo_do_innych_kalibracji!J50)^(1/(pomocniczo_do_innych_kalibracji!H50+pomocniczo_do_innych_kalibracji!J50))) -> 4.662634063 | AF50: =LN((Eurostat!P70^pomocniczo_do_innych_kalibracji!L50*Eurostat!R70^pomocniczo_do_innych_kalibracji!N50*Eurostat!T70^pomocniczo_do_innych_kalibracji!P50*Eurostat!V70^pomocniczo_do_innych_kalibracji!R50*Eurostat!X70^pomocniczo_do_innych_kalibracji!T50*Eurostat!Z70^pomocniczo_do_innych_kalibracji!V50*Eurostat!AB70^pomocniczo_do_innych_kalibracji!X50*Eurostat!AD70^pomocniczo_do_innych_kalibracji!Z50)^(1/(pomocniczo_do_innych_kalibracji!L50+pomocniczo_do_innych_kalibracji!N50+pomocniczo_do_innych_kalibracji!P50+pomocniczo_do_innych_kalibracji!R50+pomocniczo_do_innych_kalibracji!T50+pomocniczo_do_innych_kalibracji!V50+pomocniczo_do_innych_kalibracji!X50+pomocniczo_do_innych_kalibracji!Z50))) -> 4.697072344
A51: =dane_do_matlaba!A49 -> 2011Q4 | B51: =1-(Eurostat!AI71+Eurostat!AK71)/Eurostat!AG71 -> 0.7003113116 | C51: =1-(Eurostat!AH71+Eurostat!AJ71)/Eurostat!AF71 -> 0.7909674167 | D51: =Eurostat!C71/SUM(Eurostat!B71:C71) -> 0.03620024933 | F51: =Eurostat!AG71/Eurostat!$AG71 -> 1 | G51: =Eurostat!AG71/Eurostat!$AG71 -> 1 | H51: =Eurostat!AI71/Eurostat!$AG71 -> 0.04170235501 | I51: =Eurostat!AI71/Eurostat!$AG71 -> 0.04170235501 | J51: =Eurostat!AK71/Eurostat!$AG71 -> 0.2579863334 | K51: =Eurostat!AK71/Eurostat!$AG71 -> 0.2579863334 | L51: =Eurostat!AO71/Eurostat!$AG71 -> 0.07973875698 | M51: =Eurostat!AO71/Eurostat!$AG71 -> 0.07973875698 | N51: =Eurostat!AQ71/Eurostat!$AG71 -> 0.2591845336 | O51: =Eurostat!AQ71/Eurostat!$AG71 -> 0.2591845336 | P51: =Eurostat!AS71/Eurostat!$AG71 -> 0.03731649569 | Q51: =Eurostat!AS71/Eurostat!$AG71 -> 0.03731649569 | R51: =Eurostat!AU71/Eurostat!$AG71 -> 0.03778202735 | S51: =Eurostat!AU71/Eurostat!$AG71 -> 0.03778202735 | T51: =Eurostat!AW71/Eurostat!$AG71 -> 0.05622636267 | U51: =Eurostat!AW71/Eurostat!$AG71 -> 0.05622636267 | V51: =Eurostat!AY71/Eurostat!$AG71 -> 0.06978711136 | W51: =Eurostat!AY71/Eurostat!$AG71 -> 0.06978711136 | X51: =Eurostat!BA71/Eurostat!$AG71 -> 0.1353351291 | Y51: =Eurostat!BA71/Eurostat!$AG71 -> 0.1353351291 | Z51: =Eurostat!BC71/Eurostat!$AG71 -> 0.03007305511 | AA51: =Eurostat!BC71/Eurostat!$AG71 -> 0.03007305511 | AC51: =LN((Eurostat!K71^pomocniczo_do_innych_kalibracji!I51*Eurostat!M71^pomocniczo_do_innych_kalibracji!K51)^(1/(pomocniczo_do_innych_kalibracji!I51+pomocniczo_do_innych_kalibracji!K51))) -> 4.730666097 | AD51: =LN((Eurostat!Q71^pomocniczo_do_innych_kalibracji!M51*Eurostat!S71^pomocniczo_do_innych_kalibracji!O51*Eurostat!U71^pomocniczo_do_innych_kalibracji!Q51*Eurostat!W71^pomocniczo_do_innych_kalibracji!S51*Eurostat!Y71^pomocniczo_do_innych_kalibracji!U51*Eurostat!AA71^pomocniczo_do_innych_kalibracji!W51*Eurostat!AC71^pomocniczo_do_innych_kalibracji!Y51*Eurostat!AE71^pomocniczo_do_innych_kalibracji!AA51)^(1/(pomocniczo_do_innych_kalibracji!M51+pomocniczo_do_innych_kalibracji!O51+pomocniczo_do_innych_kalibracji!Q51+pomocniczo_do_innych_kalibracji!S51+pomocniczo_do_innych_kalibracji!U51+pomocniczo_do_innych_kalibracji!W51+pomocniczo_do_innych_kalibracji!Y51+pomocniczo_do_innych_kalibracji!AA51))) -> 4.827630341 | AE51: =LN((Eurostat!J71^pomocniczo_do_innych_kalibracji!H51*Eurostat!L71^pomocniczo_do_innych_kalibracji!J51)^(1/(pomocniczo_do_innych_kalibracji!H51+pomocniczo_do_innych_kalibracji!J51))) -> 4.668005444 | AF51: =LN((Eurostat!P71^pomocniczo_do_innych_kalibracji!L51*Eurostat!R71^pomocniczo_do_innych_kalibracji!N51*Eurostat!T71^pomocniczo_do_innych_kalibracji!P51*Eurostat!V71^pomocniczo_do_innych_kalibracji!R51*Eurostat!X71^pomocniczo_do_innych_kalibracji!T51*Eurostat!Z71^pomocniczo_do_innych_kalibracji!V51*Eurostat!AB71^pomocniczo_do_innych_kalibracji!X51*Eurostat!AD71^pomocniczo_do_innych_kalibracji!Z51)^(1/(pomocniczo_do_innych_kalibracji!L51+pomocniczo_do_innych_kalibracji!N51+pomocniczo_do_innych_kalibracji!P51+pomocniczo_do_innych_kalibracji!R51+pomocniczo_do_innych_kalibracji!T51+pomocniczo_do_innych_kalibracji!V51+pomocniczo_do_innych_kalibracji!X51+pomocniczo_do_innych_kalibracji!Z51))) -> 4.702293172
A52: =dane_do_matlaba!A50 -> 2012Q1 | B52: =1-(Eurostat!AI72+Eurostat!AK72)/Eurostat!AG72 -> 0.716294174 | C52: =1-(Eurostat!AH72+Eurostat!AJ72)/Eurostat!AF72 -> 0.7907177989 | D52: =Eurostat!C72/SUM(Eurostat!B72:C72) -> 0.03787681691 | F52: =Eurostat!AG72/Eurostat!$AG72 -> 1 | G52: =Eurostat!AG72/Eurostat!$AG72 -> 1 | H52: =Eurostat!AI72/Eurostat!$AG72 -> 0.03818425751 | I52: =Eurostat!AI72/Eurostat!$AG72 -> 0.03818425751 | J52: =Eurostat!AK72/Eurostat!$AG72 -> 0.2455215685 | K52: =Eurostat!AK72/Eurostat!$AG72 -> 0.2455215685 | L52: =Eurostat!AO72/Eurostat!$AG72 -> 0.07830894197 | M52: =Eurostat!AO72/Eurostat!$AG72 -> 0.07830894197 | N52: =Eurostat!AQ72/Eurostat!$AG72 -> 0.2616271694 | O52: =Eurostat!AQ72/Eurostat!$AG72 -> 0.2616271694 | P52: =Eurostat!AS72/Eurostat!$AG72 -> 0.03793798137 | Q52: =Eurostat!AS72/Eurostat!$AG72 -> 0.03793798137 | R52: =Eurostat!AU72/Eurostat!$AG72 -> 0.04541532611 | S52: =Eurostat!AU72/Eurostat!$AG72 -> 0.04541532611 | T52: =Eurostat!AW72/Eurostat!$AG72 -> 0.05634311422 | U52: =Eurostat!AW72/Eurostat!$AG72 -> 0.05634311422 | V52: =Eurostat!AY72/Eurostat!$AG72 -> 0.06874540917 | W52: =Eurostat!AY72/Eurostat!$AG72 -> 0.06874540917 | X52: =Eurostat!BA72/Eurostat!$AG72 -> 0.1333181558 | Y52: =Eurostat!BA72/Eurostat!$AG72 -> 0.1333181558 | Z52: =Eurostat!BC72/Eurostat!$AG72 -> 0.03007432671 | AA52: =Eurostat!BC72/Eurostat!$AG72 -> 0.03007432671 | AC52: =LN((Eurostat!K72^pomocniczo_do_innych_kalibracji!I52*Eurostat!M72^pomocniczo_do_innych_kalibracji!K52)^(1/(pomocniczo_do_innych_kalibracji!I52+pomocniczo_do_innych_kalibracji!K52))) -> 4.691335288 | AD52: =LN((Eurostat!Q72^pomocniczo_do_innych_kalibracji!M52*Eurostat!S72^pomocniczo_do_innych_kalibracji!O52*Eurostat!U72^pomocniczo_do_innych_kalibracji!Q52*Eurostat!W72^pomocniczo_do_innych_kalibracji!S52*Eurostat!Y72^pomocniczo_do_innych_kalibracji!U52*Eurostat!AA72^pomocniczo_do_innych_kalibracji!W52*Eurostat!AC72^pomocniczo_do_innych_kalibracji!Y52*Eurostat!AE72^pomocniczo_do_innych_kalibracji!AA52)^(1/(pomocniczo_do_innych_kalibracji!M52+pomocniczo_do_innych_kalibracji!O52+pomocniczo_do_innych_kalibracji!Q52+pomocniczo_do_innych_kalibracji!S52+pomocniczo_do_innych_kalibracji!U52+pomocniczo_do_innych_kalibracji!W52+pomocniczo_do_innych_kalibracji!Y52+pomocniczo_do_innych_kalibracji!AA52))) -> 4.836631224 | AE52: =LN((Eurostat!J72^pomocniczo_do_innych_kalibracji!H52*Eurostat!L72^pomocniczo_do_innych_kalibracji!J52)^(1/(pomocniczo_do_innych_kalibracji!H52+pomocniczo_do_innych_kalibracji!J52))) -> 4.672126928 | AF52: =LN((Eurostat!P72^pomocniczo_do_innych_kalibracji!L52*Eurostat!R72^pomocniczo_do_innych_kalibracji!N52*Eurostat!T72^pomocniczo_do_innych_kalibracji!P52*Eurostat!V72^pomocniczo_do_innych_kalibracji!R52*Eurostat!X72^pomocniczo_do_innych_kalibracji!T52*Eurostat!Z72^pomocniczo_do_innych_kalibracji!V52*Eurostat!AB72^pomocniczo_do_innych_kalibracji!X52*Eurostat!AD72^pomocniczo_do_innych_kalibracji!Z52)^(1/(pomocniczo_do_innych_kalibracji!L52+pomocniczo_do_innych_kalibracji!N52+pomocniczo_do_innych_kalibracji!P52+pomocniczo_do_innych_kalibracji!R52+pomocniczo_do_innych_kalibracji!T52+pomocniczo_do_innych_kalibracji!V52+pomocniczo_do_innych_kalibracji!X52+pomocniczo_do_innych_kalibracji!Z52))) -> 4.701895742
A53: =dane_do_matlaba!A51 -> 2012Q2 | B53: =1-(Eurostat!AI73+Eurostat!AK73)/Eurostat!AG73 -> 0.7171979411 | C53: =1-(Eurostat!AH73+Eurostat!AJ73)/Eurostat!AF73 -> 0.7906047621 | D53: =Eurostat!C73/SUM(Eurostat!B73:C73) -> 0.03796658181 | F53: =Eurostat!AG73/Eurostat!$AG73 -> 1 | G53: =Eurostat!AG73/Eurostat!$AG73 -> 1 | H53: =Eurostat!AI73/Eurostat!$AG73 -> 0.03868704819 | I53: =Eurostat!AI73/Eurostat!$AG73 -> 0.03868704819 | J53: =Eurostat!AK73/Eurostat!$AG73 -> 0.2441150107 | K53: =Eurostat!AK73/Eurostat!$AG73 -> 0.2441150107 | L53: =Eurostat!AO73/Eurostat!$AG73 -> 0.07859585525 | M53: =Eurostat!AO73/Eurostat!$AG73 -> 0.07859585525 | N53: =Eurostat!AQ73/Eurostat!$AG73 -> 0.2642830946 | O53: =Eurostat!AQ73/Eurostat!$AG73 -> 0.2642830946 | P53: =Eurostat!AS73/Eurostat!$AG73 -> 0.03747321915 | Q53: =Eurostat!AS73/Eurostat!$AG73 -> 0.03747321915 | R53: =Eurostat!AU73/Eurostat!$AG73 -> 0.04668115747 | S53: =Eurostat!AU73/Eurostat!$AG73 -> 0.04668115747 | T53: =Eurostat!AW73/Eurostat!$AG73 -> 0.05704260155 | U53: =Eurostat!AW73/Eurostat!$AG73 -> 0.05704260155 | V53: =Eurostat!AY73/Eurostat!$AG73 -> 0.07035054057 | W53: =Eurostat!AY73/Eurostat!$AG73 -> 0.07035054057 | X53: =Eurostat!BA73/Eurostat!$AG73 -> 0.1331960719 | Y53: =Eurostat!BA73/Eurostat!$AG73 -> 0.1331960719 | Z53: =Eurostat!BC73/Eurostat!$AG73 -> 0.03016957073 | AA53: =Eurostat!BC73/Eurostat!$AG73 -> 0.03016957073 | AC53: =LN((Eurostat!K73^pomocniczo_do_innych_kalibracji!I53*Eurostat!M73^pomocniczo_do_innych_kalibracji!K53)^(1/(pomocniczo_do_innych_kalibracji!I53+pomocniczo_do_innych_kalibracji!K53))) -> 4.721107624 | AD53: =LN((Eurostat!Q73^pomocniczo_do_innych_kalibracji!M53*Eurostat!S73^pomocniczo_do_innych_kalibracji!O53*Eurostat!U73^pomocniczo_do_innych_kalibracji!Q53*Eurostat!W73^pomocniczo_do_innych_kalibracji!S53*Eurostat!Y73^pomocniczo_do_innych_kalibracji!U53*Eurostat!AA73^pomocniczo_do_innych_kalibracji!W53*Eurostat!AC73^pomocniczo_do_innych_kalibracji!Y53*Eurostat!AE73^pomocniczo_do_innych_kalibracji!AA53)^(1/(pomocniczo_do_innych_kalibracji!M53+pomocniczo_do_innych_kalibracji!O53+pomocniczo_do_innych_kalibracji!Q53+pomocniczo_do_innych_kalibracji!S53+pomocniczo_do_innych_kalibracji!U53+pomocniczo_do_innych_kalibracji!W53+pomocniczo_do_innych_kalibracji!Y53+pomocniczo_do_innych_kalibracji!AA53))) -> 4.845778706 | AE53: =LN((Eurostat!J73^pomocniczo_do_innych_kalibracji!H53*Eurostat!L73^pomocniczo_do_innych_kalibracji!J53)^(1/(pomocniczo_do_innych_kalibracji!H53+pomocniczo_do_innych_kalibracji!J53))) -> 4.677231209 | AF53: =LN((Eurostat!P73^pomocniczo_do_innych_kalibracji!L53*Eurostat!R73^pomocniczo_do_innych_kalibracji!N53*Eurostat!T73^pomocniczo_do_innych_kalibracji!P53*Eurostat!V73^pomocniczo_do_innych_kalibracji!R53*Eurostat!X73^pomocniczo_do_innych_kalibracji!T53*Eurostat!Z73^pomocniczo_do_innych_kalibracji!V53*Eurostat!AB73^pomocniczo_do_innych_kalibracji!X53*Eurostat!AD73^pomocniczo_do_innych_kalibracji!Z53)^(1/(pomocniczo_do_innych_kalibracji!L53+pomocniczo_do_innych_kalibracji!N53+pomocniczo_do_innych_kalibracji!P53+pomocniczo_do_innych_kalibracji!R53+pomocniczo_do_innych_kalibracji!T53+pomocniczo_do_innych_kalibracji!V53+pomocniczo_do_innych_kalibracji!X53+pomocniczo_do_innych_kalibracji!Z53))) -> 4.705227162
A54: =dane_do_matlaba!A52 -> 2012Q3 | B54: =1-(Eurostat!AI74+Eurostat!AK74)/Eurostat!AG74 -> 0.7128947858 | C54: =1-(Eurostat!AH74+Eurostat!AJ74)/Eurostat!AF74 -> 0.7892892897 | D54: =Eurostat!C74/SUM(Eurostat!B74:C74) -> 0.0391990001 | F54: =Eurostat!AG74/Eurostat!$AG74 -> 1 | G54: =Eurostat!AG74/Eurostat!$AG74 -> 1 | H54: =Eurostat!AI74/Eurostat!$AG74 -> 0.04009540712 | I54: =Eurostat!AI74/Eurostat!$AG74 -> 0.04009540712 | J54: =Eurostat!AK74/Eurostat!$AG74 -> 0.2470098071 | K54: =Eurostat!AK74/Eurostat!$AG74 -> 0.2470098071 | L54: =Eurostat!AO74/Eurostat!$AG74 -> 0.07222793739 | M54: =Eurostat!AO74/Eurostat!$AG74 -> 0.07222793739 | N54: =Eurostat!AQ74/Eurostat!$AG74 -> 0.2673115283 | O54: =Eurostat!AQ74/Eurostat!$AG74 -> 0.2673115283 | P54: =Eurostat!AS74/Eurostat!$AG74 -> 0.03754004013 | Q54: =Eurostat!AS74/Eurostat!$AG74 -> 0.03754004013 | R54: =Eurostat!AU74/Eurostat!$AG74 -> 0.04217987094 | S54: =Eurostat!AU74/Eurostat!$AG74 -> 0.04217987094 | T54: =Eurostat!AW74/Eurostat!$AG74 -> 0.05750307114 | U54: =Eurostat!AW74/Eurostat!$AG74 -> 0.05750307114 | V54: =Eurostat!AY74/Eurostat!$AG74 -> 0.07107374642 | W54: =Eurostat!AY74/Eurostat!$AG74 -> 0.07107374642 | X54: =Eurostat!BA74/Eurostat!$AG74 -> 0.1345370901 | Y54: =Eurostat!BA74/Eurostat!$AG74 -> 0.1345370901 | Z54: =Eurostat!BC74/Eurostat!$AG74 -> 0.03040419751 | AA54: =Eurostat!BC74/Eurostat!$AG74 -> 0.03040419751 | AC54: =LN((Eurostat!K74^pomocniczo_do_innych_kalibracji!I54*Eurostat!M74^pomocniczo_do_innych_kalibracji!K54)^(1/(pomocniczo_do_innych_kalibracji!I54+pomocniczo_do_innych_kalibracji!K54))) -> 4.732248402 | AD54: =LN((Eurostat!Q74^pomocniczo_do_innych_kalibracji!M54*Eurostat!S74^pomocniczo_do_innych_kalibracji!O54*Eurostat!U74^pomocniczo_do_innych_kalibracji!Q54*Eurostat!W74^pomocniczo_do_innych_kalibracji!S54*Eurostat!Y74^pomocniczo_do_innych_kalibracji!U54*Eurostat!AA74^pomocniczo_do_innych_kalibracji!W54*Eurostat!AC74^pomocniczo_do_innych_kalibracji!Y54*Eurostat!AE74^pomocniczo_do_innych_kalibracji!AA54)^(1/(pomocniczo_do_innych_kalibracji!M54+pomocniczo_do_innych_kalibracji!O54+pomocniczo_do_innych_kalibracji!Q54+pomocniczo_do_innych_kalibracji!S54+pomocniczo_do_innych_kalibracji!U54+pomocniczo_do_innych_kalibracji!W54+pomocniczo_do_innych_kalibracji!Y54+pomocniczo_do_innych_kalibracji!AA54))) -> 4.848667693 | AE54: =LN((Eurostat!J74^pomocniczo_do_innych_kalibracji!H54*Eurostat!L74^pomocniczo_do_innych_kalibracji!J54)^(1/(pomocniczo_do_innych_kalibracji!H54+pomocniczo_do_innych_kalibracji!J54))) -> 4.685716651 | AF54: =LN((Eurostat!P74^pomocniczo_do_innych_kalibracji!L54*Eurostat!R74^pomocniczo_do_innych_kalibracji!N54*Eurostat!T74^pomocniczo_do_innych_kalibracji!P54*Eurostat!V74^pomocniczo_do_innych_kalibracji!R54*Eurostat!X74^pomocniczo_do_innych_kalibracji!T54*Eurostat!Z74^pomocniczo_do_innych_kalibracji!V54*Eurostat!AB74^pomocniczo_do_innych_kalibracji!X54*Eurostat!AD74^pomocniczo_do_innych_kalibracji!Z54)^(1/(pomocniczo_do_innych_kalibracji!L54+pomocniczo_do_innych_kalibracji!N54+pomocniczo_do_innych_kalibracji!P54+pomocniczo_do_innych_kalibracji!R54+pomocniczo_do_innych_kalibracji!T54+pomocniczo_do_innych_kalibracji!V54+pomocniczo_do_innych_kalibracji!X54+pomocniczo_do_innych_kalibracji!Z54))) -> 4.707136694
A55: =dane_do_matlaba!A53 -> 2012Q4 | B55: =1-(Eurostat!AI75+Eurostat!AK75)/Eurostat!AG75 -> 0.7145027031 | C55: =1-(Eurostat!AH75+Eurostat!AJ75)/Eurostat!AF75 -> 0.7905033676 | D55: =Eurostat!C75/SUM(Eurostat!B75:C75) -> 0.0395708106 | F55: =Eurostat!AG75/Eurostat!$AG75 -> 1 | G55: =Eurostat!AG75/Eurostat!$AG75 -> 1 | H55: =Eurostat!AI75/Eurostat!$AG75 -> 0.03946449885 | I55: =Eurostat!AI75/Eurostat!$AG75 -> 0.03946449885 | J55: =Eurostat!AK75/Eurostat!$AG75 -> 0.2460327981 | K55: =Eurostat!AK75/Eurostat!$AG75 -> 0.2460327981 | L55: =Eurostat!AO75/Eurostat!$AG75 -> 0.07095606029 | M55: =Eurostat!AO75/Eurostat!$AG75 -> 0.07095606029 | N55: =Eurostat!AQ75/Eurostat!$AG75 -> 0.2669569246 | O55: =Eurostat!AQ75/Eurostat!$AG75 -> 0.2669569246 | P55: =Eurostat!AS75/Eurostat!$AG75 -> 0.03619657536 | Q55: =Eurostat!AS75/Eurostat!$AG75 -> 0.03619657536 | R55: =Eurostat!AU75/Eurostat!$AG75 -> 0.04745060772 | S55: =Eurostat!AU75/Eurostat!$AG75 -> 0.04745060772 | T55: =Eurostat!AW75/Eurostat!$AG75 -> 0.05806904704 | U55: =Eurostat!AW75/Eurostat!$AG75 -> 0.05806904704 | V55: =Eurostat!AY75/Eurostat!$AG75 -> 0.07119202561 | W55: =Eurostat!AY75/Eurostat!$AG75 -> 0.07119202561 | X55: =Eurostat!BA75/Eurostat!$AG75 -> 0.1361264864 | Y55: =Eurostat!BA75/Eurostat!$AG75 -> 0.1361264864 | Z55: =Eurostat!BC75/Eurostat!$AG75 -> 0.03051603261 | AA55: =Eurostat!BC75/Eurostat!$AG75 -> 0.03051603261 | AC55: =LN((Eurostat!K75^pomocniczo_do_innych_kalibracji!I55*Eurostat!M75^pomocniczo_do_innych_kalibracji!K55)^(1/(pomocniczo_do_innych_kalibracji!I55+pomocniczo_do_innych_kalibracji!K55))) -> 4.724768242 | AD55: =LN((Eurostat!Q75^pomocniczo_do_innych_kalibracji!M55*Eurostat!S75^pomocniczo_do_innych_kalibracji!O55*Eurostat!U75^pomocniczo_do_innych_kalibracji!Q55*Eurostat!W75^pomocniczo_do_innych_kalibracji!S55*Eurostat!Y75^pomocniczo_do_innych_kalibracji!U55*Eurostat!AA75^pomocniczo_do_innych_kalibracji!W55*Eurostat!AC75^pomocniczo_do_innych_kalibracji!Y55*Eurostat!AE75^pomocniczo_do_innych_kalibracji!AA55)^(1/(pomocniczo_do_innych_kalibracji!M55+pomocniczo_do_innych_kalibracji!O55+pomocniczo_do_innych_kalibracji!Q55+pomocniczo_do_innych_kalibracji!S55+pomocniczo_do_innych_kalibracji!U55+pomocniczo_do_innych_kalibracji!W55+pomocniczo_do_innych_kalibracji!Y55+pomocniczo_do_innych_kalibracji!AA55))) -> 4.854200829 | AE55: =LN((Eurostat!J75^pomocniczo_do_innych_kalibracji!H55*Eurostat!L75^pomocniczo_do_innych_kalibracji!J55)^(1/(pomocniczo_do_innych_kalibracji!H55+pomocniczo_do_innych_kalibracji!J55))) -> 4.696483509 | AF55: =LN((Eurostat!P75^pomocniczo_do_innych_kalibracji!L55*Eurostat!R75^pomocniczo_do_innych_kalibracji!N55*Eurostat!T75^pomocniczo_do_innych_kalibracji!P55*Eurostat!V75^pomocniczo_do_innych_kalibracji!R55*Eurostat!X75^pomocniczo_do_innych_kalibracji!T55*Eurostat!Z75^pomocniczo_do_innych_kalibracji!V55*Eurostat!AB75^pomocniczo_do_innych_kalibracji!X55*Eurostat!AD75^pomocniczo_do_innych_kalibracji!Z55)^(1/(pomocniczo_do_innych_kalibracji!L55+pomocniczo_do_innych_kalibracji!N55+pomocniczo_do_innych_kalibracji!P55+pomocniczo_do_innych_kalibracji!R55+pomocniczo_do_innych_kalibracji!T55+pomocniczo_do_innych_kalibracji!V55+pomocniczo_do_innych_kalibracji!X55+pomocniczo_do_innych_kalibracji!Z55))) -> 4.71044243
A56: =dane_do_matlaba!A54 -> 2013Q1 | B56: =1-(Eurostat!AI76+Eurostat!AK76)/Eurostat!AG76 -> 0.71436737 | C56: =1-(Eurostat!AH76+Eurostat!AJ76)/Eurostat!AF76 -> 0.7905967897 | D56: =Eurostat!C76/SUM(Eurostat!B76:C76) -> 0.03916200762 | F56: =Eurostat!AG76/Eurostat!$AG76 -> 1 | G56: =Eurostat!AG76/Eurostat!$AG76 -> 1 | H56: =Eurostat!AI76/Eurostat!$AG76 -> 0.03888541302 | I56: =Eurostat!AI76/Eurostat!$AG76 -> 0.03888541302 | J56: =Eurostat!AK76/Eurostat!$AG76 -> 0.2467472169 | K56: =Eurostat!AK76/Eurostat!$AG76 -> 0.2467472169 | L56: =Eurostat!AO76/Eurostat!$AG76 -> 0.06685766122 | M56: =Eurostat!AO76/Eurostat!$AG76 -> 0.06685766122 | N56: =Eurostat!AQ76/Eurostat!$AG76 -> 0.2686412679 | O56: =Eurostat!AQ76/Eurostat!$AG76 -> 0.2686412679 | P56: =Eurostat!AS76/Eurostat!$AG76 -> 0.03638306856 | Q56: =Eurostat!AS76/Eurostat!$AG76 -> 0.03638306856 | R56: =Eurostat!AU76/Eurostat!$AG76 -> 0.04140838044 | S56: =Eurostat!AU76/Eurostat!$AG76 -> 0.04140838044 | T56: =Eurostat!AW76/Eurostat!$AG76 -> 0.05863189005 | U56: =Eurostat!AW76/Eurostat!$AG76 -> 0.05863189005 | V56: =Eurostat!AY76/Eurostat!$AG76 -> 0.07150618619 | W56: =Eurostat!AY76/Eurostat!$AG76 -> 0.07150618619 | X56: =Eurostat!BA76/Eurostat!$AG76 -> 0.13849929 | Y56: =Eurostat!BA76/Eurostat!$AG76 -> 0.13849929 | Z56: =Eurostat!BC76/Eurostat!$AG76 -> 0.03046762545 | AA56: =Eurostat!BC76/Eurostat!$AG76 -> 0.03046762545 | AC56: =LN((Eurostat!K76^pomocniczo_do_innych_kalibracji!I56*Eurostat!M76^pomocniczo_do_innych_kalibracji!K56)^(1/(pomocniczo_do_innych_kalibracji!I56+pomocniczo_do_innych_kalibracji!K56))) -> 4.734598383 | AD56: =LN((Eurostat!Q76^pomocniczo_do_innych_kalibracji!M56*Eurostat!S76^pomocniczo_do_innych_kalibracji!O56*Eurostat!U76^pomocniczo_do_innych_kalibracji!Q56*Eurostat!W76^pomocniczo_do_innych_kalibracji!S56*Eurostat!Y76^pomocniczo_do_innych_kalibracji!U56*Eurostat!AA76^pomocniczo_do_innych_kalibracji!W56*Eurostat!AC76^pomocniczo_do_innych_kalibracji!Y56*Eurostat!AE76^pomocniczo_do_innych_kalibracji!AA56)^(1/(pomocniczo_do_innych_kalibracji!M56+pomocniczo_do_innych_kalibracji!O56+pomocniczo_do_innych_kalibracji!Q56+pomocniczo_do_innych_kalibracji!S56+pomocniczo_do_innych_kalibracji!U56+pomocniczo_do_innych_kalibracji!W56+pomocniczo_do_innych_kalibracji!Y56+pomocniczo_do_innych_kalibracji!AA56))) -> 4.859853949 | AE56: =LN((Eurostat!J76^pomocniczo_do_innych_kalibracji!H56*Eurostat!L76^pomocniczo_do_innych_kalibracji!J56)^(1/(pomocniczo_do_innych_kalibracji!H56+pomocniczo_do_innych_kalibracji!J56))) -> 4.695548028 | AF56: =LN((Eurostat!P76^pomocniczo_do_innych_kalibracji!L56*Eurostat!R76^pomocniczo_do_innych_kalibracji!N56*Eurostat!T76^pomocniczo_do_innych_kalibracji!P56*Eurostat!V76^pomocniczo_do_innych_kalibracji!R56*Eurostat!X76^pomocniczo_do_innych_kalibracji!T56*Eurostat!Z76^pomocniczo_do_innych_kalibracji!V56*Eurostat!AB76^pomocniczo_do_innych_kalibracji!X56*Eurostat!AD76^pomocniczo_do_innych_kalibracji!Z56)^(1/(pomocniczo_do_innych_kalibracji!L56+pomocniczo_do_innych_kalibracji!N56+pomocniczo_do_innych_kalibracji!P56+pomocniczo_do_innych_kalibracji!R56+pomocniczo_do_innych_kalibracji!T56+pomocniczo_do_innych_kalibracji!V56+pomocniczo_do_innych_kalibracji!X56+pomocniczo_do_innych_kalibracji!Z56))) -> 4.716368579
A57: =dane_do_matlaba!A55 -> 2013Q2 | B57: =1-(Eurostat!AI77+Eurostat!AK77)/Eurostat!AG77 -> 0.7129097657 | C57: =1-(Eurostat!AH77+Eurostat!AJ77)/Eurostat!AF77 -> 0.7900485249 | D57: =Eurostat!C77/SUM(Eurostat!B77:C77) -> 0.03887579057 | F57: =Eurostat!AG77/Eurostat!$AG77 -> 1 | G57: =Eurostat!AG77/Eurostat!$AG77 -> 1 | H57: =Eurostat!AI77/Eurostat!$AG77 -> 0.03914113998 | I57: =Eurostat!AI77/Eurostat!$AG77 -> 0.03914113998 | J57: =Eurostat!AK77/Eurostat!$AG77 -> 0.2479490943 | K57: =Eurostat!AK77/Eurostat!$AG77 -> 0.2479490943 | L57: =Eurostat!AO77/Eurostat!$AG77 -> 0.06399905833 | M57: =Eurostat!AO77/Eurostat!$AG77 -> 0.06399905833 | N57: =Eurostat!AQ77/Eurostat!$AG77 -> 0.2714518363 | O57: =Eurostat!AQ77/Eurostat!$AG77 -> 0.2714518363 | P57: =Eurostat!AS77/Eurostat!$AG77 -> 0.03551875035 | Q57: =Eurostat!AS77/Eurostat!$AG77 -> 0.03551875035 | R57: =Eurostat!AU77/Eurostat!$AG77 -> 0.04068991303 | S57: =Eurostat!AU77/Eurostat!$AG77 -> 0.04068991303 | T57: =Eurostat!AW77/Eurostat!$AG77 -> 0.05867888994 | U57: =Eurostat!AW77/Eurostat!$AG77 -> 0.05867888994 | V57: =Eurostat!AY77/Eurostat!$AG77 -> 0.07253337395 | W57: =Eurostat!AY77/Eurostat!$AG77 -> 0.07253337395 | X57: =Eurostat!BA77/Eurostat!$AG77 -> 0.1386262671 | Y57: =Eurostat!BA77/Eurostat!$AG77 -> 0.1386262671 | Z57: =Eurostat!BC77/Eurostat!$AG77 -> 0.03066692516 | AA57: =Eurostat!BC77/Eurostat!$AG77 -> 0.03066692516 | AC57: =LN((Eurostat!K77^pomocniczo_do_innych_kalibracji!I57*Eurostat!M77^pomocniczo_do_innych_kalibracji!K57)^(1/(pomocniczo_do_innych_kalibracji!I57+pomocniczo_do_innych_kalibracji!K57))) -> 4.717459937 | AD57: =LN((Eurostat!Q77^pomocniczo_do_innych_kalibracji!M57*Eurostat!S77^pomocniczo_do_innych_kalibracji!O57*Eurostat!U77^pomocniczo_do_innych_kalibracji!Q57*Eurostat!W77^pomocniczo_do_innych_kalibracji!S57*Eurostat!Y77^pomocniczo_do_innych_kalibracji!U57*Eurostat!AA77^pomocniczo_do_innych_kalibracji!W57*Eurostat!AC77^pomocniczo_do_innych_kalibracji!Y57*Eurostat!AE77^pomocniczo_do_innych_kalibracji!AA57)^(1/(pomocniczo_do_innych_kalibracji!M57+pomocniczo_do_innych_kalibracji!O57+pomocniczo_do_innych_kalibracji!Q57+pomocniczo_do_innych_kalibracji!S57+pomocniczo_do_innych_kalibracji!U57+pomocniczo_do_innych_kalibracji!W57+pomocniczo_do_innych_kalibracji!Y57+pomocniczo_do_innych_kalibracji!AA57))) -> 4.859975246 | AE57: =LN((Eurostat!J77^pomocniczo_do_innych_kalibracji!H57*Eurostat!L77^pomocniczo_do_innych_kalibracji!J57)^(1/(pomocniczo_do_innych_kalibracji!H57+pomocniczo_do_innych_kalibracji!J57))) -> 4.698406656 | AF57: =LN((Eurostat!P77^pomocniczo_do_innych_kalibracji!L57*Eurostat!R77^pomocniczo_do_innych_kalibracji!N57*Eurostat!T77^pomocniczo_do_innych_kalibracji!P57*Eurostat!V77^pomocniczo_do_innych_kalibracji!R57*Eurostat!X77^pomocniczo_do_innych_kalibracji!T57*Eurostat!Z77^pomocniczo_do_innych_kalibracji!V57*Eurostat!AB77^pomocniczo_do_innych_kalibracji!X57*Eurostat!AD77^pomocniczo_do_innych_kalibracji!Z57)^(1/(pomocniczo_do_innych_kalibracji!L57+pomocniczo_do_innych_kalibracji!N57+pomocniczo_do_innych_kalibracji!P57+pomocniczo_do_innych_kalibracji!R57+pomocniczo_do_innych_kalibracji!T57+pomocniczo_do_innych_kalibracji!V57+pomocniczo_do_innych_kalibracji!X57+pomocniczo_do_innych_kalibracji!Z57))) -> 4.717823785
A58: =dane_do_matlaba!A56 -> 2013Q3 | B58: =1-(Eurostat!AI78+Eurostat!AK78)/Eurostat!AG78 -> 0.7155192686 | C58: =1-(Eurostat!AH78+Eurostat!AJ78)/Eurostat!AF78 -> 0.7908551497 | D58: =Eurostat!C78/SUM(Eurostat!B78:C78) -> 0.03877059514 | F58: =Eurostat!AG78/Eurostat!$AG78 -> 1 | G58: =Eurostat!AG78/Eurostat!$AG78 -> 1 | H58: =Eurostat!AI78/Eurostat!$AG78 -> 0.03785786473 | I58: =Eurostat!AI78/Eurostat!$AG78 -> 0.03785786473 | J58: =Eurostat!AK78/Eurostat!$AG78 -> 0.2466228666 | K58: =Eurostat!AK78/Eurostat!$AG78 -> 0.2466228666 | L58: =Eurostat!AO78/Eurostat!$AG78 -> 0.06553322198 | M58: =Eurostat!AO78/Eurostat!$AG78 -> 0.06553322198 | N58: =Eurostat!AQ78/Eurostat!$AG78 -> 0.2740688239 | O58: =Eurostat!AQ78/Eurostat!$AG78 -> 0.2740688239 | P58: =Eurostat!AS78/Eurostat!$AG78 -> 0.03410047886 | Q58: =Eurostat!AS78/Eurostat!$AG78 -> 0.03410047886 | R58: =Eurostat!AU78/Eurostat!$AG78 -> 0.04368479009 | S58: =Eurostat!AU78/Eurostat!$AG78 -> 0.04368479009 | T58: =Eurostat!AW78/Eurostat!$AG78 -> 0.05887403551 | U58: =Eurostat!AW78/Eurostat!$AG78 -> 0.05887403551 | V58: =Eurostat!AY78/Eurostat!$AG78 -> 0.07262321951 | W58: =Eurostat!AY78/Eurostat!$AG78 -> 0.07262321951 | X58: =Eurostat!BA78/Eurostat!$AG78 -> 0.1367177521 | Y58: =Eurostat!BA78/Eurostat!$AG78 -> 0.1367177521 | Z58: =Eurostat!BC78/Eurostat!$AG78 -> 0.03056535857 | AA58: =Eurostat!BC78/Eurostat!$AG78 -> 0.03056535857 | AC58: =LN((Eurostat!K78^pomocniczo_do_innych_kalibracji!I58*Eurostat!M78^pomocniczo_do_innych_kalibracji!K58)^(1/(pomocniczo_do_innych_kalibracji!I58+pomocniczo_do_innych_kalibracji!K58))) -> 4.710250572 | AD58: =LN((Eurostat!Q78^pomocniczo_do_innych_kalibracji!M58*Eurostat!S78^pomocniczo_do_innych_kalibracji!O58*Eurostat!U78^pomocniczo_do_innych_kalibracji!Q58*Eurostat!W78^pomocniczo_do_innych_kalibracji!S58*Eurostat!Y78^pomocniczo_do_innych_kalibracji!U58*Eurostat!AA78^pomocniczo_do_innych_kalibracji!W58*Eurostat!AC78^pomocniczo_do_innych_kalibracji!Y58*Eurostat!AE78^pomocniczo_do_innych_kalibracji!AA58)^(1/(pomocniczo_do_innych_kalibracji!M58+pomocniczo_do_innych_kalibracji!O58+pomocniczo_do_innych_kalibracji!Q58+pomocniczo_do_innych_kalibracji!S58+pomocniczo_do_innych_kalibracji!U58+pomocniczo_do_innych_kalibracji!W58+pomocniczo_do_innych_kalibracji!Y58+pomocniczo_do_innych_kalibracji!AA58))) -> 4.867737792 | AE58: =LN((Eurostat!J78^pomocniczo_do_innych_kalibracji!H58*Eurostat!L78^pomocniczo_do_innych_kalibracji!J58)^(1/(pomocniczo_do_innych_kalibracji!H58+pomocniczo_do_innych_kalibracji!J58))) -> 4.69599109 | AF58: =LN((Eurostat!P78^pomocniczo_do_innych_kalibracji!L58*Eurostat!R78^pomocniczo_do_innych_kalibracji!N58*Eurostat!T78^pomocniczo_do_innych_kalibracji!P58*Eurostat!V78^pomocniczo_do_innych_kalibracji!R58*Eurostat!X78^pomocniczo_do_innych_kalibracji!T58*Eurostat!Z78^pomocniczo_do_innych_kalibracji!V58*Eurostat!AB78^pomocniczo_do_innych_kalibracji!X58*Eurostat!AD78^pomocniczo_do_innych_kalibracji!Z58)^(1/(pomocniczo_do_innych_kalibracji!L58+pomocniczo_do_innych_kalibracji!N58+pomocniczo_do_innych_kalibracji!P58+pomocniczo_do_innych_kalibracji!R58+pomocniczo_do_innych_kalibracji!T58+pomocniczo_do_innych_kalibracji!V58+pomocniczo_do_innych_kalibracji!X58+pomocniczo_do_innych_kalibracji!Z58))) -> 4.720888841
A59: =dane_do_matlaba!A57 -> 2013Q4 | B59: =1-(Eurostat!AI79+Eurostat!AK79)/Eurostat!AG79 -> 0.7148072426 | C59: =1-(Eurostat!AH79+Eurostat!AJ79)/Eurostat!AF79 -> 0.7898212992 | D59: =Eurostat!C79/SUM(Eurostat!B79:C79) -> 0.03953430068 | F59: =Eurostat!AG79/Eurostat!$AG79 -> 1 | G59: =Eurostat!AG79/Eurostat!$AG79 -> 1 | H59: =Eurostat!AI79/Eurostat!$AG79 -> 0.03788601344 | I59: =Eurostat!AI79/Eurostat!$AG79 -> 0.03788601344 | J59: =Eurostat!AK79/Eurostat!$AG79 -> 0.247306744 | K59: =Eurostat!AK79/Eurostat!$AG79 -> 0.247306744 | L59: =Eurostat!AO79/Eurostat!$AG79 -> 0.06507916322 | M59: =Eurostat!AO79/Eurostat!$AG79 -> 0.06507916322 | N59: =Eurostat!AQ79/Eurostat!$AG79 -> 0.2760465833 | O59: =Eurostat!AQ79/Eurostat!$AG79 -> 0.2760465833 | P59: =Eurostat!AS79/Eurostat!$AG79 -> 0.03374837437 | Q59: =Eurostat!AS79/Eurostat!$AG79 -> 0.03374837437 | R59: =Eurostat!AU79/Eurostat!$AG79 -> 0.04460916742 | S59: =Eurostat!AU79/Eurostat!$AG79 -> 0.04460916742 | T59: =Eurostat!AW79/Eurostat!$AG79 -> 0.05883588515 | U59: =Eurostat!AW79/Eurostat!$AG79 -> 0.05883588515 | V59: =Eurostat!AY79/Eurostat!$AG79 -> 0.07247321961 | W59: =Eurostat!AY79/Eurostat!$AG79 -> 0.07247321961 | X59: =Eurostat!BA79/Eurostat!$AG79 -> 0.1347182346 | Y59: =Eurostat!BA79/Eurostat!$AG79 -> 0.1347182346 | Z59: =Eurostat!BC79/Eurostat!$AG79 -> 0.03053353181 | AA59: =Eurostat!BC79/Eurostat!$AG79 -> 0.03053353181 | AC59: =LN((Eurostat!K79^pomocniczo_do_innych_kalibracji!I59*Eurostat!M79^pomocniczo_do_innych_kalibracji!K59)^(1/(pomocniczo_do_innych_kalibracji!I59+pomocniczo_do_innych_kalibracji!K59))) -> 4.719955268 | AD59: =LN((Eurostat!Q79^pomocniczo_do_innych_kalibracji!M59*Eurostat!S79^pomocniczo_do_innych_kalibracji!O59*Eurostat!U79^pomocniczo_do_innych_kalibracji!Q59*Eurostat!W79^pomocniczo_do_innych_kalibracji!S59*Eurostat!Y79^pomocniczo_do_innych_kalibracji!U59*Eurostat!AA79^pomocniczo_do_innych_kalibracji!W59*Eurostat!AC79^pomocniczo_do_innych_kalibracji!Y59*Eurostat!AE79^pomocniczo_do_innych_kalibracji!AA59)^(1/(pomocniczo_do_innych_kalibracji!M59+pomocniczo_do_innych_kalibracji!O59+pomocniczo_do_innych_kalibracji!Q59+pomocniczo_do_innych_kalibracji!S59+pomocniczo_do_innych_kalibracji!U59+pomocniczo_do_innych_kalibracji!W59+pomocniczo_do_innych_kalibracji!Y59+pomocniczo_do_innych_kalibracji!AA59))) -> 4.867450758 | AE59: =LN((Eurostat!J79^pomocniczo_do_innych_kalibracji!H59*Eurostat!L79^pomocniczo_do_innych_kalibracji!J59)^(1/(pomocniczo_do_innych_kalibracji!H59+pomocniczo_do_innych_kalibracji!J59))) -> 4.698510537 | AF59: =LN((Eurostat!P79^pomocniczo_do_innych_kalibracji!L59*Eurostat!R79^pomocniczo_do_innych_kalibracji!N59*Eurostat!T79^pomocniczo_do_innych_kalibracji!P59*Eurostat!V79^pomocniczo_do_innych_kalibracji!R59*Eurostat!X79^pomocniczo_do_innych_kalibracji!T59*Eurostat!Z79^pomocniczo_do_innych_kalibracji!V59*Eurostat!AB79^pomocniczo_do_innych_kalibracji!X59*Eurostat!AD79^pomocniczo_do_innych_kalibracji!Z59)^(1/(pomocniczo_do_innych_kalibracji!L59+pomocniczo_do_innych_kalibracji!N59+pomocniczo_do_innych_kalibracji!P59+pomocniczo_do_innych_kalibracji!R59+pomocniczo_do_innych_kalibracji!T59+pomocniczo_do_innych_kalibracji!V59+pomocniczo_do_innych_kalibracji!X59+pomocniczo_do_innych_kalibracji!Z59))) -> 4.721403847
